Workbook

Sheet Instructions
A1: Some cells are protected to prevent accidential edits. The password to unprotect the sheet is 1.
A3: Structure:
B4: Section 1: Key Modelling Assumptions | F4: User input needed | H4: Please enter assumptions such as denomination ($dollars, $thousands or $millions) and evaluation period (e.g., 30 years).
B5: Section 2: General Inputs | F5: User input needed | H5: Please enter capex, opex and benefits assumptions for the base case and alternative options - there is one worksheet per option.
B6: Section 3: Output Calculations | F6: No inputs needed | H6: Automatic calculations & no inputs needed. This section is hidden.
B7: Section 4: Outputs | F7: No inputs needed | H7: Summary tables have been automatically generated & no inputs needed.
B8: Appendix A: CPI | F8: No inputs needed | H8: This section automatically calculates the escalation factor to convert dollars from one basis to another. No inputs needed.
B9: Appendix B: Modelling Controls | F9: No inputs needed | H9: No inputs needed.
A11: Cell types:
C12: Comment
B13: Blue cells | C13: User to enter inputs, whether it be:
B14: Blue cells | C14: entering data in directly
B15: Blue cells | C15: adjusting the formula to suit your specific needs
B16: White cells | C16: No need for inputs
B17: Black cells | C17: Headings
B18: Grey cells | C18: Headings
B19: Red Text | C19: White cells with red text contains reminders about how the inputs should be entered
B20: 2023-06-30 | C20: For example "30-June-23" is a reminder that the model is expecting the dollar amounts to be in June-23 dollars.
B21: $millions | C21: For example "$millions" is a reminder that the model is expecting the dollar amounts to be in millions.

Sheet Cover
C9: AusNet Services
C10: Business Case Evaluation
C11: Smart meter 13 yr bulk replacement

Sheet 1_KMA->
C6: Key Modelling Assumptions
C7: Section 1.
C9: =Cover!$C$9 -> AusNet Services
C10: =Cover!$C$10 -> Business Case Evaluation
C11: =Cover!$C$11 -> Smart meter 13 yr bulk replacement

Sheet 1_KMA
B1: Key Modelling Assumptions | I1: Regulatory Period Indicator | J1: ='1_KMA'!J30 -> 0 | K1: ='1_KMA'!K30 -> 0 | L1: ='1_KMA'!L30 -> 1 | M1: ='1_KMA'!M30 -> 1 | N1: ='1_KMA'!N30 -> 1 | O1: ='1_KMA'!O30 -> 1 | P1: ='1_KMA'!P30 -> 1 | Q1: ='1_KMA'!Q30 -> 0 | R1: ='1_KMA'!R30 -> 0 | S1: ='1_KMA'!S30 -> 0 | T1: ='1_KMA'!T30 -> 0 | U1: ='1_KMA'!U30 -> 0 | V1: ='1_KMA'!V30 -> 0 | W1: ='1_KMA'!W30 -> 0 | X1: ='1_KMA'!X30 -> 0 | Y1: ='1_KMA'!Y30 -> 0 | Z1: ='1_KMA'!Z30 -> 0 | AA1: ='1_KMA'!AA30 -> 0 | AB1: ='1_KMA'!AB30 -> 0 | AC1: ='1_KMA'!AC30 -> 0 | AD1: ='1_KMA'!AD30 -> 0 | AE1: ='1_KMA'!AE30 -> 0 | AF1: ='1_KMA'!AF30 -> 0 | AG1: ='1_KMA'!AG30 -> 0 | AH1: ='1_KMA'!AH30 -> 0 | AI1: ='1_KMA'!AI30 -> 0 | AJ1: ='1_KMA'!AJ30 -> 0 | AK1: ='1_KMA'!AK30 -> 0 | AL1: ='1_KMA'!AL30 -> 0 | AM1: ='1_KMA'!AM30 -> 0 | AN1: ='1_KMA'!AN30 -> 0 | AO1: ='1_KMA'!AO30 -> 0 | AP1: ='1_KMA'!AP30 -> 0 | AQ1: ='1_KMA'!AQ30 -> 0 | AR1: ='1_KMA'!AR30 -> 0 | AS1: ='1_KMA'!AS30 -> 0 | AT1: ='1_KMA'!AT30 -> 0 | AU1: ='1_KMA'!AU30 -> 0 | AV1: ='1_KMA'!AV30 -> 0 | AW1: ='1_KMA'!AW30 -> 0 | AX1: ='1_KMA'!AX30 -> 0 | AY1: ='1_KMA'!AY30 -> 0 | AZ1: ='1_KMA'!AZ30 -> 0 | BA1: ='1_KMA'!BA30 -> 0 | BB1: ='1_KMA'!BB30 -> 0 | BC1: ='1_KMA'!BC30 -> 0 | BD1: ='1_KMA'!BD30 -> 0 | BE1: ='1_KMA'!BE30 -> 0 | BF1: ='1_KMA'!BF30 -> 0 | BG1: ='1_KMA'!BG30 -> 0
B2: =Cover!$C$9 -> AusNet Services | I2: Period Start Date | J2: ='1_KMA'!J31 -> 2024-07-01 | K2: ='1_KMA'!K31 -> 2025-07-01 | L2: ='1_KMA'!L31 -> 2026-07-01 | M2: ='1_KMA'!M31 -> 2027-07-01 | N2: ='1_KMA'!N31 -> 2028-07-01 | O2: ='1_KMA'!O31 -> 2029-07-01 | P2: ='1_KMA'!P31 -> 2030-07-01 | Q2: ='1_KMA'!Q31 -> 2031-07-01 | R2: ='1_KMA'!R31 -> 2032-07-01 | S2: ='1_KMA'!S31 -> 2033-07-01 | T2: ='1_KMA'!T31 -> 2034-07-01 | U2: ='1_KMA'!U31 -> 2035-07-01 | V2: ='1_KMA'!V31 -> 2036-07-01 | W2: ='1_KMA'!W31 -> 2037-07-01 | X2: ='1_KMA'!X31 -> 2038-07-01 | Y2: ='1_KMA'!Y31 -> 2039-07-01 | Z2: ='1_KMA'!Z31 -> 2040-07-01 | AA2: ='1_KMA'!AA31 -> 2041-07-01 | AB2: ='1_KMA'!AB31 -> 2042-07-01 | AC2: ='1_KMA'!AC31 -> 2043-07-01 | AD2: ='1_KMA'!AD31 -> 2044-07-01 | AE2: ='1_KMA'!AE31 -> 2045-07-01 | AF2: ='1_KMA'!AF31 -> 2046-07-01 | AG2: ='1_KMA'!AG31 -> 2047-07-01 | AH2: ='1_KMA'!AH31 -> 2048-07-01 | AI2: ='1_KMA'!AI31 -> 2049-07-01 | AJ2: ='1_KMA'!AJ31 -> 2050-07-01 | AK2: ='1_KMA'!AK31 -> 2051-07-01 | AL2: ='1_KMA'!AL31 -> 2052-07-01 | AM2: ='1_KMA'!AM31 -> 2053-07-01 | AN2: ='1_KMA'!AN31 -> 2054-07-01 | AO2: ='1_KMA'!AO31 -> 2055-07-01 | AP2: ='1_KMA'!AP31 -> 2056-07-01 | AQ2: ='1_KMA'!AQ31 -> 2057-07-01 | AR2: ='1_KMA'!AR31 -> 2058-07-01 | AS2: ='1_KMA'!AS31 -> 2059-07-01 | AT2: ='1_KMA'!AT31 -> 2060-07-01 | AU2: ='1_KMA'!AU31 -> 2061-07-01 | AV2: ='1_KMA'!AV31 -> 2062-07-01 | AW2: ='1_KMA'!AW31 -> 2063-07-01 | AX2: ='1_KMA'!AX31 -> 2064-07-01 | AY2: ='1_KMA'!AY31 -> 2065-07-01 | AZ2: ='1_KMA'!AZ31 -> 2066-07-01 | BA2: ='1_KMA'!BA31 -> 2067-07-01 | BB2: ='1_KMA'!BB31 -> 2068-07-01 | BC2: ='1_KMA'!BC31 -> 2069-07-01 | BD2: ='1_KMA'!BD31 -> 2070-07-01 | BE2: ='1_KMA'!BE31 -> 2071-07-01 | BF2: ='1_KMA'!BF31 -> 2072-07-01 | BG2: ='1_KMA'!BG31 -> 2073-07-01
B3: =Cover!$C$10 -> Business Case Evaluation | I3: Period End Date | J3: ='1_KMA'!J32 -> 2025-06-30 | K3: ='1_KMA'!K32 -> 2026-06-30 | L3: ='1_KMA'!L32 -> 2027-06-30 | M3: ='1_KMA'!M32 -> 2028-06-30 | N3: ='1_KMA'!N32 -> 2029-06-30 | O3: ='1_KMA'!O32 -> 2030-06-30 | P3: ='1_KMA'!P32 -> 2031-06-30 | Q3: ='1_KMA'!Q32 -> 2032-06-30 | R3: ='1_KMA'!R32 -> 2033-06-30 | S3: ='1_KMA'!S32 -> 2034-06-30 | T3: ='1_KMA'!T32 -> 2035-06-30 | U3: ='1_KMA'!U32 -> 2036-06-30 | V3: ='1_KMA'!V32 -> 2037-06-30 | W3: ='1_KMA'!W32 -> 2038-06-30 | X3: ='1_KMA'!X32 -> 2039-06-30 | Y3: ='1_KMA'!Y32 -> 2040-06-30 | Z3: ='1_KMA'!Z32 -> 2041-06-30 | AA3: ='1_KMA'!AA32 -> 2042-06-30 | AB3: ='1_KMA'!AB32 -> 2043-06-30 | AC3: ='1_KMA'!AC32 -> 2044-06-30 | AD3: ='1_KMA'!AD32 -> 2045-06-30 | AE3: ='1_KMA'!AE32 -> 2046-06-30 | AF3: ='1_KMA'!AF32 -> 2047-06-30 | AG3: ='1_KMA'!AG32 -> 2048-06-30 | AH3: ='1_KMA'!AH32 -> 2049-06-30 | AI3: ='1_KMA'!AI32 -> 2050-06-30 | AJ3: ='1_KMA'!AJ32 -> 2051-06-30 | AK3: ='1_KMA'!AK32 -> 2052-06-30 | AL3: ='1_KMA'!AL32 -> 2053-06-30 | AM3: ='1_KMA'!AM32 -> 2054-06-30 | AN3: ='1_KMA'!AN32 -> 2055-06-30 | AO3: ='1_KMA'!AO32 -> 2056-06-30 | AP3: ='1_KMA'!AP32 -> 2057-06-30 | AQ3: ='1_KMA'!AQ32 -> 2058-06-30 | AR3: ='1_KMA'!AR32 -> 2059-06-30 | AS3: ='1_KMA'!AS32 -> 2060-06-30 | AT3: ='1_KMA'!AT32 -> 2061-06-30 | AU3: ='1_KMA'!AU32 -> 2062-06-30 | AV3: ='1_KMA'!AV32 -> 2063-06-30 | AW3: ='1_KMA'!AW32 -> 2064-06-30 | AX3: ='1_KMA'!AX32 -> 2065-06-30 | AY3: ='1_KMA'!AY32 -> 2066-06-30 | AZ3: ='1_KMA'!AZ32 -> 2067-06-30 | BA3: ='1_KMA'!BA32 -> 2068-06-30 | BB3: ='1_KMA'!BB32 -> 2069-06-30 | BC3: ='1_KMA'!BC32 -> 2070-06-30 | BD3: ='1_KMA'!BD32 -> 2071-06-30 | BE3: ='1_KMA'!BE32 -> 2072-06-30 | BF3: ='1_KMA'!BF32 -> 2073-06-30 | BG3: ='1_KMA'!BG32 -> 2074-06-30
B4: =Cover!$C$11 -> Smart meter 13 yr bulk replacement | I4: Project Year | J4: ='1_KMA'!J33 -> 1 | K4: ='1_KMA'!K33 -> 2 | L4: ='1_KMA'!L33 -> 3 | M4: ='1_KMA'!M33 -> 4 | N4: ='1_KMA'!N33 -> 5 | O4: ='1_KMA'!O33 -> 6 | P4: ='1_KMA'!P33 -> 7 | Q4: ='1_KMA'!Q33 -> 8 | R4: ='1_KMA'!R33 -> 9 | S4: ='1_KMA'!S33 -> 10 | T4: ='1_KMA'!T33 -> 11 | U4: ='1_KMA'!U33 -> 12 | V4: ='1_KMA'!V33 -> 13 | W4: ='1_KMA'!W33 -> 14 | X4: ='1_KMA'!X33 -> 15 | Y4: ='1_KMA'!Y33 -> 16 | Z4: ='1_KMA'!Z33 -> 17 | AA4: ='1_KMA'!AA33 -> 18 | AB4: ='1_KMA'!AB33 -> 19 | AC4: ='1_KMA'!AC33 -> 20 | AD4: ='1_KMA'!AD33 -> 21 | AE4: ='1_KMA'!AE33 -> 22 | AF4: ='1_KMA'!AF33 -> 23 | AG4: ='1_KMA'!AG33 -> 24 | AH4: ='1_KMA'!AH33 -> 25 | AI4: ='1_KMA'!AI33 -> 26 | AJ4: ='1_KMA'!AJ33 -> 27 | AK4: ='1_KMA'!AK33 -> 28 | AL4: ='1_KMA'!AL33 -> 29 | AM4: ='1_KMA'!AM33 -> 30 | AN4: ='1_KMA'!AN33 -> 31 | AO4: ='1_KMA'!AO33 -> 32 | AP4: ='1_KMA'!AP33 -> 33 | AQ4: ='1_KMA'!AQ33 -> 34 | AR4: ='1_KMA'!AR33 -> 35 | AS4: ='1_KMA'!AS33 -> 36 | AT4: ='1_KMA'!AT33 -> 37 | AU4: ='1_KMA'!AU33 -> 38 | AV4: ='1_KMA'!AV33 -> 39 | AW4: ='1_KMA'!AW33 -> 40 | AX4: ='1_KMA'!AX33 -> 41 | AY4: ='1_KMA'!AY33 -> 42 | AZ4: ='1_KMA'!AZ33 -> 43 | BA4: ='1_KMA'!BA33 -> 44 | BB4: ='1_KMA'!BB33 -> 45 | BC4: ='1_KMA'!BC33 -> 46 | BD4: ='1_KMA'!BD33 -> 47 | BE4: ='1_KMA'!BE33 -> 48 | BF4: ='1_KMA'!BF33 -> 49 | BG4: ='1_KMA'!BG33 -> 50
I5: Financial Year | J5: ='1_KMA'!J34 -> 2025 | K5: ='1_KMA'!K34 -> 2026 | L5: ='1_KMA'!L34 -> 2027 | M5: ='1_KMA'!M34 -> 2028 | N5: ='1_KMA'!N34 -> 2029 | O5: ='1_KMA'!O34 -> 2030 | P5: ='1_KMA'!P34 -> 2031 | Q5: ='1_KMA'!Q34 -> 2032 | R5: ='1_KMA'!R34 -> 2033 | S5: ='1_KMA'!S34 -> 2034 | T5: ='1_KMA'!T34 -> 2035 | U5: ='1_KMA'!U34 -> 2036 | V5: ='1_KMA'!V34 -> 2037 | W5: ='1_KMA'!W34 -> 2038 | X5: ='1_KMA'!X34 -> 2039 | Y5: ='1_KMA'!Y34 -> 2040 | Z5: ='1_KMA'!Z34 -> 2041 | AA5: ='1_KMA'!AA34 -> 2042 | AB5: ='1_KMA'!AB34 -> 2043 | AC5: ='1_KMA'!AC34 -> 2044 | AD5: ='1_KMA'!AD34 -> 2045 | AE5: ='1_KMA'!AE34 -> 2046 | AF5: ='1_KMA'!AF34 -> 2047 | AG5: ='1_KMA'!AG34 -> 2048 | AH5: ='1_KMA'!AH34 -> 2049 | AI5: ='1_KMA'!AI34 -> 2050 | AJ5: ='1_KMA'!AJ34 -> 2051 | AK5: ='1_KMA'!AK34 -> 2052 | AL5: ='1_KMA'!AL34 -> 2053 | AM5: ='1_KMA'!AM34 -> 2054 | AN5: ='1_KMA'!AN34 -> 2055 | AO5: ='1_KMA'!AO34 -> 2056 | AP5: ='1_KMA'!AP34 -> 2057 | AQ5: ='1_KMA'!AQ34 -> 2058 | AR5: ='1_KMA'!AR34 -> 2059 | AS5: ='1_KMA'!AS34 -> 2060 | AT5: ='1_KMA'!AT34 -> 2061 | AU5: ='1_KMA'!AU34 -> 2062 | AV5: ='1_KMA'!AV34 -> 2063 | AW5: ='1_KMA'!AW34 -> 2064 | AX5: ='1_KMA'!AX34 -> 2065 | AY5: ='1_KMA'!AY34 -> 2066 | AZ5: ='1_KMA'!AZ34 -> 2067 | BA5: ='1_KMA'!BA34 -> 2068 | BB5: ='1_KMA'!BB34 -> 2069 | BC5: ='1_KMA'!BC34 -> 2070 | BD5: ='1_KMA'!BD34 -> 2071 | BE5: ='1_KMA'!BE34 -> 2072 | BF5: ='1_KMA'!BF34 -> 2073 | BG5: ='1_KMA'!BG34 -> 2074
B7: Project Details
B9: Option Name | E9: Description | L9: Life of the asset for annualised cost calculation (years) | O9: Will this option be used in your assessment?
B10: Base Case | E10: Commence meter replacement in FY2026-27 | O10: Yes
B11: Option 1 | E11: Commence meter replacement in FY2028-29 | L11: 15 | O11: Yes | P11: Select "Yes" if this option will be used in your assessment
B12: Option 2 | E12: Defer meter replacements and commence meter replacements in FY2031-32 | L12: 15 | O12: Yes | P12: Select "No" if this option will not be used in your assessment
B13: Option 3 | E13: Not considered | L13: 15 | O13: No | P13: Selecting "Yes" when you are in fact not assessing this option will negatively affect how the summary charts are presented
B14: Option 4 | E14: Not considered | L14: 15 | O14: No
B15: Option 5 | E15: Not considered | O15: No
B17: Modelling Controls
B19: Denomination of Entered Cashflows | I19: $millions | J19: Select the denomination that you want the NPV analysis to be in. This does not prevent your capex buildup (for example) to be in dollars or thousands. However, the total row must be in the denomination that you select, which means you might need to adjust the formula (for example divide by 10^6).
B20: Dollar Basis of Entered Value for all Parts of the Model | I20: 2024-06-30 | J20: Select the dollar basis that you are entering unit rates, dollar values, and benefit streams in.
B21: Dollar Basis Needed for EDPR | I21: 2025-06-30 | J21: The reg team is working in FY24 dollars for the Jan 2025 submission, so please ensure this is set to "30-Jun-24". However, this may change as the AER's assessment process evolves.
B22: Model Start Date | I22: 2024-07-01
B23: Assessment Period (Years) | I23: 30
B24: Model End Date | I24: =EOMONTH(I22+(I23*365),0) -> 2054-06-30
B25: Regulatory Period Start Date | I25: 2026-07-01 | J25: Do not change as this is the start date of the next regulatory period
B26: Regulatory Period End Date | I26: 2031-06-30 | J26: Do not change as this is the end date of the next regulatory period
B27: CPI p.a. (for future periods withouta RBA forecast) | I27: 0.025 | J27: Do not change as we have adopted 2.5% p.a. for the periods outside of the RBA's forecast. That is, we use the ABS' actuals where available, the RBA's forecast where available, and then 2.5% p.a. for all other future years.
B28: Real discount rate (base case) | I28: 0.0545 | J28: Do not change as this is the reg team's assumption.
B30: Regulatory Period Indicator | J30: =IF(AND(J$31>=$I$25,J$32<=$I$26),1,0) -> 0 | K30: =IF(AND(K$31>=$I$25,K$32<=$I$26),1,0) -> 0 | L30: 1 | M30: 1 | N30: 1 | O30: 1 | P30: 1 | Q30: 0 | R30: 0 | S30: 0 | T30: 0 | U30: 0 | V30: 0 | W30: 0 | X30: 0 | Y30: 0 | Z30: 0 | AA30: 0 | AB30: 0 | AC30: 0 | AD30: 0 | AE30: 0 | AF30: 0 | AG30: 0 | AH30: 0 | AI30: 0 | AJ30: 0 | AK30: 0 | AL30: 0 | AM30: 0 | AN30: 0 | AO30: 0 | AP30: =IF(AND(AP$31>=$I$25,AP$32<=$I$26),1,0) -> 0 | AQ30: 0 | AR30: 0 | AS30: 0 | AT30: 0 | AU30: 0 | AV30: 0 | AW30: 0 | AX30: 0 | AY30: 0 | AZ30: 0 | BA30: 0 | BB30: 0 | BC30: 0 | BD30: 0 | BE30: 0 | BF30: 0 | BG30: 0
B31: Period Start Date | J31: =EDATE($I$22,(J33-1)*12) -> 2024-07-01 | K31: =EDATE($I$22,(K33-1)*12) -> 2025-07-01 | L31: 2026-07-01 | M31: 2027-07-01 | N31: 2028-07-01 | O31: 2029-07-01 | P31: 2030-07-01 | Q31: 2031-07-01 | R31: 2032-07-01 | S31: 2033-07-01 | T31: 2034-07-01 | U31: 2035-07-01 | V31: 2036-07-01 | W31: 2037-07-01 | X31: 2038-07-01 | Y31: 2039-07-01 | Z31: 2040-07-01 | AA31: 2041-07-01 | AB31: 2042-07-01 | AC31: 2043-07-01 | AD31: 2044-07-01 | AE31: 2045-07-01 | AF31: 2046-07-01 | AG31: 2047-07-01 | AH31: 2048-07-01 | AI31: 2049-07-01 | AJ31: 2050-07-01 | AK31: 2051-07-01 | AL31: 2052-07-01 | AM31: 2053-07-01 | AN31: 2054-07-01 | AO31: 2055-07-01 | AP31: =EDATE($I$22,(AP33-1)*12) -> 2056-07-01 | AQ31: 2057-07-01 | AR31: 2058-07-01 | AS31: 2059-07-01 | AT31: 2060-07-01 | AU31: 2061-07-01 | AV31: 2062-07-01 | AW31: 2063-07-01 | AX31: 2064-07-01 | AY31: 2065-07-01 | AZ31: 2066-07-01 | BA31: 2067-07-01 | BB31: 2068-07-01 | BC31: 2069-07-01 | BD31: 2070-07-01 | BE31: 2071-07-01 | BF31: 2072-07-01 | BG31: 2073-07-01
B32: Period End Date | J32: =EDATE(J31,12)-1 -> 2025-06-30 | K32: =EDATE(K31,12)-1 -> 2026-06-30 | L32: 2027-06-30 | M32: =EDATE(M31,12)-1 -> 2028-06-30 | N32: 2029-06-30 | O32: 2030-06-30 | P32: 2031-06-30 | Q32: 2032-06-30 | R32: 2033-06-30 | S32: 2034-06-30 | T32: 2035-06-30 | U32: 2036-06-30 | V32: 2037-06-30 | W32: 2038-06-30 | X32: 2039-06-30 | Y32: 2040-06-30 | Z32: 2041-06-30 | AA32: 2042-06-30 | AB32: 2043-06-30 | AC32: 2044-06-30 | AD32: 2045-06-30 | AE32: 2046-06-30 | AF32: 2047-06-30 | AG32: 2048-06-30 | AH32: 2049-06-30 | AI32: 2050-06-30 | AJ32: 2051-06-30 | AK32: 2052-06-30 | AL32: 2053-06-30 | AM32: 2054-06-30 | AN32: 2055-06-30 | AO32: 2056-06-30 | AP32: 2057-06-30 | AQ32: 2058-06-30 | AR32: 2059-06-30 | AS32: 2060-06-30 | AT32: 2061-06-30 | AU32: 2062-06-30 | AV32: 2063-06-30 | AW32: 2064-06-30 | AX32: 2065-06-30 | AY32: 2066-06-30 | AZ32: 2067-06-30 | BA32: 2068-06-30 | BB32: 2069-06-30 | BC32: 2070-06-30 | BD32: 2071-06-30 | BE32: 2072-06-30 | BF32: 2073-06-30 | BG32: 2074-06-30
B33: ="Project Year" -> Project Year | J33: =COLUMNS($J33:J33) -> 1 | K33: =COLUMNS($J33:K33) -> 2 | L33: =COLUMNS($J33:L33) -> 3 | M33: =COLUMNS($J33:M33) -> 4 | N33: =COLUMNS($J33:N33) -> 5 | O33: =COLUMNS($J33:O33) -> 6 | P33: =COLUMNS($J33:P33) -> 7 | Q33: =COLUMNS($J33:Q33) -> 8 | R33: =COLUMNS($J33:R33) -> 9 | S33: =COLUMNS($J33:S33) -> 10 | T33: =COLUMNS($J33:T33) -> 11 | U33: =COLUMNS($J33:U33) -> 12 | V33: =COLUMNS($J33:V33) -> 13 | W33: =COLUMNS($J33:W33) -> 14 | X33: =COLUMNS($J33:X33) -> 15 | Y33: =COLUMNS($J33:Y33) -> 16 | Z33: =COLUMNS($J33:Z33) -> 17 | AA33: =COLUMNS($J33:AA33) -> 18 | AB33: =COLUMNS($J33:AB33) -> 19 | AC33: =COLUMNS($J33:AC33) -> 20 | AD33: =COLUMNS($J33:AD33) -> 21 | AE33: =COLUMNS($J33:AE33) -> 22 | AF33: =COLUMNS($J33:AF33) -> 23 | AG33: =COLUMNS($J33:AG33) -> 24 | AH33: =COLUMNS($J33:AH33) -> 25 | AI33: =COLUMNS($J33:AI33) -> 26 | AJ33: =COLUMNS($J33:AJ33) -> 27 | AK33: =COLUMNS($J33:AK33) -> 28 | AL33: =COLUMNS($J33:AL33) -> 29 | AM33: =COLUMNS($J33:AM33) -> 30 | AN33: =COLUMNS($J33:AN33) -> 31 | AO33: =COLUMNS($J33:AO33) -> 32 | AP33: =COLUMNS($J33:AP33) -> 33 | AQ33: =COLUMNS($J33:AQ33) -> 34 | AR33: =COLUMNS($J33:AR33) -> 35 | AS33: =COLUMNS($J33:AS33) -> 36 | AT33: =COLUMNS($J33:AT33) -> 37 | AU33: =COLUMNS($J33:AU33) -> 38 | AV33: =COLUMNS($J33:AV33) -> 39 | AW33: =COLUMNS($J33:AW33) -> 40 | AX33: =COLUMNS($J33:AX33) -> 41 | AY33: =COLUMNS($J33:AY33) -> 42 | AZ33: =COLUMNS($J33:AZ33) -> 43 | BA33: =COLUMNS($J33:BA33) -> 44 | BB33: =COLUMNS($J33:BB33) -> 45 | BC33: =COLUMNS($J33:BC33) -> 46 | BD33: =COLUMNS($J33:BD33) -> 47 | BE33: =COLUMNS($J33:BE33) -> 48 | BF33: =COLUMNS($J33:BF33) -> 49 | BG33: =COLUMNS($J33:BG33) -> 50
B34: Financial Year | J34: =YEAR(J32) -> 2025 | K34: =YEAR(K32) -> 2026 | L34: 2027 | M34: 2028 | N34: 2029 | O34: 2030 | P34: 2031 | Q34: 2032 | R34: 2033 | S34: 2034 | T34: 2035 | U34: 2036 | V34: 2037 | W34: 2038 | X34: 2039 | Y34: 2040 | Z34: 2041 | AA34: 2042 | AB34: 2043 | AC34: 2044 | AD34: 2045 | AE34: 2046 | AF34: 2047 | AG34: 2048 | AH34: 2049 | AI34: 2050 | AJ34: 2051 | AK34: 2052 | AL34: 2053 | AM34: 2054 | AN34: 2055 | AO34: 2056 | AP34: 2057 | AQ34: 2058 | AR34: 2059 | AS34: 2060 | AT34: 2061 | AU34: 2062 | AV34: 2063 | AW34: 2064 | AX34: 2065 | AY34: 2066 | AZ34: 2067 | BA34: 2068 | BB34: 2069 | BC34: 2070 | BD34: 2071 | BE34: 2072 | BF34: 2073 | BG34: 2074

Sheet 2.1_Inputs
C6: Inputs
C7: Section 2.1.
C9: =Cover!$C$9 -> AusNet Services
C10: =Cover!$C$10 -> Business Case Evaluation
C11: =Cover!$C$11 -> Smart meter 13 yr bulk replacement

Sheet 2.1_BC
B1: General Inputs: Base Case | I1: Regulatory Period Indicator | J1: ='1_KMA'!J30 -> 0 | K1: ='1_KMA'!K30 -> 0 | L1: ='1_KMA'!L30 -> 1 | M1: ='1_KMA'!M30 -> 1 | N1: ='1_KMA'!N30 -> 1 | O1: ='1_KMA'!O30 -> 1 | P1: ='1_KMA'!P30 -> 1 | Q1: ='1_KMA'!Q30 -> 0 | R1: ='1_KMA'!R30 -> 0 | S1: ='1_KMA'!S30 -> 0 | T1: ='1_KMA'!T30 -> 0 | U1: ='1_KMA'!U30 -> 0 | V1: ='1_KMA'!V30 -> 0 | W1: ='1_KMA'!W30 -> 0 | X1: ='1_KMA'!X30 -> 0 | Y1: ='1_KMA'!Y30 -> 0 | Z1: ='1_KMA'!Z30 -> 0 | AA1: ='1_KMA'!AA30 -> 0 | AB1: ='1_KMA'!AB30 -> 0 | AC1: ='1_KMA'!AC30 -> 0 | AD1: ='1_KMA'!AD30 -> 0 | AE1: ='1_KMA'!AE30 -> 0 | AF1: ='1_KMA'!AF30 -> 0 | AG1: ='1_KMA'!AG30 -> 0 | AH1: ='1_KMA'!AH30 -> 0 | AI1: ='1_KMA'!AI30 -> 0 | AJ1: ='1_KMA'!AJ30 -> 0 | AK1: ='1_KMA'!AK30 -> 0 | AL1: ='1_KMA'!AL30 -> 0 | AM1: ='1_KMA'!AM30 -> 0 | AN1: ='1_KMA'!AN30 -> 0 | AO1: ='1_KMA'!AO30 -> 0 | AP1: ='1_KMA'!AP30 -> 0 | AQ1: ='1_KMA'!AQ30 -> 0 | AR1: ='1_KMA'!AR30 -> 0 | AS1: ='1_KMA'!AS30 -> 0 | AT1: ='1_KMA'!AT30 -> 0 | AU1: ='1_KMA'!AU30 -> 0 | AV1: ='1_KMA'!AV30 -> 0 | AW1: ='1_KMA'!AW30 -> 0 | AX1: ='1_KMA'!AX30 -> 0 | AY1: ='1_KMA'!AY30 -> 0 | AZ1: ='1_KMA'!AZ30 -> 0 | BA1: ='1_KMA'!BA30 -> 0 | BB1: ='1_KMA'!BB30 -> 0 | BC1: ='1_KMA'!BC30 -> 0 | BD1: ='1_KMA'!BD30 -> 0 | BE1: ='1_KMA'!BE30 -> 0 | BF1: ='1_KMA'!BF30 -> 0 | BG1: ='1_KMA'!BG30 -> 0
B2: =Cover!$C$9 -> AusNet Services | I2: Period Start Date | J2: ='1_KMA'!J31 -> 2024-07-01 | K2: ='1_KMA'!K31 -> 2025-07-01 | L2: ='1_KMA'!L31 -> 2026-07-01 | M2: ='1_KMA'!M31 -> 2027-07-01 | N2: ='1_KMA'!N31 -> 2028-07-01 | O2: ='1_KMA'!O31 -> 2029-07-01 | P2: ='1_KMA'!P31 -> 2030-07-01 | Q2: ='1_KMA'!Q31 -> 2031-07-01 | R2: ='1_KMA'!R31 -> 2032-07-01 | S2: ='1_KMA'!S31 -> 2033-07-01 | T2: ='1_KMA'!T31 -> 2034-07-01 | U2: ='1_KMA'!U31 -> 2035-07-01 | V2: ='1_KMA'!V31 -> 2036-07-01 | W2: ='1_KMA'!W31 -> 2037-07-01 | X2: ='1_KMA'!X31 -> 2038-07-01 | Y2: ='1_KMA'!Y31 -> 2039-07-01 | Z2: ='1_KMA'!Z31 -> 2040-07-01 | AA2: ='1_KMA'!AA31 -> 2041-07-01 | AB2: ='1_KMA'!AB31 -> 2042-07-01 | AC2: ='1_KMA'!AC31 -> 2043-07-01 | AD2: ='1_KMA'!AD31 -> 2044-07-01 | AE2: ='1_KMA'!AE31 -> 2045-07-01 | AF2: ='1_KMA'!AF31 -> 2046-07-01 | AG2: ='1_KMA'!AG31 -> 2047-07-01 | AH2: ='1_KMA'!AH31 -> 2048-07-01 | AI2: ='1_KMA'!AI31 -> 2049-07-01 | AJ2: ='1_KMA'!AJ31 -> 2050-07-01 | AK2: ='1_KMA'!AK31 -> 2051-07-01 | AL2: ='1_KMA'!AL31 -> 2052-07-01 | AM2: ='1_KMA'!AM31 -> 2053-07-01 | AN2: ='1_KMA'!AN31 -> 2054-07-01 | AO2: ='1_KMA'!AO31 -> 2055-07-01 | AP2: ='1_KMA'!AP31 -> 2056-07-01 | AQ2: ='1_KMA'!AQ31 -> 2057-07-01 | AR2: ='1_KMA'!AR31 -> 2058-07-01 | AS2: ='1_KMA'!AS31 -> 2059-07-01 | AT2: ='1_KMA'!AT31 -> 2060-07-01 | AU2: ='1_KMA'!AU31 -> 2061-07-01 | AV2: ='1_KMA'!AV31 -> 2062-07-01 | AW2: ='1_KMA'!AW31 -> 2063-07-01 | AX2: ='1_KMA'!AX31 -> 2064-07-01 | AY2: ='1_KMA'!AY31 -> 2065-07-01 | AZ2: ='1_KMA'!AZ31 -> 2066-07-01 | BA2: ='1_KMA'!BA31 -> 2067-07-01 | BB2: ='1_KMA'!BB31 -> 2068-07-01 | BC2: ='1_KMA'!BC31 -> 2069-07-01 | BD2: ='1_KMA'!BD31 -> 2070-07-01 | BE2: ='1_KMA'!BE31 -> 2071-07-01 | BF2: ='1_KMA'!BF31 -> 2072-07-01 | BG2: ='1_KMA'!BG31 -> 2073-07-01
B3: =Cover!$C$10 -> Business Case Evaluation | I3: Period End Date | J3: ='1_KMA'!J32 -> 2025-06-30 | K3: ='1_KMA'!K32 -> 2026-06-30 | L3: ='1_KMA'!L32 -> 2027-06-30 | M3: ='1_KMA'!M32 -> 2028-06-30 | N3: ='1_KMA'!N32 -> 2029-06-30 | O3: ='1_KMA'!O32 -> 2030-06-30 | P3: ='1_KMA'!P32 -> 2031-06-30 | Q3: ='1_KMA'!Q32 -> 2032-06-30 | R3: ='1_KMA'!R32 -> 2033-06-30 | S3: ='1_KMA'!S32 -> 2034-06-30 | T3: ='1_KMA'!T32 -> 2035-06-30 | U3: ='1_KMA'!U32 -> 2036-06-30 | V3: ='1_KMA'!V32 -> 2037-06-30 | W3: ='1_KMA'!W32 -> 2038-06-30 | X3: ='1_KMA'!X32 -> 2039-06-30 | Y3: ='1_KMA'!Y32 -> 2040-06-30 | Z3: ='1_KMA'!Z32 -> 2041-06-30 | AA3: ='1_KMA'!AA32 -> 2042-06-30 | AB3: ='1_KMA'!AB32 -> 2043-06-30 | AC3: ='1_KMA'!AC32 -> 2044-06-30 | AD3: ='1_KMA'!AD32 -> 2045-06-30 | AE3: ='1_KMA'!AE32 -> 2046-06-30 | AF3: ='1_KMA'!AF32 -> 2047-06-30 | AG3: ='1_KMA'!AG32 -> 2048-06-30 | AH3: ='1_KMA'!AH32 -> 2049-06-30 | AI3: ='1_KMA'!AI32 -> 2050-06-30 | AJ3: ='1_KMA'!AJ32 -> 2051-06-30 | AK3: ='1_KMA'!AK32 -> 2052-06-30 | AL3: ='1_KMA'!AL32 -> 2053-06-30 | AM3: ='1_KMA'!AM32 -> 2054-06-30 | AN3: ='1_KMA'!AN32 -> 2055-06-30 | AO3: ='1_KMA'!AO32 -> 2056-06-30 | AP3: ='1_KMA'!AP32 -> 2057-06-30 | AQ3: ='1_KMA'!AQ32 -> 2058-06-30 | AR3: ='1_KMA'!AR32 -> 2059-06-30 | AS3: ='1_KMA'!AS32 -> 2060-06-30 | AT3: ='1_KMA'!AT32 -> 2061-06-30 | AU3: ='1_KMA'!AU32 -> 2062-06-30 | AV3: ='1_KMA'!AV32 -> 2063-06-30 | AW3: ='1_KMA'!AW32 -> 2064-06-30 | AX3: ='1_KMA'!AX32 -> 2065-06-30 | AY3: ='1_KMA'!AY32 -> 2066-06-30 | AZ3: ='1_KMA'!AZ32 -> 2067-06-30 | BA3: ='1_KMA'!BA32 -> 2068-06-30 | BB3: ='1_KMA'!BB32 -> 2069-06-30 | BC3: ='1_KMA'!BC32 -> 2070-06-30 | BD3: ='1_KMA'!BD32 -> 2071-06-30 | BE3: ='1_KMA'!BE32 -> 2072-06-30 | BF3: ='1_KMA'!BF32 -> 2073-06-30 | BG3: ='1_KMA'!BG32 -> 2074-06-30
B4: =Cover!$C$11 -> Smart meter 13 yr bulk replacement | I4: Project Year | J4: ='1_KMA'!J33 -> 1 | K4: ='1_KMA'!K33 -> 2 | L4: ='1_KMA'!L33 -> 3 | M4: ='1_KMA'!M33 -> 4 | N4: ='1_KMA'!N33 -> 5 | O4: ='1_KMA'!O33 -> 6 | P4: ='1_KMA'!P33 -> 7 | Q4: ='1_KMA'!Q33 -> 8 | R4: ='1_KMA'!R33 -> 9 | S4: ='1_KMA'!S33 -> 10 | T4: ='1_KMA'!T33 -> 11 | U4: ='1_KMA'!U33 -> 12 | V4: ='1_KMA'!V33 -> 13 | W4: ='1_KMA'!W33 -> 14 | X4: ='1_KMA'!X33 -> 15 | Y4: ='1_KMA'!Y33 -> 16 | Z4: ='1_KMA'!Z33 -> 17 | AA4: ='1_KMA'!AA33 -> 18 | AB4: ='1_KMA'!AB33 -> 19 | AC4: ='1_KMA'!AC33 -> 20 | AD4: ='1_KMA'!AD33 -> 21 | AE4: ='1_KMA'!AE33 -> 22 | AF4: ='1_KMA'!AF33 -> 23 | AG4: ='1_KMA'!AG33 -> 24 | AH4: ='1_KMA'!AH33 -> 25 | AI4: ='1_KMA'!AI33 -> 26 | AJ4: ='1_KMA'!AJ33 -> 27 | AK4: ='1_KMA'!AK33 -> 28 | AL4: ='1_KMA'!AL33 -> 29 | AM4: ='1_KMA'!AM33 -> 30 | AN4: ='1_KMA'!AN33 -> 31 | AO4: ='1_KMA'!AO33 -> 32 | AP4: ='1_KMA'!AP33 -> 33 | AQ4: ='1_KMA'!AQ33 -> 34 | AR4: ='1_KMA'!AR33 -> 35 | AS4: ='1_KMA'!AS33 -> 36 | AT4: ='1_KMA'!AT33 -> 37 | AU4: ='1_KMA'!AU33 -> 38 | AV4: ='1_KMA'!AV33 -> 39 | AW4: ='1_KMA'!AW33 -> 40 | AX4: ='1_KMA'!AX33 -> 41 | AY4: ='1_KMA'!AY33 -> 42 | AZ4: ='1_KMA'!AZ33 -> 43 | BA4: ='1_KMA'!BA33 -> 44 | BB4: ='1_KMA'!BB33 -> 45 | BC4: ='1_KMA'!BC33 -> 46 | BD4: ='1_KMA'!BD33 -> 47 | BE4: ='1_KMA'!BE33 -> 48 | BF4: ='1_KMA'!BF33 -> 49 | BG4: ='1_KMA'!BG33 -> 50
I5: Financial Year | J5: ='1_KMA'!J34 -> 2025 | K5: ='1_KMA'!K34 -> 2026 | L5: ='1_KMA'!L34 -> 2027 | M5: ='1_KMA'!M34 -> 2028 | N5: ='1_KMA'!N34 -> 2029 | O5: ='1_KMA'!O34 -> 2030 | P5: ='1_KMA'!P34 -> 2031 | Q5: ='1_KMA'!Q34 -> 2032 | R5: ='1_KMA'!R34 -> 2033 | S5: ='1_KMA'!S34 -> 2034 | T5: ='1_KMA'!T34 -> 2035 | U5: ='1_KMA'!U34 -> 2036 | V5: ='1_KMA'!V34 -> 2037 | W5: ='1_KMA'!W34 -> 2038 | X5: ='1_KMA'!X34 -> 2039 | Y5: ='1_KMA'!Y34 -> 2040 | Z5: ='1_KMA'!Z34 -> 2041 | AA5: ='1_KMA'!AA34 -> 2042 | AB5: ='1_KMA'!AB34 -> 2043 | AC5: ='1_KMA'!AC34 -> 2044 | AD5: ='1_KMA'!AD34 -> 2045 | AE5: ='1_KMA'!AE34 -> 2046 | AF5: ='1_KMA'!AF34 -> 2047 | AG5: ='1_KMA'!AG34 -> 2048 | AH5: ='1_KMA'!AH34 -> 2049 | AI5: ='1_KMA'!AI34 -> 2050 | AJ5: ='1_KMA'!AJ34 -> 2051 | AK5: ='1_KMA'!AK34 -> 2052 | AL5: ='1_KMA'!AL34 -> 2053 | AM5: ='1_KMA'!AM34 -> 2054 | AN5: ='1_KMA'!AN34 -> 2055 | AO5: ='1_KMA'!AO34 -> 2056 | AP5: ='1_KMA'!AP34 -> 2057 | AQ5: ='1_KMA'!AQ34 -> 2058 | AR5: ='1_KMA'!AR34 -> 2059 | AS5: ='1_KMA'!AS34 -> 2060 | AT5: ='1_KMA'!AT34 -> 2061 | AU5: ='1_KMA'!AU34 -> 2062 | AV5: ='1_KMA'!AV34 -> 2063 | AW5: ='1_KMA'!AW34 -> 2064 | AX5: ='1_KMA'!AX34 -> 2065 | AY5: ='1_KMA'!AY34 -> 2066 | AZ5: ='1_KMA'!AZ34 -> 2067 | BA5: ='1_KMA'!BA34 -> 2068 | BB5: ='1_KMA'!BB34 -> 2069 | BC5: ='1_KMA'!BC34 -> 2070 | BD5: ='1_KMA'!BD34 -> 2071 | BE5: ='1_KMA'!BE34 -> 2072 | BF5: ='1_KMA'!BF34 -> 2073 | BG5: ='1_KMA'!BG34 -> 2074
B7: Summary
B9: Costs | G9: $ Basis Reminder | H9: $ Reminder | J9: ="Ensure this section [Summary] is picking up the relevant rows" -> Ensure this section [Summary] is picking up the relevant rows
B10: Capex | G10: ='1_KMA'!$I$20 -> 2024-06-30 | H10: ='1_KMA'!$I$19 -> $millions | J10: =J47 -> 5.931000228 | K10: =K47 -> 6.108930235 | L10: =L47 -> 25.36647174 | M10: 45.57346787 | N10: 46.70850289 | O10: 47.97409587 | P10: 49.22142236 | Q10: 50.50117934 | R10: 51.81421 | S10: 53.16137946 | T10: 54.54357533 | U10: 55.96170829 | V10: 57.4167127 | W10: 41.23668306 | X10: 38.87580808 | Y10: 11.65812569 | Z10: 9.074171283 | AA10: 9.310099737 | AB10: 0 | AC10: 0 | AD10: 0 | AE10: 0 | AF10: 0 | AG10: 0 | AH10: 0 | AI10: 0 | AJ10: 0 | AK10: 0 | AL10: 0 | AM10: 0 | AN10: 0 | AO10: 0 | AP10: 0 | AQ10: 0 | AR10: 0 | AS10: 0 | AT10: 0 | AU10: 0 | AV10: 0 | AW10: 0 | AX10: 0 | AY10: 0 | AZ10: 0 | BA10: 0 | BB10: 0 | BC10: 0 | BD10: 0 | BE10: 0 | BF10: 0 | BG10: 0
B11: Capex offset | G11: ='1_KMA'!$I$20 -> 2024-06-30 | H11: ='1_KMA'!$I$19 -> $millions | J11: =-J59 -> 0 | K11: =-K59 -> 0 | L11: =-L59 -> 0 | M11: 0 | N11: 0 | O11: 0 | P11: 0 | Q11: 0 | R11: 0 | S11: 0 | T11: 0 | U11: 0 | V11: 0 | W11: 0 | X11: 0 | Y11: 0 | Z11: 0 | AA11: 0 | AB11: 0 | AC11: 0 | AD11: 0 | AE11: 0 | AF11: 0 | AG11: 0 | AH11: 0 | AI11: 0 | AJ11: 0 | AK11: 0 | AL11: 0 | AM11: 0 | AN11: 0 | AO11: 0 | AP11: 0 | AQ11: 0 | AR11: 0 | AS11: 0 | AT11: 0 | AU11: 0 | AV11: 0 | AW11: 0 | AX11: 0 | AY11: 0 | AZ11: 0 | BA11: 0 | BB11: 0 | BC11: 0 | BD11: 0 | BE11: 0 | BF11: 0 | BG11: 0
B12: Opex | G12: ='1_KMA'!$I$20 -> 2024-06-30 | H12: ='1_KMA'!$I$19 -> $millions | J12: =J82 -> 0 | K12: =K82 -> 0 | L12: =L82 -> 0 | M12: =M82 -> 0 | N12: =N82 -> 0 | O12: 0 | P12: 0 | Q12: 0 | R12: 0 | S12: 0 | T12: 0 | U12: 0 | V12: 0 | W12: 0 | X12: 0 | Y12: 0 | Z12: 0 | AA12: 0 | AB12: 0 | AC12: 0 | AD12: 0 | AE12: 0 | AF12: 0 | AG12: 0 | AH12: 0 | AI12: 0 | AJ12: 0 | AK12: 0 | AL12: 0 | AM12: 0 | AN12: 0 | AO12: 0 | AP12: 0 | AQ12: 0 | AR12: 0 | AS12: 0 | AT12: 0 | AU12: 0 | AV12: 0 | AW12: 0 | AX12: 0 | AY12: 0 | AZ12: 0 | BA12: 0 | BB12: 0 | BC12: 0 | BD12: 0 | BE12: 0 | BF12: 0 | BG12: 0
B13: Total | G13: ='1_KMA'!$I$20 -> 2024-06-30 | H13: ='1_KMA'!$I$19 -> $millions | J13: =SUM(J10:J12) -> 5.931000228 | K13: =SUM(K10:K12) -> 6.108930235 | L13: 25.36647174 | M13: 45.57346787 | N13: 46.70850289 | O13: 47.97409587 | P13: 49.22142236 | Q13: 50.50117934 | R13: 51.81421 | S13: 53.16137946 | T13: 54.54357533 | U13: 55.96170829 | V13: 57.4167127 | W13: 41.23668306 | X13: 38.87580808 | Y13: 11.65812569 | Z13: 9.074171283 | AA13: 9.310099737 | AB13: 0 | AC13: 0 | AD13: 0 | AE13: 0 | AF13: 0 | AG13: 0 | AH13: 0 | AI13: 0 | AJ13: 0 | AK13: 0 | AL13: 0 | AM13: 0 | AN13: 0 | AO13: 0 | AP13: 0 | AQ13: 0 | AR13: 0 | AS13: 0 | AT13: 0 | AU13: 0 | AV13: 0 | AW13: 0 | AX13: 0 | AY13: 0 | AZ13: 0 | BA13: 0 | BB13: 0 | BC13: 0 | BD13: 0 | BE13: 0 | BF13: 0 | BG13: 0
B15: Benefits | G15: $ Basis Reminder | H15: $ Reminder | J15: ="Ensure this section [Summary] is picking up the relevant rows" -> Ensure this section [Summary] is picking up the relevant rows
B16: Value of EUE | G16: ='1_KMA'!$I$20 -> 2024-06-30 | H16: ='1_KMA'!$I$19 -> $millions | J16: =-J93 -> 0 | K16: =-K93 -> 0 | L16: 0 | M16: 0 | N16: 0 | O16: 0 | P16: 0 | Q16: 0 | R16: 0 | S16: 0 | T16: 0 | U16: 0 | V16: 0 | W16: 0 | X16: 0 | Y16: 0 | Z16: 0 | AA16: 0 | AB16: 0 | AC16: 0 | AD16: 0 | AE16: 0 | AF16: 0 | AG16: 0 | AH16: 0 | AI16: 0 | AJ16: 0 | AK16: 0 | AL16: 0 | AM16: 0 | AN16: 0 | AO16: 0 | AP16: 0 | AQ16: 0 | AR16: 0 | AS16: 0 | AT16: 0 | AU16: 0 | AV16: 0 | AW16: 0 | AX16: 0 | AY16: 0 | AZ16: 0 | BA16: 0 | BB16: 0 | BC16: 0 | BD16: 0 | BE16: 0 | BF16: 0 | BG16: 0
B17: Reliability | G17: ='1_KMA'!$I$20 -> 2024-06-30 | H17: ='1_KMA'!$I$19 -> $millions | J17: =J111 -> 0 | K17: =K111 -> 0 | L17: 0 | M17: 0 | N17: 0 | O17: 0 | P17: 0 | Q17: 0 | R17: 0 | S17: 0 | T17: 0 | U17: 0 | V17: 0 | W17: 0 | X17: 0 | Y17: 0 | Z17: 0 | AA17: 0 | AB17: 0 | AC17: 0 | AD17: 0 | AE17: 0 | AF17: 0 | AG17: 0 | AH17: 0 | AI17: 0 | AJ17: 0 | AK17: 0 | AL17: 0 | AM17: 0 | AN17: 0 | AO17: 0 | AP17: 0 | AQ17: 0 | AR17: 0 | AS17: 0 | AT17: 0 | AU17: 0 | AV17: 0 | AW17: 0 | AX17: 0 | AY17: 0 | AZ17: 0 | BA17: 0 | BB17: 0 | BC17: 0 | BD17: 0 | BE17: 0 | BF17: 0 | BG17: 0
B18: Resilience | G18: ='1_KMA'!$I$20 -> 2024-06-30 | H18: ='1_KMA'!$I$19 -> $millions | J18: =J132 -> 0 | K18: =K132 -> 0 | L18: 0 | M18: 0 | N18: 0 | O18: 0 | P18: 0 | Q18: 0 | R18: 0 | S18: 0 | T18: 0 | U18: 0 | V18: 0 | W18: 0 | X18: 0 | Y18: 0 | Z18: 0 | AA18: 0 | AB18: 0 | AC18: 0 | AD18: 0 | AE18: 0 | AF18: 0 | AG18: 0 | AH18: 0 | AI18: 0 | AJ18: 0 | AK18: 0 | AL18: 0 | AM18: 0 | AN18: 0 | AO18: 0 | AP18: 0 | AQ18: 0 | AR18: 0 | AS18: 0 | AT18: 0 | AU18: 0 | AV18: 0 | AW18: 0 | AX18: 0 | AY18: 0 | AZ18: 0 | BA18: 0 | BB18: 0 | BC18: 0 | BD18: 0 | BE18: 0 | BF18: 0 | BG18: 0
B19: Batteries | G19: ='1_KMA'!$I$20 -> 2024-06-30 | H19: ='1_KMA'!$I$19 -> $millions | J19: =J168 -> 0 | K19: =K168 -> 0 | L19: 0 | M19: 0 | N19: 0 | O19: 0 | P19: 0 | Q19: 0 | R19: 0 | S19: 0 | T19: 0 | U19: 0 | V19: 0 | W19: 0 | X19: 0 | Y19: 0 | Z19: 0 | AA19: 0 | AB19: 0 | AC19: 0 | AD19: 0 | AE19: 0 | AF19: 0 | AG19: 0 | AH19: 0 | AI19: 0 | AJ19: 0 | AK19: 0 | AL19: 0 | AM19: 0 | AN19: 0 | AO19: 0 | AP19: 0 | AQ19: 0 | AR19: 0 | AS19: 0 | AT19: 0 | AU19: 0 | AV19: 0 | AW19: 0 | AX19: 0 | AY19: 0 | AZ19: 0 | BA19: 0 | BB19: 0 | BC19: 0 | BD19: 0 | BE19: 0 | BF19: 0 | BG19: 0
B20: Others | G20: ='1_KMA'!$I$20 -> 2024-06-30 | H20: ='1_KMA'!$I$19 -> $millions
B21: Total | G21: ='1_KMA'!$I$20 -> 2024-06-30 | H21: ='1_KMA'!$I$19 -> $millions | J21: =SUM(J16:J20) -> 0 | K21: =SUM(K16:K20) -> 0 | L21: 0 | M21: 0 | N21: 0 | O21: 0 | P21: 0 | Q21: 0 | R21: 0 | S21: 0 | T21: 0 | U21: 0 | V21: 0 | W21: 0 | X21: 0 | Y21: 0 | Z21: 0 | AA21: 0 | AB21: 0 | AC21: 0 | AD21: 0 | AE21: 0 | AF21: 0 | AG21: 0 | AH21: 0 | AI21: 0 | AJ21: 0 | AK21: 0 | AL21: 0 | AM21: 0 | AN21: 0 | AO21: 0 | AP21: 0 | AQ21: 0 | AR21: 0 | AS21: 0 | AT21: 0 | AU21: 0 | AV21: 0 | AW21: 0 | AX21: 0 | AY21: 0 | AZ21: 0 | BA21: 0 | BB21: 0 | BC21: 0 | BD21: 0 | BE21: 0 | BF21: 0 | BG21: 0
B24: Cost Inputs
B26: Capex Build Up
B28: Name | H28: Unit | J28: Unit Rate (replacements)
B29: Smart meter replacements - fix on fail (meter with comms card + labour) | H29: Average unit cost of meter installed $million per unit
B30: Smart meter replacements - bulk replacement rate (meter with comms card + labour) | H30: Average unit cost of meter installed $million per unit
B34: Name | H34: Unit | J34: Quantities
B35: Smart meter replacements - fix on fail (meter with comms card + labour) | H35: meter replacement numbers | J35: 8880.5 | K35: 8880.5 | L35: 0 | M35: 0 | N35: 0 | O35: 0 | P35: 0 | Q35: 0 | R35: 0 | S35: 0 | T35: 0 | U35: 0 | V35: 0 | W35: 0 | X35: 0 | Y35: 0 | Z35: 8880.5 | AA35: 8880.5 | AB35: 0 | AC35: 0 | AD35: 0
B36: =B30 -> Smart meter replacements - bulk replacement rate (meter with comms card + labour) | J36: 0 | K36: 0 | L36: 40217.11806 | M36: 70423.17442 | N36: 70348.05706 | O36: 70423.17442 | P36: 70423.17442 | Q36: 70423.17442 | R36: 70423.17442 | S36: 70423.17442 | T36: 70423.17442 | U36: 70423.17442 | V36: 70423.17442 | W36: 49296.2221 | X36: 45296.2221 | Y36: 13239.26651 | Z36: 0 | AA36: 0 | AB36: 0 | AC36: 0
B40: Name | G40: $ Basis Reminder | H40: $ Reminder | J40: ="Costs - ensure costs have been converted to "&'1_KMA'!$I$19 -> Costs - ensure costs have been converted to $millions
B41: =B35 -> Smart meter replacements - fix on fail (meter with comms card + labour) | G41: ='1_KMA'!$I$20 -> 2024-06-30 | H41: ='1_KMA'!$I$19 -> $millions | AB41: 0 | AC41: 0 | AD41: 0 | AE41: =$K$29*AE35*[2]Sheet3!Y$4 -> 0 | AF41: =$K$29*AF35*[2]Sheet3!Z$4 -> 0 | AG41: =$J$29*AG35 -> 0 | AH41: 0 | AI41: 0 | AJ41: 0 | AK41: 0 | AL41: 0 | AM41: 0 | AN41: 0 | AO41: 0 | AP41: 0 | AQ41: 0 | AR41: 0 | AS41: 0 | AT41: 0 | AU41: 0 | AV41: 0 | AW41: 0 | AX41: 0 | AY41: 0 | AZ41: 0 | BA41: 0 | BB41: 0 | BC41: 0 | BD41: 0 | BE41: 0 | BF41: 0 | BG41: 0
B42: =B36 -> Smart meter replacements - bulk replacement rate (meter with comms card + labour) | G42: ='1_KMA'!$I$20 -> 2024-06-30 | H42: ='1_KMA'!$I$19 -> $millions | AB42: 0 | AC42: 0 | AD42: 0 | AE42: =$J$30*AE36 -> 0 | AF42: 0 | AG42: 0 | AH42: 0 | AI42: 0 | AJ42: 0 | AK42: 0 | AL42: 0 | AM42: 0 | AN42: 0 | AO42: 0 | AP42: 0 | AQ42: 0 | AR42: 0 | AS42: 0 | AT42: 0 | AU42: 0 | AV42: 0 | AW42: 0 | AX42: 0 | AY42: 0 | AZ42: 0 | BA42: 0 | BB42: 0 | BC42: 0 | BD42: 0 | BE42: 0 | BF42: 0 | BG42: 0
G43: ='1_KMA'!$I$20 -> 2024-06-30 | H43: ='1_KMA'!$I$19 -> $millions | J43: 0 | K43: 0 | L43: 0 | M43: 0 | N43: 0 | O43: 0 | P43: 0 | Q43: 0 | R43: 0 | S43: 0 | T43: 0 | U43: 0 | V43: 0 | W43: 0 | X43: 0 | Y43: 0 | Z43: 0 | AA43: 0 | AB43: 0 | AC43: 0 | AD43: 0 | AE43: =$J$31*AE37 -> 0 | AF43: 0 | AG43: 0 | AH43: 0 | AI43: 0 | AJ43: 0 | AK43: 0 | AL43: 0 | AM43: 0 | AN43: 0 | AO43: 0 | AP43: 0 | AQ43: 0 | AR43: 0 | AS43: 0 | AT43: 0 | AU43: 0 | AV43: 0 | AW43: 0 | AX43: 0 | AY43: 0 | AZ43: 0 | BA43: 0 | BB43: 0 | BC43: 0 | BD43: 0 | BE43: 0 | BF43: 0 | BG43: 0
G44: ='1_KMA'!$I$20 -> 2024-06-30 | H44: ='1_KMA'!$I$19 -> $millions | J44: 0 | K44: 0 | L44: 0 | M44: 0 | N44: 0 | O44: 0 | P44: 0 | Q44: 0 | R44: 0 | S44: 0 | T44: 0 | U44: 0 | V44: 0 | W44: 0 | X44: 0 | Y44: 0 | Z44: 0 | AA44: 0 | AB44: 0 | AC44: 0 | AD44: 0 | AE44: =$J$32*AE38 -> 0 | AF44: 0 | AG44: 0 | AH44: 0 | AI44: 0 | AJ44: 0 | AK44: 0 | AL44: 0 | AM44: 0 | AN44: 0 | AO44: 0 | AP44: 0 | AQ44: 0 | AR44: 0 | AS44: 0 | AT44: 0 | AU44: 0 | AV44: 0 | AW44: 0 | AX44: 0 | AY44: 0 | AZ44: 0 | BA44: 0 | BB44: 0 | BC44: 0 | BD44: 0 | BE44: 0 | BF44: 0 | BG44: 0
G46: $ Basis Reminder | H46: $ Reminder | J46: Summary table above picks up this total row
B47: Total | G47: ='1_KMA'!$I$20 -> 2024-06-30 | H47: ='1_KMA'!$I$19 -> $millions | J47: 5.931000228 | K47: 6.108930235 | L47: 25.36647174 | M47: 45.57346787 | N47: 46.70850289 | O47: 47.97409587 | P47: 49.22142236 | Q47: 50.50117934 | R47: 51.81421 | S47: 53.16137946 | T47: 54.54357533 | U47: 55.96170829 | V47: 57.4167127 | W47: 41.23668306 | X47: 38.87580808 | Y47: 11.65812569 | Z47: 9.074171283 | AA47: 9.310099737 | AB47: =SUM(AB41:AB44) -> 0 | AC47: 0 | AD47: 0 | AE47: =SUM(AE41:AE44) -> 0 | AF47: 0 | AG47: 0 | AH47: 0 | AI47: 0 | AJ47: 0 | AK47: 0 | AL47: 0 | AM47: 0 | AN47: 0 | AO47: 0 | AP47: =SUM(AP41:AP44) -> 0 | AQ47: 0 | AR47: 0 | AS47: 0 | AT47: 0 | AU47: 0 | AV47: 0 | AW47: 0 | AX47: 0 | AY47: 0 | AZ47: 0 | BA47: 0 | BB47: 0 | BC47: 0 | BD47: 0 | BE47: 0 | BF47: 0 | BG47: 0
B49: Capex Offset
J51: ="Capex offsets - ensure capex offsets have been converted to "&'1_KMA'!$I$19 -> Capex offsets - ensure capex offsets have been converted to $millions
B52: Name | G52: $ Basis Reminder | H52: $ Reminder | J52: Enter capex offsets as positive values as the spreadsheet later nets this off the gross amounts
B53: [e.g. Government subsidy] | G53: ='1_KMA'!$I$20 -> 2024-06-30 | H53: ='1_KMA'!$I$19 -> $millions
B54: [e.g. Customer contribution] | G54: ='1_KMA'!$I$20 -> 2024-06-30 | H54: ='1_KMA'!$I$19 -> $millions
G55: ='1_KMA'!$I$20 -> 2024-06-30 | H55: ='1_KMA'!$I$19 -> $millions
G56: ='1_KMA'!$I$20 -> 2024-06-30 | H56: ='1_KMA'!$I$19 -> $millions
G58: $ Basis Reminder | H58: $ Reminder | J58: Summary table above picks up this total row
B59: Total | G59: ='1_KMA'!$I$20 -> 2024-06-30 | H59: ='1_KMA'!$I$19 -> $millions | J59: =SUM(J53:J56) -> 0 | K59: =SUM(K53:K56) -> 0 | L59: =SUM(L53:L56) -> 0 | M59: 0 | N59: 0 | O59: 0 | P59: 0 | Q59: 0 | R59: 0 | S59: 0 | T59: 0 | U59: 0 | V59: 0 | W59: 0 | X59: 0 | Y59: 0 | Z59: 0 | AA59: 0 | AB59: 0 | AC59: 0 | AD59: 0 | AE59: 0 | AF59: 0 | AG59: 0 | AH59: 0 | AI59: 0 | AJ59: 0 | AK59: 0 | AL59: 0 | AM59: 0 | AN59: 0 | AO59: 0 | AP59: 0 | AQ59: 0 | AR59: 0 | AS59: 0 | AT59: 0 | AU59: 0 | AV59: 0 | AW59: 0 | AX59: 0 | AY59: 0 | AZ59: 0 | BA59: 0 | BB59: 0 | BC59: 0 | BD59: 0 | BE59: 0 | BF59: 0 | BG59: =SUM(BG53:BG56) -> 0
B61: Opex Build Up
B63: Name | H63: Unit | J63: Value
B64: Additional PMO costs | H64: $million for each dedicated PMO FTE | J64: 0.1487587687
B65: Additional resources to improve data quality | H65: $million for each dedicated data FTE | J65: 0.1487587687
B66: Customer impacts | H66: $million for each customer impact | J66: 4.407667222e-05
B67: Compliance risk mitigation costs (i.e., replacing meter in a minimum of 2 days) | H67: $million for each customer impact | J67: 0.0001238239858
B69: Name | H69: Unit | J69: Quantities
B70: =B64 -> Additional PMO costs | H70: Number of dedicated PMO FTE | J70: 0 | K70: 0 | L70: 0 | M70: 0 | N70: 0 | O70: 0 | P70: 0 | Q70: 0 | R70: 0 | S70: 0 | T70: 0 | U70: 0 | V70: 0 | W70: 0 | X70: 0 | Y70: 0
B71: Additional resources to improve data quality | H71: Number of dedicated data quality FTE | J71: 0 | K71: 0 | L71: 0 | M71: 0 | N71: 0 | O71: 0 | P71: 0 | Q71: 0 | R71: 0 | S71: 0 | T71: 0 | U71: 0 | V71: 0 | W71: 0 | X71: 0 | Y71: 0
B72: Customer impacts from meter failures | H72: Number of customers impacted | J72: 0 | K72: 0 | L72: 0 | M72: 0 | N72: 0 | O72: 0 | P72: 0 | Q72: 0 | R72: 0 | S72: 0 | T72: 0 | U72: 0 | V72: 0 | W72: 0 | X72: 0 | Y72: 0
B73: Compliance risk mitigation costs | H73: Breaches (1 for a civil penalty breach, 30 for a significant licence breach) | J73: 0 | K73: 0 | L73: 0 | M73: 0 | N73: 0 | O73: 0 | P73: 0 | Q73: 0 | R73: 0 | S73: 0 | T73: 0 | U73: 0 | V73: 0 | W73: 0 | X73: 0 | Y73: 0
B75: Name | G75: $ Basis Reminder | H75: $ Reminder | J75: ="Costs - ensure costs have been converted to "&'1_KMA'!$I$19 -> Costs - ensure costs have been converted to $millions
B76: =B64 -> Additional PMO costs | G76: ='1_KMA'!$I$20 -> 2024-06-30 | H76: ='1_KMA'!$I$19 -> $millions | J76: =$J$64*J70 -> 0 | K76: =$J$64*K70 -> 0 | L76: 0 | M76: =$J$64*M70 -> 0 | N76: =$J$64*N70 -> 0 | O76: 0 | P76: 0 | Q76: 0 | R76: 0 | S76: 0 | T76: 0 | U76: 0 | V76: 0 | W76: 0 | X76: 0 | Y76: 0 | Z76: 0 | AA76: 0 | AB76: 0 | AC76: 0 | AD76: 0 | AE76: =$J$64*AE70 -> 0 | AF76: 0 | AG76: 0 | AH76: 0 | AI76: 0 | AJ76: 0 | AK76: 0 | AL76: 0 | AM76: 0 | AN76: 0 | AO76: 0 | AP76: 0 | AQ76: 0 | AR76: 0 | AS76: 0 | AT76: 0 | AU76: 0 | AV76: 0 | AW76: 0 | AX76: 0 | AY76: 0 | AZ76: 0 | BA76: 0 | BB76: 0 | BC76: 0 | BD76: 0 | BE76: 0 | BF76: 0 | BG76: 0
B77: Additional resources to improve data quality | G77: ='1_KMA'!$I$20 -> 2024-06-30 | H77: ='1_KMA'!$I$19 -> $millions | J77: =$J$65*J71 -> 0 | K77: 0 | L77: 0 | M77: =$J$65*M71 -> 0 | N77: =$J$65*N71 -> 0 | O77: 0 | P77: 0 | Q77: 0 | R77: 0 | S77: 0 | T77: 0 | U77: 0 | V77: 0 | W77: 0 | X77: 0 | Y77: 0 | Z77: 0 | AA77: 0 | AB77: 0 | AC77: 0 | AD77: 0 | AE77: =$J$65*AE71 -> 0 | AF77: 0 | AG77: 0 | AH77: 0 | AI77: 0 | AJ77: 0 | AK77: 0 | AL77: 0 | AM77: 0 | AN77: 0 | AO77: 0 | AP77: 0 | AQ77: 0 | AR77: 0 | AS77: 0 | AT77: 0 | AU77: 0 | AV77: 0 | AW77: 0 | AX77: 0 | AY77: 0 | AZ77: 0 | BA77: 0 | BB77: 0 | BC77: 0 | BD77: 0 | BE77: 0 | BF77: 0 | BG77: 0
B78: Customer impacts from meter failures | G78: ='1_KMA'!$I$20 -> 2024-06-30 | H78: ='1_KMA'!$I$19 -> $millions | J78: =$J$66*J72 -> 0 | K78: 0 | L78: 0 | M78: =$J$66*M72 -> 0 | N78: =$J$66*N72 -> 0 | O78: 0 | P78: 0 | Q78: 0 | R78: 0 | S78: 0 | T78: 0 | U78: 0 | V78: 0 | W78: 0 | X78: 0 | Y78: 0 | Z78: 0 | AA78: 0 | AB78: 0 | AC78: 0 | AD78: 0 | AE78: =$J$66*AE72 -> 0 | AF78: 0 | AG78: 0 | AH78: 0 | AI78: 0 | AJ78: 0 | AK78: 0 | AL78: 0 | AM78: 0 | AN78: 0 | AO78: 0 | AP78: 0 | AQ78: 0 | AR78: 0 | AS78: 0 | AT78: 0 | AU78: 0 | AV78: 0 | AW78: 0 | AX78: 0 | AY78: 0 | AZ78: 0 | BA78: 0 | BB78: 0 | BC78: 0 | BD78: 0 | BE78: 0 | BF78: 0 | BG78: 0
B79: Compliance risk mitigation costs | G79: ='1_KMA'!$I$20 -> 2024-06-30 | H79: ='1_KMA'!$I$19 -> $millions | J79: =$J$67*J73 -> 0 | K79: 0 | L79: 0 | M79: =$J$67*M73 -> 0 | N79: =$J$67*N73 -> 0 | O79: 0 | P79: 0 | Q79: 0 | R79: 0 | S79: 0 | T79: 0 | U79: 0 | V79: 0 | W79: 0 | X79: 0 | Y79: 0 | Z79: 0 | AA79: 0 | AB79: 0 | AC79: 0 | AD79: 0 | AE79: =$J$67*AE73 -> 0 | AF79: 0 | AG79: 0 | AH79: 0 | AI79: 0 | AJ79: 0 | AK79: 0 | AL79: 0 | AM79: 0 | AN79: 0 | AO79: 0 | AP79: 0 | AQ79: 0 | AR79: 0 | AS79: 0 | AT79: 0 | AU79: 0 | AV79: 0 | AW79: 0 | AX79: 0 | AY79: 0 | AZ79: 0 | BA79: 0 | BB79: 0 | BC79: 0 | BD79: 0 | BE79: 0 | BF79: 0 | BG79: 0
G81: $ Basis Reminder | H81: $ Reminder | J81: Summary table above picks up this total row
B82: Total | G82: ='1_KMA'!$I$20 -> 2024-06-30 | H82: ='1_KMA'!$I$19 -> $millions | J82: =SUM(J76:J79) -> 0 | K82: =SUM(K76:K79) -> 0 | L82: =SUM(L76:L79) -> 0 | M82: =SUM(M76:M79) -> 0 | N82: =SUM(N76:N79) -> 0 | O82: 0 | P82: 0 | Q82: 0 | R82: 0 | S82: 0 | T82: 0 | U82: 0 | V82: 0 | W82: 0 | X82: 0 | Y82: 0 | Z82: 0 | AA82: 0 | AB82: 0 | AC82: 0 | AD82: 0 | AE82: 0 | AF82: 0 | AG82: 0 | AH82: 0 | AI82: 0 | AJ82: 0 | AK82: 0 | AL82: 0 | AM82: 0 | AN82: 0 | AO82: 0 | AP82: 0 | AQ82: 0 | AR82: 0 | AS82: 0 | AT82: 0 | AU82: 0 | AV82: 0 | AW82: 0 | AX82: 0 | AY82: 0 | AZ82: 0 | BA82: 0 | BB82: 0 | BC82: 0 | BD82: 0 | BE82: 0 | BF82: 0 | BG82: =SUM(BG76:BG79) -> 0
B84: Benefits Inputs
B86: Value of EUE
J88: ="Values - ensure values have been converted to "&'1_KMA'!$I$19 -> Values - ensure values have been converted to $millions
G89: $ Basis Reminder | H89: $ Reminder | J89: Enter this as a positive value, as the spreadsheet later converts this to a negative benefit
B90: Value of Expected Unserved Energy (EUE) | G90: ='1_KMA'!$I$20 -> 2024-06-30 | H90: ='1_KMA'!$I$19 -> $millions
G92: $ Basis Reminder | H92: $ Reminder | J92: Summary table above picks up this total row
B93: Total | G93: ='1_KMA'!$I$20 -> 2024-06-30 | H93: ='1_KMA'!$I$19 -> $millions | J93: =J90 -> 0 | K93: =K90 -> 0 | L93: =L90 -> 0 | M93: 0 | N93: 0 | O93: 0 | P93: 0 | Q93: 0 | R93: 0 | S93: 0 | T93: 0 | U93: 0 | V93: 0 | W93: 0 | X93: 0 | Y93: 0 | Z93: 0 | AA93: 0 | AB93: 0 | AC93: 0 | AD93: 0 | AE93: 0 | AF93: 0 | AG93: 0 | AH93: 0 | AI93: 0 | AJ93: 0 | AK93: 0 | AL93: 0 | AM93: 0 | AN93: 0 | AO93: 0 | AP93: 0 | AQ93: 0 | AR93: 0 | AS93: 0 | AT93: 0 | AU93: 0 | AV93: 0 | AW93: 0 | AX93: 0 | AY93: 0 | AZ93: 0 | BA93: 0 | BB93: 0 | BC93: 0 | BD93: 0 | BE93: 0 | BF93: 0 | BG93: =BG90 -> 0
B95: Reliability
B97: QCV research | H97: Unit | J97: Unit Rate
B98: Fewer unplanned outages, less than 12 hours
B99: Fewer unplanned outages in the worst served areas
H102: Unit | J102: Quantities
B103: Fewer unplanned outages, less than 12 hours
B104: Fewer unplanned outages in the worst served areas
G106: $ Basis Reminder | H106: $ Reminder | J106: ="Values - ensure values have been converted to "&'1_KMA'!$I$19 -> Values - ensure values have been converted to $millions
B107: Fewer unplanned outages, less than 12 hours | G107: ='1_KMA'!$I$20 -> 2024-06-30 | H107: ='1_KMA'!$I$19 -> $millions | J107: =J103*$J$98 -> 0 | K107: =K103*$J$98 -> 0 | L107: =L103*$J$98 -> 0 | M107: =M103*$J$98 -> 0 | N107: =N103*$J$98 -> 0 | O107: =O103*$J$98 -> 0 | P107: 0 | Q107: 0 | R107: 0 | S107: 0 | T107: 0 | U107: 0 | V107: 0 | W107: 0 | X107: 0 | Y107: 0 | Z107: 0 | AA107: 0 | AB107: 0 | AC107: 0 | AD107: 0 | AE107: 0 | AF107: 0 | AG107: 0 | AH107: 0 | AI107: 0 | AJ107: 0 | AK107: 0 | AL107: 0 | AM107: 0 | AN107: 0 | AO107: 0 | AP107: 0 | AQ107: 0 | AR107: 0 | AS107: 0 | AT107: 0 | AU107: 0 | AV107: 0 | AW107: 0 | AX107: 0 | AY107: 0 | AZ107: 0 | BA107: 0 | BB107: 0 | BC107: 0 | BD107: 0 | BE107: 0 | BF107: 0 | BG107: 0
B108: Fewer unplanned outages in the worst served areas | G108: ='1_KMA'!$I$20 -> 2024-06-30 | H108: ='1_KMA'!$I$19 -> $millions | J108: =J104*$J$99 -> 0 | K108: =K104*$J$99 -> 0 | L108: =L104*$J$99 -> 0 | M108: =M104*$J$99 -> 0 | N108: =N104*$J$99 -> 0 | O108: =O104*$J$99 -> 0 | P108: 0 | Q108: 0 | R108: 0 | S108: 0 | T108: 0 | U108: 0 | V108: 0 | W108: 0 | X108: 0 | Y108: 0 | Z108: 0 | AA108: 0 | AB108: 0 | AC108: 0 | AD108: 0 | AE108: 0 | AF108: 0 | AG108: 0 | AH108: 0 | AI108: 0 | AJ108: 0 | AK108: 0 | AL108: 0 | AM108: 0 | AN108: 0 | AO108: 0 | AP108: 0 | AQ108: 0 | AR108: 0 | AS108: 0 | AT108: 0 | AU108: 0 | AV108: 0 | AW108: 0 | AX108: 0 | AY108: 0 | AZ108: 0 | BA108: 0 | BB108: 0 | BC108: 0 | BD108: 0 | BE108: 0 | BF108: 0 | BG108: 0
G110: $ Basis Reminder | H110: $ Reminder | J110: Summary table above picks up this total row
B111: Total | G111: ='1_KMA'!$I$20 -> 2024-06-30 | H111: ='1_KMA'!$I$19 -> $millions | J111: =SUM(J107:J108) -> 0 | K111: =SUM(K107:K108) -> 0 | L111: 0 | M111: 0 | N111: =SUM(N107:N108) -> 0 | O111: 0 | P111: 0 | Q111: 0 | R111: 0 | S111: 0 | T111: 0 | U111: 0 | V111: 0 | W111: 0 | X111: 0 | Y111: 0 | Z111: 0 | AA111: 0 | AB111: 0 | AC111: 0 | AD111: 0 | AE111: 0 | AF111: 0 | AG111: 0 | AH111: 0 | AI111: 0 | AJ111: 0 | AK111: 0 | AL111: 0 | AM111: 0 | AN111: 0 | AO111: 0 | AP111: 0 | AQ111: 0 | AR111: 0 | AS111: 0 | AT111: 0 | AU111: 0 | AV111: 0 | AW111: 0 | AX111: 0 | AY111: 0 | AZ111: 0 | BA111: 0 | BB111: 0 | BC111: 0 | BD111: 0 | BE111: 0 | BF111: 0 | BG111: 0
B113: Resilience
B115: QCV research | H115: Unit | J115: Unit Rate
B116: Fewer unplanned outages, longer than 12 hours
B117: Faster restoration of power when an outage has occurred
B118: Community hub offering essential services during long duration outages
H121: Unit | J121: Quantities
B122: Fewer unplanned outages, longer than 12 hours
B123: Faster restoration of power when an outage has occurred
B124: Community hub offering essential services
G126: $ Basis Reminder | H126: $ Reminder | J126: ="Values - ensure values have been converted to "&'1_KMA'!$I$19 -> Values - ensure values have been converted to $millions
B127: Fewer unplanned outages, longer than 12 hours | G127: ='1_KMA'!$I$20 -> 2024-06-30 | H127: ='1_KMA'!$I$19 -> $millions | J127: =J122*'2.1_BC'!$J$116 -> 0 | K127: =K122*'2.1_BC'!$J$116 -> 0 | L127: =L122*'2.1_BC'!$J$116 -> 0 | M127: =M122*'2.1_BC'!$J$116 -> 0 | N127: =N122*'2.1_BC'!$J$116 -> 0 | O127: =O122*'2.1_BC'!$J$116 -> 0 | P127: =P122*'2.1_BC'!$J$116 -> 0 | Q127: =Q122*'2.1_BC'!$J$116 -> 0 | R127: =R122*'2.1_BC'!$J$116 -> 0 | S127: =S122*'2.1_BC'!$J$116 -> 0 | T127: =T122*'2.1_BC'!$J$116 -> 0 | U127: =U122*'2.1_BC'!$J$116 -> 0 | V127: =V122*'2.1_BC'!$J$116 -> 0 | W127: =W122*'2.1_BC'!$J$116 -> 0 | X127: =X122*'2.1_BC'!$J$116 -> 0 | Y127: =Y122*'2.1_BC'!$J$116 -> 0 | Z127: =Z122*'2.1_BC'!$J$116 -> 0 | AA127: =AA122*'2.1_BC'!$J$116 -> 0 | AB127: =AB122*'2.1_BC'!$J$116 -> 0 | AC127: =AC122*'2.1_BC'!$J$116 -> 0 | AD127: =AD122*'2.1_BC'!$J$116 -> 0 | AE127: =AE122*'2.1_BC'!$J$116 -> 0 | AF127: =AF122*'2.1_BC'!$J$116 -> 0 | AG127: =AG122*'2.1_BC'!$J$116 -> 0 | AH127: =AH122*'2.1_BC'!$J$116 -> 0 | AI127: =AI122*'2.1_BC'!$J$116 -> 0 | AJ127: =AJ122*'2.1_BC'!$J$116 -> 0 | AK127: =AK122*'2.1_BC'!$J$116 -> 0 | AL127: =AL122*'2.1_BC'!$J$116 -> 0 | AM127: =AM122*'2.1_BC'!$J$116 -> 0 | AN127: =AN122*'2.1_BC'!$J$116 -> 0 | AO127: =AO122*'2.1_BC'!$J$116 -> 0 | AP127: =AP122*'2.1_BC'!$J$116 -> 0 | AQ127: =AQ122*'2.1_BC'!$J$116 -> 0 | AR127: =AR122*'2.1_BC'!$J$116 -> 0 | AS127: =AS122*'2.1_BC'!$J$116 -> 0 | AT127: =AT122*'2.1_BC'!$J$116 -> 0 | AU127: =AU122*'2.1_BC'!$J$116 -> 0 | AV127: =AV122*'2.1_BC'!$J$116 -> 0 | AW127: =AW122*'2.1_BC'!$J$116 -> 0 | AX127: =AX122*'2.1_BC'!$J$116 -> 0 | AY127: =AY122*'2.1_BC'!$J$116 -> 0 | AZ127: =AZ122*'2.1_BC'!$J$116 -> 0 | BA127: =BA122*'2.1_BC'!$J$116 -> 0 | BB127: =BB122*'2.1_BC'!$J$116 -> 0 | BC127: =BC122*'2.1_BC'!$J$116 -> 0 | BD127: =BD122*'2.1_BC'!$J$116 -> 0 | BE127: =BE122*'2.1_BC'!$J$116 -> 0 | BF127: =BF122*'2.1_BC'!$J$116 -> 0 | BG127: =BG122*'2.1_BC'!$J$116 -> 0
B128: Faster restoration of power when an outage has occurred | G128: ='1_KMA'!$I$20 -> 2024-06-30 | H128: ='1_KMA'!$I$19 -> $millions | J128: =J123*'2.1_BC'!$J$117 -> 0 | K128: =K123*'2.1_BC'!$J$117 -> 0 | L128: =L123*'2.1_BC'!$J$117 -> 0 | M128: =M123*'2.1_BC'!$J$117 -> 0 | N128: =N123*'2.1_BC'!$J$117 -> 0 | O128: =O123*'2.1_BC'!$J$117 -> 0 | P128: =P123*'2.1_BC'!$J$117 -> 0 | Q128: =Q123*'2.1_BC'!$J$117 -> 0 | R128: =R123*'2.1_BC'!$J$117 -> 0 | S128: =S123*'2.1_BC'!$J$117 -> 0 | T128: =T123*'2.1_BC'!$J$117 -> 0 | U128: =U123*'2.1_BC'!$J$117 -> 0 | V128: =V123*'2.1_BC'!$J$117 -> 0 | W128: =W123*'2.1_BC'!$J$117 -> 0 | X128: =X123*'2.1_BC'!$J$117 -> 0 | Y128: =Y123*'2.1_BC'!$J$117 -> 0 | Z128: =Z123*'2.1_BC'!$J$117 -> 0 | AA128: =AA123*'2.1_BC'!$J$117 -> 0 | AB128: =AB123*'2.1_BC'!$J$117 -> 0 | AC128: =AC123*'2.1_BC'!$J$117 -> 0 | AD128: =AD123*'2.1_BC'!$J$117 -> 0 | AE128: =AE123*'2.1_BC'!$J$117 -> 0 | AF128: =AF123*'2.1_BC'!$J$117 -> 0 | AG128: =AG123*'2.1_BC'!$J$117 -> 0 | AH128: =AH123*'2.1_BC'!$J$117 -> 0 | AI128: =AI123*'2.1_BC'!$J$117 -> 0 | AJ128: =AJ123*'2.1_BC'!$J$117 -> 0 | AK128: =AK123*'2.1_BC'!$J$117 -> 0 | AL128: =AL123*'2.1_BC'!$J$117 -> 0 | AM128: =AM123*'2.1_BC'!$J$117 -> 0 | AN128: =AN123*'2.1_BC'!$J$117 -> 0 | AO128: =AO123*'2.1_BC'!$J$117 -> 0 | AP128: =AP123*'2.1_BC'!$J$117 -> 0 | AQ128: =AQ123*'2.1_BC'!$J$117 -> 0 | AR128: =AR123*'2.1_BC'!$J$117 -> 0 | AS128: =AS123*'2.1_BC'!$J$117 -> 0 | AT128: =AT123*'2.1_BC'!$J$117 -> 0 | AU128: =AU123*'2.1_BC'!$J$117 -> 0 | AV128: =AV123*'2.1_BC'!$J$117 -> 0 | AW128: =AW123*'2.1_BC'!$J$117 -> 0 | AX128: =AX123*'2.1_BC'!$J$117 -> 0 | AY128: =AY123*'2.1_BC'!$J$117 -> 0 | AZ128: =AZ123*'2.1_BC'!$J$117 -> 0 | BA128: =BA123*'2.1_BC'!$J$117 -> 0 | BB128: =BB123*'2.1_BC'!$J$117 -> 0 | BC128: =BC123*'2.1_BC'!$J$117 -> 0 | BD128: =BD123*'2.1_BC'!$J$117 -> 0 | BE128: =BE123*'2.1_BC'!$J$117 -> 0 | BF128: =BF123*'2.1_BC'!$J$117 -> 0 | BG128: =BG123*'2.1_BC'!$J$117 -> 0
B129: Community hub offering essential services | G129: ='1_KMA'!$I$20 -> 2024-06-30 | H129: ='1_KMA'!$I$19 -> $millions | J129: =J124*'2.1_BC'!$J$118 -> 0 | K129: =K124*'2.1_BC'!$J$118 -> 0 | L129: =L124*'2.1_BC'!$J$118 -> 0 | M129: =M124*'2.1_BC'!$J$118 -> 0 | N129: =N124*'2.1_BC'!$J$118 -> 0 | O129: =O124*'2.1_BC'!$J$118 -> 0 | P129: =P124*'2.1_BC'!$J$118 -> 0 | Q129: =Q124*'2.1_BC'!$J$118 -> 0 | R129: =R124*'2.1_BC'!$J$118 -> 0 | S129: =S124*'2.1_BC'!$J$118 -> 0 | T129: =T124*'2.1_BC'!$J$118 -> 0 | U129: =U124*'2.1_BC'!$J$118 -> 0 | V129: =V124*'2.1_BC'!$J$118 -> 0 | W129: =W124*'2.1_BC'!$J$118 -> 0 | X129: =X124*'2.1_BC'!$J$118 -> 0 | Y129: =Y124*'2.1_BC'!$J$118 -> 0 | Z129: =Z124*'2.1_BC'!$J$118 -> 0 | AA129: =AA124*'2.1_BC'!$J$118 -> 0 | AB129: =AB124*'2.1_BC'!$J$118 -> 0 | AC129: =AC124*'2.1_BC'!$J$118 -> 0 | AD129: =AD124*'2.1_BC'!$J$118 -> 0 | AE129: =AE124*'2.1_BC'!$J$118 -> 0 | AF129: =AF124*'2.1_BC'!$J$118 -> 0 | AG129: =AG124*'2.1_BC'!$J$118 -> 0 | AH129: =AH124*'2.1_BC'!$J$118 -> 0 | AI129: =AI124*'2.1_BC'!$J$118 -> 0 | AJ129: =AJ124*'2.1_BC'!$J$118 -> 0 | AK129: =AK124*'2.1_BC'!$J$118 -> 0 | AL129: =AL124*'2.1_BC'!$J$118 -> 0 | AM129: =AM124*'2.1_BC'!$J$118 -> 0 | AN129: =AN124*'2.1_BC'!$J$118 -> 0 | AO129: =AO124*'2.1_BC'!$J$118 -> 0 | AP129: =AP124*'2.1_BC'!$J$118 -> 0 | AQ129: =AQ124*'2.1_BC'!$J$118 -> 0 | AR129: =AR124*'2.1_BC'!$J$118 -> 0 | AS129: =AS124*'2.1_BC'!$J$118 -> 0 | AT129: =AT124*'2.1_BC'!$J$118 -> 0 | AU129: =AU124*'2.1_BC'!$J$118 -> 0 | AV129: =AV124*'2.1_BC'!$J$118 -> 0 | AW129: =AW124*'2.1_BC'!$J$118 -> 0 | AX129: =AX124*'2.1_BC'!$J$118 -> 0 | AY129: =AY124*'2.1_BC'!$J$118 -> 0 | AZ129: =AZ124*'2.1_BC'!$J$118 -> 0 | BA129: =BA124*'2.1_BC'!$J$118 -> 0 | BB129: =BB124*'2.1_BC'!$J$118 -> 0 | BC129: =BC124*'2.1_BC'!$J$118 -> 0 | BD129: =BD124*'2.1_BC'!$J$118 -> 0 | BE129: =BE124*'2.1_BC'!$J$118 -> 0 | BF129: =BF124*'2.1_BC'!$J$118 -> 0 | BG129: =BG124*'2.1_BC'!$J$118 -> 0
G131: $ Basis Reminder | H131: $ Reminder | J131: Summary table above picks up this total row
B132: Total | G132: ='1_KMA'!$I$20 -> 2024-06-30 | H132: ='1_KMA'!$I$19 -> $millions | J132: =SUM(J127:J129) -> 0 | K132: =SUM(K127:K129) -> 0 | L132: =SUM(L127:L129) -> 0 | M132: 0 | N132: 0 | O132: 0 | P132: 0 | Q132: 0 | R132: 0 | S132: 0 | T132: 0 | U132: 0 | V132: 0 | W132: 0 | X132: 0 | Y132: 0 | Z132: 0 | AA132: 0 | AB132: 0 | AC132: 0 | AD132: 0 | AE132: 0 | AF132: 0 | AG132: 0 | AH132: 0 | AI132: 0 | AJ132: 0 | AK132: 0 | AL132: 0 | AM132: 0 | AN132: 0 | AO132: 0 | AP132: 0 | AQ132: 0 | AR132: 0 | AS132: 0 | AT132: 0 | AU132: 0 | AV132: 0 | AW132: 0 | AX132: 0 | AY132: 0 | AZ132: 0 | BA132: 0 | BB132: 0 | BC132: 0 | BD132: 0 | BE132: 0 | BF132: 0 | BG132: 0
B134: Batteries
B136: AusNet Savings from Wholesale Arbitrage
H137: Unit | J137: Value
B138: Wholesale market price differential | H138: [e.g. $dollars per MWh]
B139: AusNet Share in Wholesale arbitrage | H139: [e.g. %]
B140: Average annual battery derating | H140: [e.g. % p.a.]
H142: Unit | J142: Location 1 | K142: Location 2 | L142: Location 3 | M142: Location 4 | N142: Location 5
B143: Battery Rating (kW) | H143: kW
B144: Battery Rating (hr) | H144: hr
B145: Battery Rating (kWh) | H145: kWh | J145: =J143*J144 -> 0 | K145: =K143*K144 -> 0 | L145: =L143*L144 -> 0 | M145: =M143*M144 -> 0 | N145: =N143*N144 -> 0
B146: Retailer benefit by wholesale arbitrage | H146: [e.g. $millions, $thousands or $dollars per year] | J146: =J145*$J$138*0.8*5*52/1000 -> 0 | K146: =K145*$J$138*0.8*5*52/1000 -> 0 | L146: =L145*$J$138*0.8*5*52/1000 -> 0 | M146: =M145*$J$138*0.8*5*52/1000 -> 0 | N146: =N145*$J$138*0.8*5*52/1000 -> 0
G148: $ Basis Reminder | H148: $ Reminder | J148: ="Values - ensure values have been converted to "&'1_KMA'!$I$19 -> Values - ensure values have been converted to $millions
B149: AusNet Savings from Wholesale Arbitrage | G149: ='1_KMA'!$I$20 -> 2024-06-30 | H149: ='1_KMA'!$I$19 -> $millions | J149: =(SUM($J$146:$N$146)*$J$139*(1/(1+$J$140)^(J4-1)))/10^6 -> 0 | K149: =(SUM($J$146:$N$146)*$J$139*(1/(1+$J$140)^(K4-1)))/10^6 -> 0 | L149: =(SUM($J$146:$N$146)*$J$139*(1/(1+$J$140)^(L4-1)))/10^6 -> 0 | M149: 0 | N149: =(SUM($J$146:$N$146)*$J$139*(1/(1+$J$140)^(N4-1)))/10^6 -> 0 | O149: 0 | P149: 0 | Q149: =(SUM($J$146:$N$146)*$J$139*(1/(1+$J$140)^(Q4-1)))/10^6 -> 0 | R149: 0 | S149: 0 | T149: 0 | U149: 0 | V149: 0 | W149: 0 | X149: 0 | Y149: 0 | Z149: 0 | AA149: 0 | AB149: 0 | AC149: 0 | AD149: 0 | AE149: 0 | AF149: 0 | AG149: 0 | AH149: 0 | AI149: 0 | AJ149: 0 | AK149: 0 | AL149: 0 | AM149: 0 | AN149: 0 | AO149: 0 | AP149: 0 | AQ149: 0 | AR149: 0 | AS149: 0 | AT149: 0 | AU149: 0 | AV149: 0 | AW149: 0 | AX149: 0 | AY149: 0 | AZ149: 0 | BA149: 0 | BB149: 0 | BC149: 0 | BD149: 0 | BE149: 0 | BF149: 0 | BG149: 0
B151: AusNet Revenue from FCAS
H152: Unit | J152: Value
B153: FCAS participation price | H153: [e.g. $ollars per MW per hour]
B154: Average annual participation All batteries | H154: [e.g. MW per hour]
G156: $ Basis Reminder | H156: $ Reminder | J156: ="Values - ensure values have been converted to "&'1_KMA'!$I$19 -> Values - ensure values have been converted to $millions
B157: AusNet Revenue from FCAS | G157: ='1_KMA'!$I$20 -> 2024-06-30 | H157: ='1_KMA'!$I$19 -> $millions | J157: =$J$153*$J$154/10^6 -> 0 | K157: =$J$153*$J$154/10^6 -> 0 | L157: 0 | M157: 0 | N157: 0 | O157: 0 | P157: 0 | Q157: 0 | R157: 0 | S157: 0 | T157: 0 | U157: 0 | V157: 0 | W157: 0 | X157: 0 | Y157: 0 | Z157: 0 | AA157: 0 | AB157: 0 | AC157: 0 | AD157: 0 | AE157: 0 | AF157: 0 | AG157: 0 | AH157: 0 | AI157: 0 | AJ157: 0 | AK157: 0 | AL157: 0 | AM157: 0 | AN157: 0 | AO157: 0 | AP157: 0 | AQ157: 0 | AR157: 0 | AS157: 0 | AT157: 0 | AU157: 0 | AV157: 0 | AW157: 0 | AX157: 0 | AY157: 0 | AZ157: 0 | BA157: 0 | BB157: 0 | BC157: 0 | BD157: 0 | BE157: 0 | BF157: 0 | BG157: 0
B159: AusNet Savings from Avoided Penalties
H160: Unit | J160: Location 1 | K160: Location 2 | L160: Location 3 | M160: Location 4 | N160: Location 5
B161: Number of average outage events | H161: [e.g. Events per year]
B162: Average Ausnet penalty for outage | H162: [e.g. $dollars per event]
G164: $ Basis Reminder | H164: $ Reminder | J164: ="Values - ensure values have been converted to "&'1_KMA'!$I$19 -> Values - ensure values have been converted to $millions
B165: Ausnet Savings from Avoided Penalties | G165: ='1_KMA'!$I$20 -> 2024-06-30 | H165: ='1_KMA'!$I$19 -> $millions | J165: =SUMPRODUCT($J$161:$N$161,$J$162:$N$162)/10^6 -> 0 | K165: =SUMPRODUCT($J$161:$N$161,$J$162:$N$162)/10^6 -> 0 | L165: 0 | M165: 0 | N165: 0 | O165: 0 | P165: 0 | Q165: 0 | R165: 0 | S165: 0 | T165: 0 | U165: 0 | V165: 0 | W165: 0 | X165: 0 | Y165: 0 | Z165: 0 | AA165: 0 | AB165: 0 | AC165: 0 | AD165: 0 | AE165: 0 | AF165: 0 | AG165: 0 | AH165: 0 | AI165: 0 | AJ165: 0 | AK165: 0 | AL165: 0 | AM165: 0 | AN165: 0 | AO165: 0 | AP165: 0 | AQ165: 0 | AR165: 0 | AS165: 0 | AT165: 0 | AU165: 0 | AV165: 0 | AW165: 0 | AX165: 0 | AY165: 0 | AZ165: 0 | BA165: 0 | BB165: 0 | BC165: 0 | BD165: 0 | BE165: 0 | BF165: 0 | BG165: 0
G167: $ Basis Reminder | H167: $ Reminder | J167: Summary table above picks up this total row
B168: Total | G168: ='1_KMA'!$I$20 -> 2024-06-30 | H168: ='1_KMA'!$I$19 -> $millions | J168: =J149+J157+J165 -> 0 | K168: =K149+K157+K165 -> 0 | L168: 0 | M168: 0 | N168: 0 | O168: 0 | P168: 0 | Q168: 0 | R168: 0 | S168: 0 | T168: 0 | U168: 0 | V168: 0 | W168: 0 | X168: 0 | Y168: 0 | Z168: 0 | AA168: 0 | AB168: 0 | AC168: 0 | AD168: 0 | AE168: 0 | AF168: 0 | AG168: 0 | AH168: 0 | AI168: 0 | AJ168: 0 | AK168: 0 | AL168: 0 | AM168: 0 | AN168: 0 | AO168: 0 | AP168: 0 | AQ168: 0 | AR168: 0 | AS168: 0 | AT168: 0 | AU168: 0 | AV168: 0 | AW168: 0 | AX168: 0 | AY168: 0 | AZ168: 0 | BA168: 0 | BB168: 0 | BC168: 0 | BD168: 0 | BE168: 0 | BF168: 0 | BG168: 0
B170: Others

Sheet 2.1_Op1
B1: General Inputs: Option 1 | I1: Regulatory Period Indicator | J1: ='1_KMA'!J30 -> 0 | K1: ='1_KMA'!K30 -> 0 | L1: ='1_KMA'!L30 -> 1 | M1: ='1_KMA'!M30 -> 1 | N1: ='1_KMA'!N30 -> 1 | O1: ='1_KMA'!O30 -> 1 | P1: ='1_KMA'!P30 -> 1 | Q1: ='1_KMA'!Q30 -> 0 | R1: ='1_KMA'!R30 -> 0 | S1: ='1_KMA'!S30 -> 0 | T1: ='1_KMA'!T30 -> 0 | U1: ='1_KMA'!U30 -> 0 | V1: ='1_KMA'!V30 -> 0 | W1: ='1_KMA'!W30 -> 0 | X1: ='1_KMA'!X30 -> 0 | Y1: ='1_KMA'!Y30 -> 0 | Z1: ='1_KMA'!Z30 -> 0 | AA1: ='1_KMA'!AA30 -> 0 | AB1: ='1_KMA'!AB30 -> 0 | AC1: ='1_KMA'!AC30 -> 0 | AD1: ='1_KMA'!AD30 -> 0 | AE1: ='1_KMA'!AE30 -> 0 | AF1: ='1_KMA'!AF30 -> 0 | AG1: ='1_KMA'!AG30 -> 0 | AH1: ='1_KMA'!AH30 -> 0 | AI1: ='1_KMA'!AI30 -> 0 | AJ1: ='1_KMA'!AJ30 -> 0 | AK1: ='1_KMA'!AK30 -> 0 | AL1: ='1_KMA'!AL30 -> 0 | AM1: ='1_KMA'!AM30 -> 0 | AN1: ='1_KMA'!AN30 -> 0 | AO1: ='1_KMA'!AO30 -> 0 | AP1: ='1_KMA'!AP30 -> 0 | AQ1: ='1_KMA'!AQ30 -> 0 | AR1: ='1_KMA'!AR30 -> 0 | AS1: ='1_KMA'!AS30 -> 0 | AT1: ='1_KMA'!AT30 -> 0 | AU1: ='1_KMA'!AU30 -> 0 | AV1: ='1_KMA'!AV30 -> 0 | AW1: ='1_KMA'!AW30 -> 0 | AX1: ='1_KMA'!AX30 -> 0 | AY1: ='1_KMA'!AY30 -> 0 | AZ1: ='1_KMA'!AZ30 -> 0 | BA1: ='1_KMA'!BA30 -> 0 | BB1: ='1_KMA'!BB30 -> 0 | BC1: ='1_KMA'!BC30 -> 0 | BD1: ='1_KMA'!BD30 -> 0 | BE1: ='1_KMA'!BE30 -> 0 | BF1: ='1_KMA'!BF30 -> 0 | BG1: ='1_KMA'!BG30 -> 0
B2: =Cover!$C$9 -> AusNet Services | I2: Period Start Date | J2: ='1_KMA'!J31 -> 2024-07-01 | K2: ='1_KMA'!K31 -> 2025-07-01 | L2: ='1_KMA'!L31 -> 2026-07-01 | M2: ='1_KMA'!M31 -> 2027-07-01 | N2: ='1_KMA'!N31 -> 2028-07-01 | O2: ='1_KMA'!O31 -> 2029-07-01 | P2: ='1_KMA'!P31 -> 2030-07-01 | Q2: ='1_KMA'!Q31 -> 2031-07-01 | R2: ='1_KMA'!R31 -> 2032-07-01 | S2: ='1_KMA'!S31 -> 2033-07-01 | T2: ='1_KMA'!T31 -> 2034-07-01 | U2: ='1_KMA'!U31 -> 2035-07-01 | V2: ='1_KMA'!V31 -> 2036-07-01 | W2: ='1_KMA'!W31 -> 2037-07-01 | X2: ='1_KMA'!X31 -> 2038-07-01 | Y2: ='1_KMA'!Y31 -> 2039-07-01 | Z2: ='1_KMA'!Z31 -> 2040-07-01 | AA2: ='1_KMA'!AA31 -> 2041-07-01 | AB2: ='1_KMA'!AB31 -> 2042-07-01 | AC2: ='1_KMA'!AC31 -> 2043-07-01 | AD2: ='1_KMA'!AD31 -> 2044-07-01 | AE2: ='1_KMA'!AE31 -> 2045-07-01 | AF2: ='1_KMA'!AF31 -> 2046-07-01 | AG2: ='1_KMA'!AG31 -> 2047-07-01 | AH2: ='1_KMA'!AH31 -> 2048-07-01 | AI2: ='1_KMA'!AI31 -> 2049-07-01 | AJ2: ='1_KMA'!AJ31 -> 2050-07-01 | AK2: ='1_KMA'!AK31 -> 2051-07-01 | AL2: ='1_KMA'!AL31 -> 2052-07-01 | AM2: ='1_KMA'!AM31 -> 2053-07-01 | AN2: ='1_KMA'!AN31 -> 2054-07-01 | AO2: ='1_KMA'!AO31 -> 2055-07-01 | AP2: ='1_KMA'!AP31 -> 2056-07-01 | AQ2: ='1_KMA'!AQ31 -> 2057-07-01 | AR2: ='1_KMA'!AR31 -> 2058-07-01 | AS2: ='1_KMA'!AS31 -> 2059-07-01 | AT2: ='1_KMA'!AT31 -> 2060-07-01 | AU2: ='1_KMA'!AU31 -> 2061-07-01 | AV2: ='1_KMA'!AV31 -> 2062-07-01 | AW2: ='1_KMA'!AW31 -> 2063-07-01 | AX2: ='1_KMA'!AX31 -> 2064-07-01 | AY2: ='1_KMA'!AY31 -> 2065-07-01 | AZ2: ='1_KMA'!AZ31 -> 2066-07-01 | BA2: ='1_KMA'!BA31 -> 2067-07-01 | BB2: ='1_KMA'!BB31 -> 2068-07-01 | BC2: ='1_KMA'!BC31 -> 2069-07-01 | BD2: ='1_KMA'!BD31 -> 2070-07-01 | BE2: ='1_KMA'!BE31 -> 2071-07-01 | BF2: ='1_KMA'!BF31 -> 2072-07-01 | BG2: ='1_KMA'!BG31 -> 2073-07-01
B3: =Cover!$C$10 -> Business Case Evaluation | I3: Period End Date | J3: ='1_KMA'!J32 -> 2025-06-30 | K3: ='1_KMA'!K32 -> 2026-06-30 | L3: ='1_KMA'!L32 -> 2027-06-30 | M3: ='1_KMA'!M32 -> 2028-06-30 | N3: ='1_KMA'!N32 -> 2029-06-30 | O3: ='1_KMA'!O32 -> 2030-06-30 | P3: ='1_KMA'!P32 -> 2031-06-30 | Q3: ='1_KMA'!Q32 -> 2032-06-30 | R3: ='1_KMA'!R32 -> 2033-06-30 | S3: ='1_KMA'!S32 -> 2034-06-30 | T3: ='1_KMA'!T32 -> 2035-06-30 | U3: ='1_KMA'!U32 -> 2036-06-30 | V3: ='1_KMA'!V32 -> 2037-06-30 | W3: ='1_KMA'!W32 -> 2038-06-30 | X3: ='1_KMA'!X32 -> 2039-06-30 | Y3: ='1_KMA'!Y32 -> 2040-06-30 | Z3: ='1_KMA'!Z32 -> 2041-06-30 | AA3: ='1_KMA'!AA32 -> 2042-06-30 | AB3: ='1_KMA'!AB32 -> 2043-06-30 | AC3: ='1_KMA'!AC32 -> 2044-06-30 | AD3: ='1_KMA'!AD32 -> 2045-06-30 | AE3: ='1_KMA'!AE32 -> 2046-06-30 | AF3: ='1_KMA'!AF32 -> 2047-06-30 | AG3: ='1_KMA'!AG32 -> 2048-06-30 | AH3: ='1_KMA'!AH32 -> 2049-06-30 | AI3: ='1_KMA'!AI32 -> 2050-06-30 | AJ3: ='1_KMA'!AJ32 -> 2051-06-30 | AK3: ='1_KMA'!AK32 -> 2052-06-30 | AL3: ='1_KMA'!AL32 -> 2053-06-30 | AM3: ='1_KMA'!AM32 -> 2054-06-30 | AN3: ='1_KMA'!AN32 -> 2055-06-30 | AO3: ='1_KMA'!AO32 -> 2056-06-30 | AP3: ='1_KMA'!AP32 -> 2057-06-30 | AQ3: ='1_KMA'!AQ32 -> 2058-06-30 | AR3: ='1_KMA'!AR32 -> 2059-06-30 | AS3: ='1_KMA'!AS32 -> 2060-06-30 | AT3: ='1_KMA'!AT32 -> 2061-06-30 | AU3: ='1_KMA'!AU32 -> 2062-06-30 | AV3: ='1_KMA'!AV32 -> 2063-06-30 | AW3: ='1_KMA'!AW32 -> 2064-06-30 | AX3: ='1_KMA'!AX32 -> 2065-06-30 | AY3: ='1_KMA'!AY32 -> 2066-06-30 | AZ3: ='1_KMA'!AZ32 -> 2067-06-30 | BA3: ='1_KMA'!BA32 -> 2068-06-30 | BB3: ='1_KMA'!BB32 -> 2069-06-30 | BC3: ='1_KMA'!BC32 -> 2070-06-30 | BD3: ='1_KMA'!BD32 -> 2071-06-30 | BE3: ='1_KMA'!BE32 -> 2072-06-30 | BF3: ='1_KMA'!BF32 -> 2073-06-30 | BG3: ='1_KMA'!BG32 -> 2074-06-30
B4: =Cover!$C$11 -> Smart meter 13 yr bulk replacement | I4: Project Year | J4: ='1_KMA'!J33 -> 1 | K4: ='1_KMA'!K33 -> 2 | L4: ='1_KMA'!L33 -> 3 | M4: ='1_KMA'!M33 -> 4 | N4: ='1_KMA'!N33 -> 5 | O4: ='1_KMA'!O33 -> 6 | P4: ='1_KMA'!P33 -> 7 | Q4: ='1_KMA'!Q33 -> 8 | R4: ='1_KMA'!R33 -> 9 | S4: ='1_KMA'!S33 -> 10 | T4: ='1_KMA'!T33 -> 11 | U4: ='1_KMA'!U33 -> 12 | V4: ='1_KMA'!V33 -> 13 | W4: ='1_KMA'!W33 -> 14 | X4: ='1_KMA'!X33 -> 15 | Y4: ='1_KMA'!Y33 -> 16 | Z4: ='1_KMA'!Z33 -> 17 | AA4: ='1_KMA'!AA33 -> 18 | AB4: ='1_KMA'!AB33 -> 19 | AC4: ='1_KMA'!AC33 -> 20 | AD4: ='1_KMA'!AD33 -> 21 | AE4: ='1_KMA'!AE33 -> 22 | AF4: ='1_KMA'!AF33 -> 23 | AG4: ='1_KMA'!AG33 -> 24 | AH4: ='1_KMA'!AH33 -> 25 | AI4: ='1_KMA'!AI33 -> 26 | AJ4: ='1_KMA'!AJ33 -> 27 | AK4: ='1_KMA'!AK33 -> 28 | AL4: ='1_KMA'!AL33 -> 29 | AM4: ='1_KMA'!AM33 -> 30 | AN4: ='1_KMA'!AN33 -> 31 | AO4: ='1_KMA'!AO33 -> 32 | AP4: ='1_KMA'!AP33 -> 33 | AQ4: ='1_KMA'!AQ33 -> 34 | AR4: ='1_KMA'!AR33 -> 35 | AS4: ='1_KMA'!AS33 -> 36 | AT4: ='1_KMA'!AT33 -> 37 | AU4: ='1_KMA'!AU33 -> 38 | AV4: ='1_KMA'!AV33 -> 39 | AW4: ='1_KMA'!AW33 -> 40 | AX4: ='1_KMA'!AX33 -> 41 | AY4: ='1_KMA'!AY33 -> 42 | AZ4: ='1_KMA'!AZ33 -> 43 | BA4: ='1_KMA'!BA33 -> 44 | BB4: ='1_KMA'!BB33 -> 45 | BC4: ='1_KMA'!BC33 -> 46 | BD4: ='1_KMA'!BD33 -> 47 | BE4: ='1_KMA'!BE33 -> 48 | BF4: ='1_KMA'!BF33 -> 49 | BG4: ='1_KMA'!BG33 -> 50
I5: Financial Year | J5: ='1_KMA'!J34 -> 2025 | K5: ='1_KMA'!K34 -> 2026 | L5: ='1_KMA'!L34 -> 2027 | M5: ='1_KMA'!M34 -> 2028 | N5: ='1_KMA'!N34 -> 2029 | O5: ='1_KMA'!O34 -> 2030 | P5: ='1_KMA'!P34 -> 2031 | Q5: ='1_KMA'!Q34 -> 2032 | R5: ='1_KMA'!R34 -> 2033 | S5: ='1_KMA'!S34 -> 2034 | T5: ='1_KMA'!T34 -> 2035 | U5: ='1_KMA'!U34 -> 2036 | V5: ='1_KMA'!V34 -> 2037 | W5: ='1_KMA'!W34 -> 2038 | X5: ='1_KMA'!X34 -> 2039 | Y5: ='1_KMA'!Y34 -> 2040 | Z5: ='1_KMA'!Z34 -> 2041 | AA5: ='1_KMA'!AA34 -> 2042 | AB5: ='1_KMA'!AB34 -> 2043 | AC5: ='1_KMA'!AC34 -> 2044 | AD5: ='1_KMA'!AD34 -> 2045 | AE5: ='1_KMA'!AE34 -> 2046 | AF5: ='1_KMA'!AF34 -> 2047 | AG5: ='1_KMA'!AG34 -> 2048 | AH5: ='1_KMA'!AH34 -> 2049 | AI5: ='1_KMA'!AI34 -> 2050 | AJ5: ='1_KMA'!AJ34 -> 2051 | AK5: ='1_KMA'!AK34 -> 2052 | AL5: ='1_KMA'!AL34 -> 2053 | AM5: ='1_KMA'!AM34 -> 2054 | AN5: ='1_KMA'!AN34 -> 2055 | AO5: ='1_KMA'!AO34 -> 2056 | AP5: ='1_KMA'!AP34 -> 2057 | AQ5: ='1_KMA'!AQ34 -> 2058 | AR5: ='1_KMA'!AR34 -> 2059 | AS5: ='1_KMA'!AS34 -> 2060 | AT5: ='1_KMA'!AT34 -> 2061 | AU5: ='1_KMA'!AU34 -> 2062 | AV5: ='1_KMA'!AV34 -> 2063 | AW5: ='1_KMA'!AW34 -> 2064 | AX5: ='1_KMA'!AX34 -> 2065 | AY5: ='1_KMA'!AY34 -> 2066 | AZ5: ='1_KMA'!AZ34 -> 2067 | BA5: ='1_KMA'!BA34 -> 2068 | BB5: ='1_KMA'!BB34 -> 2069 | BC5: ='1_KMA'!BC34 -> 2070 | BD5: ='1_KMA'!BD34 -> 2071 | BE5: ='1_KMA'!BE34 -> 2072 | BF5: ='1_KMA'!BF34 -> 2073 | BG5: ='1_KMA'!BG34 -> 2074
B7: Summary
B9: Costs | G9: $ Basis Reminder | H9: $ Reminder | J9: ="Ensure this section [Summary] is picking up the relevant rows" -> Ensure this section [Summary] is picking up the relevant rows
B10: Capex | G10: ='1_KMA'!$I$20 -> 2024-06-30 | H10: ='1_KMA'!$I$19 -> $millions | J10: =J47 -> 5.931000228 | K10: =K47 -> 6.108930235 | L10: =L47 -> 6.334960654 | M10: 6.83954735 | N10: 26.70267601 | O10: 47.97409587 | P10: 51.96467141 | Q10: 50.50117934 | R10: 51.81421 | S10: 53.16137946 | T10: 54.54357533 | U10: 55.96170829 | V10: 57.4167127 | W10: 58.90954724 | X10: 60.44119546 | Y10: 37.20759993 | Z10: 38.17499753 | AA10: 17.48196767 | AB10: 0 | AC10: 0 | AD10: 0 | AE10: 0 | AF10: 0 | AG10: 0 | AH10: 0 | AI10: 0 | AJ10: 0 | AK10: 0 | AL10: 0 | AM10: 0 | AN10: 0 | AO10: 0 | AP10: 0 | AQ10: 0 | AR10: 0 | AS10: 0 | AT10: 0 | AU10: 0 | AV10: 0 | AW10: 0 | AX10: 0 | AY10: 0 | AZ10: 0 | BA10: 0 | BB10: 0 | BC10: 0 | BD10: 0 | BE10: 0 | BF10: 0 | BG10: 0
B11: Capex offset | G11: ='1_KMA'!$I$20 -> 2024-06-30 | H11: ='1_KMA'!$I$19 -> $millions | J11: =-J59 -> 0 | K11: =-K59 -> 0 | L11: =-L59 -> 0 | M11: 0 | N11: 0 | O11: 0 | P11: 0 | Q11: 0 | R11: 0 | S11: 0 | T11: 0 | U11: 0 | V11: 0 | W11: 0 | X11: 0 | Y11: 0 | Z11: 0 | AA11: 0 | AB11: 0 | AC11: 0 | AD11: 0 | AE11: 0 | AF11: 0 | AG11: 0 | AH11: 0 | AI11: 0 | AJ11: 0 | AK11: 0 | AL11: 0 | AM11: 0 | AN11: 0 | AO11: 0 | AP11: 0 | AQ11: 0 | AR11: 0 | AS11: 0 | AT11: 0 | AU11: 0 | AV11: 0 | AW11: 0 | AX11: 0 | AY11: 0 | AZ11: 0 | BA11: 0 | BB11: 0 | BC11: 0 | BD11: 0 | BE11: 0 | BF11: 0 | BG11: 0
B12: Opex | G12: ='1_KMA'!$I$20 -> 2024-06-30 | H12: ='1_KMA'!$I$19 -> $millions | J12: =J82 -> 0 | K12: =K82 -> 0 | L12: 0 | M12: =M82 -> 0 | N12: 0 | O12: 0 | P12: 0 | Q12: 0 | R12: 0 | S12: 0 | T12: 0 | U12: 0 | V12: 0 | W12: 0 | X12: 0 | Y12: 0 | Z12: 0 | AA12: 0 | AB12: 0 | AC12: 0 | AD12: 0 | AE12: 0 | AF12: 0 | AG12: 0 | AH12: 0 | AI12: 0 | AJ12: 0 | AK12: 0 | AL12: 0 | AM12: 0 | AN12: 0 | AO12: 0 | AP12: 0 | AQ12: 0 | AR12: 0 | AS12: 0 | AT12: 0 | AU12: 0 | AV12: 0 | AW12: 0 | AX12: 0 | AY12: 0 | AZ12: 0 | BA12: 0 | BB12: 0 | BC12: 0 | BD12: 0 | BE12: 0 | BF12: 0 | BG12: 0
B13: Total | G13: ='1_KMA'!$I$20 -> 2024-06-30 | H13: ='1_KMA'!$I$19 -> $millions | J13: =SUM(J10:J12) -> 5.931000228 | K13: =SUM(K10:K12) -> 6.108930235 | L13: =SUM(L10:L12) -> 6.334960654 | M13: 6.83954735 | N13: 26.70267601 | O13: 47.97409587 | P13: 51.96467141 | Q13: 50.50117934 | R13: 51.81421 | S13: 53.16137946 | T13: 54.54357533 | U13: 55.96170829 | V13: 57.4167127 | W13: 58.90954724 | X13: 60.44119546 | Y13: 37.20759993 | Z13: 38.17499753 | AA13: 17.48196767 | AB13: 0 | AC13: 0 | AD13: 0 | AE13: 0 | AF13: 0 | AG13: 0 | AH13: 0 | AI13: 0 | AJ13: 0 | AK13: 0 | AL13: 0 | AM13: 0 | AN13: 0 | AO13: 0 | AP13: 0 | AQ13: 0 | AR13: 0 | AS13: 0 | AT13: 0 | AU13: 0 | AV13: 0 | AW13: 0 | AX13: 0 | AY13: 0 | AZ13: 0 | BA13: 0 | BB13: 0 | BC13: 0 | BD13: 0 | BE13: 0 | BF13: 0 | BG13: 0
B15: Benefits | G15: $ Basis Reminder | H15: $ Reminder | J15: ="Ensure this section [Summary] is picking up the relevant rows" -> Ensure this section [Summary] is picking up the relevant rows
B16: Value of EUE | G16: ='1_KMA'!$I$20 -> 2024-06-30 | H16: ='1_KMA'!$I$19 -> $millions | J16: =-J93 -> 0 | K16: =-K93 -> 0 | L16: 0 | M16: 0 | N16: 0 | O16: 0 | P16: 0 | Q16: 0 | R16: 0 | S16: 0 | T16: 0 | U16: 0 | V16: 0 | W16: 0 | X16: 0 | Y16: 0 | Z16: 0 | AA16: 0 | AB16: 0 | AC16: 0 | AD16: 0 | AE16: 0 | AF16: 0 | AG16: 0 | AH16: 0 | AI16: 0 | AJ16: 0 | AK16: 0 | AL16: 0 | AM16: 0 | AN16: 0 | AO16: 0 | AP16: 0 | AQ16: 0 | AR16: 0 | AS16: 0 | AT16: 0 | AU16: 0 | AV16: 0 | AW16: 0 | AX16: 0 | AY16: 0 | AZ16: 0 | BA16: 0 | BB16: 0 | BC16: 0 | BD16: 0 | BE16: 0 | BF16: 0 | BG16: 0
B17: Reliability | G17: ='1_KMA'!$I$20 -> 2024-06-30 | H17: ='1_KMA'!$I$19 -> $millions | J17: =J111 -> 0 | K17: =K111 -> 0 | L17: 0 | M17: 0 | N17: 0 | O17: 0 | P17: 0 | Q17: 0 | R17: 0 | S17: 0 | T17: 0 | U17: 0 | V17: 0 | W17: 0 | X17: 0 | Y17: 0 | Z17: 0 | AA17: 0 | AB17: 0 | AC17: 0 | AD17: 0 | AE17: 0 | AF17: 0 | AG17: 0 | AH17: 0 | AI17: 0 | AJ17: 0 | AK17: 0 | AL17: 0 | AM17: 0 | AN17: 0 | AO17: 0 | AP17: 0 | AQ17: 0 | AR17: 0 | AS17: 0 | AT17: 0 | AU17: 0 | AV17: 0 | AW17: 0 | AX17: 0 | AY17: 0 | AZ17: 0 | BA17: 0 | BB17: 0 | BC17: 0 | BD17: 0 | BE17: 0 | BF17: 0 | BG17: 0
B18: Resilience | G18: ='1_KMA'!$I$20 -> 2024-06-30 | H18: ='1_KMA'!$I$19 -> $millions | J18: =J132 -> 0 | K18: =K132 -> 0 | L18: 0 | M18: 0 | N18: 0 | O18: 0 | P18: 0 | Q18: 0 | R18: 0 | S18: 0 | T18: 0 | U18: 0 | V18: 0 | W18: 0 | X18: 0 | Y18: 0 | Z18: 0 | AA18: 0 | AB18: 0 | AC18: 0 | AD18: 0 | AE18: 0 | AF18: 0 | AG18: 0 | AH18: 0 | AI18: 0 | AJ18: 0 | AK18: 0 | AL18: 0 | AM18: 0 | AN18: 0 | AO18: 0 | AP18: 0 | AQ18: 0 | AR18: 0 | AS18: 0 | AT18: 0 | AU18: 0 | AV18: 0 | AW18: 0 | AX18: 0 | AY18: 0 | AZ18: 0 | BA18: 0 | BB18: 0 | BC18: 0 | BD18: 0 | BE18: 0 | BF18: 0 | BG18: 0
B19: Batteries | G19: ='1_KMA'!$I$20 -> 2024-06-30 | H19: ='1_KMA'!$I$19 -> $millions | J19: =J168 -> 0 | K19: =K168 -> 0 | L19: 0 | M19: 0 | N19: 0 | O19: 0 | P19: 0 | Q19: 0 | R19: 0 | S19: 0 | T19: 0 | U19: 0 | V19: 0 | W19: 0 | X19: 0 | Y19: 0 | Z19: 0 | AA19: 0 | AB19: 0 | AC19: 0 | AD19: 0 | AE19: 0 | AF19: 0 | AG19: 0 | AH19: 0 | AI19: 0 | AJ19: 0 | AK19: 0 | AL19: 0 | AM19: 0 | AN19: 0 | AO19: 0 | AP19: 0 | AQ19: 0 | AR19: 0 | AS19: 0 | AT19: 0 | AU19: 0 | AV19: 0 | AW19: 0 | AX19: 0 | AY19: 0 | AZ19: 0 | BA19: 0 | BB19: 0 | BC19: 0 | BD19: 0 | BE19: 0 | BF19: 0 | BG19: 0
B20: Others | G20: ='1_KMA'!$I$20 -> 2024-06-30 | H20: ='1_KMA'!$I$19 -> $millions
B21: Total | G21: ='1_KMA'!$I$20 -> 2024-06-30 | H21: ='1_KMA'!$I$19 -> $millions | J21: =SUM(J16:J20) -> 0 | K21: =SUM(K16:K20) -> 0 | L21: 0 | M21: 0 | N21: 0 | O21: 0 | P21: 0 | Q21: 0 | R21: 0 | S21: 0 | T21: 0 | U21: 0 | V21: 0 | W21: 0 | X21: 0 | Y21: 0 | Z21: 0 | AA21: 0 | AB21: 0 | AC21: 0 | AD21: 0 | AE21: 0 | AF21: 0 | AG21: 0 | AH21: 0 | AI21: 0 | AJ21: 0 | AK21: 0 | AL21: 0 | AM21: 0 | AN21: 0 | AO21: 0 | AP21: 0 | AQ21: 0 | AR21: 0 | AS21: 0 | AT21: 0 | AU21: 0 | AV21: 0 | AW21: 0 | AX21: 0 | AY21: 0 | AZ21: 0 | BA21: 0 | BB21: 0 | BC21: 0 | BD21: 0 | BE21: 0 | BF21: 0 | BG21: 0
B24: Cost Inputs
B26: Capex Build Up
B28: Name | H28: Unit | J28: Unit Rate (replacements)
B29: Smart meter replacements - fix on fail (meter with comms card + labour) | H29: Average unit cost of meter installed $million per unit
B30: Smart meter replacements - bulk replacement rate (meter with comms card + labour) | H30: Average unit cost of meter installed $million per unit
B34: Name | H34: Unit | J34: Quantities
B35: =B29 -> Smart meter replacements - fix on fail (meter with comms card + labour) | H35: meter replacement numbers | J35: 8880.5 | K35: 8880.5 | L35: 8880.5 | M35: 9344.875 | N35: 0 | O35: 0 | P35: 0 | Q35: 0 | R35: 0 | S35: 0 | T35: 0 | U35: 0 | V35: 0 | W35: 0 | X35: 0 | Y35: 0 | Z35: 0 | AA35: 0 | AB35: 0 | AC35: 0 | AD35: 0
B36: =B30 -> Smart meter replacements - bulk replacement rate (meter with comms card + labour) | J36: 0 | K36: 0 | L36: 0 | M36: 0 | N36: 40217.11806 | O36: 70423.17442 | P36: 74348.05706 | Q36: 70423.17442 | R36: 70423.17442 | S36: 70423.17442 | T36: 70423.17442 | U36: 70423.17442 | V36: 70423.17442 | W36: 70423.17442 | X36: 70423.17442 | Y36: 42253.90465 | Z36: 42253.90465 | AA36: 18859.52639 | AB36: 0 | AC36: 0 | AD36: 0
B40: Name | G40: $ Basis Reminder | H40: $ Reminder | J40: ="Costs - ensure costs have been converted to "&'1_KMA'!$I$19 -> Costs - ensure costs have been converted to $millions
B41: =B29 -> Smart meter replacements - fix on fail (meter with comms card + labour) | G41: ='1_KMA'!$I$20 -> 2024-06-30 | H41: ='1_KMA'!$I$19 -> $millions | AE41: 0 | AF41: =$J$29*AF35 -> 0 | AG41: 0 | AH41: 0 | AI41: 0 | AJ41: 0 | AK41: 0 | AL41: 0 | AM41: 0 | AN41: 0 | AO41: 0 | AP41: 0 | AQ41: 0 | AR41: 0 | AS41: 0 | AT41: 0 | AU41: 0 | AV41: 0 | AW41: 0 | AX41: 0 | AY41: 0 | AZ41: 0 | BA41: 0 | BB41: 0 | BC41: 0 | BD41: 0 | BE41: 0 | BF41: 0 | BG41: 0
B42: =B36 -> Smart meter replacements - bulk replacement rate (meter with comms card + labour) | G42: ='1_KMA'!$I$20 -> 2024-06-30 | H42: ='1_KMA'!$I$19 -> $millions | AE42: 0 | AF42: =$J$30*AF36 -> 0 | AG42: 0 | AH42: 0 | AI42: 0 | AJ42: 0 | AK42: 0 | AL42: 0 | AM42: 0 | AN42: 0 | AO42: 0 | AP42: 0 | AQ42: 0 | AR42: 0 | AS42: 0 | AT42: 0 | AU42: 0 | AV42: 0 | AW42: 0 | AX42: 0 | AY42: 0 | AZ42: 0 | BA42: 0 | BB42: 0 | BC42: 0 | BD42: 0 | BE42: 0 | BF42: 0 | BG42: 0
G43: ='1_KMA'!$I$20 -> 2024-06-30 | H43: ='1_KMA'!$I$19 -> $millions | J43: 0 | K43: 0 | L43: 0 | M43: 0 | N43: 0 | O43: 0 | P43: 0 | Q43: 0 | R43: 0 | S43: 0 | T43: 0 | U43: 0 | V43: 0 | W43: 0 | X43: 0 | Y43: 0 | Z43: 0 | AA43: 0 | AB43: 0 | AC43: 0 | AD43: 0 | AE43: 0 | AF43: =$J$31*AF37 -> 0 | AG43: 0 | AH43: 0 | AI43: 0 | AJ43: 0 | AK43: 0 | AL43: 0 | AM43: 0 | AN43: 0 | AO43: 0 | AP43: 0 | AQ43: 0 | AR43: 0 | AS43: 0 | AT43: 0 | AU43: 0 | AV43: 0 | AW43: 0 | AX43: 0 | AY43: 0 | AZ43: 0 | BA43: 0 | BB43: 0 | BC43: 0 | BD43: 0 | BE43: 0 | BF43: 0 | BG43: 0
G44: ='1_KMA'!$I$20 -> 2024-06-30 | H44: ='1_KMA'!$I$19 -> $millions | J44: 0 | K44: 0 | L44: 0 | M44: 0 | N44: 0 | O44: 0 | P44: 0 | Q44: 0 | R44: 0 | S44: 0 | T44: 0 | U44: 0 | V44: 0 | W44: 0 | X44: 0 | Y44: 0 | Z44: 0 | AA44: 0 | AB44: 0 | AC44: 0 | AD44: 0 | AE44: 0 | AF44: =$J$32*AF38 -> 0 | AG44: 0 | AH44: 0 | AI44: 0 | AJ44: 0 | AK44: 0 | AL44: 0 | AM44: 0 | AN44: 0 | AO44: 0 | AP44: 0 | AQ44: 0 | AR44: 0 | AS44: 0 | AT44: 0 | AU44: 0 | AV44: 0 | AW44: 0 | AX44: 0 | AY44: 0 | AZ44: 0 | BA44: 0 | BB44: 0 | BC44: 0 | BD44: 0 | BE44: 0 | BF44: 0 | BG44: 0
G46: $ Basis Reminder | H46: $ Reminder | J46: Summary table above picks up this total row
B47: Total | G47: ='1_KMA'!$I$20 -> 2024-06-30 | H47: ='1_KMA'!$I$19 -> $millions | J47: 5.931000228 | K47: 6.108930235 | L47: 6.334960654 | M47: 6.83954735 | N47: 26.70267601 | O47: 47.97409587 | P47: 51.96467141 | Q47: 50.50117934 | R47: 51.81421 | S47: 53.16137946 | T47: 54.54357533 | U47: 55.96170829 | V47: 57.4167127 | W47: 58.90954724 | X47: 60.44119546 | Y47: 37.20759993 | Z47: 38.17499753 | AA47: 17.48196767 | AB47: 0 | AC47: 0 | AD47: 0 | AE47: =SUM(AE41:AE44) -> 0 | AF47: 0 | AG47: 0 | AH47: 0 | AI47: 0 | AJ47: 0 | AK47: 0 | AL47: 0 | AM47: 0 | AN47: 0 | AO47: 0 | AP47: 0 | AQ47: 0 | AR47: 0 | AS47: 0 | AT47: 0 | AU47: 0 | AV47: 0 | AW47: 0 | AX47: 0 | AY47: 0 | AZ47: 0 | BA47: 0 | BB47: 0 | BC47: 0 | BD47: 0 | BE47: 0 | BF47: 0 | BG47: 0
B49: Capex Offset
J51: ="Capex offsets - ensure capex offsets have been converted to "&'1_KMA'!$I$19 -> Capex offsets - ensure capex offsets have been converted to $millions
B52: Name | G52: $ Basis Reminder | H52: $ Reminder | J52: Enter capex offsets as positive values as the spreadsheet later nets this off the gross amounts
B53: [e.g. Government subsidy] | G53: ='1_KMA'!$I$20 -> 2024-06-30 | H53: ='1_KMA'!$I$19 -> $millions
B54: [e.g. Customer contribution] | G54: ='1_KMA'!$I$20 -> 2024-06-30 | H54: ='1_KMA'!$I$19 -> $millions
G55: ='1_KMA'!$I$20 -> 2024-06-30 | H55: ='1_KMA'!$I$19 -> $millions
G56: ='1_KMA'!$I$20 -> 2024-06-30 | H56: ='1_KMA'!$I$19 -> $millions
G58: $ Basis Reminder | H58: $ Reminder | J58: Summary table above picks up this total row
B59: Total | G59: ='1_KMA'!$I$20 -> 2024-06-30 | H59: ='1_KMA'!$I$19 -> $millions | J59: =SUM(J53:J56) -> 0 | K59: =SUM(K53:K56) -> 0 | L59: =SUM(L53:L56) -> 0 | M59: 0 | N59: 0 | O59: 0 | P59: 0 | Q59: 0 | R59: 0 | S59: 0 | T59: 0 | U59: 0 | V59: 0 | W59: 0 | X59: 0 | Y59: 0 | Z59: 0 | AA59: 0 | AB59: 0 | AC59: 0 | AD59: 0 | AE59: 0 | AF59: 0 | AG59: 0 | AH59: 0 | AI59: 0 | AJ59: 0 | AK59: 0 | AL59: 0 | AM59: 0 | AN59: 0 | AO59: 0 | AP59: 0 | AQ59: 0 | AR59: 0 | AS59: 0 | AT59: 0 | AU59: 0 | AV59: 0 | AW59: 0 | AX59: 0 | AY59: 0 | AZ59: 0 | BA59: 0 | BB59: 0 | BC59: 0 | BD59: 0 | BE59: 0 | BF59: 0 | BG59: 0
B61: Opex Build Up
B63: Name | H63: Unit | J63: Value
B64: Additional PMO costs | H64: $million for each dedicated PMO FTE | J64: 0.1487587687
B65: Additional resources to improve data quality | H65: $million for each dedicated data FTE | J65: 0.1487587687
B66: Customer impacts | H66: $million for each customer impact | J66: 4.407667222e-05
B67: Compliance risk mitigation costs (i.e., replacing meter in 1 or 2 days) | H67: $million for each customer impact | J67: 0.0001238239858
B69: Name | H69: Unit | J69: Quantities
B70: PMO deployment costs | H70: Number of dedicated PMO FTE | J70: 0 | K70: 0 | L70: 0 | M70: 0 | N70: 0 | O70: 0 | P70: 0 | Q70: 0 | R70: 0 | S70: 0 | T70: 0 | U70: 0 | V70: 0 | W70: 0 | X70: 0 | Y70: 0 | Z70: 0 | AA70: 0
B71: Additional resources to improve data quality | H71: Number of dedicated data quality FTE | J71: 0 | K71: 0 | L71: 0 | M71: 0 | N71: 0 | O71: 0 | P71: 0 | Q71: 0 | R71: 0 | S71: 0 | T71: 0 | U71: 0 | V71: 0 | W71: 0 | X71: 0 | Y71: 0 | Z71: 0 | AA71: 0
B72: Customer impacts | H72: Number of customers impacted | J72: 0 | K72: 0 | L72: 0 | M72: 0 | N72: 0 | O72: 0 | P72: 0 | Q72: 0 | R72: 0 | S72: 0 | T72: 0 | U72: 0 | V72: 0 | W72: 0 | X72: 0 | Y72: 0 | Z72: 0 | AA72: 0
B73: Compliance risk mitigation costs | H73: Breaches (1 for a civil penalty breach, 30 for a significant licence breach) | J73: 0 | K73: 0 | L73: 0 | M73: 0 | N73: 0 | O73: 0 | P73: 0 | Q73: 0 | R73: 0 | S73: 0 | T73: 0 | U73: 0 | V73: 0 | W73: 0 | X73: 0 | Y73: 0 | Z73: 0 | AA73: 0
B75: Name | G75: $ Basis Reminder | H75: $ Reminder | J75: ="Costs - ensure costs have been converted to "&'1_KMA'!$I$19 -> Costs - ensure costs have been converted to $millions
B76: =B64 -> Additional PMO costs | G76: ='1_KMA'!$I$20 -> 2024-06-30 | H76: ='1_KMA'!$I$19 -> $millions | J76: =$J$64*J70 -> 0 | K76: =$J$64*K70 -> 0 | L76: =$J$64*L70 -> 0 | M76: =$J$64*M70 -> 0 | N76: 0 | O76: 0 | P76: =$J$64*P70 -> 0 | Q76: 0 | R76: 0 | S76: 0 | T76: 0 | U76: 0 | V76: 0 | W76: 0 | X76: 0 | Y76: 0 | Z76: 0 | AA76: 0 | AB76: 0 | AC76: 0 | AD76: 0 | AE76: 0 | AF76: 0 | AG76: 0 | AH76: 0 | AI76: 0 | AJ76: 0 | AK76: 0 | AL76: 0 | AM76: 0 | AN76: 0 | AO76: 0 | AP76: 0 | AQ76: 0 | AR76: 0 | AS76: 0 | AT76: 0 | AU76: 0 | AV76: 0 | AW76: 0 | AX76: 0 | AY76: 0 | AZ76: 0 | BA76: 0 | BB76: 0 | BC76: 0 | BD76: 0 | BE76: 0 | BF76: 0 | BG76: 0
B77: Additional resources to improve data quality | G77: ='1_KMA'!$I$20 -> 2024-06-30 | H77: ='1_KMA'!$I$19 -> $millions | J77: =$J$65*J71 -> 0 | K77: =$J$65*K71 -> 0 | L77: =$J$65*L71 -> 0 | M77: =$J$65*M71 -> 0 | N77: =$J$65*N71 -> 0 | O77: 0 | P77: =$J$65*P71 -> 0 | Q77: 0 | R77: 0 | S77: 0 | T77: 0 | U77: 0 | V77: 0 | W77: 0 | X77: 0 | Y77: 0 | Z77: 0 | AA77: 0 | AB77: 0 | AC77: 0 | AD77: 0 | AE77: 0 | AF77: 0 | AG77: 0 | AH77: 0 | AI77: 0 | AJ77: 0 | AK77: 0 | AL77: 0 | AM77: 0 | AN77: 0 | AO77: 0 | AP77: 0 | AQ77: 0 | AR77: 0 | AS77: 0 | AT77: 0 | AU77: 0 | AV77: 0 | AW77: 0 | AX77: 0 | AY77: 0 | AZ77: 0 | BA77: 0 | BB77: 0 | BC77: 0 | BD77: 0 | BE77: 0 | BF77: 0 | BG77: 0
B78: Customer impacts | G78: ='1_KMA'!$I$20 -> 2024-06-30 | H78: ='1_KMA'!$I$19 -> $millions | J78: =$J$66*J72 -> 0 | K78: =$J$66*K72 -> 0 | L78: =$J$66*L72 -> 0 | M78: 0 | N78: =$J$66*N72 -> 0 | O78: 0 | P78: 0 | Q78: 0 | R78: 0 | S78: 0 | T78: 0 | U78: 0 | V78: 0 | W78: 0 | X78: 0 | Y78: 0 | Z78: 0 | AA78: 0 | AB78: 0 | AC78: 0 | AD78: 0 | AE78: 0 | AF78: 0 | AG78: 0 | AH78: 0 | AI78: 0 | AJ78: 0 | AK78: 0 | AL78: 0 | AM78: 0 | AN78: 0 | AO78: 0 | AP78: 0 | AQ78: 0 | AR78: 0 | AS78: 0 | AT78: 0 | AU78: 0 | AV78: 0 | AW78: 0 | AX78: 0 | AY78: 0 | AZ78: 0 | BA78: 0 | BB78: 0 | BC78: 0 | BD78: 0 | BE78: 0 | BF78: 0 | BG78: 0
B79: Compliance risk mitigation costs | G79: ='1_KMA'!$I$20 -> 2024-06-30 | H79: ='1_KMA'!$I$19 -> $millions | J79: =$J$67*J73 -> 0 | K79: =$J$67*K73 -> 0 | L79: =$J$67*L73 -> 0 | M79: 0 | N79: 0 | O79: =$J$67*O73 -> 0 | P79: 0 | Q79: 0 | R79: 0 | S79: 0 | T79: 0 | U79: 0 | V79: 0 | W79: 0 | X79: 0 | Y79: 0 | Z79: 0 | AA79: 0 | AB79: 0 | AC79: 0 | AD79: 0 | AE79: 0 | AF79: 0 | AG79: 0 | AH79: 0 | AI79: 0 | AJ79: 0 | AK79: 0 | AL79: 0 | AM79: 0 | AN79: 0 | AO79: 0 | AP79: 0 | AQ79: 0 | AR79: 0 | AS79: 0 | AT79: 0 | AU79: 0 | AV79: 0 | AW79: 0 | AX79: 0 | AY79: 0 | AZ79: 0 | BA79: 0 | BB79: 0 | BC79: 0 | BD79: 0 | BE79: 0 | BF79: 0 | BG79: 0
G81: $ Basis Reminder | H81: $ Reminder | J81: Summary table above picks up this total row
B82: Total | G82: ='1_KMA'!$I$20 -> 2024-06-30 | H82: ='1_KMA'!$I$19 -> $millions | J82: =SUM(J76:J79) -> 0 | K82: =SUM(K76:K79) -> 0 | L82: =SUM(L76:L79) -> 0 | M82: 0 | N82: 0 | O82: 0 | P82: 0 | Q82: 0 | R82: 0 | S82: 0 | T82: 0 | U82: 0 | V82: 0 | W82: 0 | X82: 0 | Y82: 0 | Z82: 0 | AA82: 0 | AB82: 0 | AC82: 0 | AD82: 0 | AE82: 0 | AF82: 0 | AG82: 0 | AH82: 0 | AI82: 0 | AJ82: 0 | AK82: 0 | AL82: 0 | AM82: 0 | AN82: 0 | AO82: 0 | AP82: 0 | AQ82: 0 | AR82: 0 | AS82: 0 | AT82: 0 | AU82: 0 | AV82: 0 | AW82: 0 | AX82: 0 | AY82: 0 | AZ82: 0 | BA82: 0 | BB82: 0 | BC82: 0 | BD82: 0 | BE82: 0 | BF82: 0 | BG82: =SUM(BG76:BG79) -> 0
B84: Benefits Inputs
B86: Value of EUE
J88: ="Values - ensure values have been converted to "&'1_KMA'!$I$19 -> Values - ensure values have been converted to $millions
G89: $ Basis Reminder | H89: $ Reminder | J89: Enter this as a positive value, as the spreadsheet later converts this to a negative benefit
B90: Value of Expected Unserved Energy (EUE) | G90: ='1_KMA'!$I$20 -> 2024-06-30 | H90: ='1_KMA'!$I$19 -> $millions
G92: $ Basis Reminder | H92: $ Reminder | J92: Summary table above picks up this total row
B93: Total | G93: ='1_KMA'!$I$20 -> 2024-06-30 | H93: ='1_KMA'!$I$19 -> $millions | J93: =J90 -> 0 | K93: =K90 -> 0 | L93: 0 | M93: 0 | N93: 0 | O93: 0 | P93: 0 | Q93: 0 | R93: 0 | S93: 0 | T93: 0 | U93: 0 | V93: 0 | W93: 0 | X93: 0 | Y93: 0 | Z93: 0 | AA93: 0 | AB93: 0 | AC93: 0 | AD93: 0 | AE93: 0 | AF93: 0 | AG93: 0 | AH93: 0 | AI93: 0 | AJ93: 0 | AK93: 0 | AL93: 0 | AM93: 0 | AN93: 0 | AO93: 0 | AP93: 0 | AQ93: 0 | AR93: 0 | AS93: 0 | AT93: 0 | AU93: 0 | AV93: 0 | AW93: 0 | AX93: 0 | AY93: 0 | AZ93: 0 | BA93: 0 | BB93: 0 | BC93: 0 | BD93: 0 | BE93: 0 | BF93: 0 | BG93: 0
B95: Reliability
B97: QCV research | H97: Unit | J97: Unit Rate
B98: Fewer unplanned outages, less than 12 hours
B99: Fewer unplanned outages in the worst served areas
H102: Unit | J102: Quantities
B103: Fewer unplanned outages, less than 12 hours
B104: Fewer unplanned outages in the worst served areas
G106: $ Basis Reminder | H106: $ Reminder | J106: ="Values - ensure values have been converted to "&'1_KMA'!$I$19 -> Values - ensure values have been converted to $millions
B107: Fewer unplanned outages, less than 12 hours | G107: ='1_KMA'!$I$20 -> 2024-06-30 | H107: ='1_KMA'!$I$19 -> $millions | J107: =J103*$J$98 -> 0 | K107: =K103*$J$98 -> 0 | L107: =L103*$J$98 -> 0 | M107: =M103*$J$98 -> 0 | N107: 0 | O107: =O103*$J$98 -> 0 | P107: 0 | Q107: 0 | R107: 0 | S107: 0 | T107: 0 | U107: 0 | V107: 0 | W107: 0 | X107: 0 | Y107: 0 | Z107: 0 | AA107: 0 | AB107: 0 | AC107: 0 | AD107: 0 | AE107: 0 | AF107: 0 | AG107: 0 | AH107: 0 | AI107: 0 | AJ107: 0 | AK107: 0 | AL107: 0 | AM107: 0 | AN107: 0 | AO107: 0 | AP107: 0 | AQ107: 0 | AR107: 0 | AS107: 0 | AT107: 0 | AU107: 0 | AV107: 0 | AW107: 0 | AX107: 0 | AY107: 0 | AZ107: 0 | BA107: 0 | BB107: 0 | BC107: 0 | BD107: 0 | BE107: 0 | BF107: 0 | BG107: 0
B108: Fewer unplanned outages in the worst served areas | G108: ='1_KMA'!$I$20 -> 2024-06-30 | H108: ='1_KMA'!$I$19 -> $millions | J108: =J104*$J$99 -> 0 | K108: =K104*$J$99 -> 0 | L108: =L104*$J$99 -> 0 | M108: =M104*$J$99 -> 0 | N108: 0 | O108: =O104*$J$99 -> 0 | P108: 0 | Q108: 0 | R108: 0 | S108: 0 | T108: 0 | U108: 0 | V108: 0 | W108: 0 | X108: 0 | Y108: 0 | Z108: 0 | AA108: 0 | AB108: 0 | AC108: 0 | AD108: 0 | AE108: 0 | AF108: 0 | AG108: 0 | AH108: 0 | AI108: 0 | AJ108: 0 | AK108: 0 | AL108: 0 | AM108: 0 | AN108: 0 | AO108: 0 | AP108: 0 | AQ108: 0 | AR108: 0 | AS108: 0 | AT108: 0 | AU108: 0 | AV108: 0 | AW108: 0 | AX108: 0 | AY108: 0 | AZ108: 0 | BA108: 0 | BB108: 0 | BC108: 0 | BD108: 0 | BE108: 0 | BF108: 0 | BG108: 0
G110: $ Basis Reminder | H110: $ Reminder | J110: Summary table above picks up this total row
B111: Total | G111: ='1_KMA'!$I$20 -> 2024-06-30 | H111: ='1_KMA'!$I$19 -> $millions | J111: =SUM(J107:J108) -> 0 | K111: =SUM(K107:K108) -> 0 | L111: 0 | M111: 0 | N111: 0 | O111: 0 | P111: 0 | Q111: 0 | R111: 0 | S111: 0 | T111: 0 | U111: 0 | V111: 0 | W111: 0 | X111: 0 | Y111: 0 | Z111: 0 | AA111: 0 | AB111: 0 | AC111: 0 | AD111: 0 | AE111: 0 | AF111: 0 | AG111: 0 | AH111: 0 | AI111: 0 | AJ111: 0 | AK111: 0 | AL111: 0 | AM111: 0 | AN111: 0 | AO111: 0 | AP111: 0 | AQ111: 0 | AR111: 0 | AS111: 0 | AT111: 0 | AU111: 0 | AV111: 0 | AW111: 0 | AX111: 0 | AY111: 0 | AZ111: 0 | BA111: 0 | BB111: 0 | BC111: 0 | BD111: 0 | BE111: 0 | BF111: 0 | BG111: 0
B113: Resilience
B115: QCV research | H115: Unit | J115: Unit Rate
B116: Fewer unplanned outages, longer than 12 hours
B117: Faster restoration of power when an outage has occurred
B118: Community hub offering essential services during long duration outages
H121: Unit | J121: Quantities
B122: Fewer unplanned outages, longer than 12 hours
B123: Faster restoration of power when an outage has occurred
B124: Community hub offering essential services
G126: $ Basis Reminder | H126: $ Reminder | J126: ="Values - ensure values have been converted to "&'1_KMA'!$I$19 -> Values - ensure values have been converted to $millions
B127: Fewer unplanned outages, longer than 12 hours | G127: ='1_KMA'!$I$20 -> 2024-06-30 | H127: ='1_KMA'!$I$19 -> $millions | J127: =J122*'2.1_Op1'!$J$116 -> 0 | K127: =K122*'2.1_Op1'!$J$116 -> 0 | L127: =L122*'2.1_Op1'!$J$116 -> 0 | M127: =M122*'2.1_Op1'!$J$116 -> 0 | N127: =N122*'2.1_Op1'!$J$116 -> 0 | O127: =O122*'2.1_Op1'!$J$116 -> 0 | P127: =P122*'2.1_Op1'!$J$116 -> 0 | Q127: =Q122*'2.1_Op1'!$J$116 -> 0 | R127: =R122*'2.1_Op1'!$J$116 -> 0 | S127: =S122*'2.1_Op1'!$J$116 -> 0 | T127: =T122*'2.1_Op1'!$J$116 -> 0 | U127: =U122*'2.1_Op1'!$J$116 -> 0 | V127: =V122*'2.1_Op1'!$J$116 -> 0 | W127: =W122*'2.1_Op1'!$J$116 -> 0 | X127: =X122*'2.1_Op1'!$J$116 -> 0 | Y127: =Y122*'2.1_Op1'!$J$116 -> 0 | Z127: =Z122*'2.1_Op1'!$J$116 -> 0 | AA127: =AA122*'2.1_Op1'!$J$116 -> 0 | AB127: =AB122*'2.1_Op1'!$J$116 -> 0 | AC127: =AC122*'2.1_Op1'!$J$116 -> 0 | AD127: =AD122*'2.1_Op1'!$J$116 -> 0 | AE127: =AE122*'2.1_Op1'!$J$116 -> 0 | AF127: =AF122*'2.1_Op1'!$J$116 -> 0 | AG127: =AG122*'2.1_Op1'!$J$116 -> 0 | AH127: =AH122*'2.1_Op1'!$J$116 -> 0 | AI127: =AI122*'2.1_Op1'!$J$116 -> 0 | AJ127: =AJ122*'2.1_Op1'!$J$116 -> 0 | AK127: =AK122*'2.1_Op1'!$J$116 -> 0 | AL127: =AL122*'2.1_Op1'!$J$116 -> 0 | AM127: =AM122*'2.1_Op1'!$J$116 -> 0 | AN127: =AN122*'2.1_Op1'!$J$116 -> 0 | AO127: =AO122*'2.1_Op1'!$J$116 -> 0 | AP127: =AP122*'2.1_Op1'!$J$116 -> 0 | AQ127: =AQ122*'2.1_Op1'!$J$116 -> 0 | AR127: =AR122*'2.1_Op1'!$J$116 -> 0 | AS127: =AS122*'2.1_Op1'!$J$116 -> 0 | AT127: =AT122*'2.1_Op1'!$J$116 -> 0 | AU127: =AU122*'2.1_Op1'!$J$116 -> 0 | AV127: =AV122*'2.1_Op1'!$J$116 -> 0 | AW127: =AW122*'2.1_Op1'!$J$116 -> 0 | AX127: =AX122*'2.1_Op1'!$J$116 -> 0 | AY127: =AY122*'2.1_Op1'!$J$116 -> 0 | AZ127: =AZ122*'2.1_Op1'!$J$116 -> 0 | BA127: =BA122*'2.1_Op1'!$J$116 -> 0 | BB127: =BB122*'2.1_Op1'!$J$116 -> 0 | BC127: =BC122*'2.1_Op1'!$J$116 -> 0 | BD127: =BD122*'2.1_Op1'!$J$116 -> 0 | BE127: =BE122*'2.1_Op1'!$J$116 -> 0 | BF127: =BF122*'2.1_Op1'!$J$116 -> 0 | BG127: =BG122*'2.1_Op1'!$J$116 -> 0
B128: Faster restoration of power when an outage has occurred | G128: ='1_KMA'!$I$20 -> 2024-06-30 | H128: ='1_KMA'!$I$19 -> $millions | J128: =J123*'2.1_Op1'!$J$117 -> 0 | K128: =K123*'2.1_Op1'!$J$117 -> 0 | L128: =L123*'2.1_Op1'!$J$117 -> 0 | M128: =M123*'2.1_Op1'!$J$117 -> 0 | N128: =N123*'2.1_Op1'!$J$117 -> 0 | O128: =O123*'2.1_Op1'!$J$117 -> 0 | P128: =P123*'2.1_Op1'!$J$117 -> 0 | Q128: =Q123*'2.1_Op1'!$J$117 -> 0 | R128: =R123*'2.1_Op1'!$J$117 -> 0 | S128: =S123*'2.1_Op1'!$J$117 -> 0 | T128: =T123*'2.1_Op1'!$J$117 -> 0 | U128: =U123*'2.1_Op1'!$J$117 -> 0 | V128: =V123*'2.1_Op1'!$J$117 -> 0 | W128: =W123*'2.1_Op1'!$J$117 -> 0 | X128: =X123*'2.1_Op1'!$J$117 -> 0 | Y128: =Y123*'2.1_Op1'!$J$117 -> 0 | Z128: =Z123*'2.1_Op1'!$J$117 -> 0 | AA128: =AA123*'2.1_Op1'!$J$117 -> 0 | AB128: =AB123*'2.1_Op1'!$J$117 -> 0 | AC128: =AC123*'2.1_Op1'!$J$117 -> 0 | AD128: =AD123*'2.1_Op1'!$J$117 -> 0 | AE128: =AE123*'2.1_Op1'!$J$117 -> 0 | AF128: =AF123*'2.1_Op1'!$J$117 -> 0 | AG128: =AG123*'2.1_Op1'!$J$117 -> 0 | AH128: =AH123*'2.1_Op1'!$J$117 -> 0 | AI128: =AI123*'2.1_Op1'!$J$117 -> 0 | AJ128: =AJ123*'2.1_Op1'!$J$117 -> 0 | AK128: =AK123*'2.1_Op1'!$J$117 -> 0 | AL128: =AL123*'2.1_Op1'!$J$117 -> 0 | AM128: =AM123*'2.1_Op1'!$J$117 -> 0 | AN128: =AN123*'2.1_Op1'!$J$117 -> 0 | AO128: =AO123*'2.1_Op1'!$J$117 -> 0 | AP128: =AP123*'2.1_Op1'!$J$117 -> 0 | AQ128: =AQ123*'2.1_Op1'!$J$117 -> 0 | AR128: =AR123*'2.1_Op1'!$J$117 -> 0 | AS128: =AS123*'2.1_Op1'!$J$117 -> 0 | AT128: =AT123*'2.1_Op1'!$J$117 -> 0 | AU128: =AU123*'2.1_Op1'!$J$117 -> 0 | AV128: =AV123*'2.1_Op1'!$J$117 -> 0 | AW128: =AW123*'2.1_Op1'!$J$117 -> 0 | AX128: =AX123*'2.1_Op1'!$J$117 -> 0 | AY128: =AY123*'2.1_Op1'!$J$117 -> 0 | AZ128: =AZ123*'2.1_Op1'!$J$117 -> 0 | BA128: =BA123*'2.1_Op1'!$J$117 -> 0 | BB128: =BB123*'2.1_Op1'!$J$117 -> 0 | BC128: =BC123*'2.1_Op1'!$J$117 -> 0 | BD128: =BD123*'2.1_Op1'!$J$117 -> 0 | BE128: =BE123*'2.1_Op1'!$J$117 -> 0 | BF128: =BF123*'2.1_Op1'!$J$117 -> 0 | BG128: =BG123*'2.1_Op1'!$J$117 -> 0
B129: Community hub offering essential services | G129: ='1_KMA'!$I$20 -> 2024-06-30 | H129: ='1_KMA'!$I$19 -> $millions | J129: =J124*'2.1_Op1'!$J$118 -> 0 | K129: =K124*'2.1_Op1'!$J$118 -> 0 | L129: =L124*'2.1_Op1'!$J$118 -> 0 | M129: =M124*'2.1_Op1'!$J$118 -> 0 | N129: =N124*'2.1_Op1'!$J$118 -> 0 | O129: =O124*'2.1_Op1'!$J$118 -> 0 | P129: =P124*'2.1_Op1'!$J$118 -> 0 | Q129: =Q124*'2.1_Op1'!$J$118 -> 0 | R129: =R124*'2.1_Op1'!$J$118 -> 0 | S129: =S124*'2.1_Op1'!$J$118 -> 0 | T129: =T124*'2.1_Op1'!$J$118 -> 0 | U129: =U124*'2.1_Op1'!$J$118 -> 0 | V129: =V124*'2.1_Op1'!$J$118 -> 0 | W129: =W124*'2.1_Op1'!$J$118 -> 0 | X129: =X124*'2.1_Op1'!$J$118 -> 0 | Y129: =Y124*'2.1_Op1'!$J$118 -> 0 | Z129: =Z124*'2.1_Op1'!$J$118 -> 0 | AA129: =AA124*'2.1_Op1'!$J$118 -> 0 | AB129: =AB124*'2.1_Op1'!$J$118 -> 0 | AC129: =AC124*'2.1_Op1'!$J$118 -> 0 | AD129: =AD124*'2.1_Op1'!$J$118 -> 0 | AE129: =AE124*'2.1_Op1'!$J$118 -> 0 | AF129: =AF124*'2.1_Op1'!$J$118 -> 0 | AG129: =AG124*'2.1_Op1'!$J$118 -> 0 | AH129: =AH124*'2.1_Op1'!$J$118 -> 0 | AI129: =AI124*'2.1_Op1'!$J$118 -> 0 | AJ129: =AJ124*'2.1_Op1'!$J$118 -> 0 | AK129: =AK124*'2.1_Op1'!$J$118 -> 0 | AL129: =AL124*'2.1_Op1'!$J$118 -> 0 | AM129: =AM124*'2.1_Op1'!$J$118 -> 0 | AN129: =AN124*'2.1_Op1'!$J$118 -> 0 | AO129: =AO124*'2.1_Op1'!$J$118 -> 0 | AP129: =AP124*'2.1_Op1'!$J$118 -> 0 | AQ129: =AQ124*'2.1_Op1'!$J$118 -> 0 | AR129: =AR124*'2.1_Op1'!$J$118 -> 0 | AS129: =AS124*'2.1_Op1'!$J$118 -> 0 | AT129: =AT124*'2.1_Op1'!$J$118 -> 0 | AU129: =AU124*'2.1_Op1'!$J$118 -> 0 | AV129: =AV124*'2.1_Op1'!$J$118 -> 0 | AW129: =AW124*'2.1_Op1'!$J$118 -> 0 | AX129: =AX124*'2.1_Op1'!$J$118 -> 0 | AY129: =AY124*'2.1_Op1'!$J$118 -> 0 | AZ129: =AZ124*'2.1_Op1'!$J$118 -> 0 | BA129: =BA124*'2.1_Op1'!$J$118 -> 0 | BB129: =BB124*'2.1_Op1'!$J$118 -> 0 | BC129: =BC124*'2.1_Op1'!$J$118 -> 0 | BD129: =BD124*'2.1_Op1'!$J$118 -> 0 | BE129: =BE124*'2.1_Op1'!$J$118 -> 0 | BF129: =BF124*'2.1_Op1'!$J$118 -> 0 | BG129: =BG124*'2.1_Op1'!$J$118 -> 0
G131: $ Basis Reminder | H131: $ Reminder | J131: Summary table above picks up this total row
B132: Total | G132: ='1_KMA'!$I$20 -> 2024-06-30 | H132: ='1_KMA'!$I$19 -> $millions | J132: =SUM(J127:J129) -> 0 | K132: =SUM(K127:K129) -> 0 | L132: 0 | M132: 0 | N132: 0 | O132: 0 | P132: 0 | Q132: 0 | R132: 0 | S132: 0 | T132: 0 | U132: 0 | V132: 0 | W132: 0 | X132: 0 | Y132: 0 | Z132: 0 | AA132: 0 | AB132: 0 | AC132: 0 | AD132: 0 | AE132: 0 | AF132: 0 | AG132: 0 | AH132: 0 | AI132: 0 | AJ132: 0 | AK132: 0 | AL132: 0 | AM132: 0 | AN132: 0 | AO132: 0 | AP132: 0 | AQ132: 0 | AR132: 0 | AS132: 0 | AT132: 0 | AU132: 0 | AV132: 0 | AW132: 0 | AX132: 0 | AY132: 0 | AZ132: 0 | BA132: 0 | BB132: 0 | BC132: 0 | BD132: 0 | BE132: 0 | BF132: 0 | BG132: 0
B134: Batteries
B136: AusNet Savings from Wholesale Arbitrage
H137: Unit | J137: Value
B138: Wholesale market price differential | H138: [e.g. $dollars per MWh]
B139: AusNet Share in Wholesale arbitrage | H139: [e.g. %]
B140: Average annual battery derating | H140: [e.g. % p.a.]
H142: Unit | J142: Location 1 | K142: Location 2 | L142: Location 3 | M142: Location 4 | N142: Location 5
B143: Battery Rating (kW) | H143: kW
B144: Battery Rating (hr) | H144: hr
B145: Battery Rating (kWh) | H145: kWh | J145: =J143*J144 -> 0 | K145: =K143*K144 -> 0 | L145: =L143*L144 -> 0 | M145: =M143*M144 -> 0 | N145: =N143*N144 -> 0
B146: Retailer benefit by wholesale arbitrage | H146: [e.g. $millions, $thousands or $dollars per year] | J146: =J145*$J$138*0.8*5*52/1000 -> 0 | K146: =K145*$J$138*0.8*5*52/1000 -> 0 | L146: =L145*$J$138*0.8*5*52/1000 -> 0 | M146: =M145*$J$138*0.8*5*52/1000 -> 0 | N146: =N145*$J$138*0.8*5*52/1000 -> 0
G148: $ Basis Reminder | H148: $ Reminder | J148: ="Values - ensure values have been converted to "&'1_KMA'!$I$19 -> Values - ensure values have been converted to $millions
B149: AusNet Savings from Wholesale Arbitrage | G149: ='1_KMA'!$I$20 -> 2024-06-30 | H149: ='1_KMA'!$I$19 -> $millions | J149: =(SUM($J$146:$N$146)*$J$139*(1/(1+$J$140)^(J4-1)))/10^6 -> 0 | K149: =(SUM($J$146:$N$146)*$J$139*(1/(1+$J$140)^(K4-1)))/10^6 -> 0 | L149: =(SUM($J$146:$N$146)*$J$139*(1/(1+$J$140)^(L4-1)))/10^6 -> 0 | M149: 0 | N149: 0 | O149: 0 | P149: 0 | Q149: 0 | R149: 0 | S149: 0 | T149: 0 | U149: 0 | V149: 0 | W149: 0 | X149: 0 | Y149: 0 | Z149: 0 | AA149: 0 | AB149: 0 | AC149: 0 | AD149: 0 | AE149: 0 | AF149: 0 | AG149: 0 | AH149: 0 | AI149: 0 | AJ149: 0 | AK149: 0 | AL149: 0 | AM149: 0 | AN149: 0 | AO149: 0 | AP149: 0 | AQ149: 0 | AR149: 0 | AS149: 0 | AT149: 0 | AU149: 0 | AV149: 0 | AW149: 0 | AX149: 0 | AY149: 0 | AZ149: 0 | BA149: 0 | BB149: 0 | BC149: 0 | BD149: 0 | BE149: 0 | BF149: 0 | BG149: 0
B151: AusNet Revenue from FCAS
H152: Unit | J152: Value
B153: FCAS participation price | H153: [e.g. $ollars per MW per hour]
B154: Average annual participation All batteries | H154: [e.g. MW per hour]
G156: $ Basis Reminder | H156: $ Reminder | J156: ="Values - ensure values have been converted to "&'1_KMA'!$I$19 -> Values - ensure values have been converted to $millions
B157: AusNet Revenue from FCAS | G157: ='1_KMA'!$I$20 -> 2024-06-30 | H157: ='1_KMA'!$I$19 -> $millions | J157: =$J$153*$J$154/10^6 -> 0 | K157: =$J$153*$J$154/10^6 -> 0 | L157: 0 | M157: 0 | N157: 0 | O157: 0 | P157: 0 | Q157: 0 | R157: 0 | S157: 0 | T157: 0 | U157: 0 | V157: 0 | W157: 0 | X157: 0 | Y157: 0 | Z157: 0 | AA157: 0 | AB157: 0 | AC157: 0 | AD157: 0 | AE157: 0 | AF157: 0 | AG157: 0 | AH157: 0 | AI157: 0 | AJ157: 0 | AK157: 0 | AL157: 0 | AM157: 0 | AN157: 0 | AO157: 0 | AP157: 0 | AQ157: 0 | AR157: 0 | AS157: 0 | AT157: 0 | AU157: 0 | AV157: 0 | AW157: 0 | AX157: 0 | AY157: 0 | AZ157: 0 | BA157: 0 | BB157: 0 | BC157: 0 | BD157: 0 | BE157: 0 | BF157: 0 | BG157: 0
B159: AusNet Savings from Avoided Penalties
H160: Unit | J160: Location 1 | K160: Location 2 | L160: Location 3 | M160: Location 4 | N160: Location 5
B161: Number of average outage events | H161: [e.g. Events per year]
B162: Average Ausnet penalty for outage | H162: [e.g. $dollars per event]
G164: $ Basis Reminder | H164: $ Reminder | J164: ="Values - ensure values have been converted to "&'1_KMA'!$I$19 -> Values - ensure values have been converted to $millions
B165: Ausnet Savings from Avoided Penalties | G165: ='1_KMA'!$I$20 -> 2024-06-30 | H165: ='1_KMA'!$I$19 -> $millions | J165: =SUMPRODUCT($J$161:$N$161,$J$162:$N$162)/10^6 -> 0 | K165: =SUMPRODUCT($J$161:$N$161,$J$162:$N$162)/10^6 -> 0 | L165: 0 | M165: 0 | N165: 0 | O165: 0 | P165: 0 | Q165: 0 | R165: 0 | S165: 0 | T165: 0 | U165: 0 | V165: 0 | W165: 0 | X165: 0 | Y165: 0 | Z165: 0 | AA165: 0 | AB165: 0 | AC165: 0 | AD165: 0 | AE165: 0 | AF165: 0 | AG165: 0 | AH165: 0 | AI165: 0 | AJ165: 0 | AK165: 0 | AL165: 0 | AM165: 0 | AN165: 0 | AO165: 0 | AP165: 0 | AQ165: 0 | AR165: 0 | AS165: 0 | AT165: 0 | AU165: 0 | AV165: 0 | AW165: 0 | AX165: 0 | AY165: 0 | AZ165: 0 | BA165: 0 | BB165: 0 | BC165: 0 | BD165: 0 | BE165: 0 | BF165: 0 | BG165: 0
G167: $ Basis Reminder | H167: $ Reminder | J167: Summary table above picks up this total row
B168: Total | G168: ='1_KMA'!$I$20 -> 2024-06-30 | H168: ='1_KMA'!$I$19 -> $millions | J168: =J149+J157+J165 -> 0 | K168: =K149+K157+K165 -> 0 | L168: 0 | M168: 0 | N168: 0 | O168: 0 | P168: 0 | Q168: 0 | R168: 0 | S168: 0 | T168: 0 | U168: 0 | V168: 0 | W168: 0 | X168: 0 | Y168: 0 | Z168: 0 | AA168: 0 | AB168: 0 | AC168: 0 | AD168: 0 | AE168: 0 | AF168: 0 | AG168: 0 | AH168: 0 | AI168: 0 | AJ168: 0 | AK168: 0 | AL168: 0 | AM168: 0 | AN168: 0 | AO168: 0 | AP168: 0 | AQ168: 0 | AR168: 0 | AS168: 0 | AT168: 0 | AU168: 0 | AV168: 0 | AW168: 0 | AX168: 0 | AY168: 0 | AZ168: 0 | BA168: 0 | BB168: 0 | BC168: 0 | BD168: 0 | BE168: 0 | BF168: 0 | BG168: 0
B170: Others

Sheet 2.1_Op2
B1: General Inputs: Option 2 | I1: Regulatory Period Indicator | J1: ='1_KMA'!J30 -> 0 | K1: ='1_KMA'!K30 -> 0 | L1: ='1_KMA'!L30 -> 1 | M1: ='1_KMA'!M30 -> 1 | N1: ='1_KMA'!N30 -> 1 | O1: ='1_KMA'!O30 -> 1 | P1: ='1_KMA'!P30 -> 1 | Q1: ='1_KMA'!Q30 -> 0 | R1: ='1_KMA'!R30 -> 0 | S1: ='1_KMA'!S30 -> 0 | T1: ='1_KMA'!T30 -> 0 | U1: ='1_KMA'!U30 -> 0 | V1: ='1_KMA'!V30 -> 0 | W1: ='1_KMA'!W30 -> 0 | X1: ='1_KMA'!X30 -> 0 | Y1: ='1_KMA'!Y30 -> 0 | Z1: ='1_KMA'!Z30 -> 0 | AA1: ='1_KMA'!AA30 -> 0 | AB1: ='1_KMA'!AB30 -> 0 | AC1: ='1_KMA'!AC30 -> 0 | AD1: ='1_KMA'!AD30 -> 0 | AE1: ='1_KMA'!AE30 -> 0 | AF1: ='1_KMA'!AF30 -> 0 | AG1: ='1_KMA'!AG30 -> 0 | AH1: ='1_KMA'!AH30 -> 0 | AI1: ='1_KMA'!AI30 -> 0 | AJ1: ='1_KMA'!AJ30 -> 0 | AK1: ='1_KMA'!AK30 -> 0 | AL1: ='1_KMA'!AL30 -> 0 | AM1: ='1_KMA'!AM30 -> 0 | AN1: ='1_KMA'!AN30 -> 0 | AO1: ='1_KMA'!AO30 -> 0 | AP1: ='1_KMA'!AP30 -> 0 | AQ1: ='1_KMA'!AQ30 -> 0 | AR1: ='1_KMA'!AR30 -> 0 | AS1: ='1_KMA'!AS30 -> 0 | AT1: ='1_KMA'!AT30 -> 0 | AU1: ='1_KMA'!AU30 -> 0 | AV1: ='1_KMA'!AV30 -> 0 | AW1: ='1_KMA'!AW30 -> 0 | AX1: ='1_KMA'!AX30 -> 0 | AY1: ='1_KMA'!AY30 -> 0 | AZ1: ='1_KMA'!AZ30 -> 0 | BA1: ='1_KMA'!BA30 -> 0 | BB1: ='1_KMA'!BB30 -> 0 | BC1: ='1_KMA'!BC30 -> 0 | BD1: ='1_KMA'!BD30 -> 0 | BE1: ='1_KMA'!BE30 -> 0 | BF1: ='1_KMA'!BF30 -> 0 | BG1: ='1_KMA'!BG30 -> 0
B2: =Cover!$C$9 -> AusNet Services | I2: Period Start Date | J2: ='1_KMA'!J31 -> 2024-07-01 | K2: ='1_KMA'!K31 -> 2025-07-01 | L2: ='1_KMA'!L31 -> 2026-07-01 | M2: ='1_KMA'!M31 -> 2027-07-01 | N2: ='1_KMA'!N31 -> 2028-07-01 | O2: ='1_KMA'!O31 -> 2029-07-01 | P2: ='1_KMA'!P31 -> 2030-07-01 | Q2: ='1_KMA'!Q31 -> 2031-07-01 | R2: ='1_KMA'!R31 -> 2032-07-01 | S2: ='1_KMA'!S31 -> 2033-07-01 | T2: ='1_KMA'!T31 -> 2034-07-01 | U2: ='1_KMA'!U31 -> 2035-07-01 | V2: ='1_KMA'!V31 -> 2036-07-01 | W2: ='1_KMA'!W31 -> 2037-07-01 | X2: ='1_KMA'!X31 -> 2038-07-01 | Y2: ='1_KMA'!Y31 -> 2039-07-01 | Z2: ='1_KMA'!Z31 -> 2040-07-01 | AA2: ='1_KMA'!AA31 -> 2041-07-01 | AB2: ='1_KMA'!AB31 -> 2042-07-01 | AC2: ='1_KMA'!AC31 -> 2043-07-01 | AD2: ='1_KMA'!AD31 -> 2044-07-01 | AE2: ='1_KMA'!AE31 -> 2045-07-01 | AF2: ='1_KMA'!AF31 -> 2046-07-01 | AG2: ='1_KMA'!AG31 -> 2047-07-01 | AH2: ='1_KMA'!AH31 -> 2048-07-01 | AI2: ='1_KMA'!AI31 -> 2049-07-01 | AJ2: ='1_KMA'!AJ31 -> 2050-07-01 | AK2: ='1_KMA'!AK31 -> 2051-07-01 | AL2: ='1_KMA'!AL31 -> 2052-07-01 | AM2: ='1_KMA'!AM31 -> 2053-07-01 | AN2: ='1_KMA'!AN31 -> 2054-07-01 | AO2: ='1_KMA'!AO31 -> 2055-07-01 | AP2: ='1_KMA'!AP31 -> 2056-07-01 | AQ2: ='1_KMA'!AQ31 -> 2057-07-01 | AR2: ='1_KMA'!AR31 -> 2058-07-01 | AS2: ='1_KMA'!AS31 -> 2059-07-01 | AT2: ='1_KMA'!AT31 -> 2060-07-01 | AU2: ='1_KMA'!AU31 -> 2061-07-01 | AV2: ='1_KMA'!AV31 -> 2062-07-01 | AW2: ='1_KMA'!AW31 -> 2063-07-01 | AX2: ='1_KMA'!AX31 -> 2064-07-01 | AY2: ='1_KMA'!AY31 -> 2065-07-01 | AZ2: ='1_KMA'!AZ31 -> 2066-07-01 | BA2: ='1_KMA'!BA31 -> 2067-07-01 | BB2: ='1_KMA'!BB31 -> 2068-07-01 | BC2: ='1_KMA'!BC31 -> 2069-07-01 | BD2: ='1_KMA'!BD31 -> 2070-07-01 | BE2: ='1_KMA'!BE31 -> 2071-07-01 | BF2: ='1_KMA'!BF31 -> 2072-07-01 | BG2: ='1_KMA'!BG31 -> 2073-07-01
B3: =Cover!$C$10 -> Business Case Evaluation | I3: Period End Date | J3: ='1_KMA'!J32 -> 2025-06-30 | K3: ='1_KMA'!K32 -> 2026-06-30 | L3: ='1_KMA'!L32 -> 2027-06-30 | M3: ='1_KMA'!M32 -> 2028-06-30 | N3: ='1_KMA'!N32 -> 2029-06-30 | O3: ='1_KMA'!O32 -> 2030-06-30 | P3: ='1_KMA'!P32 -> 2031-06-30 | Q3: ='1_KMA'!Q32 -> 2032-06-30 | R3: ='1_KMA'!R32 -> 2033-06-30 | S3: ='1_KMA'!S32 -> 2034-06-30 | T3: ='1_KMA'!T32 -> 2035-06-30 | U3: ='1_KMA'!U32 -> 2036-06-30 | V3: ='1_KMA'!V32 -> 2037-06-30 | W3: ='1_KMA'!W32 -> 2038-06-30 | X3: ='1_KMA'!X32 -> 2039-06-30 | Y3: ='1_KMA'!Y32 -> 2040-06-30 | Z3: ='1_KMA'!Z32 -> 2041-06-30 | AA3: ='1_KMA'!AA32 -> 2042-06-30 | AB3: ='1_KMA'!AB32 -> 2043-06-30 | AC3: ='1_KMA'!AC32 -> 2044-06-30 | AD3: ='1_KMA'!AD32 -> 2045-06-30 | AE3: ='1_KMA'!AE32 -> 2046-06-30 | AF3: ='1_KMA'!AF32 -> 2047-06-30 | AG3: ='1_KMA'!AG32 -> 2048-06-30 | AH3: ='1_KMA'!AH32 -> 2049-06-30 | AI3: ='1_KMA'!AI32 -> 2050-06-30 | AJ3: ='1_KMA'!AJ32 -> 2051-06-30 | AK3: ='1_KMA'!AK32 -> 2052-06-30 | AL3: ='1_KMA'!AL32 -> 2053-06-30 | AM3: ='1_KMA'!AM32 -> 2054-06-30 | AN3: ='1_KMA'!AN32 -> 2055-06-30 | AO3: ='1_KMA'!AO32 -> 2056-06-30 | AP3: ='1_KMA'!AP32 -> 2057-06-30 | AQ3: ='1_KMA'!AQ32 -> 2058-06-30 | AR3: ='1_KMA'!AR32 -> 2059-06-30 | AS3: ='1_KMA'!AS32 -> 2060-06-30 | AT3: ='1_KMA'!AT32 -> 2061-06-30 | AU3: ='1_KMA'!AU32 -> 2062-06-30 | AV3: ='1_KMA'!AV32 -> 2063-06-30 | AW3: ='1_KMA'!AW32 -> 2064-06-30 | AX3: ='1_KMA'!AX32 -> 2065-06-30 | AY3: ='1_KMA'!AY32 -> 2066-06-30 | AZ3: ='1_KMA'!AZ32 -> 2067-06-30 | BA3: ='1_KMA'!BA32 -> 2068-06-30 | BB3: ='1_KMA'!BB32 -> 2069-06-30 | BC3: ='1_KMA'!BC32 -> 2070-06-30 | BD3: ='1_KMA'!BD32 -> 2071-06-30 | BE3: ='1_KMA'!BE32 -> 2072-06-30 | BF3: ='1_KMA'!BF32 -> 2073-06-30 | BG3: ='1_KMA'!BG32 -> 2074-06-30
B4: =Cover!$C$11 -> Smart meter 13 yr bulk replacement | I4: Project Year | J4: ='1_KMA'!J33 -> 1 | K4: ='1_KMA'!K33 -> 2 | L4: ='1_KMA'!L33 -> 3 | M4: ='1_KMA'!M33 -> 4 | N4: ='1_KMA'!N33 -> 5 | O4: ='1_KMA'!O33 -> 6 | P4: ='1_KMA'!P33 -> 7 | Q4: ='1_KMA'!Q33 -> 8 | R4: ='1_KMA'!R33 -> 9 | S4: ='1_KMA'!S33 -> 10 | T4: ='1_KMA'!T33 -> 11 | U4: ='1_KMA'!U33 -> 12 | V4: ='1_KMA'!V33 -> 13 | W4: ='1_KMA'!W33 -> 14 | X4: ='1_KMA'!X33 -> 15 | Y4: ='1_KMA'!Y33 -> 16 | Z4: ='1_KMA'!Z33 -> 17 | AA4: ='1_KMA'!AA33 -> 18 | AB4: ='1_KMA'!AB33 -> 19 | AC4: ='1_KMA'!AC33 -> 20 | AD4: ='1_KMA'!AD33 -> 21 | AE4: ='1_KMA'!AE33 -> 22 | AF4: ='1_KMA'!AF33 -> 23 | AG4: ='1_KMA'!AG33 -> 24 | AH4: ='1_KMA'!AH33 -> 25 | AI4: ='1_KMA'!AI33 -> 26 | AJ4: ='1_KMA'!AJ33 -> 27 | AK4: ='1_KMA'!AK33 -> 28 | AL4: ='1_KMA'!AL33 -> 29 | AM4: ='1_KMA'!AM33 -> 30 | AN4: ='1_KMA'!AN33 -> 31 | AO4: ='1_KMA'!AO33 -> 32 | AP4: ='1_KMA'!AP33 -> 33 | AQ4: ='1_KMA'!AQ33 -> 34 | AR4: ='1_KMA'!AR33 -> 35 | AS4: ='1_KMA'!AS33 -> 36 | AT4: ='1_KMA'!AT33 -> 37 | AU4: ='1_KMA'!AU33 -> 38 | AV4: ='1_KMA'!AV33 -> 39 | AW4: ='1_KMA'!AW33 -> 40 | AX4: ='1_KMA'!AX33 -> 41 | AY4: ='1_KMA'!AY33 -> 42 | AZ4: ='1_KMA'!AZ33 -> 43 | BA4: ='1_KMA'!BA33 -> 44 | BB4: ='1_KMA'!BB33 -> 45 | BC4: ='1_KMA'!BC33 -> 46 | BD4: ='1_KMA'!BD33 -> 47 | BE4: ='1_KMA'!BE33 -> 48 | BF4: ='1_KMA'!BF33 -> 49 | BG4: ='1_KMA'!BG33 -> 50
I5: Financial Year | J5: ='1_KMA'!J34 -> 2025 | K5: ='1_KMA'!K34 -> 2026 | L5: ='1_KMA'!L34 -> 2027 | M5: ='1_KMA'!M34 -> 2028 | N5: ='1_KMA'!N34 -> 2029 | O5: ='1_KMA'!O34 -> 2030 | P5: ='1_KMA'!P34 -> 2031 | Q5: ='1_KMA'!Q34 -> 2032 | R5: ='1_KMA'!R34 -> 2033 | S5: ='1_KMA'!S34 -> 2034 | T5: ='1_KMA'!T34 -> 2035 | U5: ='1_KMA'!U34 -> 2036 | V5: ='1_KMA'!V34 -> 2037 | W5: ='1_KMA'!W34 -> 2038 | X5: ='1_KMA'!X34 -> 2039 | Y5: ='1_KMA'!Y34 -> 2040 | Z5: ='1_KMA'!Z34 -> 2041 | AA5: ='1_KMA'!AA34 -> 2042 | AB5: ='1_KMA'!AB34 -> 2043 | AC5: ='1_KMA'!AC34 -> 2044 | AD5: ='1_KMA'!AD34 -> 2045 | AE5: ='1_KMA'!AE34 -> 2046 | AF5: ='1_KMA'!AF34 -> 2047 | AG5: ='1_KMA'!AG34 -> 2048 | AH5: ='1_KMA'!AH34 -> 2049 | AI5: ='1_KMA'!AI34 -> 2050 | AJ5: ='1_KMA'!AJ34 -> 2051 | AK5: ='1_KMA'!AK34 -> 2052 | AL5: ='1_KMA'!AL34 -> 2053 | AM5: ='1_KMA'!AM34 -> 2054 | AN5: ='1_KMA'!AN34 -> 2055 | AO5: ='1_KMA'!AO34 -> 2056 | AP5: ='1_KMA'!AP34 -> 2057 | AQ5: ='1_KMA'!AQ34 -> 2058 | AR5: ='1_KMA'!AR34 -> 2059 | AS5: ='1_KMA'!AS34 -> 2060 | AT5: ='1_KMA'!AT34 -> 2061 | AU5: ='1_KMA'!AU34 -> 2062 | AV5: ='1_KMA'!AV34 -> 2063 | AW5: ='1_KMA'!AW34 -> 2064 | AX5: ='1_KMA'!AX34 -> 2065 | AY5: ='1_KMA'!AY34 -> 2066 | AZ5: ='1_KMA'!AZ34 -> 2067 | BA5: ='1_KMA'!BA34 -> 2068 | BB5: ='1_KMA'!BB34 -> 2069 | BC5: ='1_KMA'!BC34 -> 2070 | BD5: ='1_KMA'!BD34 -> 2071 | BE5: ='1_KMA'!BE34 -> 2072 | BF5: ='1_KMA'!BF34 -> 2073 | BG5: ='1_KMA'!BG34 -> 2074
B7: Summary
B9: Costs | G9: $ Basis Reminder | H9: $ Reminder | J9: ="Ensure this section [Summary] is picking up the relevant rows" -> Ensure this section [Summary] is picking up the relevant rows
B10: Capex | G10: ='1_KMA'!$I$20 -> 2024-06-30 | H10: ='1_KMA'!$I$19 -> $millions | J10: =J47 -> 5.931000228 | K10: =K47 -> 6.108930235 | L10: 6.334960654 | M10: 6.83954735 | N10: 17.6643688 | O10: 22.60655913 | P10: 24.9044181 | Q10: 27.38672923 | R10: 49.18236379 | S10: 100.6650263 | T10: 103.282317 | U10: 105.9676573 | V10: 108.7228164 | W10: 81.83517319 | X10: 8.620098951 | Y10: 8.844221524 | Z10: 9.074171283 | AA10: 9.310099737 | AB10: 0 | AC10: 0 | AD10: 0 | AE10: 0 | AF10: 0 | AG10: 0 | AH10: 0 | AI10: 0 | AJ10: 0 | AK10: 0 | AL10: 0 | AM10: 0 | AN10: 0 | AO10: 0 | AP10: 0 | AQ10: 0 | AR10: 0 | AS10: 0 | AT10: 0 | AU10: 0 | AV10: 0 | AW10: 0 | AX10: 0 | AY10: 0 | AZ10: 0 | BA10: 0 | BB10: 0 | BC10: 0 | BD10: 0 | BE10: 0 | BF10: 0 | BG10: 0
B11: Capex offset | G11: ='1_KMA'!$I$20 -> 2024-06-30 | H11: ='1_KMA'!$I$19 -> $millions | J11: =-J59 -> 0 | K11: =-K59 -> 0 | L11: 0 | M11: 0 | N11: 0 | O11: 0 | P11: 0 | Q11: 0 | R11: 0 | S11: 0 | T11: 0 | U11: 0 | V11: 0 | W11: 0 | X11: 0 | Y11: 0 | Z11: 0 | AA11: 0 | AB11: 0 | AC11: 0 | AD11: 0 | AE11: 0 | AF11: 0 | AG11: 0 | AH11: 0 | AI11: 0 | AJ11: 0 | AK11: 0 | AL11: 0 | AM11: 0 | AN11: 0 | AO11: 0 | AP11: 0 | AQ11: 0 | AR11: 0 | AS11: 0 | AT11: 0 | AU11: 0 | AV11: 0 | AW11: 0 | AX11: 0 | AY11: 0 | AZ11: 0 | BA11: 0 | BB11: 0 | BC11: 0 | BD11: 0 | BE11: 0 | BF11: 0 | BG11: 0
B12: Opex | G12: ='1_KMA'!$I$20 -> 2024-06-30 | H12: ='1_KMA'!$I$19 -> $millions | J12: =J82 -> 0 | K12: =K82 -> 0 | L12: 0 | M12: 0 | N12: 0 | O12: 0.278405491 | P12: 5.298188286 | Q12: 6.703578413 | R12: 7.248563028 | S12: 4.384089557 | T12: 2.149722171 | U12: 1.000909491 | V12: 0.4107732552 | W12: 0 | X12: 0 | Y12: 0 | Z12: 0 | AA12: 0 | AB12: 0 | AC12: 0 | AD12: 0 | AE12: 0 | AF12: 0 | AG12: 0 | AH12: 0 | AI12: 0 | AJ12: 0 | AK12: 0 | AL12: 0 | AM12: 0 | AN12: 0 | AO12: 0 | AP12: 0 | AQ12: 0 | AR12: 0 | AS12: 0 | AT12: 0 | AU12: 0 | AV12: 0 | AW12: 0 | AX12: 0 | AY12: 0 | AZ12: 0 | BA12: 0 | BB12: 0 | BC12: 0 | BD12: 0 | BE12: 0 | BF12: 0 | BG12: 0
B13: Total | G13: ='1_KMA'!$I$20 -> 2024-06-30 | H13: ='1_KMA'!$I$19 -> $millions | J13: =SUM(J10:J12) -> 5.931000228 | K13: =SUM(K10:K12) -> 6.108930235 | L13: 6.334960654 | M13: 6.83954735 | N13: 17.6643688 | O13: 22.88496462 | P13: 30.20260639 | Q13: 34.09030764 | R13: 56.43092681 | S13: 105.0491159 | T13: 105.4320392 | U13: 106.9685668 | V13: 109.1335896 | W13: 81.83517319 | X13: 8.620098951 | Y13: 8.844221524 | Z13: 9.074171283 | AA13: 9.310099737 | AB13: 0 | AC13: 0 | AD13: 0 | AE13: 0 | AF13: 0 | AG13: 0 | AH13: 0 | AI13: 0 | AJ13: 0 | AK13: 0 | AL13: 0 | AM13: 0 | AN13: 0 | AO13: 0 | AP13: 0 | AQ13: 0 | AR13: 0 | AS13: 0 | AT13: 0 | AU13: 0 | AV13: 0 | AW13: 0 | AX13: 0 | AY13: 0 | AZ13: 0 | BA13: 0 | BB13: 0 | BC13: 0 | BD13: 0 | BE13: 0 | BF13: 0 | BG13: 0
B15: Benefits | G15: $ Basis Reminder | H15: $ Reminder | J15: ="Ensure this section [Summary] is picking up the relevant rows" -> Ensure this section [Summary] is picking up the relevant rows
B16: Value of EUE | G16: ='1_KMA'!$I$20 -> 2024-06-30 | H16: ='1_KMA'!$I$19 -> $millions | J16: =-J93 -> 0 | K16: =-K93 -> 0 | L16: 0 | M16: 0 | N16: 0 | O16: 0 | P16: 0 | Q16: 0 | R16: 0 | S16: 0 | T16: 0 | U16: 0 | V16: 0 | W16: 0 | X16: 0 | Y16: 0 | Z16: 0 | AA16: 0 | AB16: 0 | AC16: 0 | AD16: 0 | AE16: 0 | AF16: 0 | AG16: 0 | AH16: 0 | AI16: 0 | AJ16: 0 | AK16: 0 | AL16: 0 | AM16: 0 | AN16: 0 | AO16: 0 | AP16: 0 | AQ16: 0 | AR16: 0 | AS16: 0 | AT16: 0 | AU16: 0 | AV16: 0 | AW16: 0 | AX16: 0 | AY16: 0 | AZ16: 0 | BA16: 0 | BB16: 0 | BC16: 0 | BD16: 0 | BE16: 0 | BF16: 0 | BG16: 0
B17: Reliability | G17: ='1_KMA'!$I$20 -> 2024-06-30 | H17: ='1_KMA'!$I$19 -> $millions | J17: =J111 -> 0 | K17: =K111 -> 0 | L17: 0 | M17: 0 | N17: 0 | O17: 0 | P17: 0 | Q17: 0 | R17: 0 | S17: 0 | T17: 0 | U17: 0 | V17: 0 | W17: 0 | X17: 0 | Y17: 0 | Z17: 0 | AA17: 0 | AB17: 0 | AC17: 0 | AD17: 0 | AE17: 0 | AF17: 0 | AG17: 0 | AH17: 0 | AI17: 0 | AJ17: 0 | AK17: 0 | AL17: 0 | AM17: 0 | AN17: 0 | AO17: 0 | AP17: 0 | AQ17: 0 | AR17: 0 | AS17: 0 | AT17: 0 | AU17: 0 | AV17: 0 | AW17: 0 | AX17: 0 | AY17: 0 | AZ17: 0 | BA17: 0 | BB17: 0 | BC17: 0 | BD17: 0 | BE17: 0 | BF17: 0 | BG17: 0
B18: Resilience | G18: ='1_KMA'!$I$20 -> 2024-06-30 | H18: ='1_KMA'!$I$19 -> $millions | J18: =J132 -> 0 | K18: =K132 -> 0 | L18: 0 | M18: 0 | N18: 0 | O18: 0 | P18: 0 | Q18: 0 | R18: 0 | S18: 0 | T18: 0 | U18: 0 | V18: 0 | W18: 0 | X18: 0 | Y18: 0 | Z18: 0 | AA18: 0 | AB18: 0 | AC18: 0 | AD18: 0 | AE18: 0 | AF18: 0 | AG18: 0 | AH18: 0 | AI18: 0 | AJ18: 0 | AK18: 0 | AL18: 0 | AM18: 0 | AN18: 0 | AO18: 0 | AP18: 0 | AQ18: 0 | AR18: 0 | AS18: 0 | AT18: 0 | AU18: 0 | AV18: 0 | AW18: 0 | AX18: 0 | AY18: 0 | AZ18: 0 | BA18: 0 | BB18: 0 | BC18: 0 | BD18: 0 | BE18: 0 | BF18: 0 | BG18: 0
B19: Batteries | G19: ='1_KMA'!$I$20 -> 2024-06-30 | H19: ='1_KMA'!$I$19 -> $millions | J19: =J168 -> 0 | K19: =K168 -> 0 | L19: 0 | M19: 0 | N19: 0 | O19: 0 | P19: 0 | Q19: 0 | R19: 0 | S19: 0 | T19: 0 | U19: 0 | V19: 0 | W19: 0 | X19: 0 | Y19: 0 | Z19: 0 | AA19: 0 | AB19: 0 | AC19: 0 | AD19: 0 | AE19: 0 | AF19: 0 | AG19: 0 | AH19: 0 | AI19: 0 | AJ19: 0 | AK19: 0 | AL19: 0 | AM19: 0 | AN19: 0 | AO19: 0 | AP19: 0 | AQ19: 0 | AR19: 0 | AS19: 0 | AT19: 0 | AU19: 0 | AV19: 0 | AW19: 0 | AX19: 0 | AY19: 0 | AZ19: 0 | BA19: 0 | BB19: 0 | BC19: 0 | BD19: 0 | BE19: 0 | BF19: 0 | BG19: 0
B20: Others | G20: ='1_KMA'!$I$20 -> 2024-06-30 | H20: ='1_KMA'!$I$19 -> $millions
B21: Total | G21: ='1_KMA'!$I$20 -> 2024-06-30 | H21: ='1_KMA'!$I$19 -> $millions | J21: =SUM(J16:J20) -> 0 | K21: =SUM(K16:K20) -> 0 | L21: 0 | M21: 0 | N21: 0 | O21: 0 | P21: 0 | Q21: 0 | R21: 0 | S21: 0 | T21: 0 | U21: 0 | V21: 0 | W21: 0 | X21: 0 | Y21: 0 | Z21: 0 | AA21: 0 | AB21: 0 | AC21: 0 | AD21: 0 | AE21: 0 | AF21: 0 | AG21: 0 | AH21: 0 | AI21: 0 | AJ21: 0 | AK21: 0 | AL21: 0 | AM21: 0 | AN21: 0 | AO21: 0 | AP21: 0 | AQ21: 0 | AR21: 0 | AS21: 0 | AT21: 0 | AU21: 0 | AV21: 0 | AW21: 0 | AX21: 0 | AY21: 0 | AZ21: 0 | BA21: 0 | BB21: 0 | BC21: 0 | BD21: 0 | BE21: 0 | BF21: 0 | BG21: 0
B24: Cost Inputs
B26: Capex Build Up
B28: Name | H28: Unit | J28: Unit Rate (replacements)
B29: Smart meter replacements - fix on fail (meter with comms card + labour) | H29: Average unit cost of meter installed $million per unit
B30: Smart meter replacements - bulk replacement rate (meter with comms card + labour) | H30: Average unit cost of meter installed $million per unit
B34: Name | H34: Unit | J34: Quantities
B35: =B29 -> Smart meter replacements - fix on fail (meter with comms card + labour) | H35: meter replacement numbers | J35: 8880.5 | K35: 8880.5 | L35: 8880.5 | M35: 9344.875 | N35: 23523.22696 | O35: 29341.74101 | P35: 31505.07026 | Q35: =33767.3407852078 -> 33767.34079 | R35: 0 | S35: 0 | T35: 0 | U35: 0 | V35: 0 | W35: 0 | X35: 8880.5 | Y35: 8880.5 | Z35: 8880.5 | AA35: 8880.5 | AD35: 0
B36: =B30 -> Smart meter replacements - bulk replacement rate (meter with comms card + labour) | J36: 0 | K36: 0 | L36: 0 | M36: 0 | N36: 0 | O36: 0 | P36: 0 | Q36: 0 | R36: 66846.10618 | S36: 133351.5191 | T36: 133351.5191 | U36: 133351.5191 | V36: 133351.5191 | W36: 97829.51909 | X36: 0 | Y36: 0 | Z36: 0 | AA36: 0
B40: Name | G40: $ Basis Reminder | H40: $ Reminder | J40: ="Costs - ensure costs have been converted to "&'1_KMA'!$I$19 -> Costs - ensure costs have been converted to $millions
B41: =B35 -> Smart meter replacements - fix on fail (meter with comms card + labour) | G41: ='1_KMA'!$I$20 -> 2024-06-30 | H41: ='1_KMA'!$I$19 -> $millions | AB41: =$K$29*AB35*[2]Sheet3!V$4 -> 0 | AC41: =$K$29*AC35*[2]Sheet3!W$4 -> 0 | AD41: =$J$29*AD35 -> 0 | AE41: =$J$29*AE35 -> 0 | AF41: 0 | AG41: 0 | AH41: 0 | AI41: 0 | AJ41: 0 | AK41: 0 | AL41: 0 | AM41: 0 | AN41: 0 | AO41: 0 | AP41: 0 | AQ41: 0 | AR41: 0 | AS41: 0 | AT41: 0 | AU41: 0 | AV41: 0 | AW41: 0 | AX41: 0 | AY41: 0 | AZ41: 0 | BA41: 0 | BB41: 0 | BC41: 0 | BD41: 0 | BE41: 0 | BF41: 0 | BG41: 0
B42: =B36 -> Smart meter replacements - bulk replacement rate (meter with comms card + labour) | G42: ='1_KMA'!$I$20 -> 2024-06-30 | H42: ='1_KMA'!$I$19 -> $millions | AB42: =$J$30*AB36 -> 0 | AC42: 0 | AD42: 0 | AE42: =$J$30*AE36 -> 0 | AF42: 0 | AG42: 0 | AH42: 0 | AI42: 0 | AJ42: 0 | AK42: 0 | AL42: 0 | AM42: 0 | AN42: 0 | AO42: 0 | AP42: 0 | AQ42: 0 | AR42: 0 | AS42: 0 | AT42: 0 | AU42: 0 | AV42: 0 | AW42: 0 | AX42: 0 | AY42: 0 | AZ42: 0 | BA42: 0 | BB42: 0 | BC42: 0 | BD42: 0 | BE42: 0 | BF42: 0 | BG42: 0
G43: ='1_KMA'!$I$20 -> 2024-06-30 | H43: ='1_KMA'!$I$19 -> $millions | J43: 0 | K43: 0 | L43: 0 | M43: 0 | N43: 0 | O43: 0 | P43: 0 | Q43: 0 | R43: 0 | S43: 0 | T43: 0 | U43: 0 | V43: 0 | W43: 0 | X43: 0 | Y43: 0 | Z43: 0 | AA43: 0 | AB43: =$J$31*AB37 -> 0 | AC43: 0 | AD43: 0 | AE43: =$J$31*AE37 -> 0 | AF43: 0 | AG43: 0 | AH43: 0 | AI43: 0 | AJ43: 0 | AK43: 0 | AL43: 0 | AM43: 0 | AN43: 0 | AO43: 0 | AP43: 0 | AQ43: 0 | AR43: 0 | AS43: 0 | AT43: 0 | AU43: 0 | AV43: 0 | AW43: 0 | AX43: 0 | AY43: 0 | AZ43: 0 | BA43: 0 | BB43: 0 | BC43: 0 | BD43: 0 | BE43: 0 | BF43: 0 | BG43: 0
G44: ='1_KMA'!$I$20 -> 2024-06-30 | H44: ='1_KMA'!$I$19 -> $millions | J44: 0 | K44: 0 | L44: 0 | M44: 0 | N44: 0 | O44: 0 | P44: 0 | Q44: 0 | R44: 0 | S44: 0 | T44: 0 | U44: 0 | V44: 0 | W44: 0 | X44: 0 | Y44: 0 | Z44: 0 | AA44: 0 | AB44: =$J$32*AB38 -> 0 | AC44: 0 | AD44: 0 | AE44: =$J$32*AE38 -> 0 | AF44: 0 | AG44: 0 | AH44: 0 | AI44: 0 | AJ44: 0 | AK44: 0 | AL44: 0 | AM44: 0 | AN44: 0 | AO44: 0 | AP44: 0 | AQ44: 0 | AR44: 0 | AS44: 0 | AT44: 0 | AU44: 0 | AV44: 0 | AW44: 0 | AX44: 0 | AY44: 0 | AZ44: 0 | BA44: 0 | BB44: 0 | BC44: 0 | BD44: 0 | BE44: 0 | BF44: 0 | BG44: 0
G46: $ Basis Reminder | H46: $ Reminder | J46: Summary table above picks up this total row
B47: Total | G47: ='1_KMA'!$I$20 -> 2024-06-30 | H47: ='1_KMA'!$I$19 -> $millions | J47: 5.931000228 | K47: 6.108930235 | L47: 6.334960654 | M47: 6.83954735 | N47: 17.6643688 | O47: 22.60655913 | P47: 24.9044181 | Q47: 27.38672923 | R47: 49.18236379 | S47: 100.6650263 | T47: 103.282317 | U47: 105.9676573 | V47: 108.7228164 | W47: 81.83517319 | X47: 8.620098951 | Y47: 8.844221524 | Z47: 9.074171283 | AA47: 9.310099737 | AB47: =SUM(AB41:AB44) -> 0 | AC47: 0 | AD47: 0 | AE47: 0 | AF47: 0 | AG47: 0 | AH47: 0 | AI47: 0 | AJ47: 0 | AK47: 0 | AL47: 0 | AM47: 0 | AN47: 0 | AO47: 0 | AP47: 0 | AQ47: 0 | AR47: 0 | AS47: 0 | AT47: 0 | AU47: 0 | AV47: 0 | AW47: 0 | AX47: 0 | AY47: 0 | AZ47: 0 | BA47: 0 | BB47: 0 | BC47: 0 | BD47: 0 | BE47: 0 | BF47: 0 | BG47: =SUM(BG41:BG44) -> 0
B49: Capex Offset
J51: ="Capex offsets - ensure capex offsets have been converted to "&'1_KMA'!$I$19 -> Capex offsets - ensure capex offsets have been converted to $millions
B52: Name | G52: $ Basis Reminder | H52: $ Reminder | J52: Enter capex offsets as positive values as the spreadsheet later nets this off the gross amounts
B53: [e.g. Government subsidy] | G53: ='1_KMA'!$I$20 -> 2024-06-30 | H53: ='1_KMA'!$I$19 -> $millions
B54: [e.g. Customer contribution] | G54: ='1_KMA'!$I$20 -> 2024-06-30 | H54: ='1_KMA'!$I$19 -> $millions
G55: ='1_KMA'!$I$20 -> 2024-06-30 | H55: ='1_KMA'!$I$19 -> $millions
G56: ='1_KMA'!$I$20 -> 2024-06-30 | H56: ='1_KMA'!$I$19 -> $millions
G58: $ Basis Reminder | H58: $ Reminder | J58: Summary table above picks up this total row
B59: Total | G59: ='1_KMA'!$I$20 -> 2024-06-30 | H59: ='1_KMA'!$I$19 -> $millions | J59: =SUM(J53:J56) -> 0 | K59: =SUM(K53:K56) -> 0 | L59: =SUM(L53:L56) -> 0 | M59: 0 | N59: 0 | O59: 0 | P59: 0 | Q59: 0 | R59: 0 | S59: 0 | T59: 0 | U59: 0 | V59: 0 | W59: 0 | X59: 0 | Y59: 0 | Z59: 0 | AA59: 0 | AB59: 0 | AC59: 0 | AD59: 0 | AE59: 0 | AF59: 0 | AG59: 0 | AH59: 0 | AI59: 0 | AJ59: 0 | AK59: 0 | AL59: 0 | AM59: 0 | AN59: 0 | AO59: 0 | AP59: 0 | AQ59: 0 | AR59: 0 | AS59: 0 | AT59: 0 | AU59: 0 | AV59: 0 | AW59: 0 | AX59: 0 | AY59: 0 | AZ59: 0 | BA59: 0 | BB59: 0 | BC59: 0 | BD59: 0 | BE59: 0 | BF59: 0 | BG59: 0
B61: Opex Build Up
B63: Name | H63: Unit | J63: Value
B64: Additional PMO costs | H64: $million for each dedicated PMO FTE | J64: 0.1487587687
B65: Additional resources to improve data quality | H65: $million for each dedicated data FTE | J65: 0.1487587687
B66: Customer impacts | H66: $million for each customer impact | J66: 4.407667222e-05
B67: Compliance risk mitigation costs (i.e., replacing meter in 1 or 2 days) | H67: $million for each customer impact | J67: 0.0001238239858
B69: Name | H69: Unit | J69: Quantities
B70: =B64 -> Additional PMO costs | H70: Number of dedicated PMO FTE | J70: 0 | K70: 0 | L70: 0 | M70: 0 | N70: 0 | O70: 0 | P70: 0 | Q70: 4 | R70: 6 | S70: 6 | T70: 5 | U70: 4 | V70: 1 | W70: 0 | X70: 0 | Y70: 0
B71: Additional resources to improve data quality | H71: Number of dedicated data quality FTE | J71: 0 | K71: 0 | L71: 0 | M71: 0 | N71: 0 | O71: 1 | P71: 2 | Q71: 3 | R71: 3 | S71: 2 | T71: 1 | U71: 1 | V71: 1 | W71: 0 | X71: 0 | Y71: 0
B72: Customer impacts | H72: Number of customers impacted | M72: 0 | N72: 0 | O72: 2100.338017 | P72: 6301.014052 | Q72: 6753.468157 | R72: 6753.468157 | S72: 3376.734079 | T72: 1125.578026 | U72: 0 | V72: 0 | W72: 0 | X72: 0 | Y72: 0
B73: Compliance risk mitigation costs | H73: Additional costs to replace a failed meter urgently | P73: 31505.07026 | Q73: 33767.34079 | R73: 33767.34079 | S73: 16883.67039 | T73: 5627.890131 | U73: 0 | V73: 0 | W73: 0 | X73: 0 | Y73: 0
B75: Name | G75: $ Basis Reminder | H75: $ Reminder | J75: ="Costs - ensure costs have been converted to "&'1_KMA'!$I$19 -> Costs - ensure costs have been converted to $millions
B76: =B64 -> Additional PMO costs | G76: ='1_KMA'!$I$20 -> 2024-06-30 | H76: ='1_KMA'!$I$19 -> $millions | J76: 0 | K76: 0 | L76: 0 | M76: 0 | N76: 0 | O76: 0 | P76: 0 | Q76: 0.7225956643 | R76: 1.112074727 | S76: 1.14098867 | T76: 0.9755453131 | U76: 0.800727593 | V76: 0.2053866276 | W76: 0 | X76: 0 | Y76: 0 | Z76: =$J$64*Z70*[2]Sheet3!T$4 -> 0 | AA76: =$J$64*AA70*[2]Sheet3!U$4 -> 0 | AB76: =$J$64*AB70*[2]Sheet3!V$4 -> 0 | AC76: =$J$64*AC70 -> 0 | AD76: 0 | AE76: =$J$64*AE70 -> 0 | AF76: 0 | AG76: 0 | AH76: 0 | AI76: 0 | AJ76: 0 | AK76: 0 | AL76: 0 | AM76: 0 | AN76: 0 | AO76: 0 | AP76: 0 | AQ76: 0 | AR76: 0 | AS76: 0 | AT76: 0 | AU76: 0 | AV76: 0 | AW76: 0 | AX76: 0 | AY76: 0 | AZ76: 0 | BA76: 0 | BB76: 0 | BC76: 0 | BD76: 0 | BE76: 0 | BF76: 0 | BG76: 0
B77: Additional resources to improve data quality | G77: ='1_KMA'!$I$20 -> 2024-06-30 | H77: ='1_KMA'!$I$19 -> $millions | J77: 0 | K77: 0 | L77: 0 | M77: 0 | N77: 0 | O77: 0.1716092284 | P77: 0.3521421366 | Q77: 0.5419467482 | R77: 0.5560373637 | S77: 0.3803295568 | T77: 0.1951090626 | U77: 0.2001818982 | V77: 0.2053866276 | W77: 0 | X77: 0 | Y77: 0 | Z77: =$J$65*Z71*[2]Sheet3!T$4 -> 0 | AA77: =$J$65*AA71*[2]Sheet3!U$4 -> 0 | AB77: =$J$65*AB71*[2]Sheet3!V$4 -> 0 | AC77: =$J$65*AC71 -> 0 | AD77: 0 | AE77: =$J$65*AE71 -> 0 | AF77: 0 | AG77: 0 | AH77: 0 | AI77: 0 | AJ77: 0 | AK77: 0 | AL77: 0 | AM77: 0 | AN77: 0 | AO77: 0 | AP77: 0 | AQ77: 0 | AR77: 0 | AS77: 0 | AT77: 0 | AU77: 0 | AV77: 0 | AW77: 0 | AX77: 0 | AY77: 0 | AZ77: 0 | BA77: 0 | BB77: 0 | BC77: 0 | BD77: 0 | BE77: 0 | BF77: 0 | BG77: 0
B78: Customer impacts | G78: ='1_KMA'!$I$20 -> 2024-06-30 | H78: ='1_KMA'!$I$19 -> $millions | J78: 0 | K78: 0 | L78: 0 | M78: 0 | N78: 0 | O78: 0.1067962626 | P78: 0.3287188964 | Q78: 0.3614834673 | R78: 0.3708820375 | S78: 0.1902624852 | T78: 0.06506976995 | U78: 0 | V78: 0 | W78: 0 | X78: 0 | Y78: 0 | Z78: =$J$66*Z72 -> 0 | AA78: 0 | AB78: 0 | AC78: 0 | AD78: 0 | AE78: =$J$66*AE72 -> 0 | AF78: 0 | AG78: 0 | AH78: 0 | AI78: 0 | AJ78: 0 | AK78: 0 | AL78: 0 | AM78: 0 | AN78: 0 | AO78: 0 | AP78: 0 | AQ78: 0 | AR78: 0 | AS78: 0 | AT78: 0 | AU78: 0 | AV78: 0 | AW78: 0 | AX78: 0 | AY78: 0 | AZ78: 0 | BA78: 0 | BB78: 0 | BC78: 0 | BD78: 0 | BE78: 0 | BF78: 0 | BG78: 0
B79: Compliance risk mitigation costs | G79: ='1_KMA'!$I$20 -> 2024-06-30 | H79: ='1_KMA'!$I$19 -> $millions | J79: 0 | K79: 0 | L79: 0 | M79: 0 | N79: 0 | O79: 0 | P79: 4.617327253 | Q79: 5.077552533 | R79: 5.209568899 | S79: 2.672508845 | T79: 0.9139980251 | U79: 0 | V79: 0 | W79: 0 | X79: 0 | Y79: 0 | Z79: =$J$67*Z73*[2]Sheet3!T$4 -> 0 | AA79: =$J$67*AA73*[2]Sheet3!U$4 -> 0 | AB79: =$J$67*AB73*[2]Sheet3!V$4 -> 0 | AC79: =$J$67*AC73*[2]Sheet3!W$4 -> 0 | AD79: =$J$67*AD73 -> 0 | AE79: =$J$67*AE73 -> 0 | AF79: 0 | AG79: 0 | AH79: 0 | AI79: 0 | AJ79: 0 | AK79: 0 | AL79: 0 | AM79: 0 | AN79: 0 | AO79: 0 | AP79: 0 | AQ79: 0 | AR79: 0 | AS79: 0 | AT79: 0 | AU79: 0 | AV79: 0 | AW79: 0 | AX79: 0 | AY79: 0 | AZ79: 0 | BA79: 0 | BB79: 0 | BC79: 0 | BD79: 0 | BE79: 0 | BF79: 0 | BG79: 0
G81: $ Basis Reminder | H81: $ Reminder | J81: Summary table above picks up this total row
B82: Total | G82: ='1_KMA'!$I$20 -> 2024-06-30 | H82: ='1_KMA'!$I$19 -> $millions | J82: =SUM(J76:J79) -> 0 | K82: =SUM(K76:K79) -> 0 | L82: =SUM(L76:L79) -> 0 | M82: 0 | N82: 0 | O82: 0.278405491 | P82: 5.298188286 | Q82: 6.703578413 | R82: 7.248563028 | S82: 4.384089557 | T82: 2.149722171 | U82: 1.000909491 | V82: 0.4107732552 | W82: 0 | X82: 0 | Y82: 0 | Z82: 0 | AA82: 0 | AB82: 0 | AC82: 0 | AD82: 0 | AE82: 0 | AF82: 0 | AG82: 0 | AH82: 0 | AI82: 0 | AJ82: 0 | AK82: 0 | AL82: 0 | AM82: 0 | AN82: 0 | AO82: 0 | AP82: 0 | AQ82: 0 | AR82: 0 | AS82: 0 | AT82: 0 | AU82: 0 | AV82: 0 | AW82: 0 | AX82: 0 | AY82: 0 | AZ82: 0 | BA82: 0 | BB82: 0 | BC82: 0 | BD82: 0 | BE82: 0 | BF82: 0 | BG82: =SUM(BG76:BG79) -> 0
B84: Benefits Inputs
B86: Value of EUE
J88: ="Values - ensure values have been converted to "&'1_KMA'!$I$19 -> Values - ensure values have been converted to $millions
G89: $ Basis Reminder | H89: $ Reminder | J89: Enter this as a positive value, as the spreadsheet later converts this to a negative benefit
B90: Value of Expected Unserved Energy (EUE) | G90: ='1_KMA'!$I$20 -> 2024-06-30 | H90: ='1_KMA'!$I$19 -> $millions
G92: $ Basis Reminder | H92: $ Reminder | J92: Summary table above picks up this total row
B93: Total | G93: ='1_KMA'!$I$20 -> 2024-06-30 | H93: ='1_KMA'!$I$19 -> $millions | J93: =J90 -> 0 | K93: =K90 -> 0 | L93: 0 | M93: 0 | N93: 0 | O93: 0 | P93: 0 | Q93: 0 | R93: 0 | S93: 0 | T93: 0 | U93: 0 | V93: 0 | W93: 0 | X93: 0 | Y93: 0 | Z93: 0 | AA93: 0 | AB93: 0 | AC93: 0 | AD93: 0 | AE93: 0 | AF93: 0 | AG93: 0 | AH93: 0 | AI93: 0 | AJ93: 0 | AK93: 0 | AL93: 0 | AM93: 0 | AN93: 0 | AO93: 0 | AP93: 0 | AQ93: 0 | AR93: 0 | AS93: 0 | AT93: 0 | AU93: 0 | AV93: 0 | AW93: 0 | AX93: 0 | AY93: 0 | AZ93: 0 | BA93: 0 | BB93: 0 | BC93: 0 | BD93: 0 | BE93: 0 | BF93: 0 | BG93: 0
B95: Reliability
B97: QCV research | H97: Unit | J97: Unit Rate
B98: Fewer unplanned outages, less than 12 hours
B99: Fewer unplanned outages in the worst served areas
H102: Unit | J102: Quantities
B103: Fewer unplanned outages, less than 12 hours
B104: Fewer unplanned outages in the worst served areas
G106: $ Basis Reminder | H106: $ Reminder | J106: ="Values - ensure values have been converted to "&'1_KMA'!$I$19 -> Values - ensure values have been converted to $millions
B107: Fewer unplanned outages, less than 12 hours | G107: ='1_KMA'!$I$20 -> 2024-06-30 | H107: ='1_KMA'!$I$19 -> $millions | J107: =J103*$J$98 -> 0 | K107: =K103*$J$98 -> 0 | L107: =L103*$J$98 -> 0 | M107: =M103*$J$98 -> 0 | N107: 0 | O107: =O103*$J$98 -> 0 | P107: 0 | Q107: 0 | R107: 0 | S107: 0 | T107: 0 | U107: 0 | V107: 0 | W107: 0 | X107: 0 | Y107: 0 | Z107: 0 | AA107: 0 | AB107: 0 | AC107: 0 | AD107: 0 | AE107: 0 | AF107: 0 | AG107: 0 | AH107: 0 | AI107: 0 | AJ107: 0 | AK107: 0 | AL107: 0 | AM107: 0 | AN107: 0 | AO107: 0 | AP107: 0 | AQ107: 0 | AR107: 0 | AS107: 0 | AT107: 0 | AU107: 0 | AV107: 0 | AW107: 0 | AX107: 0 | AY107: 0 | AZ107: 0 | BA107: 0 | BB107: 0 | BC107: 0 | BD107: 0 | BE107: 0 | BF107: 0 | BG107: 0
B108: Fewer unplanned outages in the worst served areas | G108: ='1_KMA'!$I$20 -> 2024-06-30 | H108: ='1_KMA'!$I$19 -> $millions | J108: =J104*$J$99 -> 0 | K108: =K104*$J$99 -> 0 | L108: =L104*$J$99 -> 0 | M108: =M104*$J$99 -> 0 | N108: 0 | O108: =O104*$J$99 -> 0 | P108: 0 | Q108: 0 | R108: 0 | S108: 0 | T108: 0 | U108: 0 | V108: 0 | W108: 0 | X108: 0 | Y108: 0 | Z108: 0 | AA108: 0 | AB108: 0 | AC108: 0 | AD108: 0 | AE108: 0 | AF108: 0 | AG108: 0 | AH108: 0 | AI108: 0 | AJ108: 0 | AK108: 0 | AL108: 0 | AM108: 0 | AN108: 0 | AO108: 0 | AP108: 0 | AQ108: 0 | AR108: 0 | AS108: 0 | AT108: 0 | AU108: 0 | AV108: 0 | AW108: 0 | AX108: 0 | AY108: 0 | AZ108: 0 | BA108: 0 | BB108: 0 | BC108: 0 | BD108: 0 | BE108: 0 | BF108: 0 | BG108: 0
G110: $ Basis Reminder | H110: $ Reminder | J110: Summary table above picks up this total row
B111: Total | G111: ='1_KMA'!$I$20 -> 2024-06-30 | H111: ='1_KMA'!$I$19 -> $millions | J111: =SUM(J107:J108) -> 0 | K111: =SUM(K107:K108) -> 0 | L111: 0 | M111: 0 | N111: 0 | O111: 0 | P111: 0 | Q111: 0 | R111: 0 | S111: 0 | T111: 0 | U111: 0 | V111: 0 | W111: 0 | X111: 0 | Y111: 0 | Z111: 0 | AA111: 0 | AB111: 0 | AC111: 0 | AD111: 0 | AE111: 0 | AF111: 0 | AG111: 0 | AH111: 0 | AI111: 0 | AJ111: 0 | AK111: 0 | AL111: 0 | AM111: 0 | AN111: 0 | AO111: 0 | AP111: 0 | AQ111: 0 | AR111: 0 | AS111: 0 | AT111: 0 | AU111: 0 | AV111: 0 | AW111: 0 | AX111: 0 | AY111: 0 | AZ111: 0 | BA111: 0 | BB111: 0 | BC111: 0 | BD111: 0 | BE111: 0 | BF111: 0 | BG111: 0
B113: Resilience
B115: QCV research | H115: Unit | J115: Unit Rate
B116: Fewer unplanned outages, longer than 12 hours
B117: Faster restoration of power when an outage has occurred
B118: Community hub offering essential services during long duration outages
H121: Unit | J121: Quantities
B122: Fewer unplanned outages, longer than 12 hours
B123: Faster restoration of power when an outage has occurred
B124: Community hub offering essential services
G126: $ Basis Reminder | H126: $ Reminder | J126: ="Values - ensure values have been converted to "&'1_KMA'!$I$19 -> Values - ensure values have been converted to $millions
B127: Fewer unplanned outages, longer than 12 hours | G127: ='1_KMA'!$I$20 -> 2024-06-30 | H127: ='1_KMA'!$I$19 -> $millions | J127: =J122*'2.1_Op2'!$J$116 -> 0 | K127: =K122*'2.1_Op2'!$J$116 -> 0 | L127: =L122*'2.1_Op2'!$J$116 -> 0 | M127: =M122*'2.1_Op2'!$J$116 -> 0 | N127: =N122*'2.1_Op2'!$J$116 -> 0 | O127: =O122*'2.1_Op2'!$J$116 -> 0 | P127: =P122*'2.1_Op2'!$J$116 -> 0 | Q127: =Q122*'2.1_Op2'!$J$116 -> 0 | R127: =R122*'2.1_Op2'!$J$116 -> 0 | S127: =S122*'2.1_Op2'!$J$116 -> 0 | T127: =T122*'2.1_Op2'!$J$116 -> 0 | U127: =U122*'2.1_Op2'!$J$116 -> 0 | V127: =V122*'2.1_Op2'!$J$116 -> 0 | W127: =W122*'2.1_Op2'!$J$116 -> 0 | X127: =X122*'2.1_Op2'!$J$116 -> 0 | Y127: =Y122*'2.1_Op2'!$J$116 -> 0 | Z127: =Z122*'2.1_Op2'!$J$116 -> 0 | AA127: =AA122*'2.1_Op2'!$J$116 -> 0 | AB127: =AB122*'2.1_Op2'!$J$116 -> 0 | AC127: =AC122*'2.1_Op2'!$J$116 -> 0 | AD127: =AD122*'2.1_Op2'!$J$116 -> 0 | AE127: =AE122*'2.1_Op2'!$J$116 -> 0 | AF127: =AF122*'2.1_Op2'!$J$116 -> 0 | AG127: =AG122*'2.1_Op2'!$J$116 -> 0 | AH127: =AH122*'2.1_Op2'!$J$116 -> 0 | AI127: =AI122*'2.1_Op2'!$J$116 -> 0 | AJ127: =AJ122*'2.1_Op2'!$J$116 -> 0 | AK127: =AK122*'2.1_Op2'!$J$116 -> 0 | AL127: =AL122*'2.1_Op2'!$J$116 -> 0 | AM127: =AM122*'2.1_Op2'!$J$116 -> 0 | AN127: =AN122*'2.1_Op2'!$J$116 -> 0 | AO127: =AO122*'2.1_Op2'!$J$116 -> 0 | AP127: =AP122*'2.1_Op2'!$J$116 -> 0 | AQ127: =AQ122*'2.1_Op2'!$J$116 -> 0 | AR127: =AR122*'2.1_Op2'!$J$116 -> 0 | AS127: =AS122*'2.1_Op2'!$J$116 -> 0 | AT127: =AT122*'2.1_Op2'!$J$116 -> 0 | AU127: =AU122*'2.1_Op2'!$J$116 -> 0 | AV127: =AV122*'2.1_Op2'!$J$116 -> 0 | AW127: =AW122*'2.1_Op2'!$J$116 -> 0 | AX127: =AX122*'2.1_Op2'!$J$116 -> 0 | AY127: =AY122*'2.1_Op2'!$J$116 -> 0 | AZ127: =AZ122*'2.1_Op2'!$J$116 -> 0 | BA127: =BA122*'2.1_Op2'!$J$116 -> 0 | BB127: =BB122*'2.1_Op2'!$J$116 -> 0 | BC127: =BC122*'2.1_Op2'!$J$116 -> 0 | BD127: =BD122*'2.1_Op2'!$J$116 -> 0 | BE127: =BE122*'2.1_Op2'!$J$116 -> 0 | BF127: =BF122*'2.1_Op2'!$J$116 -> 0 | BG127: =BG122*'2.1_Op2'!$J$116 -> 0
B128: Faster restoration of power when an outage has occurred | G128: ='1_KMA'!$I$20 -> 2024-06-30 | H128: ='1_KMA'!$I$19 -> $millions | J128: =J123*'2.1_Op2'!$J$117 -> 0 | K128: =K123*'2.1_Op2'!$J$117 -> 0 | L128: =L123*'2.1_Op2'!$J$117 -> 0 | M128: =M123*'2.1_Op2'!$J$117 -> 0 | N128: =N123*'2.1_Op2'!$J$117 -> 0 | O128: =O123*'2.1_Op2'!$J$117 -> 0 | P128: =P123*'2.1_Op2'!$J$117 -> 0 | Q128: =Q123*'2.1_Op2'!$J$117 -> 0 | R128: =R123*'2.1_Op2'!$J$117 -> 0 | S128: =S123*'2.1_Op2'!$J$117 -> 0 | T128: =T123*'2.1_Op2'!$J$117 -> 0 | U128: =U123*'2.1_Op2'!$J$117 -> 0 | V128: =V123*'2.1_Op2'!$J$117 -> 0 | W128: =W123*'2.1_Op2'!$J$117 -> 0 | X128: =X123*'2.1_Op2'!$J$117 -> 0 | Y128: =Y123*'2.1_Op2'!$J$117 -> 0 | Z128: =Z123*'2.1_Op2'!$J$117 -> 0 | AA128: =AA123*'2.1_Op2'!$J$117 -> 0 | AB128: =AB123*'2.1_Op2'!$J$117 -> 0 | AC128: =AC123*'2.1_Op2'!$J$117 -> 0 | AD128: =AD123*'2.1_Op2'!$J$117 -> 0 | AE128: =AE123*'2.1_Op2'!$J$117 -> 0 | AF128: =AF123*'2.1_Op2'!$J$117 -> 0 | AG128: =AG123*'2.1_Op2'!$J$117 -> 0 | AH128: =AH123*'2.1_Op2'!$J$117 -> 0 | AI128: =AI123*'2.1_Op2'!$J$117 -> 0 | AJ128: =AJ123*'2.1_Op2'!$J$117 -> 0 | AK128: =AK123*'2.1_Op2'!$J$117 -> 0 | AL128: =AL123*'2.1_Op2'!$J$117 -> 0 | AM128: =AM123*'2.1_Op2'!$J$117 -> 0 | AN128: =AN123*'2.1_Op2'!$J$117 -> 0 | AO128: =AO123*'2.1_Op2'!$J$117 -> 0 | AP128: =AP123*'2.1_Op2'!$J$117 -> 0 | AQ128: =AQ123*'2.1_Op2'!$J$117 -> 0 | AR128: =AR123*'2.1_Op2'!$J$117 -> 0 | AS128: =AS123*'2.1_Op2'!$J$117 -> 0 | AT128: =AT123*'2.1_Op2'!$J$117 -> 0 | AU128: =AU123*'2.1_Op2'!$J$117 -> 0 | AV128: =AV123*'2.1_Op2'!$J$117 -> 0 | AW128: =AW123*'2.1_Op2'!$J$117 -> 0 | AX128: =AX123*'2.1_Op2'!$J$117 -> 0 | AY128: =AY123*'2.1_Op2'!$J$117 -> 0 | AZ128: =AZ123*'2.1_Op2'!$J$117 -> 0 | BA128: =BA123*'2.1_Op2'!$J$117 -> 0 | BB128: =BB123*'2.1_Op2'!$J$117 -> 0 | BC128: =BC123*'2.1_Op2'!$J$117 -> 0 | BD128: =BD123*'2.1_Op2'!$J$117 -> 0 | BE128: =BE123*'2.1_Op2'!$J$117 -> 0 | BF128: =BF123*'2.1_Op2'!$J$117 -> 0 | BG128: =BG123*'2.1_Op2'!$J$117 -> 0
B129: Community hub offering essential services | G129: ='1_KMA'!$I$20 -> 2024-06-30 | H129: ='1_KMA'!$I$19 -> $millions | J129: =J124*'2.1_Op2'!$J$118 -> 0 | K129: =K124*'2.1_Op2'!$J$118 -> 0 | L129: =L124*'2.1_Op2'!$J$118 -> 0 | M129: =M124*'2.1_Op2'!$J$118 -> 0 | N129: =N124*'2.1_Op2'!$J$118 -> 0 | O129: =O124*'2.1_Op2'!$J$118 -> 0 | P129: =P124*'2.1_Op2'!$J$118 -> 0 | Q129: =Q124*'2.1_Op2'!$J$118 -> 0 | R129: =R124*'2.1_Op2'!$J$118 -> 0 | S129: =S124*'2.1_Op2'!$J$118 -> 0 | T129: =T124*'2.1_Op2'!$J$118 -> 0 | U129: =U124*'2.1_Op2'!$J$118 -> 0 | V129: =V124*'2.1_Op2'!$J$118 -> 0 | W129: =W124*'2.1_Op2'!$J$118 -> 0 | X129: =X124*'2.1_Op2'!$J$118 -> 0 | Y129: =Y124*'2.1_Op2'!$J$118 -> 0 | Z129: =Z124*'2.1_Op2'!$J$118 -> 0 | AA129: =AA124*'2.1_Op2'!$J$118 -> 0 | AB129: =AB124*'2.1_Op2'!$J$118 -> 0 | AC129: =AC124*'2.1_Op2'!$J$118 -> 0 | AD129: =AD124*'2.1_Op2'!$J$118 -> 0 | AE129: =AE124*'2.1_Op2'!$J$118 -> 0 | AF129: =AF124*'2.1_Op2'!$J$118 -> 0 | AG129: =AG124*'2.1_Op2'!$J$118 -> 0 | AH129: =AH124*'2.1_Op2'!$J$118 -> 0 | AI129: =AI124*'2.1_Op2'!$J$118 -> 0 | AJ129: =AJ124*'2.1_Op2'!$J$118 -> 0 | AK129: =AK124*'2.1_Op2'!$J$118 -> 0 | AL129: =AL124*'2.1_Op2'!$J$118 -> 0 | AM129: =AM124*'2.1_Op2'!$J$118 -> 0 | AN129: =AN124*'2.1_Op2'!$J$118 -> 0 | AO129: =AO124*'2.1_Op2'!$J$118 -> 0 | AP129: =AP124*'2.1_Op2'!$J$118 -> 0 | AQ129: =AQ124*'2.1_Op2'!$J$118 -> 0 | AR129: =AR124*'2.1_Op2'!$J$118 -> 0 | AS129: =AS124*'2.1_Op2'!$J$118 -> 0 | AT129: =AT124*'2.1_Op2'!$J$118 -> 0 | AU129: =AU124*'2.1_Op2'!$J$118 -> 0 | AV129: =AV124*'2.1_Op2'!$J$118 -> 0 | AW129: =AW124*'2.1_Op2'!$J$118 -> 0 | AX129: =AX124*'2.1_Op2'!$J$118 -> 0 | AY129: =AY124*'2.1_Op2'!$J$118 -> 0 | AZ129: =AZ124*'2.1_Op2'!$J$118 -> 0 | BA129: =BA124*'2.1_Op2'!$J$118 -> 0 | BB129: =BB124*'2.1_Op2'!$J$118 -> 0 | BC129: =BC124*'2.1_Op2'!$J$118 -> 0 | BD129: =BD124*'2.1_Op2'!$J$118 -> 0 | BE129: =BE124*'2.1_Op2'!$J$118 -> 0 | BF129: =BF124*'2.1_Op2'!$J$118 -> 0 | BG129: =BG124*'2.1_Op2'!$J$118 -> 0
G131: $ Basis Reminder | H131: $ Reminder | J131: Summary table above picks up this total row
B132: Total | G132: ='1_KMA'!$I$20 -> 2024-06-30 | H132: ='1_KMA'!$I$19 -> $millions | J132: =SUM(J127:J129) -> 0 | K132: =SUM(K127:K129) -> 0 | L132: 0 | M132: 0 | N132: 0 | O132: 0 | P132: 0 | Q132: 0 | R132: 0 | S132: 0 | T132: 0 | U132: 0 | V132: 0 | W132: 0 | X132: 0 | Y132: 0 | Z132: 0 | AA132: 0 | AB132: 0 | AC132: 0 | AD132: 0 | AE132: 0 | AF132: 0 | AG132: 0 | AH132: 0 | AI132: 0 | AJ132: 0 | AK132: 0 | AL132: 0 | AM132: 0 | AN132: 0 | AO132: 0 | AP132: 0 | AQ132: 0 | AR132: 0 | AS132: 0 | AT132: 0 | AU132: 0 | AV132: 0 | AW132: 0 | AX132: 0 | AY132: 0 | AZ132: 0 | BA132: 0 | BB132: 0 | BC132: 0 | BD132: 0 | BE132: 0 | BF132: 0 | BG132: 0
B134: Batteries
B136: AusNet Savings from Wholesale Arbitrage
H137: Unit | J137: Value
B138: Wholesale market price differential | H138: [e.g. $dollars per MWh]
B139: AusNet Share in Wholesale arbitrage | H139: [e.g. %]
B140: Average annual battery derating | H140: [e.g. % p.a.]
H142: Unit | J142: Location 1 | K142: Location 2 | L142: Location 3 | M142: Location 4 | N142: Location 5
B143: Battery Rating (kW) | H143: kW
B144: Battery Rating (hr) | H144: hr
B145: Battery Rating (kWh) | H145: kWh | J145: =J143*J144 -> 0 | K145: =K143*K144 -> 0 | L145: =L143*L144 -> 0 | M145: =M143*M144 -> 0 | N145: =N143*N144 -> 0
B146: Retailer benefit by wholesale arbitrage | H146: [e.g. $millions, $thousands or $dollars per year] | J146: =J145*$J$138*0.8*5*52/1000 -> 0 | K146: =K145*$J$138*0.8*5*52/1000 -> 0 | L146: =L145*$J$138*0.8*5*52/1000 -> 0 | M146: =M145*$J$138*0.8*5*52/1000 -> 0 | N146: =N145*$J$138*0.8*5*52/1000 -> 0
G148: $ Basis Reminder | H148: $ Reminder | J148: ="Values - ensure values have been converted to "&'1_KMA'!$I$19 -> Values - ensure values have been converted to $millions
B149: AusNet Savings from Wholesale Arbitrage | G149: ='1_KMA'!$I$20 -> 2024-06-30 | H149: ='1_KMA'!$I$19 -> $millions | J149: =(SUM($J$146:$N$146)*$J$139*(1/(1+$J$140)^(J4-1)))/10^6 -> 0 | K149: =(SUM($J$146:$N$146)*$J$139*(1/(1+$J$140)^(K4-1)))/10^6 -> 0 | L149: =(SUM($J$146:$N$146)*$J$139*(1/(1+$J$140)^(L4-1)))/10^6 -> 0 | M149: 0 | N149: 0 | O149: 0 | P149: 0 | Q149: 0 | R149: 0 | S149: 0 | T149: 0 | U149: 0 | V149: 0 | W149: 0 | X149: 0 | Y149: 0 | Z149: 0 | AA149: 0 | AB149: 0 | AC149: 0 | AD149: 0 | AE149: 0 | AF149: 0 | AG149: 0 | AH149: 0 | AI149: 0 | AJ149: 0 | AK149: 0 | AL149: 0 | AM149: 0 | AN149: 0 | AO149: 0 | AP149: 0 | AQ149: 0 | AR149: 0 | AS149: 0 | AT149: 0 | AU149: 0 | AV149: 0 | AW149: 0 | AX149: 0 | AY149: 0 | AZ149: 0 | BA149: 0 | BB149: 0 | BC149: 0 | BD149: 0 | BE149: 0 | BF149: 0 | BG149: 0
B151: AusNet Revenue from FCAS
H152: Unit | J152: Value
B153: FCAS participation price | H153: [e.g. $ollars per MW per hour]
B154: Average annual participation All batteries | H154: [e.g. MW per hour]
G156: $ Basis Reminder | H156: $ Reminder | J156: ="Values - ensure values have been converted to "&'1_KMA'!$I$19 -> Values - ensure values have been converted to $millions
B157: AusNet Revenue from FCAS | G157: ='1_KMA'!$I$20 -> 2024-06-30 | H157: ='1_KMA'!$I$19 -> $millions | J157: =$J$153*$J$154/10^6 -> 0 | K157: =$J$153*$J$154/10^6 -> 0 | L157: 0 | M157: 0 | N157: 0 | O157: 0 | P157: 0 | Q157: 0 | R157: 0 | S157: 0 | T157: 0 | U157: 0 | V157: 0 | W157: 0 | X157: 0 | Y157: 0 | Z157: 0 | AA157: 0 | AB157: 0 | AC157: 0 | AD157: 0 | AE157: 0 | AF157: 0 | AG157: 0 | AH157: 0 | AI157: 0 | AJ157: 0 | AK157: 0 | AL157: 0 | AM157: 0 | AN157: 0 | AO157: 0 | AP157: 0 | AQ157: 0 | AR157: 0 | AS157: 0 | AT157: 0 | AU157: 0 | AV157: 0 | AW157: 0 | AX157: 0 | AY157: 0 | AZ157: 0 | BA157: 0 | BB157: 0 | BC157: 0 | BD157: 0 | BE157: 0 | BF157: 0 | BG157: 0
B159: AusNet Savings from Avoided Penalties
H160: Unit | J160: Location 1 | K160: Location 2 | L160: Location 3 | M160: Location 4 | N160: Location 5
B161: Number of average outage events | H161: [e.g. Events per year]
B162: Average Ausnet penalty for outage | H162: [e.g. $dollars per event]
G164: $ Basis Reminder | H164: $ Reminder | J164: ="Values - ensure values have been converted to "&'1_KMA'!$I$19 -> Values - ensure values have been converted to $millions
B165: Ausnet Savings from Avoided Penalties | G165: ='1_KMA'!$I$20 -> 2024-06-30 | H165: ='1_KMA'!$I$19 -> $millions | J165: =SUMPRODUCT($J$161:$N$161,$J$162:$N$162)/10^6 -> 0 | K165: =SUMPRODUCT($J$161:$N$161,$J$162:$N$162)/10^6 -> 0 | L165: 0 | M165: =SUMPRODUCT($J$161:$N$161,$J$162:$N$162)/10^6 -> 0 | N165: 0 | O165: 0 | P165: 0 | Q165: 0 | R165: 0 | S165: 0 | T165: 0 | U165: 0 | V165: 0 | W165: 0 | X165: 0 | Y165: 0 | Z165: 0 | AA165: 0 | AB165: 0 | AC165: 0 | AD165: 0 | AE165: 0 | AF165: 0 | AG165: 0 | AH165: 0 | AI165: 0 | AJ165: 0 | AK165: 0 | AL165: 0 | AM165: 0 | AN165: 0 | AO165: 0 | AP165: 0 | AQ165: 0 | AR165: 0 | AS165: 0 | AT165: 0 | AU165: 0 | AV165: 0 | AW165: 0 | AX165: 0 | AY165: 0 | AZ165: 0 | BA165: 0 | BB165: 0 | BC165: 0 | BD165: 0 | BE165: 0 | BF165: 0 | BG165: 0
G167: $ Basis Reminder | H167: $ Reminder | J167: Summary table above picks up this total row
B168: Total | G168: ='1_KMA'!$I$20 -> 2024-06-30 | H168: ='1_KMA'!$I$19 -> $millions | J168: =J149+J157+J165 -> 0 | K168: =K149+K157+K165 -> 0 | L168: 0 | M168: 0 | N168: 0 | O168: 0 | P168: 0 | Q168: 0 | R168: 0 | S168: 0 | T168: 0 | U168: 0 | V168: 0 | W168: 0 | X168: 0 | Y168: 0 | Z168: 0 | AA168: 0 | AB168: 0 | AC168: 0 | AD168: 0 | AE168: 0 | AF168: 0 | AG168: 0 | AH168: 0 | AI168: 0 | AJ168: 0 | AK168: 0 | AL168: 0 | AM168: 0 | AN168: 0 | AO168: 0 | AP168: 0 | AQ168: 0 | AR168: 0 | AS168: 0 | AT168: 0 | AU168: 0 | AV168: 0 | AW168: 0 | AX168: 0 | AY168: 0 | AZ168: 0 | BA168: 0 | BB168: 0 | BC168: 0 | BD168: 0 | BE168: 0 | BF168: 0 | BG168: 0
B170: Others

Sheet 2.1_Op3 (hidden)
B1: General Inputs: Option 3 | I1: Regulatory Period Indicator | J1: ='1_KMA'!J30 -> 0 | K1: ='1_KMA'!K30 -> 0 | L1: ='1_KMA'!L30 -> 1 | M1: ='1_KMA'!M30 -> 1 | N1: ='1_KMA'!N30 -> 1 | O1: ='1_KMA'!O30 -> 1 | P1: ='1_KMA'!P30 -> 1 | Q1: ='1_KMA'!Q30 -> 0 | R1: ='1_KMA'!R30 -> 0 | S1: ='1_KMA'!S30 -> 0 | T1: ='1_KMA'!T30 -> 0 | U1: ='1_KMA'!U30 -> 0 | V1: ='1_KMA'!V30 -> 0 | W1: ='1_KMA'!W30 -> 0 | X1: ='1_KMA'!X30 -> 0 | Y1: ='1_KMA'!Y30 -> 0 | Z1: ='1_KMA'!Z30 -> 0 | AA1: ='1_KMA'!AA30 -> 0 | AB1: ='1_KMA'!AB30 -> 0 | AC1: ='1_KMA'!AC30 -> 0 | AD1: ='1_KMA'!AD30 -> 0 | AE1: ='1_KMA'!AE30 -> 0 | AF1: ='1_KMA'!AF30 -> 0 | AG1: ='1_KMA'!AG30 -> 0 | AH1: ='1_KMA'!AH30 -> 0 | AI1: ='1_KMA'!AI30 -> 0 | AJ1: ='1_KMA'!AJ30 -> 0 | AK1: ='1_KMA'!AK30 -> 0 | AL1: ='1_KMA'!AL30 -> 0 | AM1: ='1_KMA'!AM30 -> 0 | AN1: ='1_KMA'!AN30 -> 0 | AO1: ='1_KMA'!AO30 -> 0 | AP1: ='1_KMA'!AP30 -> 0 | AQ1: ='1_KMA'!AQ30 -> 0 | AR1: ='1_KMA'!AR30 -> 0 | AS1: ='1_KMA'!AS30 -> 0 | AT1: ='1_KMA'!AT30 -> 0 | AU1: ='1_KMA'!AU30 -> 0 | AV1: ='1_KMA'!AV30 -> 0 | AW1: ='1_KMA'!AW30 -> 0 | AX1: ='1_KMA'!AX30 -> 0 | AY1: ='1_KMA'!AY30 -> 0 | AZ1: ='1_KMA'!AZ30 -> 0 | BA1: ='1_KMA'!BA30 -> 0 | BB1: ='1_KMA'!BB30 -> 0 | BC1: ='1_KMA'!BC30 -> 0 | BD1: ='1_KMA'!BD30 -> 0 | BE1: ='1_KMA'!BE30 -> 0 | BF1: ='1_KMA'!BF30 -> 0 | BG1: ='1_KMA'!BG30 -> 0
B2: =Cover!$C$9 -> AusNet Services | I2: Period Start Date | J2: ='1_KMA'!J31 -> 2024-07-01 | K2: ='1_KMA'!K31 -> 2025-07-01 | L2: ='1_KMA'!L31 -> 2026-07-01 | M2: ='1_KMA'!M31 -> 2027-07-01 | N2: ='1_KMA'!N31 -> 2028-07-01 | O2: ='1_KMA'!O31 -> 2029-07-01 | P2: ='1_KMA'!P31 -> 2030-07-01 | Q2: ='1_KMA'!Q31 -> 2031-07-01 | R2: ='1_KMA'!R31 -> 2032-07-01 | S2: ='1_KMA'!S31 -> 2033-07-01 | T2: ='1_KMA'!T31 -> 2034-07-01 | U2: ='1_KMA'!U31 -> 2035-07-01 | V2: ='1_KMA'!V31 -> 2036-07-01 | W2: ='1_KMA'!W31 -> 2037-07-01 | X2: ='1_KMA'!X31 -> 2038-07-01 | Y2: ='1_KMA'!Y31 -> 2039-07-01 | Z2: ='1_KMA'!Z31 -> 2040-07-01 | AA2: ='1_KMA'!AA31 -> 2041-07-01 | AB2: ='1_KMA'!AB31 -> 2042-07-01 | AC2: ='1_KMA'!AC31 -> 2043-07-01 | AD2: ='1_KMA'!AD31 -> 2044-07-01 | AE2: ='1_KMA'!AE31 -> 2045-07-01 | AF2: ='1_KMA'!AF31 -> 2046-07-01 | AG2: ='1_KMA'!AG31 -> 2047-07-01 | AH2: ='1_KMA'!AH31 -> 2048-07-01 | AI2: ='1_KMA'!AI31 -> 2049-07-01 | AJ2: ='1_KMA'!AJ31 -> 2050-07-01 | AK2: ='1_KMA'!AK31 -> 2051-07-01 | AL2: ='1_KMA'!AL31 -> 2052-07-01 | AM2: ='1_KMA'!AM31 -> 2053-07-01 | AN2: ='1_KMA'!AN31 -> 2054-07-01 | AO2: ='1_KMA'!AO31 -> 2055-07-01 | AP2: ='1_KMA'!AP31 -> 2056-07-01 | AQ2: ='1_KMA'!AQ31 -> 2057-07-01 | AR2: ='1_KMA'!AR31 -> 2058-07-01 | AS2: ='1_KMA'!AS31 -> 2059-07-01 | AT2: ='1_KMA'!AT31 -> 2060-07-01 | AU2: ='1_KMA'!AU31 -> 2061-07-01 | AV2: ='1_KMA'!AV31 -> 2062-07-01 | AW2: ='1_KMA'!AW31 -> 2063-07-01 | AX2: ='1_KMA'!AX31 -> 2064-07-01 | AY2: ='1_KMA'!AY31 -> 2065-07-01 | AZ2: ='1_KMA'!AZ31 -> 2066-07-01 | BA2: ='1_KMA'!BA31 -> 2067-07-01 | BB2: ='1_KMA'!BB31 -> 2068-07-01 | BC2: ='1_KMA'!BC31 -> 2069-07-01 | BD2: ='1_KMA'!BD31 -> 2070-07-01 | BE2: ='1_KMA'!BE31 -> 2071-07-01 | BF2: ='1_KMA'!BF31 -> 2072-07-01 | BG2: ='1_KMA'!BG31 -> 2073-07-01
B3: =Cover!$C$10 -> Business Case Evaluation | I3: Period End Date | J3: ='1_KMA'!J32 -> 2025-06-30 | K3: ='1_KMA'!K32 -> 2026-06-30 | L3: ='1_KMA'!L32 -> 2027-06-30 | M3: ='1_KMA'!M32 -> 2028-06-30 | N3: ='1_KMA'!N32 -> 2029-06-30 | O3: ='1_KMA'!O32 -> 2030-06-30 | P3: ='1_KMA'!P32 -> 2031-06-30 | Q3: ='1_KMA'!Q32 -> 2032-06-30 | R3: ='1_KMA'!R32 -> 2033-06-30 | S3: ='1_KMA'!S32 -> 2034-06-30 | T3: ='1_KMA'!T32 -> 2035-06-30 | U3: ='1_KMA'!U32 -> 2036-06-30 | V3: ='1_KMA'!V32 -> 2037-06-30 | W3: ='1_KMA'!W32 -> 2038-06-30 | X3: ='1_KMA'!X32 -> 2039-06-30 | Y3: ='1_KMA'!Y32 -> 2040-06-30 | Z3: ='1_KMA'!Z32 -> 2041-06-30 | AA3: ='1_KMA'!AA32 -> 2042-06-30 | AB3: ='1_KMA'!AB32 -> 2043-06-30 | AC3: ='1_KMA'!AC32 -> 2044-06-30 | AD3: ='1_KMA'!AD32 -> 2045-06-30 | AE3: ='1_KMA'!AE32 -> 2046-06-30 | AF3: ='1_KMA'!AF32 -> 2047-06-30 | AG3: ='1_KMA'!AG32 -> 2048-06-30 | AH3: ='1_KMA'!AH32 -> 2049-06-30 | AI3: ='1_KMA'!AI32 -> 2050-06-30 | AJ3: ='1_KMA'!AJ32 -> 2051-06-30 | AK3: ='1_KMA'!AK32 -> 2052-06-30 | AL3: ='1_KMA'!AL32 -> 2053-06-30 | AM3: ='1_KMA'!AM32 -> 2054-06-30 | AN3: ='1_KMA'!AN32 -> 2055-06-30 | AO3: ='1_KMA'!AO32 -> 2056-06-30 | AP3: ='1_KMA'!AP32 -> 2057-06-30 | AQ3: ='1_KMA'!AQ32 -> 2058-06-30 | AR3: ='1_KMA'!AR32 -> 2059-06-30 | AS3: ='1_KMA'!AS32 -> 2060-06-30 | AT3: ='1_KMA'!AT32 -> 2061-06-30 | AU3: ='1_KMA'!AU32 -> 2062-06-30 | AV3: ='1_KMA'!AV32 -> 2063-06-30 | AW3: ='1_KMA'!AW32 -> 2064-06-30 | AX3: ='1_KMA'!AX32 -> 2065-06-30 | AY3: ='1_KMA'!AY32 -> 2066-06-30 | AZ3: ='1_KMA'!AZ32 -> 2067-06-30 | BA3: ='1_KMA'!BA32 -> 2068-06-30 | BB3: ='1_KMA'!BB32 -> 2069-06-30 | BC3: ='1_KMA'!BC32 -> 2070-06-30 | BD3: ='1_KMA'!BD32 -> 2071-06-30 | BE3: ='1_KMA'!BE32 -> 2072-06-30 | BF3: ='1_KMA'!BF32 -> 2073-06-30 | BG3: ='1_KMA'!BG32 -> 2074-06-30
B4: =Cover!$C$11 -> Smart meter 13 yr bulk replacement | I4: Project Year | J4: ='1_KMA'!J33 -> 1 | K4: ='1_KMA'!K33 -> 2 | L4: ='1_KMA'!L33 -> 3 | M4: ='1_KMA'!M33 -> 4 | N4: ='1_KMA'!N33 -> 5 | O4: ='1_KMA'!O33 -> 6 | P4: ='1_KMA'!P33 -> 7 | Q4: ='1_KMA'!Q33 -> 8 | R4: ='1_KMA'!R33 -> 9 | S4: ='1_KMA'!S33 -> 10 | T4: ='1_KMA'!T33 -> 11 | U4: ='1_KMA'!U33 -> 12 | V4: ='1_KMA'!V33 -> 13 | W4: ='1_KMA'!W33 -> 14 | X4: ='1_KMA'!X33 -> 15 | Y4: ='1_KMA'!Y33 -> 16 | Z4: ='1_KMA'!Z33 -> 17 | AA4: ='1_KMA'!AA33 -> 18 | AB4: ='1_KMA'!AB33 -> 19 | AC4: ='1_KMA'!AC33 -> 20 | AD4: ='1_KMA'!AD33 -> 21 | AE4: ='1_KMA'!AE33 -> 22 | AF4: ='1_KMA'!AF33 -> 23 | AG4: ='1_KMA'!AG33 -> 24 | AH4: ='1_KMA'!AH33 -> 25 | AI4: ='1_KMA'!AI33 -> 26 | AJ4: ='1_KMA'!AJ33 -> 27 | AK4: ='1_KMA'!AK33 -> 28 | AL4: ='1_KMA'!AL33 -> 29 | AM4: ='1_KMA'!AM33 -> 30 | AN4: ='1_KMA'!AN33 -> 31 | AO4: ='1_KMA'!AO33 -> 32 | AP4: ='1_KMA'!AP33 -> 33 | AQ4: ='1_KMA'!AQ33 -> 34 | AR4: ='1_KMA'!AR33 -> 35 | AS4: ='1_KMA'!AS33 -> 36 | AT4: ='1_KMA'!AT33 -> 37 | AU4: ='1_KMA'!AU33 -> 38 | AV4: ='1_KMA'!AV33 -> 39 | AW4: ='1_KMA'!AW33 -> 40 | AX4: ='1_KMA'!AX33 -> 41 | AY4: ='1_KMA'!AY33 -> 42 | AZ4: ='1_KMA'!AZ33 -> 43 | BA4: ='1_KMA'!BA33 -> 44 | BB4: ='1_KMA'!BB33 -> 45 | BC4: ='1_KMA'!BC33 -> 46 | BD4: ='1_KMA'!BD33 -> 47 | BE4: ='1_KMA'!BE33 -> 48 | BF4: ='1_KMA'!BF33 -> 49 | BG4: ='1_KMA'!BG33 -> 50
I5: Financial Year | J5: ='1_KMA'!J34 -> 2025 | K5: ='1_KMA'!K34 -> 2026 | L5: ='1_KMA'!L34 -> 2027 | M5: ='1_KMA'!M34 -> 2028 | N5: ='1_KMA'!N34 -> 2029 | O5: ='1_KMA'!O34 -> 2030 | P5: ='1_KMA'!P34 -> 2031 | Q5: ='1_KMA'!Q34 -> 2032 | R5: ='1_KMA'!R34 -> 2033 | S5: ='1_KMA'!S34 -> 2034 | T5: ='1_KMA'!T34 -> 2035 | U5: ='1_KMA'!U34 -> 2036 | V5: ='1_KMA'!V34 -> 2037 | W5: ='1_KMA'!W34 -> 2038 | X5: ='1_KMA'!X34 -> 2039 | Y5: ='1_KMA'!Y34 -> 2040 | Z5: ='1_KMA'!Z34 -> 2041 | AA5: ='1_KMA'!AA34 -> 2042 | AB5: ='1_KMA'!AB34 -> 2043 | AC5: ='1_KMA'!AC34 -> 2044 | AD5: ='1_KMA'!AD34 -> 2045 | AE5: ='1_KMA'!AE34 -> 2046 | AF5: ='1_KMA'!AF34 -> 2047 | AG5: ='1_KMA'!AG34 -> 2048 | AH5: ='1_KMA'!AH34 -> 2049 | AI5: ='1_KMA'!AI34 -> 2050 | AJ5: ='1_KMA'!AJ34 -> 2051 | AK5: ='1_KMA'!AK34 -> 2052 | AL5: ='1_KMA'!AL34 -> 2053 | AM5: ='1_KMA'!AM34 -> 2054 | AN5: ='1_KMA'!AN34 -> 2055 | AO5: ='1_KMA'!AO34 -> 2056 | AP5: ='1_KMA'!AP34 -> 2057 | AQ5: ='1_KMA'!AQ34 -> 2058 | AR5: ='1_KMA'!AR34 -> 2059 | AS5: ='1_KMA'!AS34 -> 2060 | AT5: ='1_KMA'!AT34 -> 2061 | AU5: ='1_KMA'!AU34 -> 2062 | AV5: ='1_KMA'!AV34 -> 2063 | AW5: ='1_KMA'!AW34 -> 2064 | AX5: ='1_KMA'!AX34 -> 2065 | AY5: ='1_KMA'!AY34 -> 2066 | AZ5: ='1_KMA'!AZ34 -> 2067 | BA5: ='1_KMA'!BA34 -> 2068 | BB5: ='1_KMA'!BB34 -> 2069 | BC5: ='1_KMA'!BC34 -> 2070 | BD5: ='1_KMA'!BD34 -> 2071 | BE5: ='1_KMA'!BE34 -> 2072 | BF5: ='1_KMA'!BF34 -> 2073 | BG5: ='1_KMA'!BG34 -> 2074
B7: Summary
B9: Costs | G9: $ Basis Reminder | H9: $ Reminder | J9: ="Ensure this section [Summary] is picking up the relevant rows" -> Ensure this section [Summary] is picking up the relevant rows
B10: Capex | G10: ='1_KMA'!$I$20 -> 2024-06-30 | H10: ='1_KMA'!$I$19 -> $millions | J10: =J47 ->  | K10: =K47 -> 
B11: Capex offset | G11: ='1_KMA'!$I$20 -> 2024-06-30 | H11: ='1_KMA'!$I$19 -> $millions | J11: =-J59 -> 0 | K11: =-K59 -> 0 | L11: 0 | M11: 0 | N11: 0 | O11: 0 | P11: 0 | Q11: 0 | R11: 0 | S11: 0 | T11: 0 | U11: 0 | V11: 0 | W11: 0 | X11: 0 | Y11: 0 | Z11: 0 | AA11: 0 | AB11: 0 | AC11: 0 | AD11: 0 | AE11: 0 | AF11: 0 | AG11: 0 | AH11: 0 | AI11: 0 | AJ11: 0 | AK11: 0 | AL11: 0 | AM11: 0 | AN11: 0 | AO11: 0 | AP11: 0 | AQ11: 0 | AR11: 0 | AS11: 0 | AT11: 0 | AU11: 0 | AV11: 0 | AW11: 0 | AX11: 0 | AY11: 0 | AZ11: 0 | BA11: 0 | BB11: 0 | BC11: 0 | BD11: 0 | BE11: 0 | BF11: 0 | BG11: 0
B12: Opex | G12: ='1_KMA'!$I$20 -> 2024-06-30 | H12: ='1_KMA'!$I$19 -> $millions | J12: =J82 ->  | K12: =K82 -> 
B13: Total | G13: ='1_KMA'!$I$20 -> 2024-06-30 | H13: ='1_KMA'!$I$19 -> $millions | J13: =SUM(J10:J12) ->  | K13: =SUM(K10:K12) -> 
B15: Benefits | G15: $ Basis Reminder | H15: $ Reminder | J15: ="Ensure this section [Summary] is picking up the relevant rows" -> Ensure this section [Summary] is picking up the relevant rows
B16: Value of EUE | G16: ='1_KMA'!$I$20 -> 2024-06-30 | H16: ='1_KMA'!$I$19 -> $millions | J16: =-J93 -> 0 | K16: =-K93 -> 0 | L16: 0 | M16: 0 | N16: 0 | O16: 0 | P16: 0 | Q16: 0 | R16: 0 | S16: 0 | T16: 0 | U16: 0 | V16: 0 | W16: 0 | X16: 0 | Y16: 0 | Z16: 0 | AA16: 0 | AB16: 0 | AC16: 0 | AD16: 0 | AE16: 0 | AF16: 0 | AG16: 0 | AH16: 0 | AI16: 0 | AJ16: 0 | AK16: 0 | AL16: 0 | AM16: 0 | AN16: 0 | AO16: 0 | AP16: 0 | AQ16: 0 | AR16: 0 | AS16: 0 | AT16: 0 | AU16: 0 | AV16: 0 | AW16: 0 | AX16: 0 | AY16: 0 | AZ16: 0 | BA16: 0 | BB16: 0 | BC16: 0 | BD16: 0 | BE16: 0 | BF16: 0 | BG16: 0
B17: Reliability | G17: ='1_KMA'!$I$20 -> 2024-06-30 | H17: ='1_KMA'!$I$19 -> $millions | J17: =J111 -> 0 | K17: =K111 -> 0 | L17: 0 | M17: 0 | N17: 0 | O17: 0 | P17: 0 | Q17: 0 | R17: 0 | S17: 0 | T17: 0 | U17: 0 | V17: 0 | W17: 0 | X17: 0 | Y17: 0 | Z17: 0 | AA17: 0 | AB17: 0 | AC17: 0 | AD17: 0 | AE17: 0 | AF17: 0 | AG17: 0 | AH17: 0 | AI17: 0 | AJ17: 0 | AK17: 0 | AL17: 0 | AM17: 0 | AN17: 0 | AO17: 0 | AP17: 0 | AQ17: 0 | AR17: 0 | AS17: 0 | AT17: 0 | AU17: 0 | AV17: 0 | AW17: 0 | AX17: 0 | AY17: 0 | AZ17: 0 | BA17: 0 | BB17: 0 | BC17: 0 | BD17: 0 | BE17: 0 | BF17: 0 | BG17: 0
B18: Resilience | G18: ='1_KMA'!$I$20 -> 2024-06-30 | H18: ='1_KMA'!$I$19 -> $millions | J18: =J132 -> 0 | K18: =K132 -> 0 | L18: 0 | M18: 0 | N18: 0 | O18: 0 | P18: 0 | Q18: 0 | R18: 0 | S18: 0 | T18: 0 | U18: 0 | V18: 0 | W18: 0 | X18: 0 | Y18: 0 | Z18: 0 | AA18: 0 | AB18: 0 | AC18: 0 | AD18: 0 | AE18: 0 | AF18: 0 | AG18: 0 | AH18: 0 | AI18: 0 | AJ18: 0 | AK18: 0 | AL18: 0 | AM18: 0 | AN18: 0 | AO18: 0 | AP18: 0 | AQ18: 0 | AR18: 0 | AS18: 0 | AT18: 0 | AU18: 0 | AV18: 0 | AW18: 0 | AX18: 0 | AY18: 0 | AZ18: 0 | BA18: 0 | BB18: 0 | BC18: 0 | BD18: 0 | BE18: 0 | BF18: 0 | BG18: 0
B19: Batteries | G19: ='1_KMA'!$I$20 -> 2024-06-30 | H19: ='1_KMA'!$I$19 -> $millions | J19: =J168 -> 0 | K19: =K168 -> 0 | L19: 0 | M19: 0 | N19: 0 | O19: 0 | P19: 0 | Q19: 0 | R19: 0 | S19: 0 | T19: 0 | U19: 0 | V19: 0 | W19: 0 | X19: 0 | Y19: 0 | Z19: 0 | AA19: 0 | AB19: 0 | AC19: 0 | AD19: 0 | AE19: 0 | AF19: 0 | AG19: 0 | AH19: 0 | AI19: 0 | AJ19: 0 | AK19: 0 | AL19: 0 | AM19: 0 | AN19: 0 | AO19: 0 | AP19: 0 | AQ19: 0 | AR19: 0 | AS19: 0 | AT19: 0 | AU19: 0 | AV19: 0 | AW19: 0 | AX19: 0 | AY19: 0 | AZ19: 0 | BA19: 0 | BB19: 0 | BC19: 0 | BD19: 0 | BE19: 0 | BF19: 0 | BG19: 0
B20: Others | G20: ='1_KMA'!$I$20 -> 2024-06-30 | H20: ='1_KMA'!$I$19 -> $millions
B21: Total | G21: ='1_KMA'!$I$20 -> 2024-06-30 | H21: ='1_KMA'!$I$19 -> $millions | J21: =SUM(J16:J20) -> 0 | K21: =SUM(K16:K20) -> 0 | L21: 0 | M21: 0 | N21: 0 | O21: 0 | P21: 0 | Q21: 0 | R21: 0 | S21: 0 | T21: 0 | U21: 0 | V21: 0 | W21: 0 | X21: 0 | Y21: 0 | Z21: 0 | AA21: 0 | AB21: 0 | AC21: 0 | AD21: 0 | AE21: 0 | AF21: 0 | AG21: 0 | AH21: 0 | AI21: 0 | AJ21: 0 | AK21: 0 | AL21: 0 | AM21: 0 | AN21: 0 | AO21: 0 | AP21: 0 | AQ21: 0 | AR21: 0 | AS21: 0 | AT21: 0 | AU21: 0 | AV21: 0 | AW21: 0 | AX21: 0 | AY21: 0 | AZ21: 0 | BA21: 0 | BB21: 0 | BC21: 0 | BD21: 0 | BE21: 0 | BF21: 0 | BG21: 0
B24: Cost Inputs
B26: Capex Build Up
B28: Name | H28: Unit | J28: Unit Rate
B29: Smart meter replacements (meter with comms card + labour) | H29: Average unit cost of meter installed $million per unit | J29: NA
M33: =SUM(M29:M32) -> 0
B34: Name | H34: Unit | J34: Quantities | AC34: =SUM($L35:AA35) -> 0
B35: =B29 -> Smart meter replacements (meter with comms card + labour) | H35: meter replacement numbers | Z35: =M33-AA34 -> 0 | AA35: 0 | AB35: 0 | AC35: 0 | AD35: 0
B36: =B30 -> 0
B40: Name | G40: $ Basis Reminder | H40: $ Reminder | J40: ="Costs - ensure costs have been converted to "&'1_KMA'!$I$19 -> Costs - ensure costs have been converted to $millions
B41: =B29 -> Smart meter replacements (meter with comms card + labour) | G41: ='1_KMA'!$I$20 -> 2024-06-30 | H41: ='1_KMA'!$I$19 -> $millions | J41: =$J$29*J35 ->  | K41: =$J$29*K35 ->  | L41: =$J$29*L35 ->  | M41: =$J$29*M35 ->  | Z41: =$J$29*Z35 ->  | AA41: =$J$29*AA35 -> 
B42: =B30 -> 0 | G42: ='1_KMA'!$I$20 -> 2024-06-30 | H42: ='1_KMA'!$I$19 -> $millions | J42: =$J$30*J36 -> 0 | K42: =$J$30*K36 -> 0 | L42: =$J$30*L36 -> 0 | M42: =$J$30*M36 -> 0 | N42: 0 | O42: 0 | P42: 0 | Q42: 0 | R42: 0 | S42: 0 | T42: 0 | U42: 0 | V42: 0 | W42: 0 | X42: 0 | Y42: 0 | Z42: 0 | AA42: 0 | AB42: 0 | AC42: 0 | AD42: 0 | AE42: 0 | AF42: 0 | AG42: 0 | AH42: 0 | AI42: 0 | AJ42: 0 | AK42: 0 | AL42: 0 | AM42: 0 | AN42: 0 | AO42: 0 | AP42: 0 | AQ42: 0 | AR42: 0 | AS42: 0 | AT42: 0 | AU42: 0 | AV42: 0 | AW42: 0 | AX42: 0 | AY42: 0 | AZ42: 0 | BA42: 0 | BB42: 0 | BC42: 0 | BD42: 0 | BE42: 0 | BF42: 0 | BG42: 0
G43: ='1_KMA'!$I$20 -> 2024-06-30 | H43: ='1_KMA'!$I$19 -> $millions | J43: =$J$31*J37 -> 0 | K43: =$J$31*K37 -> 0 | L43: =$J$31*L37 -> 0 | M43: =$J$31*M37 -> 0 | N43: 0 | O43: 0 | P43: 0 | Q43: 0 | R43: 0 | S43: 0 | T43: 0 | U43: 0 | V43: 0 | W43: 0 | X43: 0 | Y43: 0 | Z43: 0 | AA43: 0 | AB43: 0 | AC43: 0 | AD43: 0 | AE43: 0 | AF43: 0 | AG43: 0 | AH43: 0 | AI43: 0 | AJ43: 0 | AK43: 0 | AL43: 0 | AM43: 0 | AN43: 0 | AO43: 0 | AP43: 0 | AQ43: 0 | AR43: 0 | AS43: 0 | AT43: 0 | AU43: 0 | AV43: 0 | AW43: 0 | AX43: 0 | AY43: 0 | AZ43: 0 | BA43: 0 | BB43: 0 | BC43: 0 | BD43: 0 | BE43: 0 | BF43: 0 | BG43: 0
G44: ='1_KMA'!$I$20 -> 2024-06-30 | H44: ='1_KMA'!$I$19 -> $millions | J44: =$J$32*J38 -> 0 | K44: =$J$32*K38 -> 0 | L44: =$J$32*L38 -> 0 | M44: 0 | N44: 0 | O44: 0 | P44: 0 | Q44: 0 | R44: 0 | S44: 0 | T44: 0 | U44: 0 | V44: 0 | W44: 0 | X44: 0 | Y44: 0 | Z44: 0 | AA44: 0 | AB44: 0 | AC44: 0 | AD44: 0 | AE44: 0 | AF44: 0 | AG44: 0 | AH44: 0 | AI44: 0 | AJ44: 0 | AK44: 0 | AL44: 0 | AM44: 0 | AN44: 0 | AO44: 0 | AP44: 0 | AQ44: 0 | AR44: 0 | AS44: 0 | AT44: 0 | AU44: 0 | AV44: 0 | AW44: 0 | AX44: 0 | AY44: 0 | AZ44: 0 | BA44: 0 | BB44: 0 | BC44: 0 | BD44: 0 | BE44: 0 | BF44: 0 | BG44: 0
G46: $ Basis Reminder | H46: $ Reminder | J46: Summary table above picks up this total row
B47: Total | G47: ='1_KMA'!$I$20 -> 2024-06-30 | H47: ='1_KMA'!$I$19 -> $millions | J47: =SUM(J41:J44) ->  | K47: =SUM(K41:K44) ->  | L47: =SUM(L41:L44) ->  | BG47: =SUM(BG41:BG44) -> 
B49: Capex Offset
J51: ="Capex offsets - ensure capex offsets have been converted to "&'1_KMA'!$I$19 -> Capex offsets - ensure capex offsets have been converted to $millions
B52: Name | G52: $ Basis Reminder | H52: $ Reminder | J52: Enter capex offsets as positive values as the spreadsheet later nets this off the gross amounts
B53: [e.g. Government subsidy] | G53: ='1_KMA'!$I$20 -> 2024-06-30 | H53: ='1_KMA'!$I$19 -> $millions
B54: [e.g. Customer contribution] | G54: ='1_KMA'!$I$20 -> 2024-06-30 | H54: ='1_KMA'!$I$19 -> $millions
G55: ='1_KMA'!$I$20 -> 2024-06-30 | H55: ='1_KMA'!$I$19 -> $millions
G56: ='1_KMA'!$I$20 -> 2024-06-30 | H56: ='1_KMA'!$I$19 -> $millions
G58: $ Basis Reminder | H58: $ Reminder | J58: Summary table above picks up this total row
B59: Total | G59: ='1_KMA'!$I$20 -> 2024-06-30 | H59: ='1_KMA'!$I$19 -> $millions | J59: =SUM(J53:J56) -> 0 | K59: =SUM(K53:K56) -> 0 | L59: =SUM(L53:L56) -> 0 | M59: 0 | N59: 0 | O59: 0 | P59: 0 | Q59: 0 | R59: 0 | S59: 0 | T59: 0 | U59: 0 | V59: 0 | W59: 0 | X59: 0 | Y59: 0 | Z59: 0 | AA59: 0 | AB59: 0 | AC59: 0 | AD59: 0 | AE59: 0 | AF59: 0 | AG59: 0 | AH59: 0 | AI59: 0 | AJ59: 0 | AK59: 0 | AL59: 0 | AM59: 0 | AN59: 0 | AO59: 0 | AP59: 0 | AQ59: 0 | AR59: 0 | AS59: 0 | AT59: 0 | AU59: 0 | AV59: 0 | AW59: 0 | AX59: 0 | AY59: 0 | AZ59: 0 | BA59: 0 | BB59: 0 | BC59: 0 | BD59: 0 | BE59: 0 | BF59: 0 | BG59: 0
B61: Opex Build Up
B63: Name | H63: Unit | J63: Value
B64: Additional PMO costs | H64: $million for each dedicated PMO FTE | J64: NA
B65: Additional resources to improve data quality | H65: $million for each dedicated data FTE | J65: NA
B66: Customer impacts | H66: $million for each customer impact | J66: NA
B67: Compliance impacts | H67: $million for each customer impact | J67: NA
B69: Name | H69: Unit | J69: Quantities
B70: =B64 -> Additional PMO costs | H70: Number of dedicated PMO FTE | J70: 0 | K70: 0 | L70: 0 | M70: 0 | N70: 0 | O70: 0 | P70: 2 | Q70: 2 | R70: 2 | S70: 1 | T70: 1 | U70: 0 | V70: 0 | W70: 0 | X70: 0 | Y70: 0 | Z70: 0 | AA70: 0
B71: Additional resources to improve data quality | H71: Number of dedicated data quality FTE | J71: 0 | O71: ='2.1_BC'!O71 -> 0 | Z71: 0 | AA71: 0
B72: Customer impacts | H72: Number of customers impacted | N72: ='2.1_BC'!N72 -> 0 | O72: ='2.1_BC'!O72 -> 0 | P72: ='2.1_BC'!P72 -> 0 | Q72: ='2.1_BC'!Q72 -> 0 | R72: 1000 | S72: 1000
B73: Compliance impacts | H73: Breaches (1 for a civil penalty breach, 30 for a significant licence breach) | P73: 1 | Q73: 30
B75: Name | G75: $ Basis Reminder | H75: $ Reminder | J75: ="Costs - ensure costs have been converted to "&'1_KMA'!$I$19 -> Costs - ensure costs have been converted to $millions
B76: =B64 -> Additional PMO costs | G76: ='1_KMA'!$I$20 -> 2024-06-30 | H76: ='1_KMA'!$I$19 -> $millions | J76: =$J$64*J70 ->  | K76: =$J$64*K70 ->  | L76: =$J$64*L70 ->  | M76: =$J$64*M70 -> 
B77: Additional resources to improve data quality | G77: ='1_KMA'!$I$20 -> 2024-06-30 | H77: ='1_KMA'!$I$19 -> $millions | J77: =$J$65*J71 ->  | K77: =$J$65*K71 ->  | L77: =$J$65*L71 ->  | M77: =$J$65*M71 -> 
B78: Customer impacts | G78: ='1_KMA'!$I$20 -> 2024-06-30 | H78: ='1_KMA'!$I$19 -> $millions | J78: =$J$66*J72 ->  | K78: =$J$66*K72 ->  | L78: =$J$66*L72 -> 
B79: Compliance impacts | G79: ='1_KMA'!$I$20 -> 2024-06-30 | H79: ='1_KMA'!$I$19 -> $millions | J79: =$J$67*J73 ->  | K79: =$J$67*K73 ->  | L79: =$J$67*L73 -> 
G81: $ Basis Reminder | H81: $ Reminder | J81: Summary table above picks up this total row
B82: Total | G82: ='1_KMA'!$I$20 -> 2024-06-30 | H82: ='1_KMA'!$I$19 -> $millions | J82: =SUM(J76:J79) ->  | K82: =SUM(K76:K79) ->  | L82: =SUM(L76:L79) ->  | BG82: =SUM(BG76:BG79) -> 
B84: Benefits Inputs
B86: Value of EUE
J88: ="Values - ensure values have been converted to "&'1_KMA'!$I$19 -> Values - ensure values have been converted to $millions
G89: $ Basis Reminder | H89: $ Reminder | J89: Enter this as a positive value, as the spreadsheet later converts this to a negative benefit
B90: Value of Expected Unserved Energy (EUE) | G90: ='1_KMA'!$I$20 -> 2024-06-30 | H90: ='1_KMA'!$I$19 -> $millions
G92: $ Basis Reminder | H92: $ Reminder | J92: Summary table above picks up this total row
B93: Total | G93: ='1_KMA'!$I$20 -> 2024-06-30 | H93: ='1_KMA'!$I$19 -> $millions | J93: =J90 -> 0 | K93: =K90 -> 0 | L93: 0 | M93: 0 | N93: 0 | O93: 0 | P93: 0 | Q93: 0 | R93: 0 | S93: 0 | T93: 0 | U93: 0 | V93: 0 | W93: 0 | X93: 0 | Y93: 0 | Z93: 0 | AA93: 0 | AB93: 0 | AC93: 0 | AD93: 0 | AE93: 0 | AF93: 0 | AG93: 0 | AH93: 0 | AI93: 0 | AJ93: 0 | AK93: 0 | AL93: 0 | AM93: 0 | AN93: 0 | AO93: 0 | AP93: 0 | AQ93: 0 | AR93: 0 | AS93: 0 | AT93: 0 | AU93: 0 | AV93: 0 | AW93: 0 | AX93: 0 | AY93: 0 | AZ93: 0 | BA93: 0 | BB93: 0 | BC93: 0 | BD93: 0 | BE93: 0 | BF93: 0 | BG93: 0
B95: Reliability
B97: QCV research | H97: Unit | J97: Unit Rate
B98: Fewer unplanned outages, less than 12 hours
B99: Fewer unplanned outages in the worst served areas
H102: Unit | J102: Quantities
B103: Fewer unplanned outages, less than 12 hours
B104: Fewer unplanned outages in the worst served areas
G106: $ Basis Reminder | H106: $ Reminder | J106: ="Values - ensure values have been converted to "&'1_KMA'!$I$19 -> Values - ensure values have been converted to $millions
B107: Fewer unplanned outages, less than 12 hours | G107: ='1_KMA'!$I$20 -> 2024-06-30 | H107: ='1_KMA'!$I$19 -> $millions | J107: =J103*$J$98 -> 0 | K107: =K103*$J$98 -> 0 | L107: =L103*$J$98 -> 0 | M107: =M103*$J$98 -> 0 | N107: 0 | O107: =O103*$J$98 -> 0 | P107: 0 | Q107: 0 | R107: 0 | S107: 0 | T107: 0 | U107: 0 | V107: 0 | W107: 0 | X107: 0 | Y107: 0 | Z107: 0 | AA107: 0 | AB107: 0 | AC107: 0 | AD107: 0 | AE107: 0 | AF107: 0 | AG107: 0 | AH107: 0 | AI107: 0 | AJ107: 0 | AK107: 0 | AL107: 0 | AM107: 0 | AN107: 0 | AO107: 0 | AP107: 0 | AQ107: 0 | AR107: 0 | AS107: 0 | AT107: 0 | AU107: 0 | AV107: 0 | AW107: 0 | AX107: 0 | AY107: 0 | AZ107: 0 | BA107: 0 | BB107: 0 | BC107: 0 | BD107: 0 | BE107: 0 | BF107: 0 | BG107: 0
B108: Fewer unplanned outages in the worst served areas | G108: ='1_KMA'!$I$20 -> 2024-06-30 | H108: ='1_KMA'!$I$19 -> $millions | J108: =J104*$J$99 -> 0 | K108: =K104*$J$99 -> 0 | L108: =L104*$J$99 -> 0 | M108: =M104*$J$99 -> 0 | N108: 0 | O108: =O104*$J$99 -> 0 | P108: 0 | Q108: 0 | R108: 0 | S108: 0 | T108: 0 | U108: 0 | V108: 0 | W108: 0 | X108: 0 | Y108: 0 | Z108: 0 | AA108: 0 | AB108: 0 | AC108: 0 | AD108: 0 | AE108: 0 | AF108: 0 | AG108: 0 | AH108: 0 | AI108: 0 | AJ108: 0 | AK108: 0 | AL108: 0 | AM108: 0 | AN108: 0 | AO108: 0 | AP108: 0 | AQ108: 0 | AR108: 0 | AS108: 0 | AT108: 0 | AU108: 0 | AV108: 0 | AW108: 0 | AX108: 0 | AY108: 0 | AZ108: 0 | BA108: 0 | BB108: 0 | BC108: 0 | BD108: 0 | BE108: 0 | BF108: 0 | BG108: 0
G110: $ Basis Reminder | H110: $ Reminder | J110: Summary table above picks up this total row
B111: Total | G111: ='1_KMA'!$I$20 -> 2024-06-30 | H111: ='1_KMA'!$I$19 -> $millions | J111: =SUM(J107:J108) -> 0 | K111: =SUM(K107:K108) -> 0 | L111: 0 | M111: 0 | N111: 0 | O111: 0 | P111: 0 | Q111: 0 | R111: 0 | S111: 0 | T111: 0 | U111: 0 | V111: 0 | W111: 0 | X111: 0 | Y111: 0 | Z111: 0 | AA111: 0 | AB111: 0 | AC111: 0 | AD111: 0 | AE111: 0 | AF111: 0 | AG111: 0 | AH111: 0 | AI111: 0 | AJ111: 0 | AK111: 0 | AL111: 0 | AM111: 0 | AN111: 0 | AO111: 0 | AP111: 0 | AQ111: 0 | AR111: 0 | AS111: 0 | AT111: 0 | AU111: 0 | AV111: 0 | AW111: 0 | AX111: 0 | AY111: 0 | AZ111: 0 | BA111: 0 | BB111: 0 | BC111: 0 | BD111: 0 | BE111: 0 | BF111: 0 | BG111: 0
B113: Resilience
B115: QCV research | H115: Unit | J115: Unit Rate
B116: Fewer unplanned outages, longer than 12 hours
B117: Faster restoration of power when an outage has occurred
B118: Community hub offering essential services during long duration outages
H121: Unit | J121: Quantities
B122: Fewer unplanned outages, longer than 12 hours
B123: Faster restoration of power when an outage has occurred
B124: Community hub offering essential services
G126: $ Basis Reminder | H126: $ Reminder | J126: ="Values - ensure values have been converted to "&'1_KMA'!$I$19 -> Values - ensure values have been converted to $millions
B127: Fewer unplanned outages, longer than 12 hours | G127: ='1_KMA'!$I$20 -> 2024-06-30 | H127: ='1_KMA'!$I$19 -> $millions | J127: =J122*'2.1_Op3'!$J$116 -> 0 | K127: =K122*'2.1_Op3'!$J$116 -> 0 | L127: =L122*'2.1_Op3'!$J$116 -> 0 | M127: =M122*'2.1_Op3'!$J$116 -> 0 | N127: =N122*'2.1_Op3'!$J$116 -> 0 | O127: =O122*'2.1_Op3'!$J$116 -> 0 | P127: =P122*'2.1_Op3'!$J$116 -> 0 | Q127: =Q122*'2.1_Op3'!$J$116 -> 0 | R127: =R122*'2.1_Op3'!$J$116 -> 0 | S127: =S122*'2.1_Op3'!$J$116 -> 0 | T127: =T122*'2.1_Op3'!$J$116 -> 0 | U127: =U122*'2.1_Op3'!$J$116 -> 0 | V127: =V122*'2.1_Op3'!$J$116 -> 0 | W127: =W122*'2.1_Op3'!$J$116 -> 0 | X127: =X122*'2.1_Op3'!$J$116 -> 0 | Y127: =Y122*'2.1_Op3'!$J$116 -> 0 | Z127: =Z122*'2.1_Op3'!$J$116 -> 0 | AA127: =AA122*'2.1_Op3'!$J$116 -> 0 | AB127: =AB122*'2.1_Op3'!$J$116 -> 0 | AC127: =AC122*'2.1_Op3'!$J$116 -> 0 | AD127: =AD122*'2.1_Op3'!$J$116 -> 0 | AE127: =AE122*'2.1_Op3'!$J$116 -> 0 | AF127: =AF122*'2.1_Op3'!$J$116 -> 0 | AG127: =AG122*'2.1_Op3'!$J$116 -> 0 | AH127: =AH122*'2.1_Op3'!$J$116 -> 0 | AI127: =AI122*'2.1_Op3'!$J$116 -> 0 | AJ127: =AJ122*'2.1_Op3'!$J$116 -> 0 | AK127: =AK122*'2.1_Op3'!$J$116 -> 0 | AL127: =AL122*'2.1_Op3'!$J$116 -> 0 | AM127: =AM122*'2.1_Op3'!$J$116 -> 0 | AN127: =AN122*'2.1_Op3'!$J$116 -> 0 | AO127: =AO122*'2.1_Op3'!$J$116 -> 0 | AP127: =AP122*'2.1_Op3'!$J$116 -> 0 | AQ127: =AQ122*'2.1_Op3'!$J$116 -> 0 | AR127: =AR122*'2.1_Op3'!$J$116 -> 0 | AS127: =AS122*'2.1_Op3'!$J$116 -> 0 | AT127: =AT122*'2.1_Op3'!$J$116 -> 0 | AU127: =AU122*'2.1_Op3'!$J$116 -> 0 | AV127: =AV122*'2.1_Op3'!$J$116 -> 0 | AW127: =AW122*'2.1_Op3'!$J$116 -> 0 | AX127: =AX122*'2.1_Op3'!$J$116 -> 0 | AY127: =AY122*'2.1_Op3'!$J$116 -> 0 | AZ127: =AZ122*'2.1_Op3'!$J$116 -> 0 | BA127: =BA122*'2.1_Op3'!$J$116 -> 0 | BB127: =BB122*'2.1_Op3'!$J$116 -> 0 | BC127: =BC122*'2.1_Op3'!$J$116 -> 0 | BD127: =BD122*'2.1_Op3'!$J$116 -> 0 | BE127: =BE122*'2.1_Op3'!$J$116 -> 0 | BF127: =BF122*'2.1_Op3'!$J$116 -> 0 | BG127: =BG122*'2.1_Op3'!$J$116 -> 0
B128: Faster restoration of power when an outage has occurred | G128: ='1_KMA'!$I$20 -> 2024-06-30 | H128: ='1_KMA'!$I$19 -> $millions | J128: =J123*'2.1_Op3'!$J$117 -> 0 | K128: =K123*'2.1_Op3'!$J$117 -> 0 | L128: =L123*'2.1_Op3'!$J$117 -> 0 | M128: =M123*'2.1_Op3'!$J$117 -> 0 | N128: =N123*'2.1_Op3'!$J$117 -> 0 | O128: =O123*'2.1_Op3'!$J$117 -> 0 | P128: =P123*'2.1_Op3'!$J$117 -> 0 | Q128: =Q123*'2.1_Op3'!$J$117 -> 0 | R128: =R123*'2.1_Op3'!$J$117 -> 0 | S128: =S123*'2.1_Op3'!$J$117 -> 0 | T128: =T123*'2.1_Op3'!$J$117 -> 0 | U128: =U123*'2.1_Op3'!$J$117 -> 0 | V128: =V123*'2.1_Op3'!$J$117 -> 0 | W128: =W123*'2.1_Op3'!$J$117 -> 0 | X128: =X123*'2.1_Op3'!$J$117 -> 0 | Y128: =Y123*'2.1_Op3'!$J$117 -> 0 | Z128: =Z123*'2.1_Op3'!$J$117 -> 0 | AA128: =AA123*'2.1_Op3'!$J$117 -> 0 | AB128: =AB123*'2.1_Op3'!$J$117 -> 0 | AC128: =AC123*'2.1_Op3'!$J$117 -> 0 | AD128: =AD123*'2.1_Op3'!$J$117 -> 0 | AE128: =AE123*'2.1_Op3'!$J$117 -> 0 | AF128: =AF123*'2.1_Op3'!$J$117 -> 0 | AG128: =AG123*'2.1_Op3'!$J$117 -> 0 | AH128: =AH123*'2.1_Op3'!$J$117 -> 0 | AI128: =AI123*'2.1_Op3'!$J$117 -> 0 | AJ128: =AJ123*'2.1_Op3'!$J$117 -> 0 | AK128: =AK123*'2.1_Op3'!$J$117 -> 0 | AL128: =AL123*'2.1_Op3'!$J$117 -> 0 | AM128: =AM123*'2.1_Op3'!$J$117 -> 0 | AN128: =AN123*'2.1_Op3'!$J$117 -> 0 | AO128: =AO123*'2.1_Op3'!$J$117 -> 0 | AP128: =AP123*'2.1_Op3'!$J$117 -> 0 | AQ128: =AQ123*'2.1_Op3'!$J$117 -> 0 | AR128: =AR123*'2.1_Op3'!$J$117 -> 0 | AS128: =AS123*'2.1_Op3'!$J$117 -> 0 | AT128: =AT123*'2.1_Op3'!$J$117 -> 0 | AU128: =AU123*'2.1_Op3'!$J$117 -> 0 | AV128: =AV123*'2.1_Op3'!$J$117 -> 0 | AW128: =AW123*'2.1_Op3'!$J$117 -> 0 | AX128: =AX123*'2.1_Op3'!$J$117 -> 0 | AY128: =AY123*'2.1_Op3'!$J$117 -> 0 | AZ128: =AZ123*'2.1_Op3'!$J$117 -> 0 | BA128: =BA123*'2.1_Op3'!$J$117 -> 0 | BB128: =BB123*'2.1_Op3'!$J$117 -> 0 | BC128: =BC123*'2.1_Op3'!$J$117 -> 0 | BD128: =BD123*'2.1_Op3'!$J$117 -> 0 | BE128: =BE123*'2.1_Op3'!$J$117 -> 0 | BF128: =BF123*'2.1_Op3'!$J$117 -> 0 | BG128: =BG123*'2.1_Op3'!$J$117 -> 0
B129: Community hub offering essential services | G129: ='1_KMA'!$I$20 -> 2024-06-30 | H129: ='1_KMA'!$I$19 -> $millions | J129: =J124*'2.1_Op3'!$J$118 -> 0 | K129: =K124*'2.1_Op3'!$J$118 -> 0 | L129: =L124*'2.1_Op3'!$J$118 -> 0 | M129: =M124*'2.1_Op3'!$J$118 -> 0 | N129: =N124*'2.1_Op3'!$J$118 -> 0 | O129: =O124*'2.1_Op3'!$J$118 -> 0 | P129: =P124*'2.1_Op3'!$J$118 -> 0 | Q129: =Q124*'2.1_Op3'!$J$118 -> 0 | R129: =R124*'2.1_Op3'!$J$118 -> 0 | S129: =S124*'2.1_Op3'!$J$118 -> 0 | T129: =T124*'2.1_Op3'!$J$118 -> 0 | U129: =U124*'2.1_Op3'!$J$118 -> 0 | V129: =V124*'2.1_Op3'!$J$118 -> 0 | W129: =W124*'2.1_Op3'!$J$118 -> 0 | X129: =X124*'2.1_Op3'!$J$118 -> 0 | Y129: =Y124*'2.1_Op3'!$J$118 -> 0 | Z129: =Z124*'2.1_Op3'!$J$118 -> 0 | AA129: =AA124*'2.1_Op3'!$J$118 -> 0 | AB129: =AB124*'2.1_Op3'!$J$118 -> 0 | AC129: =AC124*'2.1_Op3'!$J$118 -> 0 | AD129: =AD124*'2.1_Op3'!$J$118 -> 0 | AE129: =AE124*'2.1_Op3'!$J$118 -> 0 | AF129: =AF124*'2.1_Op3'!$J$118 -> 0 | AG129: =AG124*'2.1_Op3'!$J$118 -> 0 | AH129: =AH124*'2.1_Op3'!$J$118 -> 0 | AI129: =AI124*'2.1_Op3'!$J$118 -> 0 | AJ129: =AJ124*'2.1_Op3'!$J$118 -> 0 | AK129: =AK124*'2.1_Op3'!$J$118 -> 0 | AL129: =AL124*'2.1_Op3'!$J$118 -> 0 | AM129: =AM124*'2.1_Op3'!$J$118 -> 0 | AN129: =AN124*'2.1_Op3'!$J$118 -> 0 | AO129: =AO124*'2.1_Op3'!$J$118 -> 0 | AP129: =AP124*'2.1_Op3'!$J$118 -> 0 | AQ129: =AQ124*'2.1_Op3'!$J$118 -> 0 | AR129: =AR124*'2.1_Op3'!$J$118 -> 0 | AS129: =AS124*'2.1_Op3'!$J$118 -> 0 | AT129: =AT124*'2.1_Op3'!$J$118 -> 0 | AU129: =AU124*'2.1_Op3'!$J$118 -> 0 | AV129: =AV124*'2.1_Op3'!$J$118 -> 0 | AW129: =AW124*'2.1_Op3'!$J$118 -> 0 | AX129: =AX124*'2.1_Op3'!$J$118 -> 0 | AY129: =AY124*'2.1_Op3'!$J$118 -> 0 | AZ129: =AZ124*'2.1_Op3'!$J$118 -> 0 | BA129: =BA124*'2.1_Op3'!$J$118 -> 0 | BB129: =BB124*'2.1_Op3'!$J$118 -> 0 | BC129: =BC124*'2.1_Op3'!$J$118 -> 0 | BD129: =BD124*'2.1_Op3'!$J$118 -> 0 | BE129: =BE124*'2.1_Op3'!$J$118 -> 0 | BF129: =BF124*'2.1_Op3'!$J$118 -> 0 | BG129: =BG124*'2.1_Op3'!$J$118 -> 0
G131: $ Basis Reminder | H131: $ Reminder | J131: Summary table above picks up this total row
B132: Total | G132: ='1_KMA'!$I$20 -> 2024-06-30 | H132: ='1_KMA'!$I$19 -> $millions | J132: =SUM(J127:J129) -> 0 | K132: =SUM(K127:K129) -> 0 | L132: 0 | M132: 0 | N132: 0 | O132: 0 | P132: 0 | Q132: 0 | R132: 0 | S132: 0 | T132: 0 | U132: 0 | V132: 0 | W132: 0 | X132: 0 | Y132: 0 | Z132: 0 | AA132: 0 | AB132: 0 | AC132: 0 | AD132: 0 | AE132: 0 | AF132: 0 | AG132: 0 | AH132: 0 | AI132: 0 | AJ132: 0 | AK132: 0 | AL132: 0 | AM132: 0 | AN132: 0 | AO132: 0 | AP132: 0 | AQ132: 0 | AR132: 0 | AS132: 0 | AT132: 0 | AU132: 0 | AV132: 0 | AW132: 0 | AX132: 0 | AY132: 0 | AZ132: 0 | BA132: 0 | BB132: 0 | BC132: 0 | BD132: 0 | BE132: 0 | BF132: 0 | BG132: 0
B134: Batteries
B136: AusNet Savings from Wholesale Arbitrage
H137: Unit | J137: Value
B138: Wholesale market price differential | H138: [e.g. $dollars per MWh]
B139: AusNet Share in Wholesale arbitrage | H139: [e.g. %]
B140: Average annual battery derating | H140: [e.g. % p.a.]
H142: Unit | J142: Location 1 | K142: Location 2 | L142: Location 3 | M142: Location 4 | N142: Location 5
B143: Battery Rating | H143: kW
B144: Battery Rating | H144: hr
B145: Battery Rating | H145: kWh | J145: =J143*J144 -> 0 | K145: =K143*K144 -> 0 | L145: =L143*L144 -> 0 | M145: =M143*M144 -> 0 | N145: =N143*N144 -> 0
B146: Retailer benefit by wholesale arbitrage | H146: [e.g. $millions, $thousands or $dollars per year] | J146: =J145*$J$138*0.8*5*52/1000 -> 0 | K146: =K145*$J$138*0.8*5*52/1000 -> 0 | L146: =L145*$J$138*0.8*5*52/1000 -> 0 | M146: =M145*$J$138*0.8*5*52/1000 -> 0 | N146: =N145*$J$138*0.8*5*52/1000 -> 0
G148: $ Basis Reminder | H148: $ Reminder | J148: ="Values - ensure values have been converted to "&'1_KMA'!$I$19 -> Values - ensure values have been converted to $millions
B149: AusNet Savings from Wholesale Arbitrage | G149: ='1_KMA'!$I$20 -> 2024-06-30 | H149: ='1_KMA'!$I$19 -> $millions | J149: =(SUM($J$146:$N$146)*$J$139*(1/(1+$J$140)^(J4-1)))/10^6 -> 0 | K149: =(SUM($J$146:$N$146)*$J$139*(1/(1+$J$140)^(K4-1)))/10^6 -> 0 | L149: 0 | M149: 0 | N149: 0 | O149: 0 | P149: 0 | Q149: 0 | R149: 0 | S149: 0 | T149: 0 | U149: 0 | V149: 0 | W149: 0 | X149: 0 | Y149: 0 | Z149: 0 | AA149: 0 | AB149: 0 | AC149: 0 | AD149: 0 | AE149: 0 | AF149: 0 | AG149: 0 | AH149: 0 | AI149: 0 | AJ149: 0 | AK149: 0 | AL149: 0 | AM149: 0 | AN149: 0 | AO149: 0 | AP149: 0 | AQ149: 0 | AR149: 0 | AS149: 0 | AT149: 0 | AU149: 0 | AV149: 0 | AW149: 0 | AX149: 0 | AY149: 0 | AZ149: 0 | BA149: 0 | BB149: 0 | BC149: 0 | BD149: 0 | BE149: 0 | BF149: 0 | BG149: 0
B151: AusNet Revenue from FCAS
H152: Unit | J152: Value
B153: FCAS participation price | H153: [e.g. $ollars per MW per hour] | J153: ='2.1_Op1'!J153*3 -> 0
B154: Average annual participation All batteries | H154: [e.g. MW per hour] | J154: ='2.1_Op1'!J154 -> 0
G156: $ Basis Reminder | H156: $ Reminder | J156: ="Values - ensure values have been converted to "&'1_KMA'!$I$19 -> Values - ensure values have been converted to $millions
B157: AusNet Revenue from FCAS | G157: ='1_KMA'!$I$20 -> 2024-06-30 | H157: ='1_KMA'!$I$19 -> $millions | J157: =$J$153*$J$154/10^6 -> 0 | K157: =$J$153*$J$154/10^6 -> 0 | L157: 0 | M157: 0 | N157: 0 | O157: 0 | P157: 0 | Q157: 0 | R157: 0 | S157: 0 | T157: 0 | U157: 0 | V157: 0 | W157: 0 | X157: 0 | Y157: 0 | Z157: 0 | AA157: 0 | AB157: 0 | AC157: 0 | AD157: 0 | AE157: 0 | AF157: 0 | AG157: 0 | AH157: 0 | AI157: 0 | AJ157: 0 | AK157: 0 | AL157: 0 | AM157: 0 | AN157: 0 | AO157: 0 | AP157: 0 | AQ157: 0 | AR157: 0 | AS157: 0 | AT157: 0 | AU157: 0 | AV157: 0 | AW157: 0 | AX157: 0 | AY157: 0 | AZ157: 0 | BA157: 0 | BB157: 0 | BC157: 0 | BD157: 0 | BE157: 0 | BF157: 0 | BG157: 0
B159: AusNet Savings from Avoided Penalties
H160: Unit | J160: Location 1 | K160: Location 2 | L160: Location 3 | M160: Location 4 | N160: Location 5
B161: Number of average outage events | H161: [e.g. Events per year]
B162: Average Ausnet penalty for outage | H162: [e.g. $dollars per event]
G164: $ Basis Reminder | H164: $ Reminder | J164: ="Values - ensure values have been converted to "&'1_KMA'!$I$19 -> Values - ensure values have been converted to $millions
B165: Ausnet Savings from Avoided Penalties | G165: ='1_KMA'!$I$20 -> 2024-06-30 | H165: ='1_KMA'!$I$19 -> $millions | J165: =SUMPRODUCT($J$161:$N$161,$J$162:$N$162)/10^6 -> 0 | K165: =SUMPRODUCT($J$161:$N$161,$J$162:$N$162)/10^6 -> 0 | L165: 0 | M165: 0 | N165: 0 | O165: 0 | P165: 0 | Q165: 0 | R165: 0 | S165: 0 | T165: 0 | U165: 0 | V165: 0 | W165: 0 | X165: 0 | Y165: 0 | Z165: 0 | AA165: 0 | AB165: 0 | AC165: 0 | AD165: 0 | AE165: 0 | AF165: 0 | AG165: 0 | AH165: 0 | AI165: 0 | AJ165: 0 | AK165: 0 | AL165: 0 | AM165: 0 | AN165: 0 | AO165: 0 | AP165: 0 | AQ165: 0 | AR165: 0 | AS165: 0 | AT165: 0 | AU165: 0 | AV165: 0 | AW165: 0 | AX165: 0 | AY165: 0 | AZ165: 0 | BA165: 0 | BB165: 0 | BC165: 0 | BD165: 0 | BE165: 0 | BF165: 0 | BG165: 0
G167: $ Basis Reminder | H167: $ Reminder | J167: Summary table above picks up this total row
B168: Total | G168: ='1_KMA'!$I$20 -> 2024-06-30 | H168: ='1_KMA'!$I$19 -> $millions | J168: =J149+J157+J165 -> 0 | K168: =K149+K157+K165 -> 0 | L168: 0 | M168: 0 | N168: 0 | O168: 0 | P168: 0 | Q168: 0 | R168: 0 | S168: 0 | T168: 0 | U168: 0 | V168: 0 | W168: 0 | X168: 0 | Y168: 0 | Z168: 0 | AA168: 0 | AB168: 0 | AC168: 0 | AD168: 0 | AE168: 0 | AF168: 0 | AG168: 0 | AH168: 0 | AI168: 0 | AJ168: 0 | AK168: 0 | AL168: 0 | AM168: 0 | AN168: 0 | AO168: 0 | AP168: 0 | AQ168: 0 | AR168: 0 | AS168: 0 | AT168: 0 | AU168: 0 | AV168: 0 | AW168: 0 | AX168: 0 | AY168: 0 | AZ168: 0 | BA168: 0 | BB168: 0 | BC168: 0 | BD168: 0 | BE168: 0 | BF168: 0 | BG168: 0
B170: Others

Sheet 2.1_Op4 (hidden)
B1: General Inputs: Option 4 | I1: Regulatory Period Indicator | J1: ='1_KMA'!J30 -> 0 | K1: ='1_KMA'!K30 -> 0 | L1: ='1_KMA'!L30 -> 1 | M1: ='1_KMA'!M30 -> 1 | N1: ='1_KMA'!N30 -> 1 | O1: ='1_KMA'!O30 -> 1 | P1: ='1_KMA'!P30 -> 1 | Q1: ='1_KMA'!Q30 -> 0 | R1: ='1_KMA'!R30 -> 0 | S1: ='1_KMA'!S30 -> 0 | T1: ='1_KMA'!T30 -> 0 | U1: ='1_KMA'!U30 -> 0 | V1: ='1_KMA'!V30 -> 0 | W1: ='1_KMA'!W30 -> 0 | X1: ='1_KMA'!X30 -> 0 | Y1: ='1_KMA'!Y30 -> 0 | Z1: ='1_KMA'!Z30 -> 0 | AA1: ='1_KMA'!AA30 -> 0 | AB1: ='1_KMA'!AB30 -> 0 | AC1: ='1_KMA'!AC30 -> 0 | AD1: ='1_KMA'!AD30 -> 0 | AE1: ='1_KMA'!AE30 -> 0 | AF1: ='1_KMA'!AF30 -> 0 | AG1: ='1_KMA'!AG30 -> 0 | AH1: ='1_KMA'!AH30 -> 0 | AI1: ='1_KMA'!AI30 -> 0 | AJ1: ='1_KMA'!AJ30 -> 0 | AK1: ='1_KMA'!AK30 -> 0 | AL1: ='1_KMA'!AL30 -> 0 | AM1: ='1_KMA'!AM30 -> 0 | AN1: ='1_KMA'!AN30 -> 0 | AO1: ='1_KMA'!AO30 -> 0 | AP1: ='1_KMA'!AP30 -> 0 | AQ1: ='1_KMA'!AQ30 -> 0 | AR1: ='1_KMA'!AR30 -> 0 | AS1: ='1_KMA'!AS30 -> 0 | AT1: ='1_KMA'!AT30 -> 0 | AU1: ='1_KMA'!AU30 -> 0 | AV1: ='1_KMA'!AV30 -> 0 | AW1: ='1_KMA'!AW30 -> 0 | AX1: ='1_KMA'!AX30 -> 0 | AY1: ='1_KMA'!AY30 -> 0 | AZ1: ='1_KMA'!AZ30 -> 0 | BA1: ='1_KMA'!BA30 -> 0 | BB1: ='1_KMA'!BB30 -> 0 | BC1: ='1_KMA'!BC30 -> 0 | BD1: ='1_KMA'!BD30 -> 0 | BE1: ='1_KMA'!BE30 -> 0 | BF1: ='1_KMA'!BF30 -> 0 | BG1: ='1_KMA'!BG30 -> 0
B2: =Cover!$C$9 -> AusNet Services | I2: Period Start Date | J2: ='1_KMA'!J31 -> 2024-07-01 | K2: ='1_KMA'!K31 -> 2025-07-01 | L2: ='1_KMA'!L31 -> 2026-07-01 | M2: ='1_KMA'!M31 -> 2027-07-01 | N2: ='1_KMA'!N31 -> 2028-07-01 | O2: ='1_KMA'!O31 -> 2029-07-01 | P2: ='1_KMA'!P31 -> 2030-07-01 | Q2: ='1_KMA'!Q31 -> 2031-07-01 | R2: ='1_KMA'!R31 -> 2032-07-01 | S2: ='1_KMA'!S31 -> 2033-07-01 | T2: ='1_KMA'!T31 -> 2034-07-01 | U2: ='1_KMA'!U31 -> 2035-07-01 | V2: ='1_KMA'!V31 -> 2036-07-01 | W2: ='1_KMA'!W31 -> 2037-07-01 | X2: ='1_KMA'!X31 -> 2038-07-01 | Y2: ='1_KMA'!Y31 -> 2039-07-01 | Z2: ='1_KMA'!Z31 -> 2040-07-01 | AA2: ='1_KMA'!AA31 -> 2041-07-01 | AB2: ='1_KMA'!AB31 -> 2042-07-01 | AC2: ='1_KMA'!AC31 -> 2043-07-01 | AD2: ='1_KMA'!AD31 -> 2044-07-01 | AE2: ='1_KMA'!AE31 -> 2045-07-01 | AF2: ='1_KMA'!AF31 -> 2046-07-01 | AG2: ='1_KMA'!AG31 -> 2047-07-01 | AH2: ='1_KMA'!AH31 -> 2048-07-01 | AI2: ='1_KMA'!AI31 -> 2049-07-01 | AJ2: ='1_KMA'!AJ31 -> 2050-07-01 | AK2: ='1_KMA'!AK31 -> 2051-07-01 | AL2: ='1_KMA'!AL31 -> 2052-07-01 | AM2: ='1_KMA'!AM31 -> 2053-07-01 | AN2: ='1_KMA'!AN31 -> 2054-07-01 | AO2: ='1_KMA'!AO31 -> 2055-07-01 | AP2: ='1_KMA'!AP31 -> 2056-07-01 | AQ2: ='1_KMA'!AQ31 -> 2057-07-01 | AR2: ='1_KMA'!AR31 -> 2058-07-01 | AS2: ='1_KMA'!AS31 -> 2059-07-01 | AT2: ='1_KMA'!AT31 -> 2060-07-01 | AU2: ='1_KMA'!AU31 -> 2061-07-01 | AV2: ='1_KMA'!AV31 -> 2062-07-01 | AW2: ='1_KMA'!AW31 -> 2063-07-01 | AX2: ='1_KMA'!AX31 -> 2064-07-01 | AY2: ='1_KMA'!AY31 -> 2065-07-01 | AZ2: ='1_KMA'!AZ31 -> 2066-07-01 | BA2: ='1_KMA'!BA31 -> 2067-07-01 | BB2: ='1_KMA'!BB31 -> 2068-07-01 | BC2: ='1_KMA'!BC31 -> 2069-07-01 | BD2: ='1_KMA'!BD31 -> 2070-07-01 | BE2: ='1_KMA'!BE31 -> 2071-07-01 | BF2: ='1_KMA'!BF31 -> 2072-07-01 | BG2: ='1_KMA'!BG31 -> 2073-07-01
B3: =Cover!$C$10 -> Business Case Evaluation | I3: Period End Date | J3: ='1_KMA'!J32 -> 2025-06-30 | K3: ='1_KMA'!K32 -> 2026-06-30 | L3: ='1_KMA'!L32 -> 2027-06-30 | M3: ='1_KMA'!M32 -> 2028-06-30 | N3: ='1_KMA'!N32 -> 2029-06-30 | O3: ='1_KMA'!O32 -> 2030-06-30 | P3: ='1_KMA'!P32 -> 2031-06-30 | Q3: ='1_KMA'!Q32 -> 2032-06-30 | R3: ='1_KMA'!R32 -> 2033-06-30 | S3: ='1_KMA'!S32 -> 2034-06-30 | T3: ='1_KMA'!T32 -> 2035-06-30 | U3: ='1_KMA'!U32 -> 2036-06-30 | V3: ='1_KMA'!V32 -> 2037-06-30 | W3: ='1_KMA'!W32 -> 2038-06-30 | X3: ='1_KMA'!X32 -> 2039-06-30 | Y3: ='1_KMA'!Y32 -> 2040-06-30 | Z3: ='1_KMA'!Z32 -> 2041-06-30 | AA3: ='1_KMA'!AA32 -> 2042-06-30 | AB3: ='1_KMA'!AB32 -> 2043-06-30 | AC3: ='1_KMA'!AC32 -> 2044-06-30 | AD3: ='1_KMA'!AD32 -> 2045-06-30 | AE3: ='1_KMA'!AE32 -> 2046-06-30 | AF3: ='1_KMA'!AF32 -> 2047-06-30 | AG3: ='1_KMA'!AG32 -> 2048-06-30 | AH3: ='1_KMA'!AH32 -> 2049-06-30 | AI3: ='1_KMA'!AI32 -> 2050-06-30 | AJ3: ='1_KMA'!AJ32 -> 2051-06-30 | AK3: ='1_KMA'!AK32 -> 2052-06-30 | AL3: ='1_KMA'!AL32 -> 2053-06-30 | AM3: ='1_KMA'!AM32 -> 2054-06-30 | AN3: ='1_KMA'!AN32 -> 2055-06-30 | AO3: ='1_KMA'!AO32 -> 2056-06-30 | AP3: ='1_KMA'!AP32 -> 2057-06-30 | AQ3: ='1_KMA'!AQ32 -> 2058-06-30 | AR3: ='1_KMA'!AR32 -> 2059-06-30 | AS3: ='1_KMA'!AS32 -> 2060-06-30 | AT3: ='1_KMA'!AT32 -> 2061-06-30 | AU3: ='1_KMA'!AU32 -> 2062-06-30 | AV3: ='1_KMA'!AV32 -> 2063-06-30 | AW3: ='1_KMA'!AW32 -> 2064-06-30 | AX3: ='1_KMA'!AX32 -> 2065-06-30 | AY3: ='1_KMA'!AY32 -> 2066-06-30 | AZ3: ='1_KMA'!AZ32 -> 2067-06-30 | BA3: ='1_KMA'!BA32 -> 2068-06-30 | BB3: ='1_KMA'!BB32 -> 2069-06-30 | BC3: ='1_KMA'!BC32 -> 2070-06-30 | BD3: ='1_KMA'!BD32 -> 2071-06-30 | BE3: ='1_KMA'!BE32 -> 2072-06-30 | BF3: ='1_KMA'!BF32 -> 2073-06-30 | BG3: ='1_KMA'!BG32 -> 2074-06-30
B4: =Cover!$C$11 -> Smart meter 13 yr bulk replacement | I4: Project Year | J4: ='1_KMA'!J33 -> 1 | K4: ='1_KMA'!K33 -> 2 | L4: ='1_KMA'!L33 -> 3 | M4: ='1_KMA'!M33 -> 4 | N4: ='1_KMA'!N33 -> 5 | O4: ='1_KMA'!O33 -> 6 | P4: ='1_KMA'!P33 -> 7 | Q4: ='1_KMA'!Q33 -> 8 | R4: ='1_KMA'!R33 -> 9 | S4: ='1_KMA'!S33 -> 10 | T4: ='1_KMA'!T33 -> 11 | U4: ='1_KMA'!U33 -> 12 | V4: ='1_KMA'!V33 -> 13 | W4: ='1_KMA'!W33 -> 14 | X4: ='1_KMA'!X33 -> 15 | Y4: ='1_KMA'!Y33 -> 16 | Z4: ='1_KMA'!Z33 -> 17 | AA4: ='1_KMA'!AA33 -> 18 | AB4: ='1_KMA'!AB33 -> 19 | AC4: ='1_KMA'!AC33 -> 20 | AD4: ='1_KMA'!AD33 -> 21 | AE4: ='1_KMA'!AE33 -> 22 | AF4: ='1_KMA'!AF33 -> 23 | AG4: ='1_KMA'!AG33 -> 24 | AH4: ='1_KMA'!AH33 -> 25 | AI4: ='1_KMA'!AI33 -> 26 | AJ4: ='1_KMA'!AJ33 -> 27 | AK4: ='1_KMA'!AK33 -> 28 | AL4: ='1_KMA'!AL33 -> 29 | AM4: ='1_KMA'!AM33 -> 30 | AN4: ='1_KMA'!AN33 -> 31 | AO4: ='1_KMA'!AO33 -> 32 | AP4: ='1_KMA'!AP33 -> 33 | AQ4: ='1_KMA'!AQ33 -> 34 | AR4: ='1_KMA'!AR33 -> 35 | AS4: ='1_KMA'!AS33 -> 36 | AT4: ='1_KMA'!AT33 -> 37 | AU4: ='1_KMA'!AU33 -> 38 | AV4: ='1_KMA'!AV33 -> 39 | AW4: ='1_KMA'!AW33 -> 40 | AX4: ='1_KMA'!AX33 -> 41 | AY4: ='1_KMA'!AY33 -> 42 | AZ4: ='1_KMA'!AZ33 -> 43 | BA4: ='1_KMA'!BA33 -> 44 | BB4: ='1_KMA'!BB33 -> 45 | BC4: ='1_KMA'!BC33 -> 46 | BD4: ='1_KMA'!BD33 -> 47 | BE4: ='1_KMA'!BE33 -> 48 | BF4: ='1_KMA'!BF33 -> 49 | BG4: ='1_KMA'!BG33 -> 50
I5: Financial Year | J5: ='1_KMA'!J34 -> 2025 | K5: ='1_KMA'!K34 -> 2026 | L5: ='1_KMA'!L34 -> 2027 | M5: ='1_KMA'!M34 -> 2028 | N5: ='1_KMA'!N34 -> 2029 | O5: ='1_KMA'!O34 -> 2030 | P5: ='1_KMA'!P34 -> 2031 | Q5: ='1_KMA'!Q34 -> 2032 | R5: ='1_KMA'!R34 -> 2033 | S5: ='1_KMA'!S34 -> 2034 | T5: ='1_KMA'!T34 -> 2035 | U5: ='1_KMA'!U34 -> 2036 | V5: ='1_KMA'!V34 -> 2037 | W5: ='1_KMA'!W34 -> 2038 | X5: ='1_KMA'!X34 -> 2039 | Y5: ='1_KMA'!Y34 -> 2040 | Z5: ='1_KMA'!Z34 -> 2041 | AA5: ='1_KMA'!AA34 -> 2042 | AB5: ='1_KMA'!AB34 -> 2043 | AC5: ='1_KMA'!AC34 -> 2044 | AD5: ='1_KMA'!AD34 -> 2045 | AE5: ='1_KMA'!AE34 -> 2046 | AF5: ='1_KMA'!AF34 -> 2047 | AG5: ='1_KMA'!AG34 -> 2048 | AH5: ='1_KMA'!AH34 -> 2049 | AI5: ='1_KMA'!AI34 -> 2050 | AJ5: ='1_KMA'!AJ34 -> 2051 | AK5: ='1_KMA'!AK34 -> 2052 | AL5: ='1_KMA'!AL34 -> 2053 | AM5: ='1_KMA'!AM34 -> 2054 | AN5: ='1_KMA'!AN34 -> 2055 | AO5: ='1_KMA'!AO34 -> 2056 | AP5: ='1_KMA'!AP34 -> 2057 | AQ5: ='1_KMA'!AQ34 -> 2058 | AR5: ='1_KMA'!AR34 -> 2059 | AS5: ='1_KMA'!AS34 -> 2060 | AT5: ='1_KMA'!AT34 -> 2061 | AU5: ='1_KMA'!AU34 -> 2062 | AV5: ='1_KMA'!AV34 -> 2063 | AW5: ='1_KMA'!AW34 -> 2064 | AX5: ='1_KMA'!AX34 -> 2065 | AY5: ='1_KMA'!AY34 -> 2066 | AZ5: ='1_KMA'!AZ34 -> 2067 | BA5: ='1_KMA'!BA34 -> 2068 | BB5: ='1_KMA'!BB34 -> 2069 | BC5: ='1_KMA'!BC34 -> 2070 | BD5: ='1_KMA'!BD34 -> 2071 | BE5: ='1_KMA'!BE34 -> 2072 | BF5: ='1_KMA'!BF34 -> 2073 | BG5: ='1_KMA'!BG34 -> 2074
B7: Summary
B9: Costs | G9: $ Basis Reminder | H9: $ Reminder | J9: ="Ensure this section [Summary] is picking up the relevant rows" -> Ensure this section [Summary] is picking up the relevant rows
B10: Capex | G10: ='1_KMA'!$I$20 -> 2024-06-30 | H10: ='1_KMA'!$I$19 -> $millions | J10: =J47 -> 0 | K10: =K47 -> 0 | L10: 0 | M10: 0 | N10: 0 | O10: 0 | P10: 0 | Q10: 0 | R10: 0 | S10: 0 | T10: 0 | U10: 0 | V10: 0 | W10: 0 | X10: 0 | Y10: 0 | Z10: 0 | AA10: 0 | AB10: 0 | AC10: 0 | AD10: 0 | AE10: 0 | AF10: 0 | AG10: 0 | AH10: 0 | AI10: 0 | AJ10: 0 | AK10: 0 | AL10: 0 | AM10: 0 | AN10: 0 | AO10: 0 | AP10: 0 | AQ10: 0 | AR10: 0 | AS10: 0 | AT10: 0 | AU10: 0 | AV10: 0 | AW10: 0 | AX10: 0 | AY10: 0 | AZ10: 0 | BA10: 0 | BB10: 0 | BC10: 0 | BD10: 0 | BE10: 0 | BF10: 0 | BG10: 0
B11: Capex offset | G11: ='1_KMA'!$I$20 -> 2024-06-30 | H11: ='1_KMA'!$I$19 -> $millions | J11: =-J59 -> 0 | K11: =-K59 -> 0 | L11: 0 | M11: 0 | N11: 0 | O11: 0 | P11: 0 | Q11: 0 | R11: 0 | S11: 0 | T11: 0 | U11: 0 | V11: 0 | W11: 0 | X11: 0 | Y11: 0 | Z11: 0 | AA11: 0 | AB11: 0 | AC11: 0 | AD11: 0 | AE11: 0 | AF11: 0 | AG11: 0 | AH11: 0 | AI11: 0 | AJ11: 0 | AK11: 0 | AL11: 0 | AM11: 0 | AN11: 0 | AO11: 0 | AP11: 0 | AQ11: 0 | AR11: 0 | AS11: 0 | AT11: 0 | AU11: 0 | AV11: 0 | AW11: 0 | AX11: 0 | AY11: 0 | AZ11: 0 | BA11: 0 | BB11: 0 | BC11: 0 | BD11: 0 | BE11: 0 | BF11: 0 | BG11: 0
B12: Opex | G12: ='1_KMA'!$I$20 -> 2024-06-30 | H12: ='1_KMA'!$I$19 -> $millions | J12: =J82 -> 0 | K12: =K82 -> 0 | L12: 0.2 | M12: 0.2 | N12: 0.2 | O12: 0.2 | P12: 0.2 | Q12: 0 | R12: 0 | S12: 0 | T12: 0 | U12: 0 | V12: 0 | W12: 0 | X12: 0 | Y12: 0 | Z12: 0 | AA12: 0 | AB12: 0 | AC12: 0 | AD12: 0 | AE12: 0 | AF12: 0 | AG12: 0 | AH12: 0 | AI12: 0 | AJ12: 0 | AK12: 0 | AL12: 0 | AM12: 0 | AN12: 0 | AO12: 0 | AP12: 0 | AQ12: 0 | AR12: 0 | AS12: 0 | AT12: 0 | AU12: 0 | AV12: 0 | AW12: 0 | AX12: 0 | AY12: 0 | AZ12: 0 | BA12: 0 | BB12: 0 | BC12: 0 | BD12: 0 | BE12: 0 | BF12: 0 | BG12: 0
B13: Total | G13: ='1_KMA'!$I$20 -> 2024-06-30 | H13: ='1_KMA'!$I$19 -> $millions | J13: =SUM(J10:J12) -> 0 | K13: =SUM(K10:K12) -> 0 | L13: 0.2 | M13: 0.2 | N13: 0.2 | O13: 0.2 | P13: 0.2 | Q13: 0 | R13: 0 | S13: 0 | T13: 0 | U13: 0 | V13: 0 | W13: 0 | X13: 0 | Y13: 0 | Z13: 0 | AA13: 0 | AB13: 0 | AC13: 0 | AD13: 0 | AE13: 0 | AF13: 0 | AG13: 0 | AH13: 0 | AI13: 0 | AJ13: 0 | AK13: 0 | AL13: 0 | AM13: 0 | AN13: 0 | AO13: 0 | AP13: 0 | AQ13: 0 | AR13: 0 | AS13: 0 | AT13: 0 | AU13: 0 | AV13: 0 | AW13: 0 | AX13: 0 | AY13: 0 | AZ13: 0 | BA13: 0 | BB13: 0 | BC13: 0 | BD13: 0 | BE13: 0 | BF13: 0 | BG13: 0
B15: Benefits | G15: $ Basis Reminder | H15: $ Reminder | J15: ="Ensure this section [Summary] is picking up the relevant rows" -> Ensure this section [Summary] is picking up the relevant rows
B16: Value of EUE | G16: ='1_KMA'!$I$20 -> 2024-06-30 | H16: ='1_KMA'!$I$19 -> $millions | J16: =-J93 -> 0 | K16: =-K93 -> 0 | L16: 0 | M16: 0 | N16: 0 | O16: 0 | P16: 0 | Q16: 0 | R16: 0 | S16: 0 | T16: 0 | U16: 0 | V16: 0 | W16: 0 | X16: 0 | Y16: 0 | Z16: 0 | AA16: 0 | AB16: 0 | AC16: 0 | AD16: 0 | AE16: 0 | AF16: 0 | AG16: 0 | AH16: 0 | AI16: 0 | AJ16: 0 | AK16: 0 | AL16: 0 | AM16: 0 | AN16: 0 | AO16: 0 | AP16: 0 | AQ16: 0 | AR16: 0 | AS16: 0 | AT16: 0 | AU16: 0 | AV16: 0 | AW16: 0 | AX16: 0 | AY16: 0 | AZ16: 0 | BA16: 0 | BB16: 0 | BC16: 0 | BD16: 0 | BE16: 0 | BF16: 0 | BG16: 0
B17: Reliability | G17: ='1_KMA'!$I$20 -> 2024-06-30 | H17: ='1_KMA'!$I$19 -> $millions | J17: =J111 -> 0 | K17: =K111 -> 0 | L17: 0 | M17: 0 | N17: 0 | O17: 0 | P17: 0 | Q17: 0 | R17: 0 | S17: 0 | T17: 0 | U17: 0 | V17: 0 | W17: 0 | X17: 0 | Y17: 0 | Z17: 0 | AA17: 0 | AB17: 0 | AC17: 0 | AD17: 0 | AE17: 0 | AF17: 0 | AG17: 0 | AH17: 0 | AI17: 0 | AJ17: 0 | AK17: 0 | AL17: 0 | AM17: 0 | AN17: 0 | AO17: 0 | AP17: 0 | AQ17: 0 | AR17: 0 | AS17: 0 | AT17: 0 | AU17: 0 | AV17: 0 | AW17: 0 | AX17: 0 | AY17: 0 | AZ17: 0 | BA17: 0 | BB17: 0 | BC17: 0 | BD17: 0 | BE17: 0 | BF17: 0 | BG17: 0
B18: Resilience | G18: ='1_KMA'!$I$20 -> 2024-06-30 | H18: ='1_KMA'!$I$19 -> $millions | J18: =J132 -> 0 | K18: =K132 -> 0 | L18: 0 | M18: 0 | N18: 0 | O18: 0 | P18: 0 | Q18: 0 | R18: 0 | S18: 0 | T18: 0 | U18: 0 | V18: 0 | W18: 0 | X18: 0 | Y18: 0 | Z18: 0 | AA18: 0 | AB18: 0 | AC18: 0 | AD18: 0 | AE18: 0 | AF18: 0 | AG18: 0 | AH18: 0 | AI18: 0 | AJ18: 0 | AK18: 0 | AL18: 0 | AM18: 0 | AN18: 0 | AO18: 0 | AP18: 0 | AQ18: 0 | AR18: 0 | AS18: 0 | AT18: 0 | AU18: 0 | AV18: 0 | AW18: 0 | AX18: 0 | AY18: 0 | AZ18: 0 | BA18: 0 | BB18: 0 | BC18: 0 | BD18: 0 | BE18: 0 | BF18: 0 | BG18: 0
B19: Batteries | G19: ='1_KMA'!$I$20 -> 2024-06-30 | H19: ='1_KMA'!$I$19 -> $millions | J19: =J168 -> 0 | K19: =K168 -> 0 | L19: 0 | M19: 0 | N19: 0 | O19: 0 | P19: 0 | Q19: 0 | R19: 0 | S19: 0 | T19: 0 | U19: 0 | V19: 0 | W19: 0 | X19: 0 | Y19: 0 | Z19: 0 | AA19: 0 | AB19: 0 | AC19: 0 | AD19: 0 | AE19: 0 | AF19: 0 | AG19: 0 | AH19: 0 | AI19: 0 | AJ19: 0 | AK19: 0 | AL19: 0 | AM19: 0 | AN19: 0 | AO19: 0 | AP19: 0 | AQ19: 0 | AR19: 0 | AS19: 0 | AT19: 0 | AU19: 0 | AV19: 0 | AW19: 0 | AX19: 0 | AY19: 0 | AZ19: 0 | BA19: 0 | BB19: 0 | BC19: 0 | BD19: 0 | BE19: 0 | BF19: 0 | BG19: 0
B20: Others | G20: ='1_KMA'!$I$20 -> 2024-06-30 | H20: ='1_KMA'!$I$19 -> $millions
B21: Total | G21: ='1_KMA'!$I$20 -> 2024-06-30 | H21: ='1_KMA'!$I$19 -> $millions | J21: =SUM(J16:J20) -> 0 | K21: =SUM(K16:K20) -> 0 | L21: 0 | M21: 0 | N21: 0 | O21: 0 | P21: 0 | Q21: 0 | R21: 0 | S21: 0 | T21: 0 | U21: 0 | V21: 0 | W21: 0 | X21: 0 | Y21: 0 | Z21: 0 | AA21: 0 | AB21: 0 | AC21: 0 | AD21: 0 | AE21: 0 | AF21: 0 | AG21: 0 | AH21: 0 | AI21: 0 | AJ21: 0 | AK21: 0 | AL21: 0 | AM21: 0 | AN21: 0 | AO21: 0 | AP21: 0 | AQ21: 0 | AR21: 0 | AS21: 0 | AT21: 0 | AU21: 0 | AV21: 0 | AW21: 0 | AX21: 0 | AY21: 0 | AZ21: 0 | BA21: 0 | BB21: 0 | BC21: 0 | BD21: 0 | BE21: 0 | BF21: 0 | BG21: 0
B24: Cost Inputs
B26: Capex Build Up
B28: Name | H28: Unit | J28: Unit Rate
B29: Smart meter replacements (meter with comms card + labour) | H29: $million for each dedicated PMO FTE
H30: $million for each dedicated data FTE
H31: $million for each customer impact
H32: $million for each customer impact
B34: Name | H34: Unit
B35: =B29 -> Smart meter replacements (meter with comms card + labour) | H35: Number of dedicated PMO FTE
B36: =B30 -> 0 | H36: Number of dedicated data quality FTE
H37: Number of customers impacted
H38: Breaches (1 for a civil penalty breach, 30 for a significant licence breach)
B40: Name | G40: $ Basis Reminder | H40: $ Reminder | J40: ="Costs - ensure costs have been converted to "&'1_KMA'!$I$19 -> Costs - ensure costs have been converted to $millions
B41: =B29 -> Smart meter replacements (meter with comms card + labour) | G41: ='1_KMA'!$I$20 -> 2024-06-30 | H41: ='1_KMA'!$I$19 -> $millions | J41: =$J$29*J35 -> 0 | K41: =$J$29*K35 -> 0 | L41: =$J$29*L35 -> 0 | M41: =$J$29*M35 -> 0 | N41: 0 | O41: 0 | P41: 0 | Q41: 0 | R41: 0 | S41: 0 | T41: 0 | U41: 0 | V41: 0 | W41: 0 | X41: 0 | Y41: 0 | Z41: 0 | AA41: 0 | AB41: 0 | AC41: 0 | AD41: 0 | AE41: 0 | AF41: 0 | AG41: 0 | AH41: 0 | AI41: 0 | AJ41: 0 | AK41: 0 | AL41: 0 | AM41: 0 | AN41: 0 | AO41: 0 | AP41: 0 | AQ41: 0 | AR41: 0 | AS41: 0 | AT41: 0 | AU41: 0 | AV41: 0 | AW41: 0 | AX41: 0 | AY41: 0 | AZ41: 0 | BA41: 0 | BB41: 0 | BC41: 0 | BD41: 0 | BE41: 0 | BF41: 0 | BG41: 0
B42: =B30 -> 0 | G42: ='1_KMA'!$I$20 -> 2024-06-30 | H42: ='1_KMA'!$I$19 -> $millions | J42: =$J$30*J36 -> 0 | K42: =$J$30*K36 -> 0 | L42: =$J$30*L36 -> 0 | M42: =$J$30*M36 -> 0 | N42: 0 | O42: 0 | P42: 0 | Q42: 0 | R42: 0 | S42: 0 | T42: 0 | U42: 0 | V42: 0 | W42: 0 | X42: 0 | Y42: 0 | Z42: 0 | AA42: 0 | AB42: 0 | AC42: 0 | AD42: 0 | AE42: 0 | AF42: 0 | AG42: 0 | AH42: 0 | AI42: 0 | AJ42: 0 | AK42: 0 | AL42: 0 | AM42: 0 | AN42: 0 | AO42: 0 | AP42: 0 | AQ42: 0 | AR42: 0 | AS42: 0 | AT42: 0 | AU42: 0 | AV42: 0 | AW42: 0 | AX42: 0 | AY42: 0 | AZ42: 0 | BA42: 0 | BB42: 0 | BC42: 0 | BD42: 0 | BE42: 0 | BF42: 0 | BG42: 0
G43: ='1_KMA'!$I$20 -> 2024-06-30 | H43: ='1_KMA'!$I$19 -> $millions | J43: =$J$31*J37 -> 0 | K43: =$J$31*K37 -> 0 | L43: =$J$31*L37 -> 0 | M43: 0 | N43: 0 | O43: 0 | P43: 0 | Q43: 0 | R43: 0 | S43: 0 | T43: 0 | U43: 0 | V43: 0 | W43: 0 | X43: 0 | Y43: 0 | Z43: 0 | AA43: 0 | AB43: 0 | AC43: 0 | AD43: 0 | AE43: 0 | AF43: 0 | AG43: 0 | AH43: 0 | AI43: 0 | AJ43: 0 | AK43: 0 | AL43: 0 | AM43: 0 | AN43: 0 | AO43: 0 | AP43: 0 | AQ43: 0 | AR43: 0 | AS43: 0 | AT43: 0 | AU43: 0 | AV43: 0 | AW43: 0 | AX43: 0 | AY43: 0 | AZ43: 0 | BA43: 0 | BB43: 0 | BC43: 0 | BD43: 0 | BE43: 0 | BF43: 0 | BG43: 0
G44: ='1_KMA'!$I$20 -> 2024-06-30 | H44: ='1_KMA'!$I$19 -> $millions | J44: =$J$32*J38 -> 0 | K44: =$J$32*K38 -> 0 | L44: =$J$32*L38 -> 0 | M44: 0 | N44: 0 | O44: 0 | P44: 0 | Q44: 0 | R44: 0 | S44: 0 | T44: 0 | U44: 0 | V44: 0 | W44: 0 | X44: 0 | Y44: 0 | Z44: 0 | AA44: 0 | AB44: 0 | AC44: 0 | AD44: 0 | AE44: 0 | AF44: 0 | AG44: 0 | AH44: 0 | AI44: 0 | AJ44: 0 | AK44: 0 | AL44: 0 | AM44: 0 | AN44: 0 | AO44: 0 | AP44: 0 | AQ44: 0 | AR44: 0 | AS44: 0 | AT44: 0 | AU44: 0 | AV44: 0 | AW44: 0 | AX44: 0 | AY44: 0 | AZ44: 0 | BA44: 0 | BB44: 0 | BC44: 0 | BD44: 0 | BE44: 0 | BF44: 0 | BG44: 0
G46: $ Basis Reminder | H46: $ Reminder | J46: Summary table above picks up this total row
B47: Total | G47: ='1_KMA'!$I$20 -> 2024-06-30 | H47: ='1_KMA'!$I$19 -> $millions | J47: =SUM(J41:J44) -> 0 | K47: =SUM(K41:K44) -> 0 | L47: =SUM(L41:L44) -> 0 | M47: =SUM(M41:M44) -> 0 | N47: 0 | O47: 0 | P47: 0 | Q47: 0 | R47: 0 | S47: 0 | T47: 0 | U47: 0 | V47: 0 | W47: 0 | X47: 0 | Y47: 0 | Z47: 0 | AA47: 0 | AB47: 0 | AC47: 0 | AD47: 0 | AE47: 0 | AF47: 0 | AG47: 0 | AH47: 0 | AI47: 0 | AJ47: 0 | AK47: 0 | AL47: 0 | AM47: 0 | AN47: 0 | AO47: 0 | AP47: 0 | AQ47: 0 | AR47: 0 | AS47: 0 | AT47: 0 | AU47: 0 | AV47: 0 | AW47: 0 | AX47: 0 | AY47: 0 | AZ47: 0 | BA47: 0 | BB47: 0 | BC47: 0 | BD47: 0 | BE47: 0 | BF47: 0 | BG47: =SUM(BG41:BG44) -> 0
B49: Capex Offset
J51: ="Capex offsets - ensure capex offsets have been converted to "&'1_KMA'!$I$19 -> Capex offsets - ensure capex offsets have been converted to $millions
B52: Name | G52: $ Basis Reminder | H52: $ Reminder | J52: Enter capex offsets as positive values as the spreadsheet later nets this off the gross amounts
B53: [e.g. Government subsidy] | G53: ='1_KMA'!$I$20 -> 2024-06-30 | H53: ='1_KMA'!$I$19 -> $millions
B54: [e.g. Customer contribution] | G54: ='1_KMA'!$I$20 -> 2024-06-30 | H54: ='1_KMA'!$I$19 -> $millions
G55: ='1_KMA'!$I$20 -> 2024-06-30 | H55: ='1_KMA'!$I$19 -> $millions
G56: ='1_KMA'!$I$20 -> 2024-06-30 | H56: ='1_KMA'!$I$19 -> $millions
G58: $ Basis Reminder | H58: $ Reminder | J58: Summary table above picks up this total row
B59: Total | G59: ='1_KMA'!$I$20 -> 2024-06-30 | H59: ='1_KMA'!$I$19 -> $millions | J59: =SUM(J53:J56) -> 0 | K59: =SUM(K53:K56) -> 0 | L59: =SUM(L53:L56) -> 0 | M59: 0 | N59: 0 | O59: 0 | P59: 0 | Q59: 0 | R59: 0 | S59: 0 | T59: 0 | U59: 0 | V59: 0 | W59: 0 | X59: 0 | Y59: 0 | Z59: 0 | AA59: 0 | AB59: 0 | AC59: 0 | AD59: 0 | AE59: 0 | AF59: 0 | AG59: 0 | AH59: 0 | AI59: 0 | AJ59: 0 | AK59: 0 | AL59: 0 | AM59: 0 | AN59: 0 | AO59: 0 | AP59: 0 | AQ59: 0 | AR59: 0 | AS59: 0 | AT59: 0 | AU59: 0 | AV59: 0 | AW59: 0 | AX59: 0 | AY59: 0 | AZ59: 0 | BA59: 0 | BB59: 0 | BC59: 0 | BD59: 0 | BE59: 0 | BF59: 0 | BG59: 0
B61: Opex Build Up
B63: Name | H63: Unit | J63: Value
B64: Additional PMO costs | H64: $million for each dedicated PMO FTE | J64: 0.2
B65: Resolving time sync errors | H65: $millions per remote time sync issue resolution | J65: ='[3]Cost of fixing time sync errors'!$B$5/1000000 -> 1.258037923e-05
B69: Name | H69: Unit | J69: Quantities
B70: =B64 -> Additional PMO costs | H70: Number of dedicated PMO FTE | J70: 0 | K70: 0 | L70: 1 | M70: 1 | N70: 1 | O70: 1 | P70: 1 | Q70: 0 | R70: 0 | S70: 0 | T70: 0 | U70: 0 | V70: 0 | W70: 0 | X70: 0 | Y70: 0
B71: =B65 -> Resolving time sync errors | H71: count of time sync issues
B75: Name | G75: $ Basis Reminder | H75: $ Reminder | J75: ="Costs - ensure costs have been converted to "&'1_KMA'!$I$19 -> Costs - ensure costs have been converted to $millions
B76: =B64 -> Additional PMO costs | G76: ='1_KMA'!$I$20 -> 2024-06-30 | H76: ='1_KMA'!$I$19 -> $millions | J76: =$J$64*J70 -> 0 | K76: =$J$64*K70 -> 0 | L76: =$J$64*L70 -> 0.2 | M76: =$J$64*M70 -> 0.2 | N76: 0.2 | O76: 0.2 | P76: 0.2 | Q76: 0 | R76: 0 | S76: 0 | T76: 0 | U76: 0 | V76: 0 | W76: 0 | X76: 0 | Y76: 0 | Z76: 0 | AA76: 0 | AB76: 0 | AC76: 0 | AD76: 0 | AE76: 0 | AF76: 0 | AG76: 0 | AH76: 0 | AI76: 0 | AJ76: 0 | AK76: 0 | AL76: 0 | AM76: 0 | AN76: 0 | AO76: 0 | AP76: 0 | AQ76: 0 | AR76: 0 | AS76: 0 | AT76: 0 | AU76: 0 | AV76: 0 | AW76: 0 | AX76: 0 | AY76: 0 | AZ76: 0 | BA76: 0 | BB76: 0 | BC76: 0 | BD76: 0 | BE76: 0 | BF76: 0 | BG76: 0
B77: =B65 -> Resolving time sync errors | G77: ='1_KMA'!$I$20 -> 2024-06-30 | H77: ='1_KMA'!$I$19 -> $millions | J77: =$J$65*J71 -> 0 | K77: =$J$65*K71 -> 0 | L77: =$J$65*L71 -> 0 | M77: 0 | N77: =$J$65*N71 -> 0 | O77: 0 | P77: 0 | Q77: 0 | R77: 0 | S77: 0 | T77: 0 | U77: 0 | V77: 0 | W77: 0 | X77: 0 | Y77: 0 | Z77: 0 | AA77: 0 | AB77: 0 | AC77: 0 | AD77: 0 | AE77: 0 | AF77: 0 | AG77: 0 | AH77: 0 | AI77: 0 | AJ77: 0 | AK77: 0 | AL77: 0 | AM77: 0 | AN77: 0 | AO77: 0 | AP77: 0 | AQ77: 0 | AR77: 0 | AS77: 0 | AT77: 0 | AU77: 0 | AV77: 0 | AW77: 0 | AX77: 0 | AY77: 0 | AZ77: 0 | BA77: 0 | BB77: 0 | BC77: 0 | BD77: 0 | BE77: 0 | BF77: 0 | BG77: 0
G78: ='1_KMA'!$I$20 -> 2024-06-30 | H78: ='1_KMA'!$I$19 -> $millions | J78: =$J$66*J72 -> 0 | K78: =$J$66*K72 -> 0 | L78: =$J$66*L72 -> 0 | M78: 0 | N78: 0 | O78: 0 | P78: 0 | Q78: 0 | R78: 0 | S78: 0 | T78: 0 | U78: 0 | V78: 0 | W78: 0 | X78: 0 | Y78: 0 | Z78: 0 | AA78: 0 | AB78: 0 | AC78: 0 | AD78: 0 | AE78: 0 | AF78: 0 | AG78: 0 | AH78: 0 | AI78: 0 | AJ78: 0 | AK78: 0 | AL78: 0 | AM78: 0 | AN78: 0 | AO78: 0 | AP78: 0 | AQ78: 0 | AR78: 0 | AS78: 0 | AT78: 0 | AU78: 0 | AV78: 0 | AW78: 0 | AX78: 0 | AY78: 0 | AZ78: 0 | BA78: 0 | BB78: 0 | BC78: 0 | BD78: 0 | BE78: 0 | BF78: 0 | BG78: 0
G79: ='1_KMA'!$I$20 -> 2024-06-30 | H79: ='1_KMA'!$I$19 -> $millions | J79: =$J$67*J73 -> 0 | K79: =$J$67*K73 -> 0 | L79: =$J$67*L73 -> 0 | M79: 0 | N79: 0 | O79: 0 | P79: 0 | Q79: 0 | R79: 0 | S79: 0 | T79: 0 | U79: 0 | V79: 0 | W79: 0 | X79: 0 | Y79: 0 | Z79: 0 | AA79: 0 | AB79: 0 | AC79: 0 | AD79: 0 | AE79: 0 | AF79: 0 | AG79: 0 | AH79: 0 | AI79: 0 | AJ79: 0 | AK79: 0 | AL79: 0 | AM79: 0 | AN79: 0 | AO79: 0 | AP79: 0 | AQ79: 0 | AR79: 0 | AS79: 0 | AT79: 0 | AU79: 0 | AV79: 0 | AW79: 0 | AX79: 0 | AY79: 0 | AZ79: 0 | BA79: 0 | BB79: 0 | BC79: 0 | BD79: 0 | BE79: 0 | BF79: 0 | BG79: 0
G81: $ Basis Reminder | H81: $ Reminder | J81: Summary table above picks up this total row
B82: Total | G82: ='1_KMA'!$I$20 -> 2024-06-30 | H82: ='1_KMA'!$I$19 -> $millions | J82: =SUM(J76:J79) -> 0 | K82: =SUM(K76:K79) -> 0 | L82: =SUM(L76:L79) -> 0.2 | M82: 0.2 | N82: 0.2 | O82: 0.2 | P82: 0.2 | Q82: 0 | R82: 0 | S82: 0 | T82: 0 | U82: 0 | V82: 0 | W82: 0 | X82: 0 | Y82: 0 | Z82: 0 | AA82: 0 | AB82: 0 | AC82: 0 | AD82: 0 | AE82: 0 | AF82: 0 | AG82: 0 | AH82: 0 | AI82: 0 | AJ82: 0 | AK82: 0 | AL82: 0 | AM82: 0 | AN82: 0 | AO82: 0 | AP82: 0 | AQ82: 0 | AR82: 0 | AS82: 0 | AT82: 0 | AU82: 0 | AV82: 0 | AW82: 0 | AX82: 0 | AY82: 0 | AZ82: 0 | BA82: 0 | BB82: 0 | BC82: 0 | BD82: 0 | BE82: 0 | BF82: 0 | BG82: =SUM(BG76:BG79) -> 0
B84: Benefits Inputs
B86: Value of EUE
J88: ="Values - ensure values have been converted to "&'1_KMA'!$I$19 -> Values - ensure values have been converted to $millions
G89: $ Basis Reminder | H89: $ Reminder | J89: Enter this as a positive value, as the spreadsheet later converts this to a negative benefit
B90: Value of Expected Unserved Energy (EUE) | G90: ='1_KMA'!$I$20 -> 2024-06-30 | H90: ='1_KMA'!$I$19 -> $millions
G92: $ Basis Reminder | H92: $ Reminder | J92: Summary table above picks up this total row
B93: Total | G93: ='1_KMA'!$I$20 -> 2024-06-30 | H93: ='1_KMA'!$I$19 -> $millions | J93: =J90 -> 0 | K93: =K90 -> 0 | L93: 0 | M93: 0 | N93: 0 | O93: 0 | P93: 0 | Q93: 0 | R93: 0 | S93: 0 | T93: 0 | U93: 0 | V93: 0 | W93: 0 | X93: 0 | Y93: 0 | Z93: 0 | AA93: 0 | AB93: 0 | AC93: 0 | AD93: 0 | AE93: 0 | AF93: 0 | AG93: 0 | AH93: 0 | AI93: 0 | AJ93: 0 | AK93: 0 | AL93: 0 | AM93: 0 | AN93: 0 | AO93: 0 | AP93: 0 | AQ93: 0 | AR93: 0 | AS93: 0 | AT93: 0 | AU93: 0 | AV93: 0 | AW93: 0 | AX93: 0 | AY93: 0 | AZ93: 0 | BA93: 0 | BB93: 0 | BC93: 0 | BD93: 0 | BE93: 0 | BF93: 0 | BG93: 0
B95: Reliability
B97: QCV research | H97: Unit | J97: Unit Rate
B98: Fewer unplanned outages, less than 12 hours
B99: Fewer unplanned outages in the worst served areas
H102: Unit | J102: Quantities
B103: Fewer unplanned outages, less than 12 hours
B104: Fewer unplanned outages in the worst served areas
G106: $ Basis Reminder | H106: $ Reminder | J106: ="Values - ensure values have been converted to "&'1_KMA'!$I$19 -> Values - ensure values have been converted to $millions
B107: Fewer unplanned outages, less than 12 hours | G107: ='1_KMA'!$I$20 -> 2024-06-30 | H107: ='1_KMA'!$I$19 -> $millions | J107: =J103*$J$98 -> 0 | K107: =K103*$J$98 -> 0 | L107: =L103*$J$98 -> 0 | M107: =M103*$J$98 -> 0 | N107: 0 | O107: =O103*$J$98 -> 0 | P107: 0 | Q107: 0 | R107: 0 | S107: 0 | T107: 0 | U107: 0 | V107: 0 | W107: 0 | X107: 0 | Y107: 0 | Z107: 0 | AA107: 0 | AB107: 0 | AC107: 0 | AD107: 0 | AE107: 0 | AF107: 0 | AG107: 0 | AH107: 0 | AI107: 0 | AJ107: 0 | AK107: 0 | AL107: 0 | AM107: 0 | AN107: 0 | AO107: 0 | AP107: 0 | AQ107: 0 | AR107: 0 | AS107: 0 | AT107: 0 | AU107: 0 | AV107: 0 | AW107: 0 | AX107: 0 | AY107: 0 | AZ107: 0 | BA107: 0 | BB107: 0 | BC107: 0 | BD107: 0 | BE107: 0 | BF107: 0 | BG107: 0
B108: Fewer unplanned outages in the worst served areas | G108: ='1_KMA'!$I$20 -> 2024-06-30 | H108: ='1_KMA'!$I$19 -> $millions | J108: =J104*$J$99 -> 0 | K108: =K104*$J$99 -> 0 | L108: =L104*$J$99 -> 0 | M108: =M104*$J$99 -> 0 | N108: 0 | O108: =O104*$J$99 -> 0 | P108: 0 | Q108: 0 | R108: 0 | S108: 0 | T108: 0 | U108: 0 | V108: 0 | W108: 0 | X108: 0 | Y108: 0 | Z108: 0 | AA108: 0 | AB108: 0 | AC108: 0 | AD108: 0 | AE108: 0 | AF108: 0 | AG108: 0 | AH108: 0 | AI108: 0 | AJ108: 0 | AK108: 0 | AL108: 0 | AM108: 0 | AN108: 0 | AO108: 0 | AP108: 0 | AQ108: 0 | AR108: 0 | AS108: 0 | AT108: 0 | AU108: 0 | AV108: 0 | AW108: 0 | AX108: 0 | AY108: 0 | AZ108: 0 | BA108: 0 | BB108: 0 | BC108: 0 | BD108: 0 | BE108: 0 | BF108: 0 | BG108: 0
G110: $ Basis Reminder | H110: $ Reminder | J110: Summary table above picks up this total row
B111: Total | G111: ='1_KMA'!$I$20 -> 2024-06-30 | H111: ='1_KMA'!$I$19 -> $millions | J111: =SUM(J107:J108) -> 0 | K111: =SUM(K107:K108) -> 0 | L111: 0 | M111: 0 | N111: 0 | O111: 0 | P111: 0 | Q111: 0 | R111: 0 | S111: 0 | T111: 0 | U111: 0 | V111: 0 | W111: 0 | X111: 0 | Y111: 0 | Z111: 0 | AA111: 0 | AB111: 0 | AC111: 0 | AD111: 0 | AE111: 0 | AF111: 0 | AG111: 0 | AH111: 0 | AI111: 0 | AJ111: 0 | AK111: 0 | AL111: 0 | AM111: 0 | AN111: 0 | AO111: 0 | AP111: 0 | AQ111: 0 | AR111: 0 | AS111: 0 | AT111: 0 | AU111: 0 | AV111: 0 | AW111: 0 | AX111: 0 | AY111: 0 | AZ111: 0 | BA111: 0 | BB111: 0 | BC111: 0 | BD111: 0 | BE111: 0 | BF111: 0 | BG111: 0
B113: Resilience
B115: QCV research | H115: Unit | J115: Unit Rate
B116: Fewer unplanned outages, longer than 12 hours
B117: Faster restoration of power when an outage has occurred
B118: Community hub offering essential services during long duration outages
H121: Unit | J121: Quantities
B122: Fewer unplanned outages, longer than 12 hours
B123: Faster restoration of power when an outage has occurred
B124: Community hub offering essential services
G126: $ Basis Reminder | H126: $ Reminder | J126: ="Values - ensure values have been converted to "&'1_KMA'!$I$19 -> Values - ensure values have been converted to $millions
B127: Fewer unplanned outages, longer than 12 hours | G127: ='1_KMA'!$I$20 -> 2024-06-30 | H127: ='1_KMA'!$I$19 -> $millions | J127: =J122*'2.1_Op4'!$J$116 -> 0 | K127: =K122*'2.1_Op4'!$J$116 -> 0 | L127: =L122*'2.1_Op4'!$J$116 -> 0 | M127: =M122*'2.1_Op4'!$J$116 -> 0 | N127: =N122*'2.1_Op4'!$J$116 -> 0 | O127: =O122*'2.1_Op4'!$J$116 -> 0 | P127: =P122*'2.1_Op4'!$J$116 -> 0 | Q127: =Q122*'2.1_Op4'!$J$116 -> 0 | R127: =R122*'2.1_Op4'!$J$116 -> 0 | S127: =S122*'2.1_Op4'!$J$116 -> 0 | T127: =T122*'2.1_Op4'!$J$116 -> 0 | U127: =U122*'2.1_Op4'!$J$116 -> 0 | V127: =V122*'2.1_Op4'!$J$116 -> 0 | W127: =W122*'2.1_Op4'!$J$116 -> 0 | X127: =X122*'2.1_Op4'!$J$116 -> 0 | Y127: =Y122*'2.1_Op4'!$J$116 -> 0 | Z127: =Z122*'2.1_Op4'!$J$116 -> 0 | AA127: =AA122*'2.1_Op4'!$J$116 -> 0 | AB127: =AB122*'2.1_Op4'!$J$116 -> 0 | AC127: =AC122*'2.1_Op4'!$J$116 -> 0 | AD127: =AD122*'2.1_Op4'!$J$116 -> 0 | AE127: =AE122*'2.1_Op4'!$J$116 -> 0 | AF127: =AF122*'2.1_Op4'!$J$116 -> 0 | AG127: =AG122*'2.1_Op4'!$J$116 -> 0 | AH127: =AH122*'2.1_Op4'!$J$116 -> 0 | AI127: =AI122*'2.1_Op4'!$J$116 -> 0 | AJ127: =AJ122*'2.1_Op4'!$J$116 -> 0 | AK127: =AK122*'2.1_Op4'!$J$116 -> 0 | AL127: =AL122*'2.1_Op4'!$J$116 -> 0 | AM127: =AM122*'2.1_Op4'!$J$116 -> 0 | AN127: =AN122*'2.1_Op4'!$J$116 -> 0 | AO127: =AO122*'2.1_Op4'!$J$116 -> 0 | AP127: =AP122*'2.1_Op4'!$J$116 -> 0 | AQ127: =AQ122*'2.1_Op4'!$J$116 -> 0 | AR127: =AR122*'2.1_Op4'!$J$116 -> 0 | AS127: =AS122*'2.1_Op4'!$J$116 -> 0 | AT127: =AT122*'2.1_Op4'!$J$116 -> 0 | AU127: =AU122*'2.1_Op4'!$J$116 -> 0 | AV127: =AV122*'2.1_Op4'!$J$116 -> 0 | AW127: =AW122*'2.1_Op4'!$J$116 -> 0 | AX127: =AX122*'2.1_Op4'!$J$116 -> 0 | AY127: =AY122*'2.1_Op4'!$J$116 -> 0 | AZ127: =AZ122*'2.1_Op4'!$J$116 -> 0 | BA127: =BA122*'2.1_Op4'!$J$116 -> 0 | BB127: =BB122*'2.1_Op4'!$J$116 -> 0 | BC127: =BC122*'2.1_Op4'!$J$116 -> 0 | BD127: =BD122*'2.1_Op4'!$J$116 -> 0 | BE127: =BE122*'2.1_Op4'!$J$116 -> 0 | BF127: =BF122*'2.1_Op4'!$J$116 -> 0 | BG127: =BG122*'2.1_Op4'!$J$116 -> 0
B128: Faster restoration of power when an outage has occurred | G128: ='1_KMA'!$I$20 -> 2024-06-30 | H128: ='1_KMA'!$I$19 -> $millions | J128: =J123*'2.1_Op4'!$J$117 -> 0 | K128: =K123*'2.1_Op4'!$J$117 -> 0 | L128: =L123*'2.1_Op4'!$J$117 -> 0 | M128: =M123*'2.1_Op4'!$J$117 -> 0 | N128: =N123*'2.1_Op4'!$J$117 -> 0 | O128: =O123*'2.1_Op4'!$J$117 -> 0 | P128: =P123*'2.1_Op4'!$J$117 -> 0 | Q128: =Q123*'2.1_Op4'!$J$117 -> 0 | R128: =R123*'2.1_Op4'!$J$117 -> 0 | S128: =S123*'2.1_Op4'!$J$117 -> 0 | T128: =T123*'2.1_Op4'!$J$117 -> 0 | U128: =U123*'2.1_Op4'!$J$117 -> 0 | V128: =V123*'2.1_Op4'!$J$117 -> 0 | W128: =W123*'2.1_Op4'!$J$117 -> 0 | X128: =X123*'2.1_Op4'!$J$117 -> 0 | Y128: =Y123*'2.1_Op4'!$J$117 -> 0 | Z128: =Z123*'2.1_Op4'!$J$117 -> 0 | AA128: =AA123*'2.1_Op4'!$J$117 -> 0 | AB128: =AB123*'2.1_Op4'!$J$117 -> 0 | AC128: =AC123*'2.1_Op4'!$J$117 -> 0 | AD128: =AD123*'2.1_Op4'!$J$117 -> 0 | AE128: =AE123*'2.1_Op4'!$J$117 -> 0 | AF128: =AF123*'2.1_Op4'!$J$117 -> 0 | AG128: =AG123*'2.1_Op4'!$J$117 -> 0 | AH128: =AH123*'2.1_Op4'!$J$117 -> 0 | AI128: =AI123*'2.1_Op4'!$J$117 -> 0 | AJ128: =AJ123*'2.1_Op4'!$J$117 -> 0 | AK128: =AK123*'2.1_Op4'!$J$117 -> 0 | AL128: =AL123*'2.1_Op4'!$J$117 -> 0 | AM128: =AM123*'2.1_Op4'!$J$117 -> 0 | AN128: =AN123*'2.1_Op4'!$J$117 -> 0 | AO128: =AO123*'2.1_Op4'!$J$117 -> 0 | AP128: =AP123*'2.1_Op4'!$J$117 -> 0 | AQ128: =AQ123*'2.1_Op4'!$J$117 -> 0 | AR128: =AR123*'2.1_Op4'!$J$117 -> 0 | AS128: =AS123*'2.1_Op4'!$J$117 -> 0 | AT128: =AT123*'2.1_Op4'!$J$117 -> 0 | AU128: =AU123*'2.1_Op4'!$J$117 -> 0 | AV128: =AV123*'2.1_Op4'!$J$117 -> 0 | AW128: =AW123*'2.1_Op4'!$J$117 -> 0 | AX128: =AX123*'2.1_Op4'!$J$117 -> 0 | AY128: =AY123*'2.1_Op4'!$J$117 -> 0 | AZ128: =AZ123*'2.1_Op4'!$J$117 -> 0 | BA128: =BA123*'2.1_Op4'!$J$117 -> 0 | BB128: =BB123*'2.1_Op4'!$J$117 -> 0 | BC128: =BC123*'2.1_Op4'!$J$117 -> 0 | BD128: =BD123*'2.1_Op4'!$J$117 -> 0 | BE128: =BE123*'2.1_Op4'!$J$117 -> 0 | BF128: =BF123*'2.1_Op4'!$J$117 -> 0 | BG128: =BG123*'2.1_Op4'!$J$117 -> 0
B129: Community hub offering essential services | G129: ='1_KMA'!$I$20 -> 2024-06-30 | H129: ='1_KMA'!$I$19 -> $millions | J129: =J124*'2.1_Op4'!$J$118 -> 0 | K129: =K124*'2.1_Op4'!$J$118 -> 0 | L129: =L124*'2.1_Op4'!$J$118 -> 0 | M129: =M124*'2.1_Op4'!$J$118 -> 0 | N129: =N124*'2.1_Op4'!$J$118 -> 0 | O129: =O124*'2.1_Op4'!$J$118 -> 0 | P129: =P124*'2.1_Op4'!$J$118 -> 0 | Q129: =Q124*'2.1_Op4'!$J$118 -> 0 | R129: =R124*'2.1_Op4'!$J$118 -> 0 | S129: =S124*'2.1_Op4'!$J$118 -> 0 | T129: =T124*'2.1_Op4'!$J$118 -> 0 | U129: =U124*'2.1_Op4'!$J$118 -> 0 | V129: =V124*'2.1_Op4'!$J$118 -> 0 | W129: =W124*'2.1_Op4'!$J$118 -> 0 | X129: =X124*'2.1_Op4'!$J$118 -> 0 | Y129: =Y124*'2.1_Op4'!$J$118 -> 0 | Z129: =Z124*'2.1_Op4'!$J$118 -> 0 | AA129: =AA124*'2.1_Op4'!$J$118 -> 0 | AB129: =AB124*'2.1_Op4'!$J$118 -> 0 | AC129: =AC124*'2.1_Op4'!$J$118 -> 0 | AD129: =AD124*'2.1_Op4'!$J$118 -> 0 | AE129: =AE124*'2.1_Op4'!$J$118 -> 0 | AF129: =AF124*'2.1_Op4'!$J$118 -> 0 | AG129: =AG124*'2.1_Op4'!$J$118 -> 0 | AH129: =AH124*'2.1_Op4'!$J$118 -> 0 | AI129: =AI124*'2.1_Op4'!$J$118 -> 0 | AJ129: =AJ124*'2.1_Op4'!$J$118 -> 0 | AK129: =AK124*'2.1_Op4'!$J$118 -> 0 | AL129: =AL124*'2.1_Op4'!$J$118 -> 0 | AM129: =AM124*'2.1_Op4'!$J$118 -> 0 | AN129: =AN124*'2.1_Op4'!$J$118 -> 0 | AO129: =AO124*'2.1_Op4'!$J$118 -> 0 | AP129: =AP124*'2.1_Op4'!$J$118 -> 0 | AQ129: =AQ124*'2.1_Op4'!$J$118 -> 0 | AR129: =AR124*'2.1_Op4'!$J$118 -> 0 | AS129: =AS124*'2.1_Op4'!$J$118 -> 0 | AT129: =AT124*'2.1_Op4'!$J$118 -> 0 | AU129: =AU124*'2.1_Op4'!$J$118 -> 0 | AV129: =AV124*'2.1_Op4'!$J$118 -> 0 | AW129: =AW124*'2.1_Op4'!$J$118 -> 0 | AX129: =AX124*'2.1_Op4'!$J$118 -> 0 | AY129: =AY124*'2.1_Op4'!$J$118 -> 0 | AZ129: =AZ124*'2.1_Op4'!$J$118 -> 0 | BA129: =BA124*'2.1_Op4'!$J$118 -> 0 | BB129: =BB124*'2.1_Op4'!$J$118 -> 0 | BC129: =BC124*'2.1_Op4'!$J$118 -> 0 | BD129: =BD124*'2.1_Op4'!$J$118 -> 0 | BE129: =BE124*'2.1_Op4'!$J$118 -> 0 | BF129: =BF124*'2.1_Op4'!$J$118 -> 0 | BG129: =BG124*'2.1_Op4'!$J$118 -> 0
G131: $ Basis Reminder | H131: $ Reminder | J131: Summary table above picks up this total row
B132: Total | G132: ='1_KMA'!$I$20 -> 2024-06-30 | H132: ='1_KMA'!$I$19 -> $millions | J132: =SUM(J127:J129) -> 0 | K132: =SUM(K127:K129) -> 0 | L132: 0 | M132: 0 | N132: 0 | O132: 0 | P132: 0 | Q132: 0 | R132: 0 | S132: 0 | T132: 0 | U132: 0 | V132: 0 | W132: 0 | X132: 0 | Y132: 0 | Z132: 0 | AA132: 0 | AB132: 0 | AC132: 0 | AD132: 0 | AE132: 0 | AF132: 0 | AG132: 0 | AH132: 0 | AI132: 0 | AJ132: 0 | AK132: 0 | AL132: 0 | AM132: 0 | AN132: 0 | AO132: 0 | AP132: 0 | AQ132: 0 | AR132: 0 | AS132: 0 | AT132: 0 | AU132: 0 | AV132: 0 | AW132: 0 | AX132: 0 | AY132: 0 | AZ132: 0 | BA132: 0 | BB132: 0 | BC132: 0 | BD132: 0 | BE132: 0 | BF132: 0 | BG132: 0
B134: Batteries
B136: AusNet Savings from Wholesale Arbitrage
H137: Unit | J137: Value
B138: Wholesale market price differential | H138: [e.g. $dollars per MWh]
B139: AusNet Share in Wholesale arbitrage | H139: [e.g. %]
B140: Average annual battery derating | H140: [e.g. % p.a.]
H142: Unit | J142: Location 1 | K142: Location 2 | L142: Location 3 | M142: Location 4 | N142: Location 5
B143: Battery Rating | H143: kW
B144: Battery Rating | H144: hr
B145: Battery Rating | H145: kWh | J145: =J143*J144 -> 0 | K145: =K143*K144 -> 0 | L145: =L143*L144 -> 0 | M145: =M143*M144 -> 0 | N145: =N143*N144 -> 0
B146: Retailer benefit by wholesale arbitrage | H146: [e.g. $millions, $thousands or $dollars per year] | J146: =J145*$J$138*0.8*5*52/1000 -> 0 | K146: =K145*$J$138*0.8*5*52/1000 -> 0 | L146: =L145*$J$138*0.8*5*52/1000 -> 0 | M146: =M145*$J$138*0.8*5*52/1000 -> 0 | N146: =N145*$J$138*0.8*5*52/1000 -> 0
G148: $ Basis Reminder | H148: $ Reminder | J148: ="Values - ensure values have been converted to "&'1_KMA'!$I$19 -> Values - ensure values have been converted to $millions
B149: AusNet Savings from Wholesale Arbitrage | G149: ='1_KMA'!$I$20 -> 2024-06-30 | H149: ='1_KMA'!$I$19 -> $millions | J149: =(SUM($J$146:$N$146)*$J$139*(1/(1+$J$140)^(J4-1)))/10^6 -> 0 | K149: =(SUM($J$146:$N$146)*$J$139*(1/(1+$J$140)^(K4-1)))/10^6 -> 0 | L149: 0 | M149: 0 | N149: 0 | O149: 0 | P149: 0 | Q149: 0 | R149: 0 | S149: 0 | T149: 0 | U149: 0 | V149: 0 | W149: 0 | X149: 0 | Y149: 0 | Z149: 0 | AA149: 0 | AB149: 0 | AC149: 0 | AD149: 0 | AE149: 0 | AF149: 0 | AG149: 0 | AH149: 0 | AI149: 0 | AJ149: 0 | AK149: 0 | AL149: 0 | AM149: 0 | AN149: 0 | AO149: 0 | AP149: 0 | AQ149: 0 | AR149: 0 | AS149: 0 | AT149: 0 | AU149: 0 | AV149: 0 | AW149: 0 | AX149: 0 | AY149: 0 | AZ149: 0 | BA149: 0 | BB149: 0 | BC149: 0 | BD149: 0 | BE149: 0 | BF149: 0 | BG149: 0
B151: AusNet Revenue from FCAS
H152: Unit | J152: Value
B153: FCAS participation price | H153: [e.g. $ollars per MW per hour]
B154: Average annual participation All batteries | H154: [e.g. MW per hour]
G156: $ Basis Reminder | H156: $ Reminder | J156: ="Values - ensure values have been converted to "&'1_KMA'!$I$19 -> Values - ensure values have been converted to $millions
B157: AusNet Revenue from FCAS | G157: ='1_KMA'!$I$20 -> 2024-06-30 | H157: ='1_KMA'!$I$19 -> $millions | J157: =$J$153*$J$154/10^6 -> 0 | K157: =$J$153*$J$154/10^6 -> 0 | L157: 0 | M157: 0 | N157: 0 | O157: 0 | P157: 0 | Q157: 0 | R157: 0 | S157: 0 | T157: 0 | U157: 0 | V157: 0 | W157: 0 | X157: 0 | Y157: 0 | Z157: 0 | AA157: 0 | AB157: 0 | AC157: 0 | AD157: 0 | AE157: 0 | AF157: 0 | AG157: 0 | AH157: 0 | AI157: 0 | AJ157: 0 | AK157: 0 | AL157: 0 | AM157: 0 | AN157: 0 | AO157: 0 | AP157: 0 | AQ157: 0 | AR157: 0 | AS157: 0 | AT157: 0 | AU157: 0 | AV157: 0 | AW157: 0 | AX157: 0 | AY157: 0 | AZ157: 0 | BA157: 0 | BB157: 0 | BC157: 0 | BD157: 0 | BE157: 0 | BF157: 0 | BG157: 0
B159: AusNet Savings from Avoided Penalties
H160: Unit | J160: Location 1 | K160: Location 2 | L160: Location 3 | M160: Location 4 | N160: Location 5
B161: Number of average outage events | H161: [e.g. Events per year]
B162: Average Ausnet penalty for outage | H162: [e.g. $dollars per event]
G164: $ Basis Reminder | H164: $ Reminder | J164: ="Values - ensure values have been converted to "&'1_KMA'!$I$19 -> Values - ensure values have been converted to $millions
B165: Ausnet Savings from Avoided Penalties | G165: ='1_KMA'!$I$20 -> 2024-06-30 | H165: ='1_KMA'!$I$19 -> $millions | J165: =SUMPRODUCT($J$161:$N$161,$J$162:$N$162)/10^6 -> 0 | K165: =SUMPRODUCT($J$161:$N$161,$J$162:$N$162)/10^6 -> 0 | L165: 0 | M165: 0 | N165: 0 | O165: 0 | P165: 0 | Q165: 0 | R165: 0 | S165: 0 | T165: 0 | U165: 0 | V165: 0 | W165: 0 | X165: 0 | Y165: 0 | Z165: 0 | AA165: 0 | AB165: 0 | AC165: 0 | AD165: 0 | AE165: 0 | AF165: 0 | AG165: 0 | AH165: 0 | AI165: 0 | AJ165: 0 | AK165: 0 | AL165: 0 | AM165: 0 | AN165: 0 | AO165: 0 | AP165: 0 | AQ165: 0 | AR165: 0 | AS165: 0 | AT165: 0 | AU165: 0 | AV165: 0 | AW165: 0 | AX165: 0 | AY165: 0 | AZ165: 0 | BA165: 0 | BB165: 0 | BC165: 0 | BD165: 0 | BE165: 0 | BF165: 0 | BG165: 0
G167: $ Basis Reminder | H167: $ Reminder | J167: Summary table above picks up this total row
B168: Total | G168: ='1_KMA'!$I$20 -> 2024-06-30 | H168: ='1_KMA'!$I$19 -> $millions | J168: =J149+J157+J165 -> 0 | K168: =K149+K157+K165 -> 0 | L168: 0 | M168: 0 | N168: 0 | O168: 0 | P168: 0 | Q168: 0 | R168: 0 | S168: 0 | T168: 0 | U168: 0 | V168: 0 | W168: 0 | X168: 0 | Y168: 0 | Z168: 0 | AA168: 0 | AB168: 0 | AC168: 0 | AD168: 0 | AE168: 0 | AF168: 0 | AG168: 0 | AH168: 0 | AI168: 0 | AJ168: 0 | AK168: 0 | AL168: 0 | AM168: 0 | AN168: 0 | AO168: 0 | AP168: 0 | AQ168: 0 | AR168: 0 | AS168: 0 | AT168: 0 | AU168: 0 | AV168: 0 | AW168: 0 | AX168: 0 | AY168: 0 | AZ168: 0 | BA168: 0 | BB168: 0 | BC168: 0 | BD168: 0 | BE168: 0 | BF168: 0 | BG168: 0
B170: Others

Sheet 2.1_Op5 (hidden)
B1: General Inputs: Option 5 | I1: Regulatory Period Indicator | J1: ='1_KMA'!J30 -> 0 | K1: ='1_KMA'!K30 -> 0 | L1: ='1_KMA'!L30 -> 1 | M1: ='1_KMA'!M30 -> 1 | N1: ='1_KMA'!N30 -> 1 | O1: ='1_KMA'!O30 -> 1 | P1: ='1_KMA'!P30 -> 1 | Q1: ='1_KMA'!Q30 -> 0 | R1: ='1_KMA'!R30 -> 0 | S1: ='1_KMA'!S30 -> 0 | T1: ='1_KMA'!T30 -> 0 | U1: ='1_KMA'!U30 -> 0 | V1: ='1_KMA'!V30 -> 0 | W1: ='1_KMA'!W30 -> 0 | X1: ='1_KMA'!X30 -> 0 | Y1: ='1_KMA'!Y30 -> 0 | Z1: ='1_KMA'!Z30 -> 0 | AA1: ='1_KMA'!AA30 -> 0 | AB1: ='1_KMA'!AB30 -> 0 | AC1: ='1_KMA'!AC30 -> 0 | AD1: ='1_KMA'!AD30 -> 0 | AE1: ='1_KMA'!AE30 -> 0 | AF1: ='1_KMA'!AF30 -> 0 | AG1: ='1_KMA'!AG30 -> 0 | AH1: ='1_KMA'!AH30 -> 0 | AI1: ='1_KMA'!AI30 -> 0 | AJ1: ='1_KMA'!AJ30 -> 0 | AK1: ='1_KMA'!AK30 -> 0 | AL1: ='1_KMA'!AL30 -> 0 | AM1: ='1_KMA'!AM30 -> 0 | AN1: ='1_KMA'!AN30 -> 0 | AO1: ='1_KMA'!AO30 -> 0 | AP1: ='1_KMA'!AP30 -> 0 | AQ1: ='1_KMA'!AQ30 -> 0 | AR1: ='1_KMA'!AR30 -> 0 | AS1: ='1_KMA'!AS30 -> 0 | AT1: ='1_KMA'!AT30 -> 0 | AU1: ='1_KMA'!AU30 -> 0 | AV1: ='1_KMA'!AV30 -> 0 | AW1: ='1_KMA'!AW30 -> 0 | AX1: ='1_KMA'!AX30 -> 0 | AY1: ='1_KMA'!AY30 -> 0 | AZ1: ='1_KMA'!AZ30 -> 0 | BA1: ='1_KMA'!BA30 -> 0 | BB1: ='1_KMA'!BB30 -> 0 | BC1: ='1_KMA'!BC30 -> 0 | BD1: ='1_KMA'!BD30 -> 0 | BE1: ='1_KMA'!BE30 -> 0 | BF1: ='1_KMA'!BF30 -> 0 | BG1: ='1_KMA'!BG30 -> 0
B2: =Cover!$C$9 -> AusNet Services | I2: Period Start Date | J2: ='1_KMA'!J31 -> 2024-07-01 | K2: ='1_KMA'!K31 -> 2025-07-01 | L2: ='1_KMA'!L31 -> 2026-07-01 | M2: ='1_KMA'!M31 -> 2027-07-01 | N2: ='1_KMA'!N31 -> 2028-07-01 | O2: ='1_KMA'!O31 -> 2029-07-01 | P2: ='1_KMA'!P31 -> 2030-07-01 | Q2: ='1_KMA'!Q31 -> 2031-07-01 | R2: ='1_KMA'!R31 -> 2032-07-01 | S2: ='1_KMA'!S31 -> 2033-07-01 | T2: ='1_KMA'!T31 -> 2034-07-01 | U2: ='1_KMA'!U31 -> 2035-07-01 | V2: ='1_KMA'!V31 -> 2036-07-01 | W2: ='1_KMA'!W31 -> 2037-07-01 | X2: ='1_KMA'!X31 -> 2038-07-01 | Y2: ='1_KMA'!Y31 -> 2039-07-01 | Z2: ='1_KMA'!Z31 -> 2040-07-01 | AA2: ='1_KMA'!AA31 -> 2041-07-01 | AB2: ='1_KMA'!AB31 -> 2042-07-01 | AC2: ='1_KMA'!AC31 -> 2043-07-01 | AD2: ='1_KMA'!AD31 -> 2044-07-01 | AE2: ='1_KMA'!AE31 -> 2045-07-01 | AF2: ='1_KMA'!AF31 -> 2046-07-01 | AG2: ='1_KMA'!AG31 -> 2047-07-01 | AH2: ='1_KMA'!AH31 -> 2048-07-01 | AI2: ='1_KMA'!AI31 -> 2049-07-01 | AJ2: ='1_KMA'!AJ31 -> 2050-07-01 | AK2: ='1_KMA'!AK31 -> 2051-07-01 | AL2: ='1_KMA'!AL31 -> 2052-07-01 | AM2: ='1_KMA'!AM31 -> 2053-07-01 | AN2: ='1_KMA'!AN31 -> 2054-07-01 | AO2: ='1_KMA'!AO31 -> 2055-07-01 | AP2: ='1_KMA'!AP31 -> 2056-07-01 | AQ2: ='1_KMA'!AQ31 -> 2057-07-01 | AR2: ='1_KMA'!AR31 -> 2058-07-01 | AS2: ='1_KMA'!AS31 -> 2059-07-01 | AT2: ='1_KMA'!AT31 -> 2060-07-01 | AU2: ='1_KMA'!AU31 -> 2061-07-01 | AV2: ='1_KMA'!AV31 -> 2062-07-01 | AW2: ='1_KMA'!AW31 -> 2063-07-01 | AX2: ='1_KMA'!AX31 -> 2064-07-01 | AY2: ='1_KMA'!AY31 -> 2065-07-01 | AZ2: ='1_KMA'!AZ31 -> 2066-07-01 | BA2: ='1_KMA'!BA31 -> 2067-07-01 | BB2: ='1_KMA'!BB31 -> 2068-07-01 | BC2: ='1_KMA'!BC31 -> 2069-07-01 | BD2: ='1_KMA'!BD31 -> 2070-07-01 | BE2: ='1_KMA'!BE31 -> 2071-07-01 | BF2: ='1_KMA'!BF31 -> 2072-07-01 | BG2: ='1_KMA'!BG31 -> 2073-07-01
B3: =Cover!$C$10 -> Business Case Evaluation | I3: Period End Date | J3: ='1_KMA'!J32 -> 2025-06-30 | K3: ='1_KMA'!K32 -> 2026-06-30 | L3: ='1_KMA'!L32 -> 2027-06-30 | M3: ='1_KMA'!M32 -> 2028-06-30 | N3: ='1_KMA'!N32 -> 2029-06-30 | O3: ='1_KMA'!O32 -> 2030-06-30 | P3: ='1_KMA'!P32 -> 2031-06-30 | Q3: ='1_KMA'!Q32 -> 2032-06-30 | R3: ='1_KMA'!R32 -> 2033-06-30 | S3: ='1_KMA'!S32 -> 2034-06-30 | T3: ='1_KMA'!T32 -> 2035-06-30 | U3: ='1_KMA'!U32 -> 2036-06-30 | V3: ='1_KMA'!V32 -> 2037-06-30 | W3: ='1_KMA'!W32 -> 2038-06-30 | X3: ='1_KMA'!X32 -> 2039-06-30 | Y3: ='1_KMA'!Y32 -> 2040-06-30 | Z3: ='1_KMA'!Z32 -> 2041-06-30 | AA3: ='1_KMA'!AA32 -> 2042-06-30 | AB3: ='1_KMA'!AB32 -> 2043-06-30 | AC3: ='1_KMA'!AC32 -> 2044-06-30 | AD3: ='1_KMA'!AD32 -> 2045-06-30 | AE3: ='1_KMA'!AE32 -> 2046-06-30 | AF3: ='1_KMA'!AF32 -> 2047-06-30 | AG3: ='1_KMA'!AG32 -> 2048-06-30 | AH3: ='1_KMA'!AH32 -> 2049-06-30 | AI3: ='1_KMA'!AI32 -> 2050-06-30 | AJ3: ='1_KMA'!AJ32 -> 2051-06-30 | AK3: ='1_KMA'!AK32 -> 2052-06-30 | AL3: ='1_KMA'!AL32 -> 2053-06-30 | AM3: ='1_KMA'!AM32 -> 2054-06-30 | AN3: ='1_KMA'!AN32 -> 2055-06-30 | AO3: ='1_KMA'!AO32 -> 2056-06-30 | AP3: ='1_KMA'!AP32 -> 2057-06-30 | AQ3: ='1_KMA'!AQ32 -> 2058-06-30 | AR3: ='1_KMA'!AR32 -> 2059-06-30 | AS3: ='1_KMA'!AS32 -> 2060-06-30 | AT3: ='1_KMA'!AT32 -> 2061-06-30 | AU3: ='1_KMA'!AU32 -> 2062-06-30 | AV3: ='1_KMA'!AV32 -> 2063-06-30 | AW3: ='1_KMA'!AW32 -> 2064-06-30 | AX3: ='1_KMA'!AX32 -> 2065-06-30 | AY3: ='1_KMA'!AY32 -> 2066-06-30 | AZ3: ='1_KMA'!AZ32 -> 2067-06-30 | BA3: ='1_KMA'!BA32 -> 2068-06-30 | BB3: ='1_KMA'!BB32 -> 2069-06-30 | BC3: ='1_KMA'!BC32 -> 2070-06-30 | BD3: ='1_KMA'!BD32 -> 2071-06-30 | BE3: ='1_KMA'!BE32 -> 2072-06-30 | BF3: ='1_KMA'!BF32 -> 2073-06-30 | BG3: ='1_KMA'!BG32 -> 2074-06-30
B4: =Cover!$C$11 -> Smart meter 13 yr bulk replacement | I4: Project Year | J4: ='1_KMA'!J33 -> 1 | K4: ='1_KMA'!K33 -> 2 | L4: ='1_KMA'!L33 -> 3 | M4: ='1_KMA'!M33 -> 4 | N4: ='1_KMA'!N33 -> 5 | O4: ='1_KMA'!O33 -> 6 | P4: ='1_KMA'!P33 -> 7 | Q4: ='1_KMA'!Q33 -> 8 | R4: ='1_KMA'!R33 -> 9 | S4: ='1_KMA'!S33 -> 10 | T4: ='1_KMA'!T33 -> 11 | U4: ='1_KMA'!U33 -> 12 | V4: ='1_KMA'!V33 -> 13 | W4: ='1_KMA'!W33 -> 14 | X4: ='1_KMA'!X33 -> 15 | Y4: ='1_KMA'!Y33 -> 16 | Z4: ='1_KMA'!Z33 -> 17 | AA4: ='1_KMA'!AA33 -> 18 | AB4: ='1_KMA'!AB33 -> 19 | AC4: ='1_KMA'!AC33 -> 20 | AD4: ='1_KMA'!AD33 -> 21 | AE4: ='1_KMA'!AE33 -> 22 | AF4: ='1_KMA'!AF33 -> 23 | AG4: ='1_KMA'!AG33 -> 24 | AH4: ='1_KMA'!AH33 -> 25 | AI4: ='1_KMA'!AI33 -> 26 | AJ4: ='1_KMA'!AJ33 -> 27 | AK4: ='1_KMA'!AK33 -> 28 | AL4: ='1_KMA'!AL33 -> 29 | AM4: ='1_KMA'!AM33 -> 30 | AN4: ='1_KMA'!AN33 -> 31 | AO4: ='1_KMA'!AO33 -> 32 | AP4: ='1_KMA'!AP33 -> 33 | AQ4: ='1_KMA'!AQ33 -> 34 | AR4: ='1_KMA'!AR33 -> 35 | AS4: ='1_KMA'!AS33 -> 36 | AT4: ='1_KMA'!AT33 -> 37 | AU4: ='1_KMA'!AU33 -> 38 | AV4: ='1_KMA'!AV33 -> 39 | AW4: ='1_KMA'!AW33 -> 40 | AX4: ='1_KMA'!AX33 -> 41 | AY4: ='1_KMA'!AY33 -> 42 | AZ4: ='1_KMA'!AZ33 -> 43 | BA4: ='1_KMA'!BA33 -> 44 | BB4: ='1_KMA'!BB33 -> 45 | BC4: ='1_KMA'!BC33 -> 46 | BD4: ='1_KMA'!BD33 -> 47 | BE4: ='1_KMA'!BE33 -> 48 | BF4: ='1_KMA'!BF33 -> 49 | BG4: ='1_KMA'!BG33 -> 50
I5: Financial Year | J5: ='1_KMA'!J34 -> 2025 | K5: ='1_KMA'!K34 -> 2026 | L5: ='1_KMA'!L34 -> 2027 | M5: ='1_KMA'!M34 -> 2028 | N5: ='1_KMA'!N34 -> 2029 | O5: ='1_KMA'!O34 -> 2030 | P5: ='1_KMA'!P34 -> 2031 | Q5: ='1_KMA'!Q34 -> 2032 | R5: ='1_KMA'!R34 -> 2033 | S5: ='1_KMA'!S34 -> 2034 | T5: ='1_KMA'!T34 -> 2035 | U5: ='1_KMA'!U34 -> 2036 | V5: ='1_KMA'!V34 -> 2037 | W5: ='1_KMA'!W34 -> 2038 | X5: ='1_KMA'!X34 -> 2039 | Y5: ='1_KMA'!Y34 -> 2040 | Z5: ='1_KMA'!Z34 -> 2041 | AA5: ='1_KMA'!AA34 -> 2042 | AB5: ='1_KMA'!AB34 -> 2043 | AC5: ='1_KMA'!AC34 -> 2044 | AD5: ='1_KMA'!AD34 -> 2045 | AE5: ='1_KMA'!AE34 -> 2046 | AF5: ='1_KMA'!AF34 -> 2047 | AG5: ='1_KMA'!AG34 -> 2048 | AH5: ='1_KMA'!AH34 -> 2049 | AI5: ='1_KMA'!AI34 -> 2050 | AJ5: ='1_KMA'!AJ34 -> 2051 | AK5: ='1_KMA'!AK34 -> 2052 | AL5: ='1_KMA'!AL34 -> 2053 | AM5: ='1_KMA'!AM34 -> 2054 | AN5: ='1_KMA'!AN34 -> 2055 | AO5: ='1_KMA'!AO34 -> 2056 | AP5: ='1_KMA'!AP34 -> 2057 | AQ5: ='1_KMA'!AQ34 -> 2058 | AR5: ='1_KMA'!AR34 -> 2059 | AS5: ='1_KMA'!AS34 -> 2060 | AT5: ='1_KMA'!AT34 -> 2061 | AU5: ='1_KMA'!AU34 -> 2062 | AV5: ='1_KMA'!AV34 -> 2063 | AW5: ='1_KMA'!AW34 -> 2064 | AX5: ='1_KMA'!AX34 -> 2065 | AY5: ='1_KMA'!AY34 -> 2066 | AZ5: ='1_KMA'!AZ34 -> 2067 | BA5: ='1_KMA'!BA34 -> 2068 | BB5: ='1_KMA'!BB34 -> 2069 | BC5: ='1_KMA'!BC34 -> 2070 | BD5: ='1_KMA'!BD34 -> 2071 | BE5: ='1_KMA'!BE34 -> 2072 | BF5: ='1_KMA'!BF34 -> 2073 | BG5: ='1_KMA'!BG34 -> 2074
B7: Summary
B9: Costs | G9: $ Basis Reminder | H9: $ Reminder | J9: ="Ensure this section [Summary] is picking up the relevant rows" -> Ensure this section [Summary] is picking up the relevant rows
B10: Capex | G10: ='1_KMA'!$I$20 -> 2024-06-30 | H10: ='1_KMA'!$I$19 -> $millions | J10: =J47 -> 0 | K10: =K47 -> 0 | L10: 0 | M10: 0 | N10: 0 | O10: 0 | P10: 0 | Q10: 0 | R10: 0 | S10: 0 | T10: 0 | U10: 0 | V10: 0 | W10: 0 | X10: 0 | Y10: 0 | Z10: 0 | AA10: 0 | AB10: 0 | AC10: 0 | AD10: 0 | AE10: 0 | AF10: 0 | AG10: 0 | AH10: 0 | AI10: 0 | AJ10: 0 | AK10: 0 | AL10: 0 | AM10: 0 | AN10: 0 | AO10: 0 | AP10: 0 | AQ10: 0 | AR10: 0 | AS10: 0 | AT10: 0 | AU10: 0 | AV10: 0 | AW10: 0 | AX10: 0 | AY10: 0 | AZ10: 0 | BA10: 0 | BB10: 0 | BC10: 0 | BD10: 0 | BE10: 0 | BF10: 0 | BG10: 0
B11: Capex offset | G11: ='1_KMA'!$I$20 -> 2024-06-30 | H11: ='1_KMA'!$I$19 -> $millions | J11: =-J59 -> 0 | K11: =-K59 -> 0 | L11: 0 | M11: 0 | N11: 0 | O11: 0 | P11: 0 | Q11: 0 | R11: 0 | S11: 0 | T11: 0 | U11: 0 | V11: 0 | W11: 0 | X11: 0 | Y11: 0 | Z11: 0 | AA11: 0 | AB11: 0 | AC11: 0 | AD11: 0 | AE11: 0 | AF11: 0 | AG11: 0 | AH11: 0 | AI11: 0 | AJ11: 0 | AK11: 0 | AL11: 0 | AM11: 0 | AN11: 0 | AO11: 0 | AP11: 0 | AQ11: 0 | AR11: 0 | AS11: 0 | AT11: 0 | AU11: 0 | AV11: 0 | AW11: 0 | AX11: 0 | AY11: 0 | AZ11: 0 | BA11: 0 | BB11: 0 | BC11: 0 | BD11: 0 | BE11: 0 | BF11: 0 | BG11: 0
B12: Opex | G12: ='1_KMA'!$I$20 -> 2024-06-30 | H12: ='1_KMA'!$I$19 -> $millions | J12: =J82 -> 0 | K12: =K82 -> 0 | L12: 0 | M12: 0 | N12: 0 | O12: 0.15 | P12: 0.6 | Q12: 11.7 | R12: 12.4 | S12: 1.85 | T12: 1.6 | U12: 1.25 | V12: 0.9 | W12: 0 | X12: 0 | Y12: 0 | Z12: 0 | AA12: 0 | AB12: 0 | AC12: 0 | AD12: 0 | AE12: 0 | AF12: 0 | AG12: 0 | AH12: 0 | AI12: 0 | AJ12: 0 | AK12: 0 | AL12: 0 | AM12: 0 | AN12: 0 | AO12: 0 | AP12: 0 | AQ12: 0 | AR12: 0 | AS12: 0 | AT12: 0 | AU12: 0 | AV12: 0 | AW12: 0 | AX12: 0 | AY12: 0 | AZ12: 0 | BA12: 0 | BB12: 0 | BC12: 0 | BD12: 0 | BE12: 0 | BF12: 0 | BG12: 0
B13: Total | G13: ='1_KMA'!$I$20 -> 2024-06-30 | H13: ='1_KMA'!$I$19 -> $millions | J13: =SUM(J10:J12) -> 0 | K13: =SUM(K10:K12) -> 0 | L13: 0 | M13: 0 | N13: 0 | O13: 0.15 | P13: 0.6 | Q13: 11.7 | R13: 12.4 | S13: 1.85 | T13: 1.6 | U13: 1.25 | V13: 0.9 | W13: 0 | X13: 0 | Y13: 0 | Z13: 0 | AA13: 0 | AB13: 0 | AC13: 0 | AD13: 0 | AE13: 0 | AF13: 0 | AG13: 0 | AH13: 0 | AI13: 0 | AJ13: 0 | AK13: 0 | AL13: 0 | AM13: 0 | AN13: 0 | AO13: 0 | AP13: 0 | AQ13: 0 | AR13: 0 | AS13: 0 | AT13: 0 | AU13: 0 | AV13: 0 | AW13: 0 | AX13: 0 | AY13: 0 | AZ13: 0 | BA13: 0 | BB13: 0 | BC13: 0 | BD13: 0 | BE13: 0 | BF13: 0 | BG13: 0
B15: Benefits | G15: $ Basis Reminder | H15: $ Reminder | J15: ="Ensure this section [Summary] is picking up the relevant rows" -> Ensure this section [Summary] is picking up the relevant rows
B16: Value of EUE | G16: ='1_KMA'!$I$20 -> 2024-06-30 | H16: ='1_KMA'!$I$19 -> $millions | J16: =-J93 -> 0 | K16: =-K93 -> 0 | L16: 0 | M16: 0 | N16: 0 | O16: 0 | P16: 0 | Q16: 0 | R16: 0 | S16: 0 | T16: 0 | U16: 0 | V16: 0 | W16: 0 | X16: 0 | Y16: 0 | Z16: 0 | AA16: 0 | AB16: 0 | AC16: 0 | AD16: 0 | AE16: 0 | AF16: 0 | AG16: 0 | AH16: 0 | AI16: 0 | AJ16: 0 | AK16: 0 | AL16: 0 | AM16: 0 | AN16: 0 | AO16: 0 | AP16: 0 | AQ16: 0 | AR16: 0 | AS16: 0 | AT16: 0 | AU16: 0 | AV16: 0 | AW16: 0 | AX16: 0 | AY16: 0 | AZ16: 0 | BA16: 0 | BB16: 0 | BC16: 0 | BD16: 0 | BE16: 0 | BF16: 0 | BG16: 0
B17: Reliability | G17: ='1_KMA'!$I$20 -> 2024-06-30 | H17: ='1_KMA'!$I$19 -> $millions | J17: =J111 -> 0 | K17: =K111 -> 0 | L17: 0 | M17: 0 | N17: 0 | O17: 0 | P17: 0 | Q17: 0 | R17: 0 | S17: 0 | T17: 0 | U17: 0 | V17: 0 | W17: 0 | X17: 0 | Y17: 0 | Z17: 0 | AA17: 0 | AB17: 0 | AC17: 0 | AD17: 0 | AE17: 0 | AF17: 0 | AG17: 0 | AH17: 0 | AI17: 0 | AJ17: 0 | AK17: 0 | AL17: 0 | AM17: 0 | AN17: 0 | AO17: 0 | AP17: 0 | AQ17: 0 | AR17: 0 | AS17: 0 | AT17: 0 | AU17: 0 | AV17: 0 | AW17: 0 | AX17: 0 | AY17: 0 | AZ17: 0 | BA17: 0 | BB17: 0 | BC17: 0 | BD17: 0 | BE17: 0 | BF17: 0 | BG17: 0
B18: Resilience | G18: ='1_KMA'!$I$20 -> 2024-06-30 | H18: ='1_KMA'!$I$19 -> $millions | J18: =J132 -> 0 | K18: =K132 -> 0 | L18: 0 | M18: 0 | N18: 0 | O18: 0 | P18: 0 | Q18: 0 | R18: 0 | S18: 0 | T18: 0 | U18: 0 | V18: 0 | W18: 0 | X18: 0 | Y18: 0 | Z18: 0 | AA18: 0 | AB18: 0 | AC18: 0 | AD18: 0 | AE18: 0 | AF18: 0 | AG18: 0 | AH18: 0 | AI18: 0 | AJ18: 0 | AK18: 0 | AL18: 0 | AM18: 0 | AN18: 0 | AO18: 0 | AP18: 0 | AQ18: 0 | AR18: 0 | AS18: 0 | AT18: 0 | AU18: 0 | AV18: 0 | AW18: 0 | AX18: 0 | AY18: 0 | AZ18: 0 | BA18: 0 | BB18: 0 | BC18: 0 | BD18: 0 | BE18: 0 | BF18: 0 | BG18: 0
B19: Batteries | G19: ='1_KMA'!$I$20 -> 2024-06-30 | H19: ='1_KMA'!$I$19 -> $millions | J19: =J168 -> 0 | K19: =K168 -> 0 | L19: 0 | M19: 0 | N19: 0 | O19: 0 | P19: 0 | Q19: 0 | R19: 0 | S19: 0 | T19: 0 | U19: 0 | V19: 0 | W19: 0 | X19: 0 | Y19: 0 | Z19: 0 | AA19: 0 | AB19: 0 | AC19: 0 | AD19: 0 | AE19: 0 | AF19: 0 | AG19: 0 | AH19: 0 | AI19: 0 | AJ19: 0 | AK19: 0 | AL19: 0 | AM19: 0 | AN19: 0 | AO19: 0 | AP19: 0 | AQ19: 0 | AR19: 0 | AS19: 0 | AT19: 0 | AU19: 0 | AV19: 0 | AW19: 0 | AX19: 0 | AY19: 0 | AZ19: 0 | BA19: 0 | BB19: 0 | BC19: 0 | BD19: 0 | BE19: 0 | BF19: 0 | BG19: 0
B20: Others | G20: ='1_KMA'!$I$20 -> 2024-06-30 | H20: ='1_KMA'!$I$19 -> $millions
B21: Total | G21: ='1_KMA'!$I$20 -> 2024-06-30 | H21: ='1_KMA'!$I$19 -> $millions | J21: =SUM(J16:J20) -> 0 | K21: =SUM(K16:K20) -> 0 | L21: 0 | M21: 0 | N21: 0 | O21: 0 | P21: 0 | Q21: 0 | R21: 0 | S21: 0 | T21: 0 | U21: 0 | V21: 0 | W21: 0 | X21: 0 | Y21: 0 | Z21: 0 | AA21: 0 | AB21: 0 | AC21: 0 | AD21: 0 | AE21: 0 | AF21: 0 | AG21: 0 | AH21: 0 | AI21: 0 | AJ21: 0 | AK21: 0 | AL21: 0 | AM21: 0 | AN21: 0 | AO21: 0 | AP21: 0 | AQ21: 0 | AR21: 0 | AS21: 0 | AT21: 0 | AU21: 0 | AV21: 0 | AW21: 0 | AX21: 0 | AY21: 0 | AZ21: 0 | BA21: 0 | BB21: 0 | BC21: 0 | BD21: 0 | BE21: 0 | BF21: 0 | BG21: 0
B24: Cost Inputs
B26: Capex Build Up
B28: Name | H28: Unit | J28: Unit Rate
B29: Smart meter replacements (meter with comms card + labour) | H29: Average unit cost of meter installed $million per unit
B34: Name | H34: Unit | J34: Quantities
B35: =B29 -> Smart meter replacements (meter with comms card + labour) | H35: meter replacement numbers
B40: Name | G40: $ Basis Reminder | H40: $ Reminder | J40: ="Costs - ensure costs have been converted to "&'1_KMA'!$I$19 -> Costs - ensure costs have been converted to $millions
B41: =B29 -> Smart meter replacements (meter with comms card + labour) | G41: ='1_KMA'!$I$20 -> 2024-06-30 | H41: ='1_KMA'!$I$19 -> $millions | J41: =$K$29*J35 -> 0 | K41: =$K$29*K35 -> 0 | L41: =$K$29*L35 -> 0 | M41: =$K$29*M35 -> 0 | N41: 0 | O41: 0 | P41: 0 | Q41: 0 | R41: =$K$29*R35 -> 0 | S41: =$J$29*S35 -> 0 | T41: =$J$29*T35 -> 0 | U41: 0 | V41: 0 | W41: 0 | X41: 0 | Y41: 0 | Z41: 0 | AA41: 0 | AB41: 0 | AC41: 0 | AD41: =$J$29*AD35 -> 0 | AE41: 0 | AF41: 0 | AG41: 0 | AH41: 0 | AI41: 0 | AJ41: 0 | AK41: 0 | AL41: 0 | AM41: 0 | AN41: 0 | AO41: 0 | AP41: 0 | AQ41: 0 | AR41: 0 | AS41: 0 | AT41: 0 | AU41: 0 | AV41: 0 | AW41: 0 | AX41: 0 | AY41: 0 | AZ41: 0 | BA41: 0 | BB41: 0 | BC41: 0 | BD41: 0 | BE41: 0 | BF41: 0 | BG41: 0
B42: =B30 -> 0 | G42: ='1_KMA'!$I$20 -> 2024-06-30 | H42: ='1_KMA'!$I$19 -> $millions | J42: =$J$30*J36 -> 0 | K42: =$J$30*K36 -> 0 | L42: =$J$30*L36 -> 0 | M42: =$J$30*M36 -> 0 | N42: 0 | O42: 0 | P42: 0 | Q42: 0 | R42: 0 | S42: 0 | T42: 0 | U42: 0 | V42: 0 | W42: 0 | X42: 0 | Y42: 0 | Z42: 0 | AA42: 0 | AB42: 0 | AC42: 0 | AD42: =$J$30*AD36 -> 0 | AE42: 0 | AF42: 0 | AG42: 0 | AH42: 0 | AI42: 0 | AJ42: 0 | AK42: 0 | AL42: 0 | AM42: 0 | AN42: 0 | AO42: 0 | AP42: 0 | AQ42: 0 | AR42: 0 | AS42: 0 | AT42: 0 | AU42: 0 | AV42: 0 | AW42: 0 | AX42: 0 | AY42: 0 | AZ42: 0 | BA42: 0 | BB42: 0 | BC42: 0 | BD42: 0 | BE42: 0 | BF42: 0 | BG42: 0
G43: ='1_KMA'!$I$20 -> 2024-06-30 | H43: ='1_KMA'!$I$19 -> $millions | J43: =$J$31*J37 -> 0 | K43: =$J$31*K37 -> 0 | L43: =$J$31*L37 -> 0 | M43: =$J$31*M37 -> 0 | N43: 0 | O43: 0 | P43: 0 | Q43: 0 | R43: 0 | S43: 0 | T43: 0 | U43: 0 | V43: 0 | W43: 0 | X43: 0 | Y43: 0 | Z43: 0 | AA43: 0 | AB43: 0 | AC43: 0 | AD43: =$J$31*AD37 -> 0 | AE43: 0 | AF43: 0 | AG43: 0 | AH43: 0 | AI43: 0 | AJ43: 0 | AK43: 0 | AL43: 0 | AM43: 0 | AN43: 0 | AO43: 0 | AP43: 0 | AQ43: 0 | AR43: 0 | AS43: 0 | AT43: 0 | AU43: 0 | AV43: 0 | AW43: 0 | AX43: 0 | AY43: 0 | AZ43: 0 | BA43: 0 | BB43: 0 | BC43: 0 | BD43: 0 | BE43: 0 | BF43: 0 | BG43: 0
G44: ='1_KMA'!$I$20 -> 2024-06-30 | H44: ='1_KMA'!$I$19 -> $millions | J44: =$J$32*J38 -> 0 | K44: =$J$32*K38 -> 0 | L44: =$J$32*L38 -> 0 | M44: =$J$32*M38 -> 0 | N44: =$J$32*N38 -> 0 | O44: 0 | P44: 0 | Q44: 0 | R44: 0 | S44: 0 | T44: 0 | U44: 0 | V44: 0 | W44: 0 | X44: 0 | Y44: 0 | Z44: 0 | AA44: 0 | AB44: 0 | AC44: 0 | AD44: =$J$32*AD38 -> 0 | AE44: 0 | AF44: 0 | AG44: 0 | AH44: 0 | AI44: 0 | AJ44: 0 | AK44: 0 | AL44: 0 | AM44: 0 | AN44: 0 | AO44: 0 | AP44: 0 | AQ44: 0 | AR44: 0 | AS44: 0 | AT44: 0 | AU44: 0 | AV44: 0 | AW44: 0 | AX44: 0 | AY44: 0 | AZ44: 0 | BA44: 0 | BB44: 0 | BC44: 0 | BD44: 0 | BE44: 0 | BF44: 0 | BG44: 0
G46: $ Basis Reminder | H46: $ Reminder | J46: Summary table above picks up this total row
B47: Total | G47: ='1_KMA'!$I$20 -> 2024-06-30 | H47: ='1_KMA'!$I$19 -> $millions | J47: =SUM(J41:J44) -> 0 | K47: =SUM(K41:K44) -> 0 | L47: 0 | M47: =SUM(M41:M44) -> 0 | N47: 0 | O47: 0 | P47: 0 | Q47: 0 | R47: 0 | S47: 0 | T47: 0 | U47: 0 | V47: 0 | W47: 0 | X47: 0 | Y47: 0 | Z47: 0 | AA47: 0 | AB47: 0 | AC47: 0 | AD47: =SUM(AD41:AD44) -> 0 | AE47: 0 | AF47: 0 | AG47: 0 | AH47: 0 | AI47: 0 | AJ47: 0 | AK47: 0 | AL47: 0 | AM47: 0 | AN47: 0 | AO47: 0 | AP47: 0 | AQ47: 0 | AR47: 0 | AS47: 0 | AT47: 0 | AU47: 0 | AV47: 0 | AW47: 0 | AX47: 0 | AY47: 0 | AZ47: 0 | BA47: 0 | BB47: 0 | BC47: 0 | BD47: 0 | BE47: 0 | BF47: 0 | BG47: =SUM(BG41:BG44) -> 0
B49: Capex Offset
J51: ="Capex offsets - ensure capex offsets have been converted to "&'1_KMA'!$I$19 -> Capex offsets - ensure capex offsets have been converted to $millions
B52: Name | G52: $ Basis Reminder | H52: $ Reminder | J52: Enter capex offsets as positive values as the spreadsheet later nets this off the gross amounts
B53: [e.g. Government subsidy] | G53: ='1_KMA'!$I$20 -> 2024-06-30 | H53: ='1_KMA'!$I$19 -> $millions
B54: [e.g. Customer contribution] | G54: ='1_KMA'!$I$20 -> 2024-06-30 | H54: ='1_KMA'!$I$19 -> $millions
G55: ='1_KMA'!$I$20 -> 2024-06-30 | H55: ='1_KMA'!$I$19 -> $millions
G56: ='1_KMA'!$I$20 -> 2024-06-30 | H56: ='1_KMA'!$I$19 -> $millions
G58: $ Basis Reminder | H58: $ Reminder | J58: Summary table above picks up this total row
B59: Total | G59: ='1_KMA'!$I$20 -> 2024-06-30 | H59: ='1_KMA'!$I$19 -> $millions | J59: =SUM(J53:J56) -> 0 | K59: =SUM(K53:K56) -> 0 | L59: =SUM(L53:L56) -> 0 | M59: 0 | N59: 0 | O59: 0 | P59: 0 | Q59: 0 | R59: 0 | S59: 0 | T59: 0 | U59: 0 | V59: 0 | W59: 0 | X59: 0 | Y59: 0 | Z59: 0 | AA59: 0 | AB59: 0 | AC59: 0 | AD59: 0 | AE59: 0 | AF59: 0 | AG59: 0 | AH59: 0 | AI59: 0 | AJ59: 0 | AK59: 0 | AL59: 0 | AM59: 0 | AN59: 0 | AO59: 0 | AP59: 0 | AQ59: 0 | AR59: 0 | AS59: 0 | AT59: 0 | AU59: 0 | AV59: 0 | AW59: 0 | AX59: 0 | AY59: 0 | AZ59: 0 | BA59: 0 | BB59: 0 | BC59: 0 | BD59: 0 | BE59: 0 | BF59: 0 | BG59: 0
B61: Opex Build Up
B63: Name | H63: Unit | J63: Value
B64: Additional PMO costs | H64: $million for each dedicated PMO FTE | J64: 0.2
B65: Additional resources to improve data quality | H65: $million for each dedicated data FTE | J65: 0.1
B66: Customer impacts | H66: $million for each customer impact | J66: =100/1000000 -> 0.0001
B67: Compliance impacts | H67: $million for each customer impact | J67: 0.35
B69: Name | H69: Unit | J69: Quantities
B70: =B64 -> Additional PMO costs | H70: Number of dedicated PMO FTE | J70: 0 | K70: 0 | L70: 0 | M70: 0 | N70: 0 | O70: 0 | P70: 0 | Q70: 4 | R70: 7 | S70: 7 | T70: 6 | U70: 5 | V70: 4
B71: Additional resources to improve data quality | H71: Number of dedicated data quality FTE | J71: 0 | K71: 0 | L71: 0 | M71: 0 | N71: 0 | O71: 1 | P71: 2 | Q71: 3 | R71: 3 | S71: 3 | T71: 3 | U71: 2 | V71: 1 | W71: ='[3]Cost of fixing time sync errors'!AB$28 -> 0 | X71: 0 | Y71: 0
B72: Customer impacts | H72: Number of customers impacted | O72: 500 | P72: 500 | Q72: 1000 | R72: 2000 | S72: 1500 | T72: 1000 | U72: 500 | V72: 0 | W72: 0 | X72: 0 | Y72: 0
B73: Compliance impacts | H73: Breaches (1 for a civil penalty breach, 30 for a significant licence breach) | P73: 1 | Q73: 30 | R73: 30 | S73: 0 | T73: 0 | U73: 0 | V73: 0 | W73: 0 | X73: 0 | Y73: 0
B75: Name | G75: $ Basis Reminder | H75: $ Reminder | J75: ="Costs - ensure costs have been converted to "&'1_KMA'!$I$19 -> Costs - ensure costs have been converted to $millions
B76: =B64 -> Additional PMO costs | G76: ='1_KMA'!$I$20 -> 2024-06-30 | H76: ='1_KMA'!$I$19 -> $millions | J76: =$J$64*J70 -> 0 | K76: =$J$64*K70 -> 0 | L76: =$J$64*L70 -> 0 | M76: =$J$64*M70 -> 0 | N76: 0 | O76: 0 | P76: 0 | Q76: 0.8 | R76: 1.4 | S76: 1.4 | T76: 1.2 | U76: 1 | V76: 0.8 | W76: 0 | X76: 0 | Y76: 0 | Z76: 0 | AA76: 0 | AB76: 0 | AC76: 0 | AD76: =$J$64*AD70 -> 0 | AE76: 0 | AF76: 0 | AG76: 0 | AH76: 0 | AI76: 0 | AJ76: 0 | AK76: 0 | AL76: 0 | AM76: 0 | AN76: 0 | AO76: 0 | AP76: 0 | AQ76: 0 | AR76: 0 | AS76: 0 | AT76: 0 | AU76: 0 | AV76: 0 | AW76: 0 | AX76: 0 | AY76: 0 | AZ76: 0 | BA76: 0 | BB76: 0 | BC76: 0 | BD76: 0 | BE76: 0 | BF76: 0 | BG76: 0
B77: Additional resources to improve data quality | G77: ='1_KMA'!$I$20 -> 2024-06-30 | H77: ='1_KMA'!$I$19 -> $millions | J77: =$J$65*J71 -> 0 | K77: 0 | L77: 0 | M77: 0 | N77: 0 | O77: 0.1 | P77: 0.2 | Q77: 0.3 | R77: 0.3 | S77: 0.3 | T77: 0.3 | U77: 0.2 | V77: 0.1 | W77: 0 | X77: 0 | Y77: 0 | Z77: 0 | AA77: 0 | AB77: 0 | AC77: 0 | AD77: =$J$65*AD71 -> 0 | AE77: 0 | AF77: 0 | AG77: 0 | AH77: 0 | AI77: 0 | AJ77: 0 | AK77: 0 | AL77: 0 | AM77: 0 | AN77: 0 | AO77: 0 | AP77: 0 | AQ77: 0 | AR77: 0 | AS77: 0 | AT77: 0 | AU77: 0 | AV77: 0 | AW77: 0 | AX77: 0 | AY77: 0 | AZ77: 0 | BA77: 0 | BB77: 0 | BC77: 0 | BD77: 0 | BE77: 0 | BF77: 0 | BG77: 0
B78: Customer impacts | G78: ='1_KMA'!$I$20 -> 2024-06-30 | H78: ='1_KMA'!$I$19 -> $millions | J78: =$J$66*J72 -> 0 | K78: =$J$66*K72 -> 0 | L78: =$J$66*L72 -> 0 | M78: =$J$66*M72 -> 0 | N78: 0 | O78: =$J$66*O72 -> 0.05 | P78: 0.05 | Q78: 0.1 | R78: 0.2 | S78: 0.15 | T78: 0.1 | U78: 0.05 | V78: 0 | W78: 0 | X78: 0 | Y78: 0 | Z78: 0 | AA78: 0 | AB78: 0 | AC78: 0 | AD78: =$J$66*AD72 -> 0 | AE78: 0 | AF78: 0 | AG78: 0 | AH78: 0 | AI78: 0 | AJ78: 0 | AK78: 0 | AL78: 0 | AM78: 0 | AN78: 0 | AO78: 0 | AP78: 0 | AQ78: 0 | AR78: 0 | AS78: 0 | AT78: 0 | AU78: 0 | AV78: 0 | AW78: 0 | AX78: 0 | AY78: 0 | AZ78: 0 | BA78: 0 | BB78: 0 | BC78: 0 | BD78: 0 | BE78: 0 | BF78: 0 | BG78: 0
B79: Compliance impacts | G79: ='1_KMA'!$I$20 -> 2024-06-30 | H79: ='1_KMA'!$I$19 -> $millions | J79: =$J$67*J73 -> 0 | K79: =$J$67*K73 -> 0 | L79: =$J$67*L73 -> 0 | M79: 0 | N79: =$J$67*N73 -> 0 | O79: 0 | P79: =$J$67*P73 -> 0.35 | Q79: 10.5 | R79: 10.5 | S79: 0 | T79: 0 | U79: 0 | V79: 0 | W79: 0 | X79: 0 | Y79: 0 | Z79: 0 | AA79: 0 | AB79: 0 | AC79: 0 | AD79: =$J$67*AD73 -> 0 | AE79: 0 | AF79: 0 | AG79: 0 | AH79: 0 | AI79: 0 | AJ79: 0 | AK79: 0 | AL79: 0 | AM79: 0 | AN79: 0 | AO79: 0 | AP79: 0 | AQ79: 0 | AR79: 0 | AS79: 0 | AT79: 0 | AU79: 0 | AV79: 0 | AW79: 0 | AX79: 0 | AY79: 0 | AZ79: 0 | BA79: 0 | BB79: 0 | BC79: 0 | BD79: 0 | BE79: 0 | BF79: 0 | BG79: 0
G81: $ Basis Reminder | H81: $ Reminder | J81: Summary table above picks up this total row
B82: Total | G82: ='1_KMA'!$I$20 -> 2024-06-30 | H82: ='1_KMA'!$I$19 -> $millions | J82: =SUM(J76:J79) -> 0 | K82: =SUM(K76:K79) -> 0 | L82: =SUM(L76:L79) -> 0 | M82: 0 | N82: 0 | O82: 0.15 | P82: 0.6 | Q82: 11.7 | R82: 12.4 | S82: 1.85 | T82: 1.6 | U82: 1.25 | V82: 0.9 | W82: 0 | X82: 0 | Y82: 0 | Z82: 0 | AA82: 0 | AB82: 0 | AC82: 0 | AD82: 0 | AE82: 0 | AF82: 0 | AG82: 0 | AH82: 0 | AI82: 0 | AJ82: 0 | AK82: 0 | AL82: 0 | AM82: 0 | AN82: 0 | AO82: 0 | AP82: 0 | AQ82: 0 | AR82: 0 | AS82: 0 | AT82: 0 | AU82: 0 | AV82: 0 | AW82: 0 | AX82: 0 | AY82: 0 | AZ82: 0 | BA82: 0 | BB82: 0 | BC82: 0 | BD82: 0 | BE82: 0 | BF82: 0 | BG82: =SUM(BG76:BG79) -> 0
B84: Benefits Inputs
B86: Value of EUE
J88: ="Values - ensure values have been converted to "&'1_KMA'!$I$19 -> Values - ensure values have been converted to $millions
G89: $ Basis Reminder | H89: $ Reminder | J89: Enter this as a positive value, as the spreadsheet later converts this to a negative benefit
B90: Value of Expected Unserved Energy (EUE) | G90: ='1_KMA'!$I$20 -> 2024-06-30 | H90: ='1_KMA'!$I$19 -> $millions
G92: $ Basis Reminder | H92: $ Reminder | J92: Summary table above picks up this total row
B93: Total | G93: ='1_KMA'!$I$20 -> 2024-06-30 | H93: ='1_KMA'!$I$19 -> $millions | J93: =J90 -> 0 | K93: =K90 -> 0 | L93: 0 | M93: 0 | N93: =N90 -> 0 | O93: 0 | P93: 0 | Q93: 0 | R93: 0 | S93: 0 | T93: 0 | U93: 0 | V93: 0 | W93: 0 | X93: 0 | Y93: 0 | Z93: 0 | AA93: 0 | AB93: 0 | AC93: 0 | AD93: 0 | AE93: 0 | AF93: 0 | AG93: 0 | AH93: 0 | AI93: 0 | AJ93: 0 | AK93: 0 | AL93: 0 | AM93: 0 | AN93: 0 | AO93: 0 | AP93: 0 | AQ93: 0 | AR93: 0 | AS93: 0 | AT93: 0 | AU93: 0 | AV93: 0 | AW93: 0 | AX93: 0 | AY93: 0 | AZ93: 0 | BA93: 0 | BB93: 0 | BC93: 0 | BD93: 0 | BE93: 0 | BF93: 0 | BG93: 0
B95: Reliability
B97: QCV research | H97: Unit | J97: Unit Rate
B98: Fewer unplanned outages, less than 12 hours
B99: Fewer unplanned outages in the worst served areas
H102: Unit | J102: Quantities
B103: Fewer unplanned outages, less than 12 hours
B104: Fewer unplanned outages in the worst served areas
G106: $ Basis Reminder | H106: $ Reminder | J106: ="Values - ensure values have been converted to "&'1_KMA'!$I$19 -> Values - ensure values have been converted to $millions
B107: Fewer unplanned outages, less than 12 hours | G107: ='1_KMA'!$I$20 -> 2024-06-30 | H107: ='1_KMA'!$I$19 -> $millions | J107: =J103*$J$98 -> 0 | K107: =K103*$J$98 -> 0 | L107: =L103*$J$98 -> 0 | M107: =M103*$J$98 -> 0 | N107: =N103*$J$98 -> 0 | O107: =O103*$J$98 -> 0 | P107: 0 | Q107: 0 | R107: 0 | S107: 0 | T107: 0 | U107: 0 | V107: 0 | W107: 0 | X107: 0 | Y107: 0 | Z107: 0 | AA107: 0 | AB107: 0 | AC107: 0 | AD107: 0 | AE107: 0 | AF107: 0 | AG107: 0 | AH107: 0 | AI107: 0 | AJ107: 0 | AK107: 0 | AL107: 0 | AM107: 0 | AN107: 0 | AO107: 0 | AP107: 0 | AQ107: 0 | AR107: 0 | AS107: 0 | AT107: 0 | AU107: 0 | AV107: 0 | AW107: 0 | AX107: 0 | AY107: 0 | AZ107: 0 | BA107: 0 | BB107: 0 | BC107: 0 | BD107: 0 | BE107: 0 | BF107: 0 | BG107: 0
B108: Fewer unplanned outages in the worst served areas | G108: ='1_KMA'!$I$20 -> 2024-06-30 | H108: ='1_KMA'!$I$19 -> $millions | J108: =J104*$J$99 -> 0 | K108: =K104*$J$99 -> 0 | L108: =L104*$J$99 -> 0 | M108: =M104*$J$99 -> 0 | N108: =N104*$J$99 -> 0 | O108: =O104*$J$99 -> 0 | P108: 0 | Q108: 0 | R108: 0 | S108: 0 | T108: 0 | U108: 0 | V108: 0 | W108: 0 | X108: 0 | Y108: 0 | Z108: 0 | AA108: 0 | AB108: 0 | AC108: 0 | AD108: 0 | AE108: 0 | AF108: 0 | AG108: 0 | AH108: 0 | AI108: 0 | AJ108: 0 | AK108: 0 | AL108: 0 | AM108: 0 | AN108: 0 | AO108: 0 | AP108: 0 | AQ108: 0 | AR108: 0 | AS108: 0 | AT108: 0 | AU108: 0 | AV108: 0 | AW108: 0 | AX108: 0 | AY108: 0 | AZ108: 0 | BA108: 0 | BB108: 0 | BC108: 0 | BD108: 0 | BE108: 0 | BF108: 0 | BG108: 0
G110: $ Basis Reminder | H110: $ Reminder | J110: Summary table above picks up this total row
B111: Total | G111: ='1_KMA'!$I$20 -> 2024-06-30 | H111: ='1_KMA'!$I$19 -> $millions | J111: =SUM(J107:J108) -> 0 | K111: =SUM(K107:K108) -> 0 | L111: 0 | M111: 0 | N111: 0 | O111: 0 | P111: 0 | Q111: 0 | R111: 0 | S111: 0 | T111: 0 | U111: 0 | V111: 0 | W111: 0 | X111: 0 | Y111: 0 | Z111: 0 | AA111: 0 | AB111: 0 | AC111: 0 | AD111: 0 | AE111: 0 | AF111: 0 | AG111: 0 | AH111: 0 | AI111: 0 | AJ111: 0 | AK111: 0 | AL111: 0 | AM111: 0 | AN111: 0 | AO111: 0 | AP111: 0 | AQ111: 0 | AR111: 0 | AS111: 0 | AT111: 0 | AU111: 0 | AV111: 0 | AW111: 0 | AX111: 0 | AY111: 0 | AZ111: 0 | BA111: 0 | BB111: 0 | BC111: 0 | BD111: 0 | BE111: 0 | BF111: 0 | BG111: 0
B113: Resilience
B115: QCV research | H115: Unit | J115: Unit Rate
B116: Fewer unplanned outages, longer than 12 hours
B117: Faster restoration of power when an outage has occurred
B118: Community hub offering essential services during long duration outages
H121: Unit | J121: Quantities
B122: Fewer unplanned outages, longer than 12 hours
B123: Faster restoration of power when an outage has occurred
B124: Community hub offering essential services
G126: $ Basis Reminder | H126: $ Reminder | J126: ="Values - ensure values have been converted to "&'1_KMA'!$I$19 -> Values - ensure values have been converted to $millions
B127: Fewer unplanned outages, longer than 12 hours | G127: ='1_KMA'!$I$20 -> 2024-06-30 | H127: ='1_KMA'!$I$19 -> $millions | J127: =J122*'2.1_Op5'!$J$116 -> 0 | K127: =K122*'2.1_Op5'!$J$116 -> 0 | L127: =L122*'2.1_Op5'!$J$116 -> 0 | M127: =M122*'2.1_Op5'!$J$116 -> 0 | N127: =N122*'2.1_Op5'!$J$116 -> 0 | O127: =O122*'2.1_Op5'!$J$116 -> 0 | P127: =P122*'2.1_Op5'!$J$116 -> 0 | Q127: =Q122*'2.1_Op5'!$J$116 -> 0 | R127: =R122*'2.1_Op5'!$J$116 -> 0 | S127: =S122*'2.1_Op5'!$J$116 -> 0 | T127: =T122*'2.1_Op5'!$J$116 -> 0 | U127: =U122*'2.1_Op5'!$J$116 -> 0 | V127: =V122*'2.1_Op5'!$J$116 -> 0 | W127: =W122*'2.1_Op5'!$J$116 -> 0 | X127: =X122*'2.1_Op5'!$J$116 -> 0 | Y127: =Y122*'2.1_Op5'!$J$116 -> 0 | Z127: =Z122*'2.1_Op5'!$J$116 -> 0 | AA127: =AA122*'2.1_Op5'!$J$116 -> 0 | AB127: =AB122*'2.1_Op5'!$J$116 -> 0 | AC127: =AC122*'2.1_Op5'!$J$116 -> 0 | AD127: =AD122*'2.1_Op5'!$J$116 -> 0 | AE127: =AE122*'2.1_Op5'!$J$116 -> 0 | AF127: =AF122*'2.1_Op5'!$J$116 -> 0 | AG127: =AG122*'2.1_Op5'!$J$116 -> 0 | AH127: =AH122*'2.1_Op5'!$J$116 -> 0 | AI127: =AI122*'2.1_Op5'!$J$116 -> 0 | AJ127: =AJ122*'2.1_Op5'!$J$116 -> 0 | AK127: =AK122*'2.1_Op5'!$J$116 -> 0 | AL127: =AL122*'2.1_Op5'!$J$116 -> 0 | AM127: =AM122*'2.1_Op5'!$J$116 -> 0 | AN127: =AN122*'2.1_Op5'!$J$116 -> 0 | AO127: =AO122*'2.1_Op5'!$J$116 -> 0 | AP127: =AP122*'2.1_Op5'!$J$116 -> 0 | AQ127: =AQ122*'2.1_Op5'!$J$116 -> 0 | AR127: =AR122*'2.1_Op5'!$J$116 -> 0 | AS127: =AS122*'2.1_Op5'!$J$116 -> 0 | AT127: =AT122*'2.1_Op5'!$J$116 -> 0 | AU127: =AU122*'2.1_Op5'!$J$116 -> 0 | AV127: =AV122*'2.1_Op5'!$J$116 -> 0 | AW127: =AW122*'2.1_Op5'!$J$116 -> 0 | AX127: =AX122*'2.1_Op5'!$J$116 -> 0 | AY127: =AY122*'2.1_Op5'!$J$116 -> 0 | AZ127: =AZ122*'2.1_Op5'!$J$116 -> 0 | BA127: =BA122*'2.1_Op5'!$J$116 -> 0 | BB127: =BB122*'2.1_Op5'!$J$116 -> 0 | BC127: =BC122*'2.1_Op5'!$J$116 -> 0 | BD127: =BD122*'2.1_Op5'!$J$116 -> 0 | BE127: =BE122*'2.1_Op5'!$J$116 -> 0 | BF127: =BF122*'2.1_Op5'!$J$116 -> 0 | BG127: =BG122*'2.1_Op5'!$J$116 -> 0
B128: Faster restoration of power when an outage has occurred | G128: ='1_KMA'!$I$20 -> 2024-06-30 | H128: ='1_KMA'!$I$19 -> $millions | J128: =J123*'2.1_Op5'!$J$117 -> 0 | K128: =K123*'2.1_Op5'!$J$117 -> 0 | L128: =L123*'2.1_Op5'!$J$117 -> 0 | M128: =M123*'2.1_Op5'!$J$117 -> 0 | N128: =N123*'2.1_Op5'!$J$117 -> 0 | O128: =O123*'2.1_Op5'!$J$117 -> 0 | P128: =P123*'2.1_Op5'!$J$117 -> 0 | Q128: =Q123*'2.1_Op5'!$J$117 -> 0 | R128: =R123*'2.1_Op5'!$J$117 -> 0 | S128: =S123*'2.1_Op5'!$J$117 -> 0 | T128: =T123*'2.1_Op5'!$J$117 -> 0 | U128: =U123*'2.1_Op5'!$J$117 -> 0 | V128: =V123*'2.1_Op5'!$J$117 -> 0 | W128: =W123*'2.1_Op5'!$J$117 -> 0 | X128: =X123*'2.1_Op5'!$J$117 -> 0 | Y128: =Y123*'2.1_Op5'!$J$117 -> 0 | Z128: =Z123*'2.1_Op5'!$J$117 -> 0 | AA128: =AA123*'2.1_Op5'!$J$117 -> 0 | AB128: =AB123*'2.1_Op5'!$J$117 -> 0 | AC128: =AC123*'2.1_Op5'!$J$117 -> 0 | AD128: =AD123*'2.1_Op5'!$J$117 -> 0 | AE128: =AE123*'2.1_Op5'!$J$117 -> 0 | AF128: =AF123*'2.1_Op5'!$J$117 -> 0 | AG128: =AG123*'2.1_Op5'!$J$117 -> 0 | AH128: =AH123*'2.1_Op5'!$J$117 -> 0 | AI128: =AI123*'2.1_Op5'!$J$117 -> 0 | AJ128: =AJ123*'2.1_Op5'!$J$117 -> 0 | AK128: =AK123*'2.1_Op5'!$J$117 -> 0 | AL128: =AL123*'2.1_Op5'!$J$117 -> 0 | AM128: =AM123*'2.1_Op5'!$J$117 -> 0 | AN128: =AN123*'2.1_Op5'!$J$117 -> 0 | AO128: =AO123*'2.1_Op5'!$J$117 -> 0 | AP128: =AP123*'2.1_Op5'!$J$117 -> 0 | AQ128: =AQ123*'2.1_Op5'!$J$117 -> 0 | AR128: =AR123*'2.1_Op5'!$J$117 -> 0 | AS128: =AS123*'2.1_Op5'!$J$117 -> 0 | AT128: =AT123*'2.1_Op5'!$J$117 -> 0 | AU128: =AU123*'2.1_Op5'!$J$117 -> 0 | AV128: =AV123*'2.1_Op5'!$J$117 -> 0 | AW128: =AW123*'2.1_Op5'!$J$117 -> 0 | AX128: =AX123*'2.1_Op5'!$J$117 -> 0 | AY128: =AY123*'2.1_Op5'!$J$117 -> 0 | AZ128: =AZ123*'2.1_Op5'!$J$117 -> 0 | BA128: =BA123*'2.1_Op5'!$J$117 -> 0 | BB128: =BB123*'2.1_Op5'!$J$117 -> 0 | BC128: =BC123*'2.1_Op5'!$J$117 -> 0 | BD128: =BD123*'2.1_Op5'!$J$117 -> 0 | BE128: =BE123*'2.1_Op5'!$J$117 -> 0 | BF128: =BF123*'2.1_Op5'!$J$117 -> 0 | BG128: =BG123*'2.1_Op5'!$J$117 -> 0
B129: Community hub offering essential services | G129: ='1_KMA'!$I$20 -> 2024-06-30 | H129: ='1_KMA'!$I$19 -> $millions | J129: =J124*'2.1_Op5'!$J$118 -> 0 | K129: =K124*'2.1_Op5'!$J$118 -> 0 | L129: =L124*'2.1_Op5'!$J$118 -> 0 | M129: =M124*'2.1_Op5'!$J$118 -> 0 | N129: =N124*'2.1_Op5'!$J$118 -> 0 | O129: =O124*'2.1_Op5'!$J$118 -> 0 | P129: =P124*'2.1_Op5'!$J$118 -> 0 | Q129: =Q124*'2.1_Op5'!$J$118 -> 0 | R129: =R124*'2.1_Op5'!$J$118 -> 0 | S129: =S124*'2.1_Op5'!$J$118 -> 0 | T129: =T124*'2.1_Op5'!$J$118 -> 0 | U129: =U124*'2.1_Op5'!$J$118 -> 0 | V129: =V124*'2.1_Op5'!$J$118 -> 0 | W129: =W124*'2.1_Op5'!$J$118 -> 0 | X129: =X124*'2.1_Op5'!$J$118 -> 0 | Y129: =Y124*'2.1_Op5'!$J$118 -> 0 | Z129: =Z124*'2.1_Op5'!$J$118 -> 0 | AA129: =AA124*'2.1_Op5'!$J$118 -> 0 | AB129: =AB124*'2.1_Op5'!$J$118 -> 0 | AC129: =AC124*'2.1_Op5'!$J$118 -> 0 | AD129: =AD124*'2.1_Op5'!$J$118 -> 0 | AE129: =AE124*'2.1_Op5'!$J$118 -> 0 | AF129: =AF124*'2.1_Op5'!$J$118 -> 0 | AG129: =AG124*'2.1_Op5'!$J$118 -> 0 | AH129: =AH124*'2.1_Op5'!$J$118 -> 0 | AI129: =AI124*'2.1_Op5'!$J$118 -> 0 | AJ129: =AJ124*'2.1_Op5'!$J$118 -> 0 | AK129: =AK124*'2.1_Op5'!$J$118 -> 0 | AL129: =AL124*'2.1_Op5'!$J$118 -> 0 | AM129: =AM124*'2.1_Op5'!$J$118 -> 0 | AN129: =AN124*'2.1_Op5'!$J$118 -> 0 | AO129: =AO124*'2.1_Op5'!$J$118 -> 0 | AP129: =AP124*'2.1_Op5'!$J$118 -> 0 | AQ129: =AQ124*'2.1_Op5'!$J$118 -> 0 | AR129: =AR124*'2.1_Op5'!$J$118 -> 0 | AS129: =AS124*'2.1_Op5'!$J$118 -> 0 | AT129: =AT124*'2.1_Op5'!$J$118 -> 0 | AU129: =AU124*'2.1_Op5'!$J$118 -> 0 | AV129: =AV124*'2.1_Op5'!$J$118 -> 0 | AW129: =AW124*'2.1_Op5'!$J$118 -> 0 | AX129: =AX124*'2.1_Op5'!$J$118 -> 0 | AY129: =AY124*'2.1_Op5'!$J$118 -> 0 | AZ129: =AZ124*'2.1_Op5'!$J$118 -> 0 | BA129: =BA124*'2.1_Op5'!$J$118 -> 0 | BB129: =BB124*'2.1_Op5'!$J$118 -> 0 | BC129: =BC124*'2.1_Op5'!$J$118 -> 0 | BD129: =BD124*'2.1_Op5'!$J$118 -> 0 | BE129: =BE124*'2.1_Op5'!$J$118 -> 0 | BF129: =BF124*'2.1_Op5'!$J$118 -> 0 | BG129: =BG124*'2.1_Op5'!$J$118 -> 0
G131: $ Basis Reminder | H131: $ Reminder | J131: Summary table above picks up this total row
B132: Total | G132: ='1_KMA'!$I$20 -> 2024-06-30 | H132: ='1_KMA'!$I$19 -> $millions | J132: =SUM(J127:J129) -> 0 | K132: =SUM(K127:K129) -> 0 | L132: 0 | M132: 0 | N132: 0 | O132: 0 | P132: 0 | Q132: 0 | R132: 0 | S132: 0 | T132: 0 | U132: 0 | V132: 0 | W132: 0 | X132: 0 | Y132: 0 | Z132: 0 | AA132: 0 | AB132: 0 | AC132: 0 | AD132: 0 | AE132: 0 | AF132: 0 | AG132: 0 | AH132: 0 | AI132: 0 | AJ132: 0 | AK132: 0 | AL132: 0 | AM132: 0 | AN132: 0 | AO132: 0 | AP132: 0 | AQ132: 0 | AR132: 0 | AS132: 0 | AT132: 0 | AU132: 0 | AV132: 0 | AW132: 0 | AX132: 0 | AY132: 0 | AZ132: 0 | BA132: 0 | BB132: 0 | BC132: 0 | BD132: 0 | BE132: 0 | BF132: 0 | BG132: 0
B134: Batteries
B136: AusNet Savings from Wholesale Arbitrage
H137: Unit | J137: Value
B138: Wholesale market price differential | H138: [e.g. $dollars per MWh]
B139: AusNet Share in Wholesale arbitrage | H139: [e.g. %]
B140: Average annual battery derating | H140: [e.g. % p.a.]
H142: Unit | J142: Location 1 | K142: Location 2 | L142: Location 3 | M142: Location 4 | N142: Location 5
B143: Battery Rating | H143: kW
B144: Battery Rating | H144: hr
B145: Battery Rating | H145: kWh | J145: =J143*J144 -> 0 | K145: =K143*K144 -> 0 | L145: =L143*L144 -> 0 | M145: =M143*M144 -> 0 | N145: =N143*N144 -> 0
B146: Retailer benefit by wholesale arbitrage | H146: [e.g. $millions, $thousands or $dollars per year] | J146: =J145*$J$138*0.8*5*52/1000 -> 0 | K146: =K145*$J$138*0.8*5*52/1000 -> 0 | L146: =L145*$J$138*0.8*5*52/1000 -> 0 | M146: =M145*$J$138*0.8*5*52/1000 -> 0 | N146: =N145*$J$138*0.8*5*52/1000 -> 0
G148: $ Basis Reminder | H148: $ Reminder | J148: ="Values - ensure values have been converted to "&'1_KMA'!$I$19 -> Values - ensure values have been converted to $millions
B149: AusNet Savings from Wholesale Arbitrage | G149: ='1_KMA'!$I$20 -> 2024-06-30 | H149: ='1_KMA'!$I$19 -> $millions | J149: =(SUM($J$146:$N$146)*$J$139*(1/(1+$J$140)^(J4-1)))/10^6 -> 0 | K149: =(SUM($J$146:$N$146)*$J$139*(1/(1+$J$140)^(K4-1)))/10^6 -> 0 | L149: 0 | M149: 0 | N149: 0 | O149: 0 | P149: 0 | Q149: 0 | R149: 0 | S149: 0 | T149: 0 | U149: 0 | V149: 0 | W149: 0 | X149: 0 | Y149: 0 | Z149: 0 | AA149: 0 | AB149: 0 | AC149: 0 | AD149: 0 | AE149: 0 | AF149: 0 | AG149: 0 | AH149: 0 | AI149: 0 | AJ149: 0 | AK149: 0 | AL149: 0 | AM149: 0 | AN149: 0 | AO149: 0 | AP149: 0 | AQ149: 0 | AR149: 0 | AS149: 0 | AT149: 0 | AU149: 0 | AV149: 0 | AW149: 0 | AX149: 0 | AY149: 0 | AZ149: 0 | BA149: 0 | BB149: 0 | BC149: 0 | BD149: 0 | BE149: 0 | BF149: 0 | BG149: 0
B151: AusNet Revenue from FCAS
H152: Unit | J152: Value
B153: FCAS participation price | H153: [e.g. $ollars per MW per hour]
B154: Average annual participation All batteries | H154: [e.g. MW per hour]
G156: $ Basis Reminder | H156: $ Reminder | J156: ="Values - ensure values have been converted to "&'1_KMA'!$I$19 -> Values - ensure values have been converted to $millions
B157: AusNet Revenue from FCAS | G157: ='1_KMA'!$I$20 -> 2024-06-30 | H157: ='1_KMA'!$I$19 -> $millions | J157: =$J$153*$J$154/10^6 -> 0 | K157: =$J$153*$J$154/10^6 -> 0 | L157: 0 | M157: 0 | N157: 0 | O157: 0 | P157: 0 | Q157: 0 | R157: 0 | S157: 0 | T157: 0 | U157: 0 | V157: 0 | W157: 0 | X157: 0 | Y157: 0 | Z157: 0 | AA157: 0 | AB157: 0 | AC157: 0 | AD157: 0 | AE157: 0 | AF157: 0 | AG157: 0 | AH157: 0 | AI157: 0 | AJ157: 0 | AK157: 0 | AL157: 0 | AM157: 0 | AN157: 0 | AO157: 0 | AP157: 0 | AQ157: 0 | AR157: 0 | AS157: 0 | AT157: 0 | AU157: 0 | AV157: 0 | AW157: 0 | AX157: 0 | AY157: 0 | AZ157: 0 | BA157: 0 | BB157: 0 | BC157: 0 | BD157: 0 | BE157: 0 | BF157: 0 | BG157: 0
B159: AusNet Savings from Avoided Penalties
H160: Unit | J160: Location 1 | K160: Location 2 | L160: Location 3 | M160: Location 4 | N160: Location 5
B161: Number of average outage events | H161: [e.g. Events per year]
B162: Average Ausnet penalty for outage | H162: [e.g. $dollars per event]
G164: $ Basis Reminder | H164: $ Reminder | J164: ="Values - ensure values have been converted to "&'1_KMA'!$I$19 -> Values - ensure values have been converted to $millions
B165: Ausnet Savings from Avoided Penalties | G165: ='1_KMA'!$I$20 -> 2024-06-30 | H165: ='1_KMA'!$I$19 -> $millions | J165: =SUMPRODUCT($J$161:$N$161,$J$162:$N$162)/10^6 -> 0 | K165: =SUMPRODUCT($J$161:$N$161,$J$162:$N$162)/10^6 -> 0 | L165: 0 | M165: 0 | N165: 0 | O165: 0 | P165: 0 | Q165: 0 | R165: 0 | S165: 0 | T165: 0 | U165: 0 | V165: 0 | W165: 0 | X165: 0 | Y165: 0 | Z165: 0 | AA165: 0 | AB165: 0 | AC165: 0 | AD165: 0 | AE165: 0 | AF165: 0 | AG165: 0 | AH165: 0 | AI165: 0 | AJ165: 0 | AK165: 0 | AL165: 0 | AM165: 0 | AN165: 0 | AO165: 0 | AP165: 0 | AQ165: 0 | AR165: 0 | AS165: 0 | AT165: 0 | AU165: 0 | AV165: 0 | AW165: 0 | AX165: 0 | AY165: 0 | AZ165: 0 | BA165: 0 | BB165: 0 | BC165: 0 | BD165: 0 | BE165: 0 | BF165: 0 | BG165: 0
G167: $ Basis Reminder | H167: $ Reminder | J167: Summary table above picks up this total row
B168: Total | G168: ='1_KMA'!$I$20 -> 2024-06-30 | H168: ='1_KMA'!$I$19 -> $millions | J168: =J149+J157+J165 -> 0 | K168: =K149+K157+K165 -> 0 | L168: 0 | M168: 0 | N168: 0 | O168: 0 | P168: 0 | Q168: 0 | R168: 0 | S168: 0 | T168: 0 | U168: 0 | V168: 0 | W168: 0 | X168: 0 | Y168: 0 | Z168: 0 | AA168: 0 | AB168: 0 | AC168: 0 | AD168: 0 | AE168: 0 | AF168: 0 | AG168: 0 | AH168: 0 | AI168: 0 | AJ168: 0 | AK168: 0 | AL168: 0 | AM168: 0 | AN168: 0 | AO168: 0 | AP168: 0 | AQ168: 0 | AR168: 0 | AS168: 0 | AT168: 0 | AU168: 0 | AV168: 0 | AW168: 0 | AX168: 0 | AY168: 0 | AZ168: 0 | BA168: 0 | BB168: 0 | BC168: 0 | BD168: 0 | BE168: 0 | BF168: 0 | BG168: 0
B170: Others

Sheet 3_Interim calcs-> (hidden)
C6: Interim calculations
C7: Section 3.
C9: =Cover!$C$9 -> AusNet Services
C10: =Cover!$C$10 -> Business Case Evaluation
C11: =Cover!$C$11 -> Smart meter 13 yr bulk replacement

Sheet 3_BC
B1: Interim Calculations: Base Case | I1: Regulatory Period Indicator | J1: ='1_KMA'!J30 -> 0 | K1: ='1_KMA'!K30 -> 0 | L1: ='1_KMA'!L30 -> 1 | M1: ='1_KMA'!M30 -> 1 | N1: ='1_KMA'!N30 -> 1 | O1: ='1_KMA'!O30 -> 1 | P1: ='1_KMA'!P30 -> 1 | Q1: ='1_KMA'!Q30 -> 0 | R1: ='1_KMA'!R30 -> 0 | S1: ='1_KMA'!S30 -> 0 | T1: ='1_KMA'!T30 -> 0 | U1: ='1_KMA'!U30 -> 0 | V1: ='1_KMA'!V30 -> 0 | W1: ='1_KMA'!W30 -> 0 | X1: ='1_KMA'!X30 -> 0 | Y1: ='1_KMA'!Y30 -> 0 | Z1: ='1_KMA'!Z30 -> 0 | AA1: ='1_KMA'!AA30 -> 0 | AB1: ='1_KMA'!AB30 -> 0 | AC1: ='1_KMA'!AC30 -> 0 | AD1: ='1_KMA'!AD30 -> 0 | AE1: ='1_KMA'!AE30 -> 0 | AF1: ='1_KMA'!AF30 -> 0 | AG1: ='1_KMA'!AG30 -> 0 | AH1: ='1_KMA'!AH30 -> 0 | AI1: ='1_KMA'!AI30 -> 0 | AJ1: ='1_KMA'!AJ30 -> 0 | AK1: ='1_KMA'!AK30 -> 0 | AL1: ='1_KMA'!AL30 -> 0 | AM1: ='1_KMA'!AM30 -> 0 | AN1: ='1_KMA'!AN30 -> 0 | AO1: ='1_KMA'!AO30 -> 0 | AP1: ='1_KMA'!AP30 -> 0 | AQ1: ='1_KMA'!AQ30 -> 0 | AR1: ='1_KMA'!AR30 -> 0 | AS1: ='1_KMA'!AS30 -> 0 | AT1: ='1_KMA'!AT30 -> 0 | AU1: ='1_KMA'!AU30 -> 0 | AV1: ='1_KMA'!AV30 -> 0 | AW1: ='1_KMA'!AW30 -> 0 | AX1: ='1_KMA'!AX30 -> 0 | AY1: ='1_KMA'!AY30 -> 0 | AZ1: ='1_KMA'!AZ30 -> 0 | BA1: ='1_KMA'!BA30 -> 0 | BB1: ='1_KMA'!BB30 -> 0 | BC1: ='1_KMA'!BC30 -> 0 | BD1: ='1_KMA'!BD30 -> 0 | BE1: ='1_KMA'!BE30 -> 0 | BF1: ='1_KMA'!BF30 -> 0 | BG1: ='1_KMA'!BG30 -> 0
B2: =Cover!$C$9 -> AusNet Services | I2: Period Start Date | J2: ='1_KMA'!J31 -> 2024-07-01 | K2: ='1_KMA'!K31 -> 2025-07-01 | L2: ='1_KMA'!L31 -> 2026-07-01 | M2: ='1_KMA'!M31 -> 2027-07-01 | N2: ='1_KMA'!N31 -> 2028-07-01 | O2: ='1_KMA'!O31 -> 2029-07-01 | P2: ='1_KMA'!P31 -> 2030-07-01 | Q2: ='1_KMA'!Q31 -> 2031-07-01 | R2: ='1_KMA'!R31 -> 2032-07-01 | S2: ='1_KMA'!S31 -> 2033-07-01 | T2: ='1_KMA'!T31 -> 2034-07-01 | U2: ='1_KMA'!U31 -> 2035-07-01 | V2: ='1_KMA'!V31 -> 2036-07-01 | W2: ='1_KMA'!W31 -> 2037-07-01 | X2: ='1_KMA'!X31 -> 2038-07-01 | Y2: ='1_KMA'!Y31 -> 2039-07-01 | Z2: ='1_KMA'!Z31 -> 2040-07-01 | AA2: ='1_KMA'!AA31 -> 2041-07-01 | AB2: ='1_KMA'!AB31 -> 2042-07-01 | AC2: ='1_KMA'!AC31 -> 2043-07-01 | AD2: ='1_KMA'!AD31 -> 2044-07-01 | AE2: ='1_KMA'!AE31 -> 2045-07-01 | AF2: ='1_KMA'!AF31 -> 2046-07-01 | AG2: ='1_KMA'!AG31 -> 2047-07-01 | AH2: ='1_KMA'!AH31 -> 2048-07-01 | AI2: ='1_KMA'!AI31 -> 2049-07-01 | AJ2: ='1_KMA'!AJ31 -> 2050-07-01 | AK2: ='1_KMA'!AK31 -> 2051-07-01 | AL2: ='1_KMA'!AL31 -> 2052-07-01 | AM2: ='1_KMA'!AM31 -> 2053-07-01 | AN2: ='1_KMA'!AN31 -> 2054-07-01 | AO2: ='1_KMA'!AO31 -> 2055-07-01 | AP2: ='1_KMA'!AP31 -> 2056-07-01 | AQ2: ='1_KMA'!AQ31 -> 2057-07-01 | AR2: ='1_KMA'!AR31 -> 2058-07-01 | AS2: ='1_KMA'!AS31 -> 2059-07-01 | AT2: ='1_KMA'!AT31 -> 2060-07-01 | AU2: ='1_KMA'!AU31 -> 2061-07-01 | AV2: ='1_KMA'!AV31 -> 2062-07-01 | AW2: ='1_KMA'!AW31 -> 2063-07-01 | AX2: ='1_KMA'!AX31 -> 2064-07-01 | AY2: ='1_KMA'!AY31 -> 2065-07-01 | AZ2: ='1_KMA'!AZ31 -> 2066-07-01 | BA2: ='1_KMA'!BA31 -> 2067-07-01 | BB2: ='1_KMA'!BB31 -> 2068-07-01 | BC2: ='1_KMA'!BC31 -> 2069-07-01 | BD2: ='1_KMA'!BD31 -> 2070-07-01 | BE2: ='1_KMA'!BE31 -> 2071-07-01 | BF2: ='1_KMA'!BF31 -> 2072-07-01 | BG2: ='1_KMA'!BG31 -> 2073-07-01
B3: =Cover!$C$10 -> Business Case Evaluation | I3: Period End Date | J3: ='1_KMA'!J32 -> 2025-06-30 | K3: ='1_KMA'!K32 -> 2026-06-30 | L3: ='1_KMA'!L32 -> 2027-06-30 | M3: ='1_KMA'!M32 -> 2028-06-30 | N3: ='1_KMA'!N32 -> 2029-06-30 | O3: ='1_KMA'!O32 -> 2030-06-30 | P3: ='1_KMA'!P32 -> 2031-06-30 | Q3: ='1_KMA'!Q32 -> 2032-06-30 | R3: ='1_KMA'!R32 -> 2033-06-30 | S3: ='1_KMA'!S32 -> 2034-06-30 | T3: ='1_KMA'!T32 -> 2035-06-30 | U3: ='1_KMA'!U32 -> 2036-06-30 | V3: ='1_KMA'!V32 -> 2037-06-30 | W3: ='1_KMA'!W32 -> 2038-06-30 | X3: ='1_KMA'!X32 -> 2039-06-30 | Y3: ='1_KMA'!Y32 -> 2040-06-30 | Z3: ='1_KMA'!Z32 -> 2041-06-30 | AA3: ='1_KMA'!AA32 -> 2042-06-30 | AB3: ='1_KMA'!AB32 -> 2043-06-30 | AC3: ='1_KMA'!AC32 -> 2044-06-30 | AD3: ='1_KMA'!AD32 -> 2045-06-30 | AE3: ='1_KMA'!AE32 -> 2046-06-30 | AF3: ='1_KMA'!AF32 -> 2047-06-30 | AG3: ='1_KMA'!AG32 -> 2048-06-30 | AH3: ='1_KMA'!AH32 -> 2049-06-30 | AI3: ='1_KMA'!AI32 -> 2050-06-30 | AJ3: ='1_KMA'!AJ32 -> 2051-06-30 | AK3: ='1_KMA'!AK32 -> 2052-06-30 | AL3: ='1_KMA'!AL32 -> 2053-06-30 | AM3: ='1_KMA'!AM32 -> 2054-06-30 | AN3: ='1_KMA'!AN32 -> 2055-06-30 | AO3: ='1_KMA'!AO32 -> 2056-06-30 | AP3: ='1_KMA'!AP32 -> 2057-06-30 | AQ3: ='1_KMA'!AQ32 -> 2058-06-30 | AR3: ='1_KMA'!AR32 -> 2059-06-30 | AS3: ='1_KMA'!AS32 -> 2060-06-30 | AT3: ='1_KMA'!AT32 -> 2061-06-30 | AU3: ='1_KMA'!AU32 -> 2062-06-30 | AV3: ='1_KMA'!AV32 -> 2063-06-30 | AW3: ='1_KMA'!AW32 -> 2064-06-30 | AX3: ='1_KMA'!AX32 -> 2065-06-30 | AY3: ='1_KMA'!AY32 -> 2066-06-30 | AZ3: ='1_KMA'!AZ32 -> 2067-06-30 | BA3: ='1_KMA'!BA32 -> 2068-06-30 | BB3: ='1_KMA'!BB32 -> 2069-06-30 | BC3: ='1_KMA'!BC32 -> 2070-06-30 | BD3: ='1_KMA'!BD32 -> 2071-06-30 | BE3: ='1_KMA'!BE32 -> 2072-06-30 | BF3: ='1_KMA'!BF32 -> 2073-06-30 | BG3: ='1_KMA'!BG32 -> 2074-06-30
B4: =Cover!$C$11 -> Smart meter 13 yr bulk replacement | I4: Project Year | J4: ='1_KMA'!J33 -> 1 | K4: ='1_KMA'!K33 -> 2 | L4: ='1_KMA'!L33 -> 3 | M4: ='1_KMA'!M33 -> 4 | N4: ='1_KMA'!N33 -> 5 | O4: ='1_KMA'!O33 -> 6 | P4: ='1_KMA'!P33 -> 7 | Q4: ='1_KMA'!Q33 -> 8 | R4: ='1_KMA'!R33 -> 9 | S4: ='1_KMA'!S33 -> 10 | T4: ='1_KMA'!T33 -> 11 | U4: ='1_KMA'!U33 -> 12 | V4: ='1_KMA'!V33 -> 13 | W4: ='1_KMA'!W33 -> 14 | X4: ='1_KMA'!X33 -> 15 | Y4: ='1_KMA'!Y33 -> 16 | Z4: ='1_KMA'!Z33 -> 17 | AA4: ='1_KMA'!AA33 -> 18 | AB4: ='1_KMA'!AB33 -> 19 | AC4: ='1_KMA'!AC33 -> 20 | AD4: ='1_KMA'!AD33 -> 21 | AE4: ='1_KMA'!AE33 -> 22 | AF4: ='1_KMA'!AF33 -> 23 | AG4: ='1_KMA'!AG33 -> 24 | AH4: ='1_KMA'!AH33 -> 25 | AI4: ='1_KMA'!AI33 -> 26 | AJ4: ='1_KMA'!AJ33 -> 27 | AK4: ='1_KMA'!AK33 -> 28 | AL4: ='1_KMA'!AL33 -> 29 | AM4: ='1_KMA'!AM33 -> 30 | AN4: ='1_KMA'!AN33 -> 31 | AO4: ='1_KMA'!AO33 -> 32 | AP4: ='1_KMA'!AP33 -> 33 | AQ4: ='1_KMA'!AQ33 -> 34 | AR4: ='1_KMA'!AR33 -> 35 | AS4: ='1_KMA'!AS33 -> 36 | AT4: ='1_KMA'!AT33 -> 37 | AU4: ='1_KMA'!AU33 -> 38 | AV4: ='1_KMA'!AV33 -> 39 | AW4: ='1_KMA'!AW33 -> 40 | AX4: ='1_KMA'!AX33 -> 41 | AY4: ='1_KMA'!AY33 -> 42 | AZ4: ='1_KMA'!AZ33 -> 43 | BA4: ='1_KMA'!BA33 -> 44 | BB4: ='1_KMA'!BB33 -> 45 | BC4: ='1_KMA'!BC33 -> 46 | BD4: ='1_KMA'!BD33 -> 47 | BE4: ='1_KMA'!BE33 -> 48 | BF4: ='1_KMA'!BF33 -> 49 | BG4: ='1_KMA'!BG33 -> 50
I5: Financial Year | J5: ='1_KMA'!J34 -> 2025 | K5: ='1_KMA'!K34 -> 2026 | L5: ='1_KMA'!L34 -> 2027 | M5: ='1_KMA'!M34 -> 2028 | N5: ='1_KMA'!N34 -> 2029 | O5: ='1_KMA'!O34 -> 2030 | P5: ='1_KMA'!P34 -> 2031 | Q5: ='1_KMA'!Q34 -> 2032 | R5: ='1_KMA'!R34 -> 2033 | S5: ='1_KMA'!S34 -> 2034 | T5: ='1_KMA'!T34 -> 2035 | U5: ='1_KMA'!U34 -> 2036 | V5: ='1_KMA'!V34 -> 2037 | W5: ='1_KMA'!W34 -> 2038 | X5: ='1_KMA'!X34 -> 2039 | Y5: ='1_KMA'!Y34 -> 2040 | Z5: ='1_KMA'!Z34 -> 2041 | AA5: ='1_KMA'!AA34 -> 2042 | AB5: ='1_KMA'!AB34 -> 2043 | AC5: ='1_KMA'!AC34 -> 2044 | AD5: ='1_KMA'!AD34 -> 2045 | AE5: ='1_KMA'!AE34 -> 2046 | AF5: ='1_KMA'!AF34 -> 2047 | AG5: ='1_KMA'!AG34 -> 2048 | AH5: ='1_KMA'!AH34 -> 2049 | AI5: ='1_KMA'!AI34 -> 2050 | AJ5: ='1_KMA'!AJ34 -> 2051 | AK5: ='1_KMA'!AK34 -> 2052 | AL5: ='1_KMA'!AL34 -> 2053 | AM5: ='1_KMA'!AM34 -> 2054 | AN5: ='1_KMA'!AN34 -> 2055 | AO5: ='1_KMA'!AO34 -> 2056 | AP5: ='1_KMA'!AP34 -> 2057 | AQ5: ='1_KMA'!AQ34 -> 2058 | AR5: ='1_KMA'!AR34 -> 2059 | AS5: ='1_KMA'!AS34 -> 2060 | AT5: ='1_KMA'!AT34 -> 2061 | AU5: ='1_KMA'!AU34 -> 2062 | AV5: ='1_KMA'!AV34 -> 2063 | AW5: ='1_KMA'!AW34 -> 2064 | AX5: ='1_KMA'!AX34 -> 2065 | AY5: ='1_KMA'!AY34 -> 2066 | AZ5: ='1_KMA'!AZ34 -> 2067 | BA5: ='1_KMA'!BA34 -> 2068 | BB5: ='1_KMA'!BB34 -> 2069 | BC5: ='1_KMA'!BC34 -> 2070 | BD5: ='1_KMA'!BD34 -> 2071 | BE5: ='1_KMA'!BE34 -> 2072 | BF5: ='1_KMA'!BF34 -> 2073 | BG5: ='1_KMA'!BG34 -> 2074
I7: Escalation | J7: =IF(ISERROR(VLOOKUP('1_KMA'!$I$20&'1_KMA'!$I$21,CPI_Con_F!$C$63:$H$182,6,FALSE)),0,VLOOKUP('1_KMA'!$I$20&'1_KMA'!$I$21,CPI_Con_F!$C$63:$H$182,6,FALSE)) -> 1.040519878 | K7: =IF(ISERROR(VLOOKUP('1_KMA'!$I$20&'1_KMA'!$I$21,CPI_Con_F!$C$63:$H$182,6,FALSE)),0,VLOOKUP('1_KMA'!$I$20&'1_KMA'!$I$21,CPI_Con_F!$C$63:$H$182,6,FALSE)) -> 1.040519878 | L7: =IF(ISERROR(VLOOKUP('1_KMA'!$I$20&'1_KMA'!$I$21,CPI_Con_F!$C$63:$H$182,6,FALSE)),0,VLOOKUP('1_KMA'!$I$20&'1_KMA'!$I$21,CPI_Con_F!$C$63:$H$182,6,FALSE)) -> 1.040519878 | M7: =IF(ISERROR(VLOOKUP('1_KMA'!$I$20&'1_KMA'!$I$21,CPI_Con_F!$C$63:$H$182,6,FALSE)),0,VLOOKUP('1_KMA'!$I$20&'1_KMA'!$I$21,CPI_Con_F!$C$63:$H$182,6,FALSE)) -> 1.040519878 | N7: =IF(ISERROR(VLOOKUP('1_KMA'!$I$20&'1_KMA'!$I$21,CPI_Con_F!$C$63:$H$182,6,FALSE)),0,VLOOKUP('1_KMA'!$I$20&'1_KMA'!$I$21,CPI_Con_F!$C$63:$H$182,6,FALSE)) -> 1.040519878 | O7: =IF(ISERROR(VLOOKUP('1_KMA'!$I$20&'1_KMA'!$I$21,CPI_Con_F!$C$63:$H$182,6,FALSE)),0,VLOOKUP('1_KMA'!$I$20&'1_KMA'!$I$21,CPI_Con_F!$C$63:$H$182,6,FALSE)) -> 1.040519878 | P7: =IF(ISERROR(VLOOKUP('1_KMA'!$I$20&'1_KMA'!$I$21,CPI_Con_F!$C$63:$H$182,6,FALSE)),0,VLOOKUP('1_KMA'!$I$20&'1_KMA'!$I$21,CPI_Con_F!$C$63:$H$182,6,FALSE)) -> 1.040519878 | Q7: =IF(ISERROR(VLOOKUP('1_KMA'!$I$20&'1_KMA'!$I$21,CPI_Con_F!$C$63:$H$182,6,FALSE)),0,VLOOKUP('1_KMA'!$I$20&'1_KMA'!$I$21,CPI_Con_F!$C$63:$H$182,6,FALSE)) -> 1.040519878 | R7: =IF(ISERROR(VLOOKUP('1_KMA'!$I$20&'1_KMA'!$I$21,CPI_Con_F!$C$63:$H$182,6,FALSE)),0,VLOOKUP('1_KMA'!$I$20&'1_KMA'!$I$21,CPI_Con_F!$C$63:$H$182,6,FALSE)) -> 1.040519878 | S7: =IF(ISERROR(VLOOKUP('1_KMA'!$I$20&'1_KMA'!$I$21,CPI_Con_F!$C$63:$H$182,6,FALSE)),0,VLOOKUP('1_KMA'!$I$20&'1_KMA'!$I$21,CPI_Con_F!$C$63:$H$182,6,FALSE)) -> 1.040519878 | T7: =IF(ISERROR(VLOOKUP('1_KMA'!$I$20&'1_KMA'!$I$21,CPI_Con_F!$C$63:$H$182,6,FALSE)),0,VLOOKUP('1_KMA'!$I$20&'1_KMA'!$I$21,CPI_Con_F!$C$63:$H$182,6,FALSE)) -> 1.040519878 | U7: =IF(ISERROR(VLOOKUP('1_KMA'!$I$20&'1_KMA'!$I$21,CPI_Con_F!$C$63:$H$182,6,FALSE)),0,VLOOKUP('1_KMA'!$I$20&'1_KMA'!$I$21,CPI_Con_F!$C$63:$H$182,6,FALSE)) -> 1.040519878 | V7: =IF(ISERROR(VLOOKUP('1_KMA'!$I$20&'1_KMA'!$I$21,CPI_Con_F!$C$63:$H$182,6,FALSE)),0,VLOOKUP('1_KMA'!$I$20&'1_KMA'!$I$21,CPI_Con_F!$C$63:$H$182,6,FALSE)) -> 1.040519878 | W7: =IF(ISERROR(VLOOKUP('1_KMA'!$I$20&'1_KMA'!$I$21,CPI_Con_F!$C$63:$H$182,6,FALSE)),0,VLOOKUP('1_KMA'!$I$20&'1_KMA'!$I$21,CPI_Con_F!$C$63:$H$182,6,FALSE)) -> 1.040519878 | X7: =IF(ISERROR(VLOOKUP('1_KMA'!$I$20&'1_KMA'!$I$21,CPI_Con_F!$C$63:$H$182,6,FALSE)),0,VLOOKUP('1_KMA'!$I$20&'1_KMA'!$I$21,CPI_Con_F!$C$63:$H$182,6,FALSE)) -> 1.040519878 | Y7: =IF(ISERROR(VLOOKUP('1_KMA'!$I$20&'1_KMA'!$I$21,CPI_Con_F!$C$63:$H$182,6,FALSE)),0,VLOOKUP('1_KMA'!$I$20&'1_KMA'!$I$21,CPI_Con_F!$C$63:$H$182,6,FALSE)) -> 1.040519878 | Z7: =IF(ISERROR(VLOOKUP('1_KMA'!$I$20&'1_KMA'!$I$21,CPI_Con_F!$C$63:$H$182,6,FALSE)),0,VLOOKUP('1_KMA'!$I$20&'1_KMA'!$I$21,CPI_Con_F!$C$63:$H$182,6,FALSE)) -> 1.040519878 | AA7: =IF(ISERROR(VLOOKUP('1_KMA'!$I$20&'1_KMA'!$I$21,CPI_Con_F!$C$63:$H$182,6,FALSE)),0,VLOOKUP('1_KMA'!$I$20&'1_KMA'!$I$21,CPI_Con_F!$C$63:$H$182,6,FALSE)) -> 1.040519878 | AB7: =IF(ISERROR(VLOOKUP('1_KMA'!$I$20&'1_KMA'!$I$21,CPI_Con_F!$C$63:$H$182,6,FALSE)),0,VLOOKUP('1_KMA'!$I$20&'1_KMA'!$I$21,CPI_Con_F!$C$63:$H$182,6,FALSE)) -> 1.040519878 | AC7: =IF(ISERROR(VLOOKUP('1_KMA'!$I$20&'1_KMA'!$I$21,CPI_Con_F!$C$63:$H$182,6,FALSE)),0,VLOOKUP('1_KMA'!$I$20&'1_KMA'!$I$21,CPI_Con_F!$C$63:$H$182,6,FALSE)) -> 1.040519878 | AD7: =IF(ISERROR(VLOOKUP('1_KMA'!$I$20&'1_KMA'!$I$21,CPI_Con_F!$C$63:$H$182,6,FALSE)),0,VLOOKUP('1_KMA'!$I$20&'1_KMA'!$I$21,CPI_Con_F!$C$63:$H$182,6,FALSE)) -> 1.040519878 | AE7: =IF(ISERROR(VLOOKUP('1_KMA'!$I$20&'1_KMA'!$I$21,CPI_Con_F!$C$63:$H$182,6,FALSE)),0,VLOOKUP('1_KMA'!$I$20&'1_KMA'!$I$21,CPI_Con_F!$C$63:$H$182,6,FALSE)) -> 1.040519878 | AF7: =IF(ISERROR(VLOOKUP('1_KMA'!$I$20&'1_KMA'!$I$21,CPI_Con_F!$C$63:$H$182,6,FALSE)),0,VLOOKUP('1_KMA'!$I$20&'1_KMA'!$I$21,CPI_Con_F!$C$63:$H$182,6,FALSE)) -> 1.040519878 | AG7: =IF(ISERROR(VLOOKUP('1_KMA'!$I$20&'1_KMA'!$I$21,CPI_Con_F!$C$63:$H$182,6,FALSE)),0,VLOOKUP('1_KMA'!$I$20&'1_KMA'!$I$21,CPI_Con_F!$C$63:$H$182,6,FALSE)) -> 1.040519878 | AH7: =IF(ISERROR(VLOOKUP('1_KMA'!$I$20&'1_KMA'!$I$21,CPI_Con_F!$C$63:$H$182,6,FALSE)),0,VLOOKUP('1_KMA'!$I$20&'1_KMA'!$I$21,CPI_Con_F!$C$63:$H$182,6,FALSE)) -> 1.040519878 | AI7: =IF(ISERROR(VLOOKUP('1_KMA'!$I$20&'1_KMA'!$I$21,CPI_Con_F!$C$63:$H$182,6,FALSE)),0,VLOOKUP('1_KMA'!$I$20&'1_KMA'!$I$21,CPI_Con_F!$C$63:$H$182,6,FALSE)) -> 1.040519878 | AJ7: =IF(ISERROR(VLOOKUP('1_KMA'!$I$20&'1_KMA'!$I$21,CPI_Con_F!$C$63:$H$182,6,FALSE)),0,VLOOKUP('1_KMA'!$I$20&'1_KMA'!$I$21,CPI_Con_F!$C$63:$H$182,6,FALSE)) -> 1.040519878 | AK7: =IF(ISERROR(VLOOKUP('1_KMA'!$I$20&'1_KMA'!$I$21,CPI_Con_F!$C$63:$H$182,6,FALSE)),0,VLOOKUP('1_KMA'!$I$20&'1_KMA'!$I$21,CPI_Con_F!$C$63:$H$182,6,FALSE)) -> 1.040519878 | AL7: =IF(ISERROR(VLOOKUP('1_KMA'!$I$20&'1_KMA'!$I$21,CPI_Con_F!$C$63:$H$182,6,FALSE)),0,VLOOKUP('1_KMA'!$I$20&'1_KMA'!$I$21,CPI_Con_F!$C$63:$H$182,6,FALSE)) -> 1.040519878 | AM7: =IF(ISERROR(VLOOKUP('1_KMA'!$I$20&'1_KMA'!$I$21,CPI_Con_F!$C$63:$H$182,6,FALSE)),0,VLOOKUP('1_KMA'!$I$20&'1_KMA'!$I$21,CPI_Con_F!$C$63:$H$182,6,FALSE)) -> 1.040519878 | AN7: =IF(ISERROR(VLOOKUP('1_KMA'!$I$20&'1_KMA'!$I$21,CPI_Con_F!$C$63:$H$182,6,FALSE)),0,VLOOKUP('1_KMA'!$I$20&'1_KMA'!$I$21,CPI_Con_F!$C$63:$H$182,6,FALSE)) -> 1.040519878 | AO7: =IF(ISERROR(VLOOKUP('1_KMA'!$I$20&'1_KMA'!$I$21,CPI_Con_F!$C$63:$H$182,6,FALSE)),0,VLOOKUP('1_KMA'!$I$20&'1_KMA'!$I$21,CPI_Con_F!$C$63:$H$182,6,FALSE)) -> 1.040519878 | AP7: =IF(ISERROR(VLOOKUP('1_KMA'!$I$20&'1_KMA'!$I$21,CPI_Con_F!$C$63:$H$182,6,FALSE)),0,VLOOKUP('1_KMA'!$I$20&'1_KMA'!$I$21,CPI_Con_F!$C$63:$H$182,6,FALSE)) -> 1.040519878 | AQ7: =IF(ISERROR(VLOOKUP('1_KMA'!$I$20&'1_KMA'!$I$21,CPI_Con_F!$C$63:$H$182,6,FALSE)),0,VLOOKUP('1_KMA'!$I$20&'1_KMA'!$I$21,CPI_Con_F!$C$63:$H$182,6,FALSE)) -> 1.040519878 | AR7: =IF(ISERROR(VLOOKUP('1_KMA'!$I$20&'1_KMA'!$I$21,CPI_Con_F!$C$63:$H$182,6,FALSE)),0,VLOOKUP('1_KMA'!$I$20&'1_KMA'!$I$21,CPI_Con_F!$C$63:$H$182,6,FALSE)) -> 1.040519878 | AS7: =IF(ISERROR(VLOOKUP('1_KMA'!$I$20&'1_KMA'!$I$21,CPI_Con_F!$C$63:$H$182,6,FALSE)),0,VLOOKUP('1_KMA'!$I$20&'1_KMA'!$I$21,CPI_Con_F!$C$63:$H$182,6,FALSE)) -> 1.040519878 | AT7: =IF(ISERROR(VLOOKUP('1_KMA'!$I$20&'1_KMA'!$I$21,CPI_Con_F!$C$63:$H$182,6,FALSE)),0,VLOOKUP('1_KMA'!$I$20&'1_KMA'!$I$21,CPI_Con_F!$C$63:$H$182,6,FALSE)) -> 1.040519878 | AU7: =IF(ISERROR(VLOOKUP('1_KMA'!$I$20&'1_KMA'!$I$21,CPI_Con_F!$C$63:$H$182,6,FALSE)),0,VLOOKUP('1_KMA'!$I$20&'1_KMA'!$I$21,CPI_Con_F!$C$63:$H$182,6,FALSE)) -> 1.040519878 | AV7: =IF(ISERROR(VLOOKUP('1_KMA'!$I$20&'1_KMA'!$I$21,CPI_Con_F!$C$63:$H$182,6,FALSE)),0,VLOOKUP('1_KMA'!$I$20&'1_KMA'!$I$21,CPI_Con_F!$C$63:$H$182,6,FALSE)) -> 1.040519878 | AW7: =IF(ISERROR(VLOOKUP('1_KMA'!$I$20&'1_KMA'!$I$21,CPI_Con_F!$C$63:$H$182,6,FALSE)),0,VLOOKUP('1_KMA'!$I$20&'1_KMA'!$I$21,CPI_Con_F!$C$63:$H$182,6,FALSE)) -> 1.040519878 | AX7: =IF(ISERROR(VLOOKUP('1_KMA'!$I$20&'1_KMA'!$I$21,CPI_Con_F!$C$63:$H$182,6,FALSE)),0,VLOOKUP('1_KMA'!$I$20&'1_KMA'!$I$21,CPI_Con_F!$C$63:$H$182,6,FALSE)) -> 1.040519878 | AY7: =IF(ISERROR(VLOOKUP('1_KMA'!$I$20&'1_KMA'!$I$21,CPI_Con_F!$C$63:$H$182,6,FALSE)),0,VLOOKUP('1_KMA'!$I$20&'1_KMA'!$I$21,CPI_Con_F!$C$63:$H$182,6,FALSE)) -> 1.040519878 | AZ7: =IF(ISERROR(VLOOKUP('1_KMA'!$I$20&'1_KMA'!$I$21,CPI_Con_F!$C$63:$H$182,6,FALSE)),0,VLOOKUP('1_KMA'!$I$20&'1_KMA'!$I$21,CPI_Con_F!$C$63:$H$182,6,FALSE)) -> 1.040519878 | BA7: =IF(ISERROR(VLOOKUP('1_KMA'!$I$20&'1_KMA'!$I$21,CPI_Con_F!$C$63:$H$182,6,FALSE)),0,VLOOKUP('1_KMA'!$I$20&'1_KMA'!$I$21,CPI_Con_F!$C$63:$H$182,6,FALSE)) -> 1.040519878 | BB7: =IF(ISERROR(VLOOKUP('1_KMA'!$I$20&'1_KMA'!$I$21,CPI_Con_F!$C$63:$H$182,6,FALSE)),0,VLOOKUP('1_KMA'!$I$20&'1_KMA'!$I$21,CPI_Con_F!$C$63:$H$182,6,FALSE)) -> 1.040519878 | BC7: =IF(ISERROR(VLOOKUP('1_KMA'!$I$20&'1_KMA'!$I$21,CPI_Con_F!$C$63:$H$182,6,FALSE)),0,VLOOKUP('1_KMA'!$I$20&'1_KMA'!$I$21,CPI_Con_F!$C$63:$H$182,6,FALSE)) -> 1.040519878 | BD7: =IF(ISERROR(VLOOKUP('1_KMA'!$I$20&'1_KMA'!$I$21,CPI_Con_F!$C$63:$H$182,6,FALSE)),0,VLOOKUP('1_KMA'!$I$20&'1_KMA'!$I$21,CPI_Con_F!$C$63:$H$182,6,FALSE)) -> 1.040519878 | BE7: =IF(ISERROR(VLOOKUP('1_KMA'!$I$20&'1_KMA'!$I$21,CPI_Con_F!$C$63:$H$182,6,FALSE)),0,VLOOKUP('1_KMA'!$I$20&'1_KMA'!$I$21,CPI_Con_F!$C$63:$H$182,6,FALSE)) -> 1.040519878 | BF7: =IF(ISERROR(VLOOKUP('1_KMA'!$I$20&'1_KMA'!$I$21,CPI_Con_F!$C$63:$H$182,6,FALSE)),0,VLOOKUP('1_KMA'!$I$20&'1_KMA'!$I$21,CPI_Con_F!$C$63:$H$182,6,FALSE)) -> 1.040519878 | BG7: =IF(ISERROR(VLOOKUP('1_KMA'!$I$20&'1_KMA'!$I$21,CPI_Con_F!$C$63:$H$182,6,FALSE)),0,VLOOKUP('1_KMA'!$I$20&'1_KMA'!$I$21,CPI_Con_F!$C$63:$H$182,6,FALSE)) -> 1.040519878
I8: Evaluation Period Indicator | J8: =IF(J4<='1_KMA'!$I$23,1,0) -> 1 | K8: =IF(K4<='1_KMA'!$I$23,1,0) -> 1 | L8: =IF(L4<='1_KMA'!$I$23,1,0) -> 1 | M8: =IF(M4<='1_KMA'!$I$23,1,0) -> 1 | N8: =IF(N4<='1_KMA'!$I$23,1,0) -> 1 | O8: =IF(O4<='1_KMA'!$I$23,1,0) -> 1 | P8: =IF(P4<='1_KMA'!$I$23,1,0) -> 1 | Q8: =IF(Q4<='1_KMA'!$I$23,1,0) -> 1 | R8: =IF(R4<='1_KMA'!$I$23,1,0) -> 1 | S8: =IF(S4<='1_KMA'!$I$23,1,0) -> 1 | T8: =IF(T4<='1_KMA'!$I$23,1,0) -> 1 | U8: =IF(U4<='1_KMA'!$I$23,1,0) -> 1 | V8: =IF(V4<='1_KMA'!$I$23,1,0) -> 1 | W8: =IF(W4<='1_KMA'!$I$23,1,0) -> 1 | X8: =IF(X4<='1_KMA'!$I$23,1,0) -> 1 | Y8: =IF(Y4<='1_KMA'!$I$23,1,0) -> 1 | Z8: =IF(Z4<='1_KMA'!$I$23,1,0) -> 1 | AA8: =IF(AA4<='1_KMA'!$I$23,1,0) -> 1 | AB8: =IF(AB4<='1_KMA'!$I$23,1,0) -> 1 | AC8: =IF(AC4<='1_KMA'!$I$23,1,0) -> 1 | AD8: =IF(AD4<='1_KMA'!$I$23,1,0) -> 1 | AE8: =IF(AE4<='1_KMA'!$I$23,1,0) -> 1 | AF8: =IF(AF4<='1_KMA'!$I$23,1,0) -> 1 | AG8: =IF(AG4<='1_KMA'!$I$23,1,0) -> 1 | AH8: =IF(AH4<='1_KMA'!$I$23,1,0) -> 1 | AI8: =IF(AI4<='1_KMA'!$I$23,1,0) -> 1 | AJ8: =IF(AJ4<='1_KMA'!$I$23,1,0) -> 1 | AK8: =IF(AK4<='1_KMA'!$I$23,1,0) -> 1 | AL8: =IF(AL4<='1_KMA'!$I$23,1,0) -> 1 | AM8: =IF(AM4<='1_KMA'!$I$23,1,0) -> 1 | AN8: =IF(AN4<='1_KMA'!$I$23,1,0) -> 0 | AO8: =IF(AO4<='1_KMA'!$I$23,1,0) -> 0 | AP8: =IF(AP4<='1_KMA'!$I$23,1,0) -> 0 | AQ8: =IF(AQ4<='1_KMA'!$I$23,1,0) -> 0 | AR8: =IF(AR4<='1_KMA'!$I$23,1,0) -> 0 | AS8: =IF(AS4<='1_KMA'!$I$23,1,0) -> 0 | AT8: =IF(AT4<='1_KMA'!$I$23,1,0) -> 0 | AU8: =IF(AU4<='1_KMA'!$I$23,1,0) -> 0 | AV8: =IF(AV4<='1_KMA'!$I$23,1,0) -> 0 | AW8: =IF(AW4<='1_KMA'!$I$23,1,0) -> 0 | AX8: =IF(AX4<='1_KMA'!$I$23,1,0) -> 0 | AY8: =IF(AY4<='1_KMA'!$I$23,1,0) -> 0 | AZ8: =IF(AZ4<='1_KMA'!$I$23,1,0) -> 0 | BA8: =IF(BA4<='1_KMA'!$I$23,1,0) -> 0 | BB8: =IF(BB4<='1_KMA'!$I$23,1,0) -> 0 | BC8: =IF(BC4<='1_KMA'!$I$23,1,0) -> 0 | BD8: =IF(BD4<='1_KMA'!$I$23,1,0) -> 0 | BE8: =IF(BE4<='1_KMA'!$I$23,1,0) -> 0 | BF8: =IF(BF4<='1_KMA'!$I$23,1,0) -> 0 | BG8: =IF(BG4<='1_KMA'!$I$23,1,0) -> 0
B10: Summary for Central Assumptions
B12: WACC | J12: ='1_KMA'!$I$28 -> 0.0545 | K12: ='1_KMA'!$I$28 -> 0.0545 | L12: ='1_KMA'!$I$28 -> 0.0545 | M12: ='1_KMA'!$I$28 -> 0.0545 | N12: ='1_KMA'!$I$28 -> 0.0545 | O12: ='1_KMA'!$I$28 -> 0.0545 | P12: ='1_KMA'!$I$28 -> 0.0545 | Q12: ='1_KMA'!$I$28 -> 0.0545 | R12: ='1_KMA'!$I$28 -> 0.0545 | S12: ='1_KMA'!$I$28 -> 0.0545 | T12: ='1_KMA'!$I$28 -> 0.0545 | U12: ='1_KMA'!$I$28 -> 0.0545 | V12: ='1_KMA'!$I$28 -> 0.0545 | W12: ='1_KMA'!$I$28 -> 0.0545 | X12: ='1_KMA'!$I$28 -> 0.0545 | Y12: ='1_KMA'!$I$28 -> 0.0545 | Z12: ='1_KMA'!$I$28 -> 0.0545 | AA12: ='1_KMA'!$I$28 -> 0.0545 | AB12: ='1_KMA'!$I$28 -> 0.0545 | AC12: ='1_KMA'!$I$28 -> 0.0545 | AD12: ='1_KMA'!$I$28 -> 0.0545 | AE12: ='1_KMA'!$I$28 -> 0.0545 | AF12: ='1_KMA'!$I$28 -> 0.0545 | AG12: ='1_KMA'!$I$28 -> 0.0545 | AH12: ='1_KMA'!$I$28 -> 0.0545 | AI12: ='1_KMA'!$I$28 -> 0.0545 | AJ12: ='1_KMA'!$I$28 -> 0.0545 | AK12: ='1_KMA'!$I$28 -> 0.0545 | AL12: ='1_KMA'!$I$28 -> 0.0545 | AM12: ='1_KMA'!$I$28 -> 0.0545 | AN12: ='1_KMA'!$I$28 -> 0.0545 | AO12: ='1_KMA'!$I$28 -> 0.0545 | AP12: ='1_KMA'!$I$28 -> 0.0545 | AQ12: ='1_KMA'!$I$28 -> 0.0545 | AR12: ='1_KMA'!$I$28 -> 0.0545 | AS12: ='1_KMA'!$I$28 -> 0.0545 | AT12: ='1_KMA'!$I$28 -> 0.0545 | AU12: ='1_KMA'!$I$28 -> 0.0545 | AV12: ='1_KMA'!$I$28 -> 0.0545 | AW12: ='1_KMA'!$I$28 -> 0.0545 | AX12: ='1_KMA'!$I$28 -> 0.0545 | AY12: ='1_KMA'!$I$28 -> 0.0545 | AZ12: ='1_KMA'!$I$28 -> 0.0545 | BA12: ='1_KMA'!$I$28 -> 0.0545 | BB12: ='1_KMA'!$I$28 -> 0.0545 | BC12: ='1_KMA'!$I$28 -> 0.0545 | BD12: ='1_KMA'!$I$28 -> 0.0545 | BE12: ='1_KMA'!$I$28 -> 0.0545 | BF12: ='1_KMA'!$I$28 -> 0.0545 | BG12: ='1_KMA'!$I$28 -> 0.0545
B13: Deflator (interim calculation) | J13: 1 | K13: =J13*(1+K12) -> 1.0545 | L13: =K13*(1+L12) -> 1.11197025 | M13: =L13*(1+M12) -> 1.172572629 | N13: 1.236477837 | O13: 1.303865879 | P13: 1.374926569 | Q13: 1.449860067 | R13: 1.528877441 | S13: 1.612201262 | T13: 1.70006623 | U13: 1.79271984 | V13: 1.890423071 | W13: 1.993451129 | X13: 2.102094215 | Y13: 2.21665835 | Z13: 2.33746623 | AA13: 2.464858139 | AB13: 2.599192908 | AC13: 2.740848922 | AD13: 2.890225188 | AE13: 3.047742461 | AF13: 3.213844425 | AG13: 3.388998946 | AH13: 3.573699388 | AI13: 3.768466005 | AJ13: 3.973847402 | AK13: 4.190422086 | AL13: 4.418800089 | AM13: 4.659624694 | AN13: 4.91357424 | AO13: 5.181364036 | AP13: 5.463748376 | AQ13: 5.761522663 | AR13: 6.075525648 | AS13: 6.406641795 | AT13: 6.755803773 | AU13: 7.123995079 | AV13: 7.512252811 | AW13: 7.921670589 | AX13: 8.353401636 | AY13: 8.808662025 | AZ13: 9.288734106 | BA13: 9.794970114 | BB13: 10.32879599 | BC13: 10.89171537 | BD13: 11.48531385 | BE13: 12.11126346 | BF13: 12.77132732 | BG13: 13.46736466
B14: Deflator | J14: =1/J13 -> 1 | K14: =1/K13 -> 0.9483167378 | L14: =1/L13 -> 0.8993046352 | M14: 0.8528256379 | N14: =1/N13 -> 0.8087488268 | O14: 0.7669500492 | P14: 0.7273115687 | Q14: 0.6897217342 | R14: 0.6540746649 | S14: 0.6202699525 | T14: 0.5882123779 | U14: 0.5578116434 | V14: 0.5289821179 | W14: 0.5016425964 | X14: 0.4757160706 | Y14: 0.4511295122 | Z14: 0.4278136673 | AA14: 0.4057028613 | AB14: 0.384734814 | AC14: 0.3648504637 | AD14: 0.3459938015 | AE14: 0.3281117132 | AF14: 0.3111538295 | AG14: 0.2950723845 | AH14: 0.2798220811 | AI14: 0.2653599631 | AJ14: 0.2516452945 | AK14: 0.2386394448 | AL14: 0.2263057798 | AM14: 0.2146095588 | AN14: 0.2035178367 | AO14: 0.192999371 | AP14: 0.1830245339 | AQ14: 0.1735652289 | AR14: 0.1645948117 | AS14: 0.1560880149 | AT14: 0.1480208771 | AU14: 0.1403706753 | AV14: 0.1331158609 | AW14: 0.1262359989 | AX14: 0.1197117107 | AY14: 0.113524619 | AZ14: 0.1076572963 | BA14: 0.102093216 | BB14: 0.09681670559 | BC14: 0.09181290241 | BD14: 0.0870677121 | BE14: 0.0825677687 | BF14: 0.07830039706 | BG14: 0.07425357711
B16: Totex sought for EDPR FY27-31 (undiscounted) | G16: ="("&TEXT('1_KMA'!$I$21,"dd-mmm-yy")&" Dollars)" -> (30-Jun-25 Dollars)
C17: Net Capital Expenditure | G17: =SUM(J17:BG17) -> -223.5494117 | J17: =-J33*J$1*J$8 -> 0 | K17: =-K33*K$1*K$8 -> 0 | L17: -26.39431807 | M17: -47.42009922 | N17: -48.60112572 | O17: -49.91800036 | P17: -51.21586837 | Q17: 0 | R17: 0 | S17: 0 | T17: 0 | U17: 0 | V17: 0 | W17: 0 | X17: 0 | Y17: 0 | Z17: 0 | AA17: 0 | AB17: 0 | AC17: 0 | AD17: 0 | AE17: 0 | AF17: 0 | AG17: 0 | AH17: 0 | AI17: 0 | AJ17: 0 | AK17: 0 | AL17: 0 | AM17: 0 | AN17: 0 | AO17: 0 | AP17: 0 | AQ17: 0 | AR17: 0 | AS17: 0 | AT17: 0 | AU17: 0 | AV17: 0 | AW17: 0 | AX17: 0 | AY17: 0 | AZ17: 0 | BA17: 0 | BB17: 0 | BC17: 0 | BD17: 0 | BE17: 0 | BF17: 0 | BG17: 0
C18: Operating Expenditure | G18: =SUM(J18:BG18) -> 0 | J18: =-J34*J$1*J$8 -> 0 | K18: =-K34*K$1*K$8 -> 0 | L18: 0 | M18: 0 | N18: 0 | O18: 0 | P18: 0 | Q18: 0 | R18: 0 | S18: 0 | T18: 0 | U18: 0 | V18: 0 | W18: 0 | X18: 0 | Y18: 0 | Z18: 0 | AA18: 0 | AB18: 0 | AC18: 0 | AD18: 0 | AE18: 0 | AF18: 0 | AG18: 0 | AH18: 0 | AI18: 0 | AJ18: 0 | AK18: 0 | AL18: 0 | AM18: 0 | AN18: 0 | AO18: 0 | AP18: 0 | AQ18: 0 | AR18: 0 | AS18: 0 | AT18: 0 | AU18: 0 | AV18: 0 | AW18: 0 | AX18: 0 | AY18: 0 | AZ18: 0 | BA18: 0 | BB18: 0 | BC18: 0 | BD18: 0 | BE18: 0 | BF18: 0 | BG18: 0
C19: Totex | G19: =SUM(G17:G18) -> -223.5494117 | J19: =SUM(J17:J18) -> 0 | K19: =SUM(K17:K18) -> 0 | L19: =SUM(L17:L18) -> -26.39431807 | M19: -47.42009922 | N19: -48.60112572 | O19: -49.91800036 | P19: -51.21586837 | Q19: 0 | R19: 0 | S19: 0 | T19: 0 | U19: 0 | V19: 0 | W19: 0 | X19: 0 | Y19: 0 | Z19: 0 | AA19: 0 | AB19: 0 | AC19: 0 | AD19: 0 | AE19: 0 | AF19: 0 | AG19: 0 | AH19: 0 | AI19: 0 | AJ19: 0 | AK19: 0 | AL19: 0 | AM19: 0 | AN19: 0 | AO19: 0 | AP19: 0 | AQ19: 0 | AR19: 0 | AS19: 0 | AT19: 0 | AU19: 0 | AV19: 0 | AW19: 0 | AX19: 0 | AY19: 0 | AZ19: 0 | BA19: 0 | BB19: 0 | BC19: 0 | BD19: 0 | BE19: 0 | BF19: 0 | BG19: 0
B21: PV over full assessment period to establish the preferred option (discounted) | G21: ="("&TEXT('1_KMA'!$I$21,"dd-mmm-yy")&" Dollars)" -> (30-Jun-25 Dollars)
C22: Net Capital Expenditure | G22: =SUM(J22:BG22) -> -448.7114814 | J22: =-(J33)*J$14*J$8 -> -6.171323632 | K22: =-(K33)*K$14*K$8 -> -6.02794058 | L22: -23.73653259 | M22: -40.44107636 | N22: -39.30610341 | O22: -38.28461283 | P22: -37.24989357 | Q22: -36.24313969 | R22: -35.26359537 | S22: -34.31052523 | T22: -33.38321373 | U22: -32.48096471 | V22: -31.6031008 | W22: -21.52427406 | X22: -19.24321507 | Y22: -5.472431745 | Z22: -4.039354868 | AA22: -3.930183114 | AB22: 0 | AC22: 0 | AD22: 0 | AE22: 0 | AF22: 0 | AG22: 0 | AH22: 0 | AI22: 0 | AJ22: 0 | AK22: 0 | AL22: 0 | AM22: 0 | AN22: 0 | AO22: 0 | AP22: 0 | AQ22: 0 | AR22: 0 | AS22: 0 | AT22: 0 | AU22: 0 | AV22: 0 | AW22: 0 | AX22: 0 | AY22: 0 | AZ22: 0 | BA22: 0 | BB22: 0 | BC22: 0 | BD22: 0 | BE22: 0 | BF22: 0 | BG22: 0
C23: Operating Expenditure | G23: =SUM(J23:BG23) -> 0 | J23: =-(J34)*J$14*J$8 -> 0 | K23: =-(K34)*K$14*K$8 -> 0 | L23: 0 | M23: 0 | N23: 0 | O23: 0 | P23: 0 | Q23: 0 | R23: 0 | S23: 0 | T23: 0 | U23: 0 | V23: 0 | W23: 0 | X23: 0 | Y23: 0 | Z23: 0 | AA23: 0 | AB23: 0 | AC23: 0 | AD23: 0 | AE23: 0 | AF23: 0 | AG23: 0 | AH23: 0 | AI23: =-(AI34)*AI$14*AI$8 -> 0 | AJ23: 0 | AK23: 0 | AL23: 0 | AM23: 0 | AN23: 0 | AO23: 0 | AP23: 0 | AQ23: 0 | AR23: 0 | AS23: 0 | AT23: 0 | AU23: 0 | AV23: 0 | AW23: 0 | AX23: 0 | AY23: 0 | AZ23: 0 | BA23: 0 | BB23: 0 | BC23: 0 | BD23: 0 | BE23: 0 | BF23: 0 | BG23: 0
C24: Net Benefits | G24: =SUM(J24:BG24) -> 0 | J24: =(J45)*J$14*J$8 -> 0 | K24: =(K45)*K$14*K$8 -> 0 | L24: 0 | M24: 0 | N24: 0 | O24: 0 | P24: 0 | Q24: 0 | R24: 0 | S24: 0 | T24: 0 | U24: 0 | V24: 0 | W24: 0 | X24: 0 | Y24: 0 | Z24: 0 | AA24: 0 | AB24: 0 | AC24: 0 | AD24: 0 | AE24: 0 | AF24: 0 | AG24: 0 | AH24: 0 | AI24: =(AI45)*AI$14*AI$8 -> 0 | AJ24: 0 | AK24: 0 | AL24: 0 | AM24: 0 | AN24: 0 | AO24: 0 | AP24: 0 | AQ24: 0 | AR24: 0 | AS24: 0 | AT24: 0 | AU24: 0 | AV24: 0 | AW24: =(AW45)*AW$14*AW$8 -> 0 | AX24: 0 | AY24: 0 | AZ24: 0 | BA24: 0 | BB24: 0 | BC24: 0 | BD24: 0 | BE24: 0 | BF24: 0 | BG24: 0
B25: Total Present Value | G25: =SUM(J25:BG25) -> -448.7114814 | J25: =SUM(J22:J24) -> -6.171323632 | K25: =SUM(K22:K24) -> -6.02794058 | L25: -23.73653259 | M25: -40.44107636 | N25: -39.30610341 | O25: -38.28461283 | P25: -37.24989357 | Q25: -36.24313969 | R25: -35.26359537 | S25: -34.31052523 | T25: -33.38321373 | U25: -32.48096471 | V25: -31.6031008 | W25: -21.52427406 | X25: -19.24321507 | Y25: -5.472431745 | Z25: -4.039354868 | AA25: -3.930183114 | AB25: 0 | AC25: 0 | AD25: 0 | AE25: 0 | AF25: 0 | AG25: 0 | AH25: 0 | AI25: 0 | AJ25: 0 | AK25: 0 | AL25: 0 | AM25: 0 | AN25: 0 | AO25: 0 | AP25: 0 | AQ25: 0 | AR25: 0 | AS25: 0 | AT25: 0 | AU25: 0 | AV25: 0 | AW25: 0 | AX25: 0 | AY25: 0 | AZ25: 0 | BA25: 0 | BB25: 0 | BC25: 0 | BD25: 0 | BE25: 0 | BF25: 0 | BG25: 0
B27: Details for Central Assumptions
B28: Undiscounted | D28: ="("&TEXT('1_KMA'!$I$21,"dd-mmm-yy")&" dollars)" -> (30-Jun-25 dollars)
B30: Costs
G32: $ Basis Reminder | H32: $ Reminder
B33: Net Capex | G33: ='1_KMA'!$I$21 -> 2025-06-30 | H33: ='1_KMA'!$I$19 -> $millions | J33: =J52*J$7 -> 6.171323632 | K33: 6.356463341 | L33: 26.39431807 | M33: 47.42009922 | N33: 48.60112572 | O33: 49.91800036 | P33: 51.21586837 | Q33: 52.54748095 | R33: 53.91371546 | S33: 55.31547206 | T33: 56.75367433 | U33: 58.22926986 | V33: 59.74323088 | W33: 42.90758842 | X33: 40.45105107 | Y33: 12.13051152 | Z33: 9.441855594 | AA33: 9.687343839 | AB33: 0 | AC33: 0 | AD33: 0 | AE33: 0 | AF33: 0 | AG33: 0 | AH33: 0 | AI33: 0 | AJ33: 0 | AK33: 0 | AL33: 0 | AM33: 0 | AN33: 0 | AO33: 0 | AP33: =AP52*AP$7 -> 0 | AQ33: 0 | AR33: 0 | AS33: 0 | AT33: 0 | AU33: 0 | AV33: 0 | AW33: 0 | AX33: 0 | AY33: 0 | AZ33: 0 | BA33: 0 | BB33: 0 | BC33: 0 | BD33: 0 | BE33: 0 | BF33: 0 | BG33: 0
B34: Opex | G34: ='1_KMA'!$I$21 -> 2025-06-30 | H34: ='1_KMA'!$I$19 -> $millions | J34: =J53*J$7 -> 0 | K34: 0 | L34: 0 | M34: 0 | N34: 0 | O34: 0 | P34: 0 | Q34: 0 | R34: 0 | S34: 0 | T34: 0 | U34: 0 | V34: 0 | W34: 0 | X34: 0 | Y34: 0 | Z34: 0 | AA34: 0 | AB34: 0 | AC34: 0 | AD34: 0 | AE34: 0 | AF34: 0 | AG34: 0 | AH34: 0 | AI34: 0 | AJ34: 0 | AK34: 0 | AL34: 0 | AM34: 0 | AN34: 0 | AO34: 0 | AP34: =AP53*AP$7 -> 0 | AQ34: 0 | AR34: 0 | AS34: 0 | AT34: 0 | AU34: 0 | AV34: 0 | AW34: 0 | AX34: 0 | AY34: 0 | AZ34: 0 | BA34: 0 | BB34: 0 | BC34: 0 | BD34: 0 | BE34: 0 | BF34: 0 | BG34: 0
B35: Total | G35: ='1_KMA'!$I$21 -> 2025-06-30 | H35: ='1_KMA'!$I$19 -> $millions | J35: =J54*J$7 -> 6.171323632 | K35: 6.356463341 | L35: 26.39431807 | M35: 47.42009922 | N35: 48.60112572 | O35: 49.91800036 | P35: 51.21586837 | Q35: 52.54748095 | R35: 53.91371546 | S35: 55.31547206 | T35: 56.75367433 | U35: 58.22926986 | V35: 59.74323088 | W35: 42.90758842 | X35: 40.45105107 | Y35: 12.13051152 | Z35: 9.441855594 | AA35: 9.687343839 | AB35: 0 | AC35: 0 | AD35: 0 | AE35: 0 | AF35: 0 | AG35: 0 | AH35: 0 | AI35: 0 | AJ35: 0 | AK35: 0 | AL35: 0 | AM35: 0 | AN35: 0 | AO35: 0 | AP35: =AP54*AP$7 -> 0 | AQ35: 0 | AR35: 0 | AS35: 0 | AT35: 0 | AU35: 0 | AV35: 0 | AW35: 0 | AX35: 0 | AY35: 0 | AZ35: 0 | BA35: 0 | BB35: 0 | BC35: 0 | BD35: 0 | BE35: 0 | BF35: 0 | BG35: 0
B37: Benefits
G39: $ Basis Reminder | H39: $ Reminder
B40: =B59 -> Value of EUE | G40: ='1_KMA'!$I$21 -> 2025-06-30 | H40: ='1_KMA'!$I$19 -> $millions | J40: =J59*J$7 -> 0 | K40: 0 | L40: 0 | M40: 0 | N40: 0 | O40: 0 | P40: 0 | Q40: 0 | R40: 0 | S40: 0 | T40: 0 | U40: 0 | V40: 0 | W40: 0 | X40: 0 | Y40: 0 | Z40: 0 | AA40: 0 | AB40: 0 | AC40: 0 | AD40: 0 | AE40: 0 | AF40: 0 | AG40: 0 | AH40: 0 | AI40: 0 | AJ40: 0 | AK40: 0 | AL40: 0 | AM40: 0 | AN40: 0 | AO40: 0 | AP40: =AP59*AP$7 -> 0 | AQ40: 0 | AR40: 0 | AS40: 0 | AT40: 0 | AU40: 0 | AV40: 0 | AW40: 0 | AX40: 0 | AY40: 0 | AZ40: 0 | BA40: 0 | BB40: 0 | BC40: 0 | BD40: 0 | BE40: 0 | BF40: 0 | BG40: =BG59*BG$7 -> 0
B41: =B60 -> Reliability | G41: ='1_KMA'!$I$21 -> 2025-06-30 | H41: ='1_KMA'!$I$19 -> $millions | J41: =J60*J$7 -> 0 | K41: 0 | L41: 0 | M41: 0 | N41: 0 | O41: 0 | P41: 0 | Q41: 0 | R41: 0 | S41: 0 | T41: 0 | U41: 0 | V41: 0 | W41: 0 | X41: 0 | Y41: 0 | Z41: 0 | AA41: 0 | AB41: 0 | AC41: 0 | AD41: 0 | AE41: 0 | AF41: 0 | AG41: 0 | AH41: 0 | AI41: 0 | AJ41: 0 | AK41: 0 | AL41: 0 | AM41: 0 | AN41: 0 | AO41: 0 | AP41: =AP60*AP$7 -> 0 | AQ41: 0 | AR41: 0 | AS41: 0 | AT41: 0 | AU41: 0 | AV41: 0 | AW41: 0 | AX41: 0 | AY41: 0 | AZ41: 0 | BA41: 0 | BB41: 0 | BC41: 0 | BD41: 0 | BE41: 0 | BF41: 0 | BG41: 0
B42: Resilience | G42: ='1_KMA'!$I$21 -> 2025-06-30 | H42: ='1_KMA'!$I$19 -> $millions | J42: =J61*J$7 -> 0 | K42: 0 | L42: 0 | M42: 0 | N42: 0 | O42: 0 | P42: 0 | Q42: 0 | R42: 0 | S42: 0 | T42: 0 | U42: 0 | V42: 0 | W42: 0 | X42: 0 | Y42: 0 | Z42: 0 | AA42: 0 | AB42: 0 | AC42: 0 | AD42: 0 | AE42: 0 | AF42: 0 | AG42: 0 | AH42: 0 | AI42: 0 | AJ42: 0 | AK42: 0 | AL42: 0 | AM42: 0 | AN42: 0 | AO42: 0 | AP42: =AP61*AP$7 -> 0 | AQ42: 0 | AR42: 0 | AS42: 0 | AT42: 0 | AU42: 0 | AV42: 0 | AW42: 0 | AX42: 0 | AY42: 0 | AZ42: 0 | BA42: 0 | BB42: 0 | BC42: 0 | BD42: 0 | BE42: 0 | BF42: 0 | BG42: 0
B43: Batteries | G43: ='1_KMA'!$I$21 -> 2025-06-30 | H43: ='1_KMA'!$I$19 -> $millions | J43: =J62*J$7 -> 0 | K43: 0 | L43: 0 | M43: 0 | N43: 0 | O43: 0 | P43: 0 | Q43: 0 | R43: 0 | S43: 0 | T43: 0 | U43: 0 | V43: 0 | W43: 0 | X43: 0 | Y43: 0 | Z43: 0 | AA43: 0 | AB43: 0 | AC43: 0 | AD43: 0 | AE43: 0 | AF43: 0 | AG43: 0 | AH43: 0 | AI43: 0 | AJ43: 0 | AK43: 0 | AL43: 0 | AM43: 0 | AN43: 0 | AO43: 0 | AP43: =AP62*AP$7 -> 0 | AQ43: 0 | AR43: 0 | AS43: 0 | AT43: 0 | AU43: 0 | AV43: 0 | AW43: 0 | AX43: 0 | AY43: 0 | AZ43: 0 | BA43: 0 | BB43: 0 | BC43: 0 | BD43: 0 | BE43: 0 | BF43: 0 | BG43: 0
B44: Others | G44: ='1_KMA'!$I$21 -> 2025-06-30 | H44: ='1_KMA'!$I$19 -> $millions | J44: =J63*J$7 -> 0 | K44: 0 | L44: 0 | M44: 0 | N44: 0 | O44: 0 | P44: 0 | Q44: 0 | R44: 0 | S44: 0 | T44: 0 | U44: 0 | V44: 0 | W44: 0 | X44: 0 | Y44: 0 | Z44: 0 | AA44: 0 | AB44: 0 | AC44: 0 | AD44: 0 | AE44: 0 | AF44: 0 | AG44: 0 | AH44: 0 | AI44: 0 | AJ44: 0 | AK44: 0 | AL44: 0 | AM44: 0 | AN44: 0 | AO44: 0 | AP44: =AP63*AP$7 -> 0 | AQ44: 0 | AR44: 0 | AS44: 0 | AT44: 0 | AU44: 0 | AV44: 0 | AW44: 0 | AX44: 0 | AY44: 0 | AZ44: 0 | BA44: 0 | BB44: 0 | BC44: 0 | BD44: 0 | BE44: 0 | BF44: 0 | BG44: 0
B45: ='3_BC'!B64 -> Total | G45: ='1_KMA'!$I$21 -> 2025-06-30 | H45: ='1_KMA'!$I$19 -> $millions | J45: =J64*J$7 -> 0 | K45: 0 | L45: 0 | M45: 0 | N45: 0 | O45: 0 | P45: 0 | Q45: 0 | R45: 0 | S45: 0 | T45: 0 | U45: 0 | V45: 0 | W45: 0 | X45: 0 | Y45: 0 | Z45: 0 | AA45: 0 | AB45: 0 | AC45: 0 | AD45: 0 | AE45: 0 | AF45: 0 | AG45: 0 | AH45: 0 | AI45: 0 | AJ45: 0 | AK45: 0 | AL45: 0 | AM45: 0 | AN45: 0 | AO45: 0 | AP45: =AP64*AP$7 -> 0 | AQ45: 0 | AR45: 0 | AS45: 0 | AT45: 0 | AU45: 0 | AV45: 0 | AW45: 0 | AX45: 0 | AY45: 0 | AZ45: 0 | BA45: 0 | BB45: 0 | BC45: 0 | BD45: 0 | BE45: 0 | BF45: 0 | BG45: 0
B47: Undiscounted | D47: ="("&TEXT('1_KMA'!$I$20,"dd-mmm-yy")&" dollars)" -> (30-Jun-24 dollars)
B49: Costs
G51: $ Basis Reminder | H51: $ Reminder
B52: Net Capex | G52: ='1_KMA'!$I$20 -> 2024-06-30 | H52: ='1_KMA'!$I$19 -> $millions | J52: ='2.1_BC'!J10+'2.1_BC'!J11 -> 5.931000228 | K52: ='2.1_BC'!K10+'2.1_BC'!K11 -> 6.108930235 | L52: ='2.1_BC'!L10+'2.1_BC'!L11 -> 25.36647174 | M52: ='2.1_BC'!M10+'2.1_BC'!M11 -> 45.57346787 | N52: ='2.1_BC'!N10+'2.1_BC'!N11 -> 46.70850289 | O52: ='2.1_BC'!O10+'2.1_BC'!O11 -> 47.97409587 | P52: ='2.1_BC'!P10+'2.1_BC'!P11 -> 49.22142236 | Q52: ='2.1_BC'!Q10+'2.1_BC'!Q11 -> 50.50117934 | R52: ='2.1_BC'!R10+'2.1_BC'!R11 -> 51.81421 | S52: ='2.1_BC'!S10+'2.1_BC'!S11 -> 53.16137946 | T52: ='2.1_BC'!T10+'2.1_BC'!T11 -> 54.54357533 | U52: ='2.1_BC'!U10+'2.1_BC'!U11 -> 55.96170829 | V52: ='2.1_BC'!V10+'2.1_BC'!V11 -> 57.4167127 | W52: ='2.1_BC'!W10+'2.1_BC'!W11 -> 41.23668306 | X52: ='2.1_BC'!X10+'2.1_BC'!X11 -> 38.87580808 | Y52: ='2.1_BC'!Y10+'2.1_BC'!Y11 -> 11.65812569 | Z52: ='2.1_BC'!Z10+'2.1_BC'!Z11 -> 9.074171283 | AA52: ='2.1_BC'!AA10+'2.1_BC'!AA11 -> 9.310099737 | AB52: ='2.1_BC'!AB10+'2.1_BC'!AB11 -> 0 | AC52: ='2.1_BC'!AC10+'2.1_BC'!AC11 -> 0 | AD52: ='2.1_BC'!AD10+'2.1_BC'!AD11 -> 0 | AE52: ='2.1_BC'!AE10+'2.1_BC'!AE11 -> 0 | AF52: ='2.1_BC'!AF10+'2.1_BC'!AF11 -> 0 | AG52: ='2.1_BC'!AG10+'2.1_BC'!AG11 -> 0 | AH52: ='2.1_BC'!AH10+'2.1_BC'!AH11 -> 0 | AI52: ='2.1_BC'!AI10+'2.1_BC'!AI11 -> 0 | AJ52: ='2.1_BC'!AJ10+'2.1_BC'!AJ11 -> 0 | AK52: ='2.1_BC'!AK10+'2.1_BC'!AK11 -> 0 | AL52: ='2.1_BC'!AL10+'2.1_BC'!AL11 -> 0 | AM52: ='2.1_BC'!AM10+'2.1_BC'!AM11 -> 0 | AN52: ='2.1_BC'!AN10+'2.1_BC'!AN11 -> 0 | AO52: ='2.1_BC'!AO10+'2.1_BC'!AO11 -> 0 | AP52: ='2.1_BC'!AP10+'2.1_BC'!AP11 -> 0 | AQ52: ='2.1_BC'!AQ10+'2.1_BC'!AQ11 -> 0 | AR52: ='2.1_BC'!AR10+'2.1_BC'!AR11 -> 0 | AS52: ='2.1_BC'!AS10+'2.1_BC'!AS11 -> 0 | AT52: ='2.1_BC'!AT10+'2.1_BC'!AT11 -> 0 | AU52: ='2.1_BC'!AU10+'2.1_BC'!AU11 -> 0 | AV52: ='2.1_BC'!AV10+'2.1_BC'!AV11 -> 0 | AW52: ='2.1_BC'!AW10+'2.1_BC'!AW11 -> 0 | AX52: ='2.1_BC'!AX10+'2.1_BC'!AX11 -> 0 | AY52: ='2.1_BC'!AY10+'2.1_BC'!AY11 -> 0 | AZ52: ='2.1_BC'!AZ10+'2.1_BC'!AZ11 -> 0 | BA52: ='2.1_BC'!BA10+'2.1_BC'!BA11 -> 0 | BB52: ='2.1_BC'!BB10+'2.1_BC'!BB11 -> 0 | BC52: ='2.1_BC'!BC10+'2.1_BC'!BC11 -> 0 | BD52: ='2.1_BC'!BD10+'2.1_BC'!BD11 -> 0 | BE52: ='2.1_BC'!BE10+'2.1_BC'!BE11 -> 0 | BF52: ='2.1_BC'!BF10+'2.1_BC'!BF11 -> 0 | BG52: ='2.1_BC'!BG10+'2.1_BC'!BG11 -> 0
B53: Opex | G53: ='1_KMA'!$I$20 -> 2024-06-30 | H53: ='1_KMA'!$I$19 -> $millions | J53: ='2.1_BC'!J12 -> 0 | K53: ='2.1_BC'!K12 -> 0 | L53: ='2.1_BC'!L12 -> 0 | M53: ='2.1_BC'!M12 -> 0 | N53: ='2.1_BC'!N12 -> 0 | O53: ='2.1_BC'!O12 -> 0 | P53: ='2.1_BC'!P12 -> 0 | Q53: ='2.1_BC'!Q12 -> 0 | R53: ='2.1_BC'!R12 -> 0 | S53: ='2.1_BC'!S12 -> 0 | T53: ='2.1_BC'!T12 -> 0 | U53: ='2.1_BC'!U12 -> 0 | V53: ='2.1_BC'!V12 -> 0 | W53: ='2.1_BC'!W12 -> 0 | X53: ='2.1_BC'!X12 -> 0 | Y53: ='2.1_BC'!Y12 -> 0 | Z53: ='2.1_BC'!Z12 -> 0 | AA53: ='2.1_BC'!AA12 -> 0 | AB53: ='2.1_BC'!AB12 -> 0 | AC53: ='2.1_BC'!AC12 -> 0 | AD53: ='2.1_BC'!AD12 -> 0 | AE53: ='2.1_BC'!AE12 -> 0 | AF53: ='2.1_BC'!AF12 -> 0 | AG53: ='2.1_BC'!AG12 -> 0 | AH53: ='2.1_BC'!AH12 -> 0 | AI53: ='2.1_BC'!AI12 -> 0 | AJ53: ='2.1_BC'!AJ12 -> 0 | AK53: ='2.1_BC'!AK12 -> 0 | AL53: ='2.1_BC'!AL12 -> 0 | AM53: ='2.1_BC'!AM12 -> 0 | AN53: ='2.1_BC'!AN12 -> 0 | AO53: ='2.1_BC'!AO12 -> 0 | AP53: ='2.1_BC'!AP12 -> 0 | AQ53: ='2.1_BC'!AQ12 -> 0 | AR53: ='2.1_BC'!AR12 -> 0 | AS53: ='2.1_BC'!AS12 -> 0 | AT53: ='2.1_BC'!AT12 -> 0 | AU53: ='2.1_BC'!AU12 -> 0 | AV53: ='2.1_BC'!AV12 -> 0 | AW53: ='2.1_BC'!AW12 -> 0 | AX53: ='2.1_BC'!AX12 -> 0 | AY53: ='2.1_BC'!AY12 -> 0 | AZ53: ='2.1_BC'!AZ12 -> 0 | BA53: ='2.1_BC'!BA12 -> 0 | BB53: ='2.1_BC'!BB12 -> 0 | BC53: ='2.1_BC'!BC12 -> 0 | BD53: ='2.1_BC'!BD12 -> 0 | BE53: ='2.1_BC'!BE12 -> 0 | BF53: ='2.1_BC'!BF12 -> 0 | BG53: ='2.1_BC'!BG12 -> 0
B54: Total | G54: ='1_KMA'!$I$20 -> 2024-06-30 | H54: ='1_KMA'!$I$19 -> $millions | J54: =SUM(J52:J53) -> 5.931000228 | K54: =SUM(K52:K53) -> 6.108930235 | L54: 25.36647174 | M54: 45.57346787 | N54: 46.70850289 | O54: 47.97409587 | P54: 49.22142236 | Q54: 50.50117934 | R54: 51.81421 | S54: 53.16137946 | T54: 54.54357533 | U54: 55.96170829 | V54: 57.4167127 | W54: 41.23668306 | X54: 38.87580808 | Y54: 11.65812569 | Z54: 9.074171283 | AA54: 9.310099737 | AB54: 0 | AC54: 0 | AD54: 0 | AE54: 0 | AF54: 0 | AG54: 0 | AH54: 0 | AI54: 0 | AJ54: 0 | AK54: 0 | AL54: 0 | AM54: 0 | AN54: 0 | AO54: 0 | AP54: 0 | AQ54: 0 | AR54: 0 | AS54: 0 | AT54: 0 | AU54: 0 | AV54: 0 | AW54: 0 | AX54: 0 | AY54: 0 | AZ54: 0 | BA54: 0 | BB54: 0 | BC54: 0 | BD54: 0 | BE54: 0 | BF54: 0 | BG54: 0
B56: Benefits
G58: $ Basis Reminder | H58: $ Reminder
B59: ='2.1_BC'!$B$16 -> Value of EUE | G59: ='1_KMA'!$I$20 -> 2024-06-30 | H59: ='1_KMA'!$I$19 -> $millions | J59: ='2.1_BC'!J16 -> 0 | K59: ='2.1_BC'!K16 -> 0 | L59: ='2.1_BC'!L16 -> 0 | M59: ='2.1_BC'!M16 -> 0 | N59: ='2.1_BC'!N16 -> 0 | O59: ='2.1_BC'!O16 -> 0 | P59: ='2.1_BC'!P16 -> 0 | Q59: ='2.1_BC'!Q16 -> 0 | R59: ='2.1_BC'!R16 -> 0 | S59: ='2.1_BC'!S16 -> 0 | T59: ='2.1_BC'!T16 -> 0 | U59: ='2.1_BC'!U16 -> 0 | V59: ='2.1_BC'!V16 -> 0 | W59: ='2.1_BC'!W16 -> 0 | X59: ='2.1_BC'!X16 -> 0 | Y59: ='2.1_BC'!Y16 -> 0 | Z59: ='2.1_BC'!Z16 -> 0 | AA59: ='2.1_BC'!AA16 -> 0 | AB59: ='2.1_BC'!AB16 -> 0 | AC59: ='2.1_BC'!AC16 -> 0 | AD59: ='2.1_BC'!AD16 -> 0 | AE59: ='2.1_BC'!AE16 -> 0 | AF59: ='2.1_BC'!AF16 -> 0 | AG59: ='2.1_BC'!AG16 -> 0 | AH59: ='2.1_BC'!AH16 -> 0 | AI59: ='2.1_BC'!AI16 -> 0 | AJ59: ='2.1_BC'!AJ16 -> 0 | AK59: ='2.1_BC'!AK16 -> 0 | AL59: ='2.1_BC'!AL16 -> 0 | AM59: ='2.1_BC'!AM16 -> 0 | AN59: ='2.1_BC'!AN16 -> 0 | AO59: ='2.1_BC'!AO16 -> 0 | AP59: ='2.1_BC'!AP16 -> 0 | AQ59: ='2.1_BC'!AQ16 -> 0 | AR59: ='2.1_BC'!AR16 -> 0 | AS59: ='2.1_BC'!AS16 -> 0 | AT59: ='2.1_BC'!AT16 -> 0 | AU59: ='2.1_BC'!AU16 -> 0 | AV59: ='2.1_BC'!AV16 -> 0 | AW59: ='2.1_BC'!AW16 -> 0 | AX59: ='2.1_BC'!AX16 -> 0 | AY59: ='2.1_BC'!AY16 -> 0 | AZ59: ='2.1_BC'!AZ16 -> 0 | BA59: ='2.1_BC'!BA16 -> 0 | BB59: ='2.1_BC'!BB16 -> 0 | BC59: ='2.1_BC'!BC16 -> 0 | BD59: ='2.1_BC'!BD16 -> 0 | BE59: ='2.1_BC'!BE16 -> 0 | BF59: ='2.1_BC'!BF16 -> 0 | BG59: ='2.1_BC'!BG16 -> 0
B60: ='2.1_BC'!$B$17 -> Reliability | G60: ='1_KMA'!$I$20 -> 2024-06-30 | H60: ='1_KMA'!$I$19 -> $millions | J60: ='2.1_BC'!J17 -> 0 | K60: ='2.1_BC'!K17 -> 0 | L60: ='2.1_BC'!L17 -> 0 | M60: ='2.1_BC'!M17 -> 0 | N60: ='2.1_BC'!N17 -> 0 | O60: ='2.1_BC'!O17 -> 0 | P60: ='2.1_BC'!P17 -> 0 | Q60: ='2.1_BC'!Q17 -> 0 | R60: ='2.1_BC'!R17 -> 0 | S60: ='2.1_BC'!S17 -> 0 | T60: ='2.1_BC'!T17 -> 0 | U60: ='2.1_BC'!U17 -> 0 | V60: ='2.1_BC'!V17 -> 0 | W60: ='2.1_BC'!W17 -> 0 | X60: ='2.1_BC'!X17 -> 0 | Y60: ='2.1_BC'!Y17 -> 0 | Z60: ='2.1_BC'!Z17 -> 0 | AA60: ='2.1_BC'!AA17 -> 0 | AB60: ='2.1_BC'!AB17 -> 0 | AC60: ='2.1_BC'!AC17 -> 0 | AD60: ='2.1_BC'!AD17 -> 0 | AE60: ='2.1_BC'!AE17 -> 0 | AF60: ='2.1_BC'!AF17 -> 0 | AG60: ='2.1_BC'!AG17 -> 0 | AH60: ='2.1_BC'!AH17 -> 0 | AI60: ='2.1_BC'!AI17 -> 0 | AJ60: ='2.1_BC'!AJ17 -> 0 | AK60: ='2.1_BC'!AK17 -> 0 | AL60: ='2.1_BC'!AL17 -> 0 | AM60: ='2.1_BC'!AM17 -> 0 | AN60: ='2.1_BC'!AN17 -> 0 | AO60: ='2.1_BC'!AO17 -> 0 | AP60: ='2.1_BC'!AP17 -> 0 | AQ60: ='2.1_BC'!AQ17 -> 0 | AR60: ='2.1_BC'!AR17 -> 0 | AS60: ='2.1_BC'!AS17 -> 0 | AT60: ='2.1_BC'!AT17 -> 0 | AU60: ='2.1_BC'!AU17 -> 0 | AV60: ='2.1_BC'!AV17 -> 0 | AW60: ='2.1_BC'!AW17 -> 0 | AX60: ='2.1_BC'!AX17 -> 0 | AY60: ='2.1_BC'!AY17 -> 0 | AZ60: ='2.1_BC'!AZ17 -> 0 | BA60: ='2.1_BC'!BA17 -> 0 | BB60: ='2.1_BC'!BB17 -> 0 | BC60: ='2.1_BC'!BC17 -> 0 | BD60: ='2.1_BC'!BD17 -> 0 | BE60: ='2.1_BC'!BE17 -> 0 | BF60: ='2.1_BC'!BF17 -> 0 | BG60: ='2.1_BC'!BG17 -> 0
B61: ='2.1_BC'!$B$18 -> Resilience | G61: ='1_KMA'!$I$20 -> 2024-06-30 | H61: ='1_KMA'!$I$19 -> $millions | J61: ='2.1_BC'!J18 -> 0 | K61: ='2.1_BC'!K18 -> 0 | L61: ='2.1_BC'!L18 -> 0 | M61: ='2.1_BC'!M18 -> 0 | N61: ='2.1_BC'!N18 -> 0 | O61: ='2.1_BC'!O18 -> 0 | P61: ='2.1_BC'!P18 -> 0 | Q61: ='2.1_BC'!Q18 -> 0 | R61: ='2.1_BC'!R18 -> 0 | S61: ='2.1_BC'!S18 -> 0 | T61: ='2.1_BC'!T18 -> 0 | U61: ='2.1_BC'!U18 -> 0 | V61: ='2.1_BC'!V18 -> 0 | W61: ='2.1_BC'!W18 -> 0 | X61: ='2.1_BC'!X18 -> 0 | Y61: ='2.1_BC'!Y18 -> 0 | Z61: ='2.1_BC'!Z18 -> 0 | AA61: ='2.1_BC'!AA18 -> 0 | AB61: ='2.1_BC'!AB18 -> 0 | AC61: ='2.1_BC'!AC18 -> 0 | AD61: ='2.1_BC'!AD18 -> 0 | AE61: ='2.1_BC'!AE18 -> 0 | AF61: ='2.1_BC'!AF18 -> 0 | AG61: ='2.1_BC'!AG18 -> 0 | AH61: ='2.1_BC'!AH18 -> 0 | AI61: ='2.1_BC'!AI18 -> 0 | AJ61: ='2.1_BC'!AJ18 -> 0 | AK61: ='2.1_BC'!AK18 -> 0 | AL61: ='2.1_BC'!AL18 -> 0 | AM61: ='2.1_BC'!AM18 -> 0 | AN61: ='2.1_BC'!AN18 -> 0 | AO61: ='2.1_BC'!AO18 -> 0 | AP61: ='2.1_BC'!AP18 -> 0 | AQ61: ='2.1_BC'!AQ18 -> 0 | AR61: ='2.1_BC'!AR18 -> 0 | AS61: ='2.1_BC'!AS18 -> 0 | AT61: ='2.1_BC'!AT18 -> 0 | AU61: ='2.1_BC'!AU18 -> 0 | AV61: ='2.1_BC'!AV18 -> 0 | AW61: ='2.1_BC'!AW18 -> 0 | AX61: ='2.1_BC'!AX18 -> 0 | AY61: ='2.1_BC'!AY18 -> 0 | AZ61: ='2.1_BC'!AZ18 -> 0 | BA61: ='2.1_BC'!BA18 -> 0 | BB61: ='2.1_BC'!BB18 -> 0 | BC61: ='2.1_BC'!BC18 -> 0 | BD61: ='2.1_BC'!BD18 -> 0 | BE61: ='2.1_BC'!BE18 -> 0 | BF61: ='2.1_BC'!BF18 -> 0 | BG61: ='2.1_BC'!BG18 -> 0
B62: ='2.1_BC'!$B$19 -> Batteries | G62: ='1_KMA'!$I$20 -> 2024-06-30 | H62: ='1_KMA'!$I$19 -> $millions | J62: ='2.1_BC'!J19 -> 0 | K62: ='2.1_BC'!K19 -> 0 | L62: ='2.1_BC'!L19 -> 0 | M62: ='2.1_BC'!M19 -> 0 | N62: ='2.1_BC'!N19 -> 0 | O62: ='2.1_BC'!O19 -> 0 | P62: ='2.1_BC'!P19 -> 0 | Q62: ='2.1_BC'!Q19 -> 0 | R62: ='2.1_BC'!R19 -> 0 | S62: ='2.1_BC'!S19 -> 0 | T62: ='2.1_BC'!T19 -> 0 | U62: ='2.1_BC'!U19 -> 0 | V62: ='2.1_BC'!V19 -> 0 | W62: ='2.1_BC'!W19 -> 0 | X62: ='2.1_BC'!X19 -> 0 | Y62: ='2.1_BC'!Y19 -> 0 | Z62: ='2.1_BC'!Z19 -> 0 | AA62: ='2.1_BC'!AA19 -> 0 | AB62: ='2.1_BC'!AB19 -> 0 | AC62: ='2.1_BC'!AC19 -> 0 | AD62: ='2.1_BC'!AD19 -> 0 | AE62: ='2.1_BC'!AE19 -> 0 | AF62: ='2.1_BC'!AF19 -> 0 | AG62: ='2.1_BC'!AG19 -> 0 | AH62: ='2.1_BC'!AH19 -> 0 | AI62: ='2.1_BC'!AI19 -> 0 | AJ62: ='2.1_BC'!AJ19 -> 0 | AK62: ='2.1_BC'!AK19 -> 0 | AL62: ='2.1_BC'!AL19 -> 0 | AM62: ='2.1_BC'!AM19 -> 0 | AN62: ='2.1_BC'!AN19 -> 0 | AO62: ='2.1_BC'!AO19 -> 0 | AP62: ='2.1_BC'!AP19 -> 0 | AQ62: ='2.1_BC'!AQ19 -> 0 | AR62: ='2.1_BC'!AR19 -> 0 | AS62: ='2.1_BC'!AS19 -> 0 | AT62: ='2.1_BC'!AT19 -> 0 | AU62: ='2.1_BC'!AU19 -> 0 | AV62: ='2.1_BC'!AV19 -> 0 | AW62: ='2.1_BC'!AW19 -> 0 | AX62: ='2.1_BC'!AX19 -> 0 | AY62: ='2.1_BC'!AY19 -> 0 | AZ62: ='2.1_BC'!AZ19 -> 0 | BA62: ='2.1_BC'!BA19 -> 0 | BB62: ='2.1_BC'!BB19 -> 0 | BC62: ='2.1_BC'!BC19 -> 0 | BD62: ='2.1_BC'!BD19 -> 0 | BE62: ='2.1_BC'!BE19 -> 0 | BF62: ='2.1_BC'!BF19 -> 0 | BG62: ='2.1_BC'!BG19 -> 0
B63: ='2.1_BC'!$B$20 -> Others | G63: ='1_KMA'!$I$20 -> 2024-06-30 | H63: ='1_KMA'!$I$19 -> $millions | J63: ='2.1_BC'!J20 -> 0 | K63: ='2.1_BC'!K20 -> 0 | L63: ='2.1_BC'!L20 -> 0 | M63: ='2.1_BC'!M20 -> 0 | N63: ='2.1_BC'!N20 -> 0 | O63: ='2.1_BC'!O20 -> 0 | P63: ='2.1_BC'!P20 -> 0 | Q63: ='2.1_BC'!Q20 -> 0 | R63: ='2.1_BC'!R20 -> 0 | S63: ='2.1_BC'!S20 -> 0 | T63: ='2.1_BC'!T20 -> 0 | U63: ='2.1_BC'!U20 -> 0 | V63: ='2.1_BC'!V20 -> 0 | W63: ='2.1_BC'!W20 -> 0 | X63: ='2.1_BC'!X20 -> 0 | Y63: ='2.1_BC'!Y20 -> 0 | Z63: ='2.1_BC'!Z20 -> 0 | AA63: ='2.1_BC'!AA20 -> 0 | AB63: ='2.1_BC'!AB20 -> 0 | AC63: ='2.1_BC'!AC20 -> 0 | AD63: ='2.1_BC'!AD20 -> 0 | AE63: ='2.1_BC'!AE20 -> 0 | AF63: ='2.1_BC'!AF20 -> 0 | AG63: ='2.1_BC'!AG20 -> 0 | AH63: ='2.1_BC'!AH20 -> 0 | AI63: ='2.1_BC'!AI20 -> 0 | AJ63: ='2.1_BC'!AJ20 -> 0 | AK63: ='2.1_BC'!AK20 -> 0 | AL63: ='2.1_BC'!AL20 -> 0 | AM63: ='2.1_BC'!AM20 -> 0 | AN63: ='2.1_BC'!AN20 -> 0 | AO63: ='2.1_BC'!AO20 -> 0 | AP63: ='2.1_BC'!AP20 -> 0 | AQ63: ='2.1_BC'!AQ20 -> 0 | AR63: ='2.1_BC'!AR20 -> 0 | AS63: ='2.1_BC'!AS20 -> 0 | AT63: ='2.1_BC'!AT20 -> 0 | AU63: ='2.1_BC'!AU20 -> 0 | AV63: ='2.1_BC'!AV20 -> 0 | AW63: ='2.1_BC'!AW20 -> 0 | AX63: ='2.1_BC'!AX20 -> 0 | AY63: ='2.1_BC'!AY20 -> 0 | AZ63: ='2.1_BC'!AZ20 -> 0 | BA63: ='2.1_BC'!BA20 -> 0 | BB63: ='2.1_BC'!BB20 -> 0 | BC63: ='2.1_BC'!BC20 -> 0 | BD63: ='2.1_BC'!BD20 -> 0 | BE63: ='2.1_BC'!BE20 -> 0 | BF63: ='2.1_BC'!BF20 -> 0 | BG63: ='2.1_BC'!BG20 -> 0
